Workbook

Sheet OPĆI DIO
B1: RKP-NAZIV PRORAČUNSKOG KORISNIKA | C1: 1812 Sveučilište u Zagrebu FAKULTET PROMETNIH ZNANOSTI
B2: MJESTO I DATUM | C2: Zagreb, 27.01.2026.
B3: OSOBA ZA KONTAKTIRANJE | C3: Filip Januš univ.mag.oec. | M3: R. BR. | N3: RKPNaziv | O3: RKP | P3: NAZIV PRORAČUNSKOGA KORISNIKA | Q3: DODIJELI PRIPADNOST PREMA RKP-U: GLAVA I SVEUČILIŠTE/MZO | R3: ADRESA PRORAČUNSKOGA KORISNIKA | S3: POŠTANSKI BROJ I NAZIV GRADA/OPĆINE | T3: MATIČNI BROJ | U3: OIB | V3: Tip | W3: Glava
B4: TELEFON ZA KONTAKT | C4: 091 25 25 100 | M4: 0 | N4: odaberite - | V4: - | W4: -
B5: E-MAIL ZA KONTAKT | C5: fjanus@fpz.unizg.hr | M5: =+M4+1 -> 1. | N5: =O5&" "&P5 -> 1222 MINISTARSTVO ZNANOSTI, OBRAZOVANJA I MLADIH | O5: 1222 | P5: MINISTARSTVO ZNANOSTI, OBRAZOVANJA I MLADIH | R5: DONJE SVETICE 38 | S5: 10000 ZAGREB | T5: 03271030 | U5: 49508397045 | V5: MZO | W5: 08005
M6: 2. | N6: 1757 SVEUČILIŠTE U ZAGREBU FAKULTET ELEKTROTEHNIKE I RAČUNARSTVA | O6: 1757 | P6: SVEUČILIŠTE U ZAGREBU FAKULTET ELEKTROTEHNIKE I RAČUNARSTVA | Q6: SVEUČILIŠTE U ZAGREBU | R6: UNSKA 3 | S6: 10000 ZAGREB | T6: 03276643 | U6: 57029260362 | V6: Sveučilišta i veleučilišta u Republici Hrvatskoj | W6: 08006
B7: FINANCIJSKI PLAN ZA 2026. I PROJEKCIJE ZA 2027. I 2028. GODINU | M7: 3. | N7: 1781 SVEUČILIŠTE U ZAGREBU - PRIRODOSLOVNO-MATEMATIČKI FAKULTET | O7: 1781 | P7: SVEUČILIŠTE U ZAGREBU - PRIRODOSLOVNO-MATEMATIČKI FAKULTET | Q7: SVEUČILIŠTE U ZAGREBU | R7: HORVATOVAC 102A | S7: 10000 ZAGREB | T7: 03270149 | U7: 28163265527 | V7: Sveučilišta i veleučilišta u Republici Hrvatskoj | W7: 08006
M8: 4. | N8: 1790 SVEUČILIŠTE U ZAGREBU FAKULTET KEMIJSKOG INŽENJERSTVA I TEHNOLOGIJE | O8: 1790 | P8: SVEUČILIŠTE U ZAGREBU FAKULTET KEMIJSKOG INŽENJERSTVA I TEHNOLOGIJE | Q8: SVEUČILIŠTE U ZAGREBU | R8: MARULIĆEV TRG 19 | S8: 10000 ZAGREB | T8: 03250270 | U8: 71259740533 | V8: Sveučilišta i veleučilišta u Republici Hrvatskoj | W8: 08006
B9: I. OPĆI DIO | M9: 5. | N9: 1804 SVEUČILIŠTE U ZAGREBU - TEKSTILNO-TEHNOLOŠKI FAKULTET | O9: 1804 | P9: SVEUČILIŠTE U ZAGREBU - TEKSTILNO-TEHNOLOŠKI FAKULTET | Q9: SVEUČILIŠTE U ZAGREBU | R9: PRILAZ BARUNA FILIPOVIĆA 28A | S9: 10000 ZAGREB | T9: 03207064 | U9: 43097527965 | V9: Sveučilišta i veleučilišta u Republici Hrvatskoj | W9: 08006
M10: 6. | N10: 1812 Sveučilište u Zagrebu FAKULTET PROMETNIH ZNANOSTI | O10: 1812 | P10: Sveučilište u Zagrebu FAKULTET PROMETNIH ZNANOSTI | Q10: SVEUČILIŠTE U ZAGREBU | R10: VUKELIĆEVA 4 | S10: 10000 ZAGREB | T10: 03260771 | U10: 25410051374 | V10: Sveučilišta i veleučilišta u Republici Hrvatskoj | W10: 08006
B11: A. SAŽETAK RAČUNA PRIHODA I RASHODA | M11: 7. | N11: 1829 SVEUČILIŠTE U ZAGREBU, FAKULTET STROJARSTVA I BRODOGRADNJE | O11: 1829 | P11: SVEUČILIŠTE U ZAGREBU, FAKULTET STROJARSTVA I BRODOGRADNJE | Q11: SVEUČILIŠTE U ZAGREBU | R11: IVANA LUČIĆA 5 | S11: 10000 ZAGREB | T11: 03276546 | U11: 22910368449 | V11: Sveučilišta i veleučilišta u Republici Hrvatskoj | W11: 08006
G12: u EUR | M12: 8. | N12: 1837 SVEUČILIŠTE U ZAGREBU GRAĐEVINSKI FAKULTET | O12: 1837 | P12: SVEUČILIŠTE U ZAGREBU GRAĐEVINSKI FAKULTET | Q12: SVEUČILIŠTE U ZAGREBU | R12: FRA ANDRIJE KAČIĆA MIOŠIĆA 26 | S12: 10000 ZAGREB | T12: 03227120 | U12: 62924153420 | V12: Sveučilišta i veleučilišta u Republici Hrvatskoj | W12: 08006
C13: IZVRŠENJE 2024. | D13: TEKUĆI PLAN 2025. | E13: PLAN 2026. | F13: PROJEKCIJA 2027. | G13: PROJEKCIJA 2028. | M13: 9. | N13: 1845 SVEUČILIŠTE U ZAGREBU PREHRAMBENO-BIOTEHNOLOŠKI FAKULTET | O13: 1845 | P13: SVEUČILIŠTE U ZAGREBU PREHRAMBENO-BIOTEHNOLOŠKI FAKULTET | Q13: SVEUČILIŠTE U ZAGREBU | R13: PIEROTTIJEVA 6 | S13: 10000 ZAGREB | T13: 03207102 | U13: 47824453867 | V13: Sveučilišta i veleučilišta u Republici Hrvatskoj | W13: 08006
A14: 6 | B14: PRIHODI POSLOVANJA | C14: 14,253,531 | D14: 13,269,634 | E14: ='A.1 PRIHODI I RASHODI EK'!F11 -> 14,256,820 | F14: ='A.1 PRIHODI I RASHODI EK'!G11 -> 14,526,989 | G14: ='A.1 PRIHODI I RASHODI EK'!H11 -> 14,994,912 | M14: 10. | N14: 1853 SVEUČILIŠTE U ZAGREBU - GEODETSKI FAKULTET | O14: 1853 | P14: SVEUČILIŠTE U ZAGREBU - GEODETSKI FAKULTET | Q14: SVEUČILIŠTE U ZAGREBU | R14: A. KAČIĆA MIOŠIĆA 26 | S14: 10000 ZAGREB | T14: 03204987 | U14: 43594593297 | V14: Sveučilišta i veleučilišta u Republici Hrvatskoj | W14: 08006
A15: 7 | B15: PRIHODI OD NEFINANCIJSKE IMOVINE | C15: 0 | D15: 0 | E15: ='A.1 PRIHODI I RASHODI EK'!F19 -> 0 | F15: ='A.1 PRIHODI I RASHODI EK'!G19 -> 0 | G15: ='A.1 PRIHODI I RASHODI EK'!H19 -> 0 | M15: 11. | N15: 1861 SVEUČILIŠTE U ZAGREBU - ARHITEKTONSKI FAKULTET | O15: 1861 | P15: SVEUČILIŠTE U ZAGREBU - ARHITEKTONSKI FAKULTET | Q15: SVEUČILIŠTE U ZAGREBU | R15: KAČIĆEVA 26 | S15: 10000 ZAGREB | T15: 03204952 | U15: 42061107444 | V15: Sveučilišta i veleučilišta u Republici Hrvatskoj | W15: 08006
B16: PRIHODI UKUPNO | C16: =SUM(C14:C15) -> 14,253,531 | D16: =SUM(D14:D15) -> 13,269,634 | E16: =SUM(E14:E15) -> 14,256,820 | F16: =+F14+F15 -> 14,526,989 | G16: =+G14+G15 -> 14,994,912 | M16: 12. | N16: 1870 SVEUČILIŠTE U ZAGREBU STOMATOLOŠKI FAKULTET | O16: 1870 | P16: SVEUČILIŠTE U ZAGREBU STOMATOLOŠKI FAKULTET | Q16: SVEUČILIŠTE U ZAGREBU | R16: GUNDULIĆEVA 5 | S16: 10000 ZAGREB | T16: 03204995 | U16: 70221464726 | V16: Sveučilišta i veleučilišta u Republici Hrvatskoj | W16: 08006
A17: 3 | B17: RASHODI POSLOVANJA | C17: 12,919,332 | D17: 11,694,734 | E17: ='A.1 PRIHODI I RASHODI EK'!F27 -> 13,644,602 | F17: ='A.1 PRIHODI I RASHODI EK'!G27 -> 14,115,901 | G17: ='A.1 PRIHODI I RASHODI EK'!H27 -> 14,524,424 | M17: 13. | N17: 1888 SVEUČILIŠTE U ZAGREBU, MEDICINSKI FAKULTET | O17: 1888 | P17: SVEUČILIŠTE U ZAGREBU, MEDICINSKI FAKULTET | Q17: SVEUČILIŠTE U ZAGREBU | R17: ŠALATA 3 | S17: 10000 ZAGREB | T17: 03270211 | U17: 45001686598 | V17: Sveučilišta i veleučilišta u Republici Hrvatskoj | W17: 08006
A18: 4 | B18: RASHODI ZA NEFINANCIJSKU IMOVINU | C18: 369,962 | D18: 453,566 | E18: ='A.1 PRIHODI I RASHODI EK'!F35 -> 315,842 | F18: ='A.1 PRIHODI I RASHODI EK'!G35 -> 321,642 | G18: ='A.1 PRIHODI I RASHODI EK'!H35 -> 324,728 | M18: 14. | N18: 1896 SVEUČILIŠTE U ZAGREBU FAKULTET ŠUMARSTVA I DRVNE TEHNOLOGIJE | O18: 1896 | P18: SVEUČILIŠTE U ZAGREBU FAKULTET ŠUMARSTVA I DRVNE TEHNOLOGIJE | Q18: SVEUČILIŠTE U ZAGREBU | R18: SVETOŠIMUNSKA CESTA 25 | S18: 10000 ZAGREB | T18: 03281485 | U18: 07699719217 | V18: Sveučilišta i veleučilišta u Republici Hrvatskoj | W18: 08006
B19: RASHODI UKUPNO | C19: =SUM(C17:C18) -> 13,289,294 | D19: =SUM(D17:D18) -> 12,148,300 | E19: =SUM(E17:E18) -> 13,960,444 | F19: =+F17+F18 -> 14,437,543 | G19: =+G17+G18 -> 14,849,152 | M19: 15. | N19: 1907 SVEUČILIŠTE U ZAGREBU - FAKULTET POLITIČKIH ZNANOSTI | O19: 1907 | P19: SVEUČILIŠTE U ZAGREBU - FAKULTET POLITIČKIH ZNANOSTI | Q19: SVEUČILIŠTE U ZAGREBU | R19: LEPUŠIĆEVA 6 | S19: 10000 ZAGREB | T19: 03270262 | U19: 28011548575 | V19: Sveučilišta i veleučilišta u Republici Hrvatskoj | W19: 08006
B20: RAZLIKA - VIŠAK / MANJAK | C20: =+C16-C19 -> 964,237 | D20: =+D16-D19 -> 1,121,334 | E20: =+E16-E19 -> 296,376 | F20: =+F16-F19 -> 89,446 | G20: =+G16-G19 -> 145,760 | M20: 16. | N20: 1915 SVEUČILIŠTE U ZAGREBU - PRAVNI FAKULTET | O20: 1915 | P20: SVEUČILIŠTE U ZAGREBU - PRAVNI FAKULTET | Q20: SVEUČILIŠTE U ZAGREBU | R20: TRG REPUBLIKE HRVATSKE 14 | S20: 10000 ZAGREB | T20: 03225909 | U20: 38583303160 | V20: Sveučilišta i veleučilišta u Republici Hrvatskoj | W20: 08006
M21: 17. | N21: 1923 SVEUČILIŠTE U ZAGREBU AGRONOMSKI FAKULTET | O21: 1923 | P21: SVEUČILIŠTE U ZAGREBU AGRONOMSKI FAKULTET | Q21: SVEUČILIŠTE U ZAGREBU | R21: SVETOŠIMUNSKA CESTA 25 | S21: 10000 ZAGREB | T21: 03283097 | U21: 76023745044 | V21: Sveučilišta i veleučilišta u Republici Hrvatskoj | W21: 08006
B22: B. SAŽETAK RAČUNA FINANCIRANJA | M22: 18. | N22: 1931 SVEUČILIŠTE U ZAGREBU - EKONOMSKI FAKULTET | O22: 1931 | P22: SVEUČILIŠTE U ZAGREBU - EKONOMSKI FAKULTET | Q22: SVEUČILIŠTE U ZAGREBU | R22: TRG J. F. KENNEDEYA 6 | S22: 10000 ZAGREB | T22: 03272079 | U22: 27208467122 | V22: Sveučilišta i veleučilišta u Republici Hrvatskoj | W22: 08006
G23: u EUR | M23: 19. | N23: 1940 SVEUČILIŠTE U ZAGREBU, UČITELJSKI FAKULTET | O23: 1940 | P23: SVEUČILIŠTE U ZAGREBU, UČITELJSKI FAKULTET | Q23: SVEUČILIŠTE U ZAGREBU | R23: SAVSKA CESTA 77 | S23: 10000 ZAGREB | T23: 01422545 | U23: 72226488129 | V23: Sveučilišta i veleučilišta u Republici Hrvatskoj | W23: 08006
C24: IZVRŠENJE 2024. | D24: TEKUĆI PLAN 2025. | E24: PLAN 2026. | F24: PROJEKCIJA 2027. | G24: PROJEKCIJA 2028. | M24: 20. | N24: 1958 SVEUČILIŠTE U ZAGREBU - FILOZOFSKI FAKULTET | O24: 1958 | P24: SVEUČILIŠTE U ZAGREBU - FILOZOFSKI FAKULTET | Q24: SVEUČILIŠTE U ZAGREBU | R24: IVANA LUČIĆA 3 | S24: 10000 ZAGREB | T24: 03254852 | U24: 90633715804 | V24: Sveučilišta i veleučilišta u Republici Hrvatskoj | W24: 08006
A25: 8 | B25: PRIMICI OD FINANCIJSKE IMOVINE I ZADUŽIVANJA | E25: ='B.1 RAČUN FINANC EK'!F10 -> 0 | F25: ='B.1 RAČUN FINANC EK'!G10 -> 0 | G25: ='B.1 RAČUN FINANC EK'!H10 -> 0 | M25: 21. | N25: 1966 SVEUČILIŠTE U ZAGREBU - EDUKCIJSKO-REHABILITACIJSKI FAKULTET | O25: 1966 | P25: SVEUČILIŠTE U ZAGREBU - EDUKCIJSKO-REHABILITACIJSKI FAKULTET | Q25: SVEUČILIŠTE U ZAGREBU | R25: BORONGAJSKA CESTA 83F | S25: 10000 ZAGREB | T25: 03219780 | U25: 34967762426 | V25: Sveučilišta i veleučilišta u Republici Hrvatskoj | W25: 08006
A26: 5 | B26: IZDACI ZA FINANCIJSKU IMOVINU I OTPLATE ZAJMOVA | E26: ='B.1 RAČUN FINANC EK'!F15 -> 0 | F26: ='B.1 RAČUN FINANC EK'!G15 -> 0 | G26: ='B.1 RAČUN FINANC EK'!H15 -> 0 | M26: 22. | N26: 1974 SVEUČILIŠTE U ZAGREBU - AKADEMIJA DRAMSKE UMJETNOSTI | O26: 1974 | P26: SVEUČILIŠTE U ZAGREBU - AKADEMIJA DRAMSKE UMJETNOSTI | Q26: SVEUČILIŠTE U ZAGREBU | R26: TRG REPUBLIKE HRVATSKE 5 | S26: 10000 ZAGREB | T26: 03205029 | U26: 52097842295 | V26: Sveučilišta i veleučilišta u Republici Hrvatskoj | W26: 08006
B27: RAZLIKA PRIMITAKA I IZDATAKA | C27: =+C25-C26 -> 0 | D27: =+D25-D26 -> 0 | E27: =+E25-E26 -> 0 | F27: =+F25-F26 -> 0 | G27: =+G25-G26 -> 0 | M27: 23. | N27: 1982 SVEUČILIŠTE U ZAGREBU AKADEMIJA LIKOVNIH UMJETNOSTI | O27: 1982 | P27: SVEUČILIŠTE U ZAGREBU AKADEMIJA LIKOVNIH UMJETNOSTI | Q27: SVEUČILIŠTE U ZAGREBU | R27: ILICA 85 | S27: 10000 ZAGREB | T27: 03207919 | U27: 95847257607 | V27: Sveučilišta i veleučilišta u Republici Hrvatskoj | W27: 08006
A28: DONOS | B28: PRIJENOS SREDSTAVA IZ PRETHODNE GODINE | C28: 0 | D28: 964,237 | E28: =+'Unos prijenosa'!D5 -> 0 | F28: =+'Unos prijenosa'!D13 -> 296,376 | G28: =+'Unos prijenosa'!D21 -> 385,822 | M28: 24. | N28: 1999 SVEUČILIŠTE U ZAGREBU - MUZIČKA AKADEMIJA | O28: 1999 | P28: SVEUČILIŠTE U ZAGREBU - MUZIČKA AKADEMIJA | Q28: SVEUČILIŠTE U ZAGREBU | R28: TRG REPUBLIKE HRVATSKE 12 | S28: 10000 ZAGREB | T28: 03205002 | U28: 18422925218 | V28: Sveučilišta i veleučilišta u Republici Hrvatskoj | W28: 08006
A29: ODNOS | B29: PRIJENOS SREDSTAVA U SLJEDEĆE RAZDOBLJE | C29: -964,237 | D29: -2,085,571 | E29: =+'Unos prijenosa'!D7 -> -296,376 | F29: =+'Unos prijenosa'!D15 -> -385,822 | G29: =+'Unos prijenosa'!D23 -> -531,582 | M29: 25. | N29: 2006 SVEUČILIŠTE U ZAGREBU KINEZIOLOŠKI FAKULTET | O29: 2006 | P29: SVEUČILIŠTE U ZAGREBU KINEZIOLOŠKI FAKULTET | Q29: SVEUČILIŠTE U ZAGREBU | R29: HORVAĆANSKI ZAVOJ 15 | S29: 10000 ZAGREB | T29: 03274080 | U29: 25329931628 | V29: Sveučilišta i veleučilišta u Republici Hrvatskoj | W29: 08006
B30: NETO FINANCIRANJE | C30: =+C27+C28+C29 -> -964,237 | D30: =+D27+D28+D29 -> -1,121,334 | E30: =+E27+E28+E29 -> -296,376 | F30: =+F27+F28+F29 -> -89,446 | G30: =+G27+G28+G29 -> -145,760 | M30: 26. | N30: 2014 SVEUČILIŠTE U ZAGREBU FARMACEUTSKO-BIOKEMIJSKI FAKULTET | O30: 2014 | P30: SVEUČILIŠTE U ZAGREBU FARMACEUTSKO-BIOKEMIJSKI FAKULTET | Q30: SVEUČILIŠTE U ZAGREBU | R30: ANTE KOVAČIĆA 1 | S30: 10000 ZAGREB | T30: 03205037 | U30: 14509285435 | V30: Sveučilišta i veleučilišta u Republici Hrvatskoj | W30: 08006
M31: 27. | N31: 2022 SVEUČILIŠTE U ZAGREBU VETERINARSKI FAKULTET | O31: 2022 | P31: SVEUČILIŠTE U ZAGREBU VETERINARSKI FAKULTET | Q31: SVEUČILIŠTE U ZAGREBU | R31: HEINZELOVA 55 | S31: 10000 ZAGREB | T31: 03225755 | U31: 36389528408 | V31: Sveučilišta i veleučilišta u Republici Hrvatskoj | W31: 08006
B32: VIŠAK / MANJAK + NETO FINANCIRANJE | C32: =+C20+C30 -> 0 | D32: =+D20+D30 -> 0 | E32: =+E20+E30 -> 0 | F32: =+F20+F30 -> -0 | G32: =+G20+G30 -> 0 | M32: 28. | N32: 2047 SVEUČILIŠTE U ZAGREBU RUDARSKO-GEOLOŠKO-NAFTNI FAKULTET | O32: 2047 | P32: SVEUČILIŠTE U ZAGREBU RUDARSKO-GEOLOŠKO-NAFTNI FAKULTET | Q32: SVEUČILIŠTE U ZAGREBU | R32: PIEROTTIJEVA 6 | S32: 10000 ZAGREB | T32: 03207005 | U32: 99534693762 | V32: Sveučilišta i veleučilišta u Republici Hrvatskoj | W32: 08006
M33: 29. | N33: 2063 SVEUČILIŠTE U ZAGREBU FAKULTET ORGANIZACIJE I INFORMATIKE | O33: 2063 | P33: SVEUČILIŠTE U ZAGREBU FAKULTET ORGANIZACIJE I INFORMATIKE | Q33: SVEUČILIŠTE U ZAGREBU | R33: PAVLINSKA 2 | S33: 42000 VARAŽDIN | T33: 03006107 | U33: 02024882310 | V33: Sveučilišta i veleučilišta u Republici Hrvatskoj | W33: 08006
M34: 30. | N34: 2071 SVEUČILIŠTE U ZAGREBU - METALURŠKI FAKULTET SISAK | O34: 2071 | P34: SVEUČILIŠTE U ZAGREBU - METALURŠKI FAKULTET SISAK | Q34: SVEUČILIŠTE U ZAGREBU | R34: ALEJA NARODNIH HEROJA 3 | S34: 44000 SISAK | T34: 03313786 | U34: 48006703414 | V34: Sveučilišta i veleučilišta u Republici Hrvatskoj | W34: 08006
M35: 31. | N35: 2080 SVEUČILIŠTE U ZAGREBU - GRAFIČKI FAKULTET | O35: 2080 | P35: SVEUČILIŠTE U ZAGREBU - GRAFIČKI FAKULTET | Q35: SVEUČILIŠTE U ZAGREBU | R35: GETALDIĆEVA 2 | S35: 10000 ZAGREB | T35: 03219763 | U35: 25564990903 | V35: Sveučilišta i veleučilišta u Republici Hrvatskoj | W35: 08006
M36: 32. | N36: 2102 SVEUČILIŠTE U ZAGREBU - GEOTEHNIČKI FAKULTET | O36: 2102 | P36: SVEUČILIŠTE U ZAGREBU - GEOTEHNIČKI FAKULTET | Q36: SVEUČILIŠTE U ZAGREBU | R36: HALLEROVA ALEJA 7 | S36: 42000 VARAŽDIN | T36: 03042316 | U36: 16146181375 | V36: Sveučilišta i veleučilišta u Republici Hrvatskoj | W36: 08006
M37: 33. | N37: =O37&" "&P37 -> 2135 SVEUČILIŠTE U ZAGREBU, KATOLIČKI BOGOSLOVNI FAKULTET | O37: 2135 | P37: SVEUČILIŠTE U ZAGREBU, KATOLIČKI BOGOSLOVNI FAKULTET | Q37: SVEUČILIŠTE U ZAGREBU | R37: VLAŠKA 38 | S37: 10000 ZAGREB | T37: 03703088 | U37: 48987767944 | V37: Sveučilišta i veleučilišta u Republici Hrvatskoj | W37: 08006
M38: 34. | N38: 2151 SVEUČILIŠTE U RIJECI - TEHNIČKI FAKULTET | O38: 2151 | P38: SVEUČILIŠTE U RIJECI - TEHNIČKI FAKULTET | Q38: SVEUČILIŠTE U RIJECI | R38: VUKOVARSKA 58 | S38: 51000 RIJEKA | T38: 03334317 | U38: 46319717480 | V38: Sveučilišta i veleučilišta u Republici Hrvatskoj | W38: 08006
M39: 35. | N39: 2160 SVEUČILIŠTE U RIJECI - GRAĐEVINSKI FAKULTET | O39: 2160 | P39: SVEUČILIŠTE U RIJECI - GRAĐEVINSKI FAKULTET | Q39: SVEUČILIŠTE U RIJECI | R39: RADMILE MATEJČIĆ 3 | S39: 51000 RIJEKA | T39: 03395855 | U39: 92037849504 | V39: Sveučilišta i veleučilišta u Republici Hrvatskoj | W39: 08006
M40: 36. | N40: 2186 SVEUČILIŠTE U RIJECI, EKONOMSKI FAKULTET | O40: 2186 | P40: SVEUČILIŠTE U RIJECI, EKONOMSKI FAKULTET | Q40: SVEUČILIŠTE U RIJECI | R40: IVANA FILIPOVIĆA 4 | S40: 51000 RIJEKA | T40: 03328627 | U40: 26093119930 | V40: Sveučilišta i veleučilišta u Republici Hrvatskoj | W40: 08006
M41: 37. | N41: 2194 Sveučilište u Rijeci, Fakultet za menadžment u turizmu i ugostiteljstvu | O41: 2194 | P41: Sveučilište u Rijeci, Fakultet za menadžment u turizmu i ugostiteljstvu | Q41: SVEUČILIŠTE U RIJECI | R41: IKA PRIMORSKA 42 | S41: 51410 OPATIJA | T41: 03091732 | U41: 85799845149 | V41: Sveučilišta i veleučilišta u Republici Hrvatskoj | W41: 08006
M42: 38. | N42: 2217 SVEUČILIŠTE U RIJECI, PRAVNI FAKULTET | O42: 2217 | P42: SVEUČILIŠTE U RIJECI, PRAVNI FAKULTET | Q42: SVEUČILIŠTE U RIJECI | R42: HAHLIĆ 6 | S42: 51000 RIJEKA | T42: 03328562 | U42: 43767699965 | V42: Sveučilišta i veleučilišta u Republici Hrvatskoj | W42: 08006
M43: 39. | N43: 2225 SVEUČILIŠTE U RIJECI - MEDICINSKI FAKULTET | O43: 2225 | P43: SVEUČILIŠTE U RIJECI - MEDICINSKI FAKULTET | Q43: SVEUČILIŠTE U RIJECI | R43: BRAĆE BRANCHETTA 20 | S43: 51000 RIJEKA | T43: 03328554 | U43: 98164324541 | V43: Sveučilišta i veleučilišta u Republici Hrvatskoj | W43: 08006
M44: 40. | N44: 2250 SVEUČILIŠTE JOSIPA JURJA STROSSMAYERA U OSIJEKU, GRAĐEVINSKI I ARHITEKTONSKI FAKULTET OSIJEK | O44: 2250 | P44: SVEUČILIŠTE JOSIPA JURJA STROSSMAYERA U OSIJEKU, GRAĐEVINSKI I ARHITEKTONSKI FAKULTET OSIJEK | Q44: SVEUČILIŠTE J.J STROSSMAYERA U OSIJEKU | R44: ULICA VLADIMIRA PRELOGA 3 | S44: 31000 OSIJEK | T44: 03397335 | U44: 04150850819 | V44: Sveučilišta i veleučilišta u Republici Hrvatskoj | W44: 08006
M45: 41. | N45: 2268 SVEUČILIŠTE J.J. STROSSMAYERA U OSIJEKU - FAKULTET AGROBIOTEHNIČKIH ZNANOSTI OSIJEK | O45: 2268 | P45: SVEUČILIŠTE J.J. STROSSMAYERA U OSIJEKU - FAKULTET AGROBIOTEHNIČKIH ZNANOSTI OSIJEK | Q45: SVEUČILIŠTE J.J STROSSMAYERA U OSIJEKU | R45: VLADIMIRA PRELOGA 1 | S45: 31000 OSIJEK | T45: 03058212 | U45: 98816779821 | V45: Sveučilišta i veleučilišta u Republici Hrvatskoj | W45: 08006
M46: 42. | N46: 2276 SVEUČILIŠTE J.J. STROSSMAYERA U OSIJEKU - PREHRAMBENO-TEHNOLOŠKI FAKULTET | O46: 2276 | P46: SVEUČILIŠTE J.J. STROSSMAYERA U OSIJEKU - PREHRAMBENO-TEHNOLOŠKI FAKULTET | Q46: SVEUČILIŠTE J.J STROSSMAYERA U OSIJEKU | R46: FRANJE KUHAČA 18 | S46: 31000 OSIJEK | T46: 03058204 | U46: 96371000697 | V46: Sveučilišta i veleučilišta u Republici Hrvatskoj | W46: 08006
M47: 43. | N47: 2284 SVEUČILIŠTE J.J. STROSSMAYERA U OSIJEKU - EKONOMSKI FAKULTET | O47: 2284 | P47: SVEUČILIŠTE J.J. STROSSMAYERA U OSIJEKU - EKONOMSKI FAKULTET | Q47: SVEUČILIŠTE J.J STROSSMAYERA U OSIJEKU | R47: TRG LJUDEVITA GAJA 7 | S47: 31000 OSIJEK | T47: 03021645 | U47: 52778515544 | V47: Sveučilišta i veleučilišta u Republici Hrvatskoj | W47: 08006
M48: 44. | N48: 2292 SVEUČILIŠTE JOSIPA JURJA STROSSMAYERA U OSIJEKU - PRAVNI FAKULTET | O48: 2292 | P48: SVEUČILIŠTE JOSIPA JURJA STROSSMAYERA U OSIJEKU - PRAVNI FAKULTET | Q48: SVEUČILIŠTE J.J STROSSMAYERA U OSIJEKU | R48: STJEPANA RADIĆA 13 | S48: 31000 OSIJEK | T48: 03014193 | U48: 26416570803 | V48: Sveučilišta i veleučilišta u Republici Hrvatskoj | W48: 08006
M49: 45. | N49: 2313 SVEUČILIŠTE J.J. STROSSMAYERA U OSIJEKU - FAKULTET ELEKTROTEHNIKE, RAČUNARSTVA I INFORMACIJSKIH TEHNOLOGIJA OSIJEK | O49: 2313 | P49: SVEUČILIŠTE J.J. STROSSMAYERA U OSIJEKU - FAKULTET ELEKTROTEHNIKE, RAČUNARSTVA I INFORMACIJSKIH TEHNOLOGIJA OSIJEK | Q49: SVEUČILIŠTE J.J STROSSMAYERA U OSIJEKU | R49: KNEZA TRPIMIRA 2 B | S49: 31000 OSIJEK | T49: 03392589 | U49: 95494259952 | V49: Sveučilišta i veleučilišta u Republici Hrvatskoj | W49: 08006
M50: 46. | N50: 2321 SVEUČILIŠTE J.J. STROSSMAYERA U OSIJEKU - FILOZOFSKI FAKULTET | O50: 2321 | P50: SVEUČILIŠTE J.J. STROSSMAYERA U OSIJEKU - FILOZOFSKI FAKULTET | Q50: SVEUČILIŠTE J.J STROSSMAYERA U OSIJEKU | R50: LORENZA JAGERA 9 | S50: 31000 OSIJEK | T50: 03014185 | U50: 58868871646 | V50: Sveučilišta i veleučilišta u Republici Hrvatskoj | W50: 08006
M51: 47. | N51: 2330 SVEUČILIŠTE U SPLITU, FAKULTET ELEKTROTEHNIKE, STROJARSTVA I BRODOGRADNJE | O51: 2330 | P51: SVEUČILIŠTE U SPLITU, FAKULTET ELEKTROTEHNIKE, STROJARSTVA I BRODOGRADNJE | Q51: SVEUČILIŠTE U SPLITU | R51: RUĐERA BOŠKOVIĆA 32 | S51: 21000 SPLIT | T51: 03118339 | U51: 00857144221 | V51: Sveučilišta i veleučilišta u Republici Hrvatskoj | W51: 08006
M52: 48. | N52: 2348 SVEUČILIŠTE U SPLITU - FAKULTET GRAĐEVINARSTVA, ARHITEKTURE I GEODEZIJE | O52: 2348 | P52: SVEUČILIŠTE U SPLITU - FAKULTET GRAĐEVINARSTVA, ARHITEKTURE I GEODEZIJE | Q52: SVEUČILIŠTE U SPLITU | R52: MATICE HRVATSKE 15 | S52: 21000 SPLIT | T52: 03149463 | U52: 83615500218 | V52: Sveučilišta i veleučilišta u Republici Hrvatskoj | W52: 08006
M53: 49. | N53: 2356 SVEUČILIŠTE U SPLITU - KEMIJSKO-TEHNOLOŠKI FAKULTET | O53: 2356 | P53: SVEUČILIŠTE U SPLITU - KEMIJSKO-TEHNOLOŠKI FAKULTET | Q53: SVEUČILIŠTE U SPLITU | R53: RUĐERA BOŠKOVIĆA 35 | S53: 21000 SPLIT | T53: 03119068 | U53: 99401575594 | V53: Sveučilišta i veleučilišta u Republici Hrvatskoj | W53: 08006
M54: 50. | N54: 2372 SVEUČILIŠTE U SPLITU - EKONOMSKI FAKULTET | O54: 2372 | P54: SVEUČILIŠTE U SPLITU - EKONOMSKI FAKULTET | Q54: SVEUČILIŠTE U SPLITU | R54: CVITE FISKOVIĆA 5 | S54: 21000 SPLIT | T54: 03119076 | U54: 84477684422 | V54: Sveučilišta i veleučilišta u Republici Hrvatskoj | W54: 08006
M55: 51. | N55: 2397 SVEUČILIŠTE U SPLITU - PRAVNI FAKULTET | O55: 2397 | P55: SVEUČILIŠTE U SPLITU - PRAVNI FAKULTET | Q55: SVEUČILIŠTE U SPLITU | R55: DOMOVINSKOG RATA 8 | S55: 21000 SPLIT | T55: 03118347 | U55: 03541568700 | V55: Sveučilišta i veleučilišta u Republici Hrvatskoj | W55: 08006
M56: 52. | N56: 2410 SVEUČILIŠTE U SPLITU, PRIRODOSLOVNO-MATEMATIČKI FAKULTET | O56: 2410 | P56: SVEUČILIŠTE U SPLITU, PRIRODOSLOVNO-MATEMATIČKI FAKULTET | Q56: SVEUČILIŠTE U SPLITU | R56: RUĐERA BOŠKOVIĆA 33 | S56: 21000 SPLIT | T56: 03199622 | U56: 20858497843 | V56: Sveučilišta i veleučilišta u Republici Hrvatskoj | W56: 08006
M57: 53. | N57: 2436 SVEUČILIŠTE U ZAGREBU | O57: 2436 | P57: SVEUČILIŠTE U ZAGREBU | Q57: SVEUČILIŠTE U ZAGREBU | R57: TRG REPUBLIKE HRVATSKE 14 | S57: 10000 ZAGREB | T57: 03211592 | U57: 36612267447 | V57: Sveučilišta i veleučilišta u Republici Hrvatskoj | W57: 08006
M58: 54. | N58: 2444 SVEUČILIŠTE U RIJECI | O58: 2444 | P58: SVEUČILIŠTE U RIJECI | Q58: SVEUČILIŠTE U RIJECI | R58: TRG BRAĆE MAŽURANIĆA 10 | S58: 51000 RIJEKA | T58: 03337413 | U58: 64218323816 | V58: Sveučilišta i veleučilišta u Republici Hrvatskoj | W58: 08006
M59: 55. | N59: 2452 SVEUČILIŠTE J.J. STROSSMAYERA U OSIJEKU | O59: 2452 | P59: SVEUČILIŠTE J.J. STROSSMAYERA U OSIJEKU | Q59: SVEUČILIŠTE J.J STROSSMAYERA U OSIJEKU | R59: TRG SV. TROJSTVA 3 | S59: 31000 OSIJEK | T59: 03049779 | U59: 78808975734 | V59: Sveučilišta i veleučilišta u Republici Hrvatskoj | W59: 08006
M60: 56. | N60: 2469 SVEUČILIŠTE U SPLITU | O60: 2469 | P60: SVEUČILIŠTE U SPLITU | Q60: SVEUČILIŠTE U SPLITU | R60: POLJIČKA CESTA 35 | S60: 21000 SPLIT | T60: 03129306 | U60: 29845096215 | V60: Sveučilišta i veleučilišta u Republici Hrvatskoj | W60: 08006
M61: 57. | N61: 2493 SVEUČILIŠTE U RIJECI - SVEUČILIŠNA KNJIŽNICA | O61: 2493 | P61: SVEUČILIŠTE U RIJECI - SVEUČILIŠNA KNJIŽNICA | Q61: SVEUČILIŠTE U RIJECI | R61: DOLAC 1 | S61: 51000 RIJEKA | T61: 03328686 | U61: 84122581314 | V61: Sveučilišta i veleučilišta u Republici Hrvatskoj | W61: 08006
M62: 58. | N62: 2508 SVEUČILIŠTE JOSIPA JURJA STROSSMAYERA U OSIJEKU GRADSKA I SVEUČILIŠNA KNJIŽNICA OSIJEK | O62: 2508 | P62: SVEUČILIŠTE JOSIPA JURJA STROSSMAYERA U OSIJEKU GRADSKA I SVEUČILIŠNA KNJIŽNICA OSIJEK | Q62: SVEUČILIŠTE J.J STROSSMAYERA U OSIJEKU | R62: EUROPSKA AVENIJA 24 | S62: 31000 OSIJEK | T62: 03014347 | U62: 46627536930 | V62: Sveučilišta i veleučilišta u Republici Hrvatskoj | W62: 08006
M63: 59. | N63: 2524 SVEUČILIŠTE U SPLITU - SVEUČILIŠNA KNJIŽNICA | O63: 2524 | P63: SVEUČILIŠTE U SPLITU - SVEUČILIŠNA KNJIŽNICA | Q63: SVEUČILIŠTE U SPLITU | R63: RUĐERA BOŠKOVIĆA 31 | S63: 21000 SPLIT | T63: 03118436 | U63: 40099344720 | V63: Sveučilišta i veleučilišta u Republici Hrvatskoj | W63: 08006
M64: 60. | N64: 2532 SVEUČILIŠTE U ZADRU, ZNANSTVENA KNJIŽNICA | O64: 2532 | P64: SVEUČILIŠTE U ZADRU, ZNANSTVENA KNJIŽNICA | Q64: SVEUČILIŠTE U ZADRU | T64: 03141993 | U64: 94403503942 | V64: Sveučilišta i veleučilišta u Republici Hrvatskoj | W64: 08006
M65: 61. | N65: =O65&" "&P65 -> 2900 INSTITUT ZA OCEANOGRAFIJU I RIBARSTVO | O65: 2900 | P65: INSTITUT ZA OCEANOGRAFIJU I RIBARSTVO | Q65: JAVNI INSTITUTI | R65: ŠETALIŠTE I. MEŠTROVIĆA 63 | S65: 21000 SPLIT | T65: 03118355 | U65: 86235185568 | V65: Javni instituti | W65: 08008
M66: 62. | N66: 2918 EKONOMSKI INSTITUT, ZAGREB | O66: 2918 | P66: EKONOMSKI INSTITUT, ZAGREB | Q66: JAVNI INSTITUTI | R66: TRG JOHNA KENNEDYA 7 | S66: 10000 ZAGREB | T66: 03219925 | U66: 70925432731 | V66: Javni instituti | W66: 08008
M67: 63. | N67: 2934 HRVATSKI INSTITUT ZA POVIJEST | O67: 2934 | P67: HRVATSKI INSTITUT ZA POVIJEST | Q67: JAVNI INSTITUTI | R67: OPATIČKA 10 | S67: 10000 ZAGREB | T67: 03207153 | U67: 23296176633 | V67: Javni instituti | W67: 08008
M68: 64. | N68: 2942 INSTITUT ZA POVIJEST UMJETNOSTI | O68: 2942 | P68: INSTITUT ZA POVIJEST UMJETNOSTI | Q68: JAVNI INSTITUTI | R68: ULICA GRADA VUKOVARA 68 | S68: 10000 ZAGREB | T68: 01339958 | U68: 59451980348 | V68: Javni instituti | W68: 08008
M69: 65. | N69: 2959 INSTITUT ZA MEDICINSKA ISTRAŽIVANJA I MEDICINU RADA | O69: 2959 | P69: INSTITUT ZA MEDICINSKA ISTRAŽIVANJA I MEDICINU RADA | Q69: JAVNI INSTITUTI | R69: KSAVERSKA CESTA 2 | S69: 10000 ZAGREB | T69: 03270475 | U69: 30285469659 | V69: Javni instituti | W69: 08008
M70: 66. | N70: 2967 HRVATSKI ŠUMARSKI INSTITUT | O70: 2967 | P70: HRVATSKI ŠUMARSKI INSTITUT | Q70: JAVNI INSTITUTI | R70: CVJETNO NASELJE 41 | S70: 10450 JASTREBARSKO | T70: 03115879 | U70: 13579392023 | V70: Javni instituti | W70: 08008
M71: 67. | N71: 2975 INSTITUT ZA FIZIKU | O71: 2975 | P71: INSTITUT ZA FIZIKU | Q71: JAVNI INSTITUTI | R71: BIJENIČKA CESTA 46 | S71: 10000 ZAGREB | T71: 03270424 | U71: 77627408491 | V71: Javni instituti | W71: 08008
M72: =+M71+1 -> 68. | N72: 2991 POLJOPRIVREDNI INSTITUT OSIJEK | O72: 2991 | P72: POLJOPRIVREDNI INSTITUT OSIJEK | Q72: JAVNI INSTITUTI | R72: JUŽNO PREDGRAĐE 17 | S72: 31000 OSIJEK | T72: 03058239 | U72: 03665720049 | V72: Javni instituti | W72: 08008
M73: 69. | N73: 3009 INSTITUT ZA MIGRACIJE I NARODNOSTI | O73: 3009 | P73: INSTITUT ZA MIGRACIJE I NARODNOSTI | Q73: JAVNI INSTITUTI | R73: TRG STJEPANA RADIĆA 3 | S73: 10000 ZAGREB | T73: 03287572 | U73: 80265403319 | V73: Javni instituti | W73: 08008
M74: 70. | N74: 3025 INSTITUT ZA JADRANSKE KULTURE I MELIORACIJU KRŠA | O74: 3025 | P74: INSTITUT ZA JADRANSKE KULTURE I MELIORACIJU KRŠA | Q74: JAVNI INSTITUTI | R74: PUT DUILOVA 11 | S74: 21000 SPLIT | T74: 03140792 | U74: 90884993104 | V74: Javni instituti | W74: 08008
M75: 71. | N75: 3041 INSTITUT RUĐER BOŠKOVIĆ | O75: 3041 | P75: INSTITUT RUĐER BOŠKOVIĆ | Q75: JAVNI INSTITUTI | R75: BIJENIČKA CESTA 46 | S75: 10000 ZAGREB | T75: 03270289 | U75: 69715301002 | V75: Javni instituti | W75: 08008
M76: 72. | N76: 3050 INSTITUT ZA DRUŠTVENA ISTRAŽIVANJA U ZAGREBU | O76: 3050 | P76: INSTITUT ZA DRUŠTVENA ISTRAŽIVANJA U ZAGREBU | Q76: JAVNI INSTITUTI | R76: AMRUŠEVA 11 | S76: 10000 ZAGREB | T76: 03205118 | U76: 11986338639 | V76: Javni instituti | W76: 08008
M77: 73. | N77: 3068 INSTITUT ZA TURIZAM | O77: 3068 | P77: INSTITUT ZA TURIZAM | Q77: JAVNI INSTITUTI | R77: VRHOVEC 5 | S77: 10000 ZAGREB | T77: 03208001 | U77: 10264179101 | V77: Javni instituti | W77: 08008
M78: 74. | N78: 3076 INSTITUT ZA POLJOPRIVREDU I TURIZAM | O78: 3076 | P78: INSTITUT ZA POLJOPRIVREDU I TURIZAM | Q78: JAVNI INSTITUTI | R78: CARLA HUGUESA 8 | S78: 52440 POREČ | T78: 03421031 | U78: 03850982961 | V78: Javni instituti | W78: 08008
M79: 75. | N79: 3084 INSTITUT ZA ETNOLOGIJU I FOLKLORISTIKU | O79: 3084 | P79: INSTITUT ZA ETNOLOGIJU I FOLKLORISTIKU | Q79: JAVNI INSTITUTI | R79: ŠUBIĆEVA 42 | S79: 10000 ZAGREB | T79: 03724042 | U79: 37781872772 | V79: Javni instituti | W79: 08008
M80: 76. | N80: 3092 INSTITUT ZA FILOZOFIJU | O80: 3092 | P80: INSTITUT ZA FILOZOFIJU | Q80: JAVNI INSTITUTI | R80: UL. GRADA VUKOVARA 54 | S80: 10000 ZAGREB | T80: 03772047 | U80: 43667021597 | V80: Javni instituti | W80: 08008
M81: 77. | N81: 3105 INSTITUT DRUŠTVENIH ZNANOSTI IVO PILAR | O81: 3105 | P81: INSTITUT DRUŠTVENIH ZNANOSTI IVO PILAR | Q81: JAVNI INSTITUTI | R81: MARULIĆEV TRG 19/I | S81: 10000 ZAGREB | T81: 03793028 | U81: 32840574937 | V81: Javni instituti | W81: 08008
M82: 78. | N82: 3113 INSTITUT ZA ANTROPOLOGIJU | O82: 3113 | P82: INSTITUT ZA ANTROPOLOGIJU | Q82: JAVNI INSTITUTI | R82: LJUDEVITA GAJA 32 | S82: 10000 ZAGREB | T82: 03817121 | U82: 93710699926 | V82: Javni instituti | W82: 08008
M83: 79. | N83: 3121 INSTITUT ZA ARHEOLOGIJU | O83: 3121 | P83: INSTITUT ZA ARHEOLOGIJU | Q83: JAVNI INSTITUTI | R83: LJUDEVITA GAJA 32 | S83: 10000 ZAGREB | T83: 03937658 | U83: 59796264563 | V83: Javni instituti | W83: 08008
M84: 80. | N84: 6154 SVEUČILIŠTE U ZAGREBU - FAKULTET FILOZOFIJE I RELIGIJSKIH ZNANOSTI | O84: 6154 | P84: SVEUČILIŠTE U ZAGREBU - FAKULTET FILOZOFIJE I RELIGIJSKIH ZNANOSTI | Q84: SVEUČILIŠTE U ZAGREBU | R84: JORDANOVAC 110 | S84: 10000 ZAGREB | T84: 01235664 | U84: 26975482530 | V84: Sveučilišta i veleučilišta u Republici Hrvatskoj | W84: 08006
M85: 81. | N85: 6179 DRŽAVNI ZAVOD ZA INTELEKTUALNO VLASNIŠTVO | O85: 6179 | P85: DRŽAVNI ZAVOD ZA INTELEKTUALNO VLASNIŠTVO | Q85: DZIV | R85: ULICA GRADA VUKOVARA 78 | S85: 10000 ZAGREB | T85: 03899772 | U85: 89755384389 | V85: DZIV | W85: 08012
M86: 82. | N86: 21053 VELEUČILIŠTE U KARLOVCU | O86: 21053 | P86: VELEUČILIŠTE U KARLOVCU | Q86: VELEUČILIŠTA | R86: TRG J. J. STROSSMAYERA 9 | S86: 47000 KARLOVAC | T86: 01286030 | U86: 62820859976 | V86: Sveučilišta i veleučilišta u Republici Hrvatskoj | W86: 08006
M87: 83. | N87: 21061 INSTITUT ZA HRVATSKI JEZIK I JEZIKOSLOVLJE | O87: 21061 | P87: INSTITUT ZA HRVATSKI JEZIK I JEZIKOSLOVLJE | Q87: JAVNI INSTITUTI | R87: REPUBLIKE AUSTRIJE 16 | S87: 10000 ZAGREB | T87: 01259571 | U87: 12268324202 | V87: Javni instituti | W87: 08008
M88: 84. | N88: 21070 STAROSLAVENSKI INSTITUT | O88: 21070 | P88: STAROSLAVENSKI INSTITUT | Q88: JAVNI INSTITUTI | R88: DEMETROVA 11 | S88: 10000 ZAGREB | T88: 01259563 | U88: 15291942541 | V88: Javni instituti | W88: 08008
M89: 85. | N89: 21836 NACIONALNA I SVEUČILIŠNA KNJIŽNICA U ZAGREBU | O89: 21836 | P89: NACIONALNA I SVEUČILIŠNA KNJIŽNICA U ZAGREBU | Q89: AGENCIJE | R89: HRVATSKE BRATSKE ZAJEDNICE 4 | S89: 10000 ZAGREB | T89: 03205363 | U89: 84838770814 | V89: Agencije | W89: 08091
M90: 86. | N90: 21852 HRVATSKA AKADEMSKA ISTRAŽIVAČKA MREŽA - CARNET | O90: 21852 | P90: HRVATSKA AKADEMSKA ISTRAŽIVAČKA MREŽA - CARNET | Q90: AGENCIJE | R90: JOSIPA MAROHNIĆA 5 | S90: 10000 ZAGREB | T90: 01147820 | U90: 58101996540 | V90: Agencije | W90: 08091
M91: 87. | N91: 21869 LEKSIKOGRAFSKI ZAVOD MIROSLAV KRLEŽA | O91: 21869 | P91: LEKSIKOGRAFSKI ZAVOD MIROSLAV KRLEŽA | Q91: AGENCIJE | R91: FRANKOPANSKA 26 | S91: 10000 ZAGREB | T91: 03211622 | U91: 49894241709 | V91: Agencije | W91: 08091
M92: 88. | N92: 22371 VELEUČILIŠTE U KRIŽEVCIMA | O92: 22371 | P92: VELEUČILIŠTE U KRIŽEVCIMA | Q92: VELEUČILIŠTA | R92: MILISLAVA DEMERCA 1 | S92: 48260 KRIŽEVCI | T92: 01411942 | U92: 75480885018 | V92: Sveučilišta i veleučilišta u Republici Hrvatskoj | W92: 08006
M93: 89. | N93: 22427 TEHNIČKO VELEUČILIŠTE U ZAGREBU | O93: 22427 | P93: TEHNIČKO VELEUČILIŠTE U ZAGREBU | Q93: VELEUČILIŠTA | R93: VRBIK 8 | S93: 10000 ZAGREB | T93: 01398270 | U93: 08814003451 | V93: Sveučilišta i veleučilišta u Republici Hrvatskoj | W93: 08006
M94: 90. | N94: 22435 SVEUČILIŠTE U SPLITU, FILOZOFSKI FAKULTET | O94: 22435 | P94: SVEUČILIŠTE U SPLITU, FILOZOFSKI FAKULTET | Q94: SVEUČILIŠTE U SPLITU | R94: POLJIČKA CESTA 35 | S94: 21000 SPLIT | T94: 01413236 | U94: 98004523293 | V94: Sveučilišta i veleučilišta u Republici Hrvatskoj | W94: 08006
M95: 91. | N95: 22451 SVEUČILIŠTE U SPLITU - MEDICINSKI FAKULTET | O95: 22451 | P95: SVEUČILIŠTE U SPLITU - MEDICINSKI FAKULTET | Q95: SVEUČILIŠTE U SPLITU | R95: ŠOLTANSKA 2 | S95: 21000 SPLIT | T95: 01315366 | U95: 02879747067 | V95: Sveučilišta i veleučilišta u Republici Hrvatskoj | W95: 08006
M96: 92. | N96: 22460 SVEUČILIŠTE U SPLITU - POMORSKI FAKULTET | O96: 22460 | P96: SVEUČILIŠTE U SPLITU - POMORSKI FAKULTET | Q96: SVEUČILIŠTE U SPLITU | R96: RUĐERA BOŠKOVIĆA 37 | S96: 21000 SPLIT | T96: 01406043 | U96: 24624257529 | V96: Sveučilišta i veleučilišta u Republici Hrvatskoj | W96: 08006
M97: 93. | N97: =O97&" "&P97 -> 22478 Sveučilište u Splitu, Umjetnička akademija | O97: 22478 | P97: Sveučilište u Splitu, Umjetnička akademija | Q97: SVEUČILIŠTE U SPLITU | R97: ZAGREBAČKA 3 | S97: 21000 SPLIT | T97: 01321358 | U97: 38960125358 | V97: Sveučilišta i veleučilišta u Republici Hrvatskoj | W97: 08006
M98: 94. | N98: 22486 Sveučilište Josipa Jurja Strossmayera u Osijeku, Fakultet za odgojne i obrazovne znanosti | O98: 22486 | P98: Sveučilište Josipa Jurja Strossmayera u Osijeku, Fakultet za odgojne i obrazovne znanosti | Q98: SVEUČILIŠTE J.J STROSSMAYERA U OSIJEKU | R98: CARA HADRIJANA 10 | S98: 31000 OSIJEK | T98: 01404881 | U98: 28082679513 | V98: Sveučilišta i veleučilišta u Republici Hrvatskoj | W98: 08006
M99: 95. | N99: 22494 VELEUČILIŠTE U RIJECI | O99: 22494 | P99: VELEUČILIŠTE U RIJECI | Q99: VELEUČILIŠTA | R99: TRPIMIROVA 2/V | S99: 51000 RIJEKA | T99: 01387332 | U99: 29573709870 | V99: Sveučilišta i veleučilišta u Republici Hrvatskoj | W99: 08006
M100: 96. | N100: 22525 HRVATSKI GEOLOŠKI INSTITUT | O100: 22525 | P100: HRVATSKI GEOLOŠKI INSTITUT | Q100: JAVNI INSTITUTI | R100: SACHSOVA 2 | S100: 10000 ZAGREB | T100: 03219518 | U100: 43733878539 | V100: Javni instituti | W100: 08008
M101: 97. | N101: 22568 SVEUČILIŠTE U RIJECI, POMORSKI FAKULTET | O101: 22568 | P101: SVEUČILIŠTE U RIJECI, POMORSKI FAKULTET | Q101: SVEUČILIŠTE U RIJECI | R101: STUDENTSKA 2 | S101: 51000 RIJEKA | T101: 01580485 | U101: 76722145702 | V101: Sveučilišta i veleučilišta u Republici Hrvatskoj | W101: 08006
M102: 98. | N102: 22621 INSTITUT ZA RAZVOJ I MEĐUNARODNE ODNOSE | O102: 22621 | P102: INSTITUT ZA RAZVOJ I MEĐUNARODNE ODNOSE | Q102: JAVNI INSTITUTI | R102: LJ. F. VUKOTINOVIĆA 2 | S102: 10000 ZAGREB | T102: 03205177 | U102: 31120185175 | V102: Javni instituti | W102: 08008
M103: 99. | N103: 22824 VELEUČILIŠTE U ŠIBENIKU | O103: 22824 | P103: VELEUČILIŠTE U ŠIBENIKU | Q103: VELEUČILIŠTA | R103: TRG A. HEBRANGA BR. 11 | S103: 22000 ŠIBENIK | T103: 02100673 | U103: 61727512157 | V103: Sveučilišta i veleučilišta u Republici Hrvatskoj | W103: 08006
M104: 100. | N104: 22832 ZDRAVSTVENO VELEUČILIŠTE | O104: 22832 | P104: ZDRAVSTVENO VELEUČILIŠTE | Q104: VELEUČILIŠTA | R104: MLINARSKA CESTA 38 | S104: 10000 ZAGREB | T104: 01274597 | U104: 50952646228 | V104: Sveučilišta i veleučilišta u Republici Hrvatskoj | W104: 08006
M105: 101. | N105: 22849 SVEUČILIŠTE J.J. STROSSMAYERA U OSIJEKU - MEDICINSKI FAKULTET | O105: 22849 | P105: SVEUČILIŠTE J.J. STROSSMAYERA U OSIJEKU - MEDICINSKI FAKULTET | Q105: SVEUČILIŠTE J.J STROSSMAYERA U OSIJEKU | R105: HUTTLEROVA 4 | S105: 31000 OSIJEK | T105: 01388142 | U105: 16214165873 | V105: Sveučilišta i veleučilišta u Republici Hrvatskoj | W105: 08006
M106: 102. | N106: 22857 SVEUČILIŠTE U RIJECI - FILOZOFSKI FAKULTET | O106: 22857 | P106: SVEUČILIŠTE U RIJECI - FILOZOFSKI FAKULTET | Q106: SVEUČILIŠTE U RIJECI | R106: SVEUČILIŠNA AVENIJA 4 | S106: 51000 RIJEKA | T106: 03368491 | U106: 70505505759 | V106: Sveučilišta i veleučilišta u Republici Hrvatskoj | W106: 08006
M107: 103. | N107: 23286 INSTITUT ZA JAVNE FINANCIJE | O107: 23286 | P107: INSTITUT ZA JAVNE FINANCIJE | Q107: JAVNI INSTITUTI | R107: SMIČIKLASOVA 21 | S107: 10000 ZAGREB | T107: 03226344 | U107: 41683226810 | V107: Javni instituti | W107: 08008
M108: 104. | N108: 23368 SVEUČILIŠTE U SPLITU , KATOLIČKI BOGOSLOVNI FAKULTET | O108: 23368 | P108: SVEUČILIŠTE U SPLITU , KATOLIČKI BOGOSLOVNI FAKULTET | Q108: SVEUČILIŠTE U SPLITU | R108: ZRINSKOG FRANKOPANA 19 | S108: 21000 SPLIT | T108: 01465643 | U108: 36149548625 | V108: Sveučilišta i veleučilišta u Republici Hrvatskoj | W108: 08006
M109: 105. | N109: 23665 SVEUČILIŠTE U ZAGREBU SVEUČILIŠNI RAČUNSKI CENTAR | O109: 23665 | P109: SVEUČILIŠTE U ZAGREBU SVEUČILIŠNI RAČUNSKI CENTAR | Q109: AGENCIJE | R109: JOSIPA MAROHNIĆA 5 | S109: 10000 ZAGREB | T109: 03283020 | U109: 34016189309 | V109: Agencije | W109: 08091
M110: 106. | N110: 23815 SVEUČILIŠTE U ZADRU | O110: 23815 | P110: SVEUČILIŠTE U ZADRU | Q110: SVEUČILIŠTE U ZADRU | R110: MIHOVILA PAVLINOVIĆA 1 | S110: 23000 ZADAR | T110: 01695525 | U110: 10839679016 | V110: Sveučilišta i veleučilišta u Republici Hrvatskoj | W110: 08006
M111: 107. | N111: 23962 AGENCIJA ZA ODGOJ I OBRAZOVANJE | O111: 23962 | P111: AGENCIJA ZA ODGOJ I OBRAZOVANJE | Q111: AGENCIJE | R111: DONJE SVETICE 38 | S111: 10000 ZAGREB | T111: 01778129 | U111: 72193628411 | V111: Agencije | W111: 08091
M112: 108. | N112: 24141 SVEUČILIŠTE U DUBROVNIKU | O112: 24141 | P112: SVEUČILIŠTE U DUBROVNIKU | Q112: SVEUČILIŠTE U DUBROVNIKU | R112: BRANITELJA DUBROVNIKA 29 | S112: 20000 DUBROVNIK | T112: 01787578 | U112: 01338491514 | V112: Sveučilišta i veleučilišta u Republici Hrvatskoj | W112: 08006
M113: 109. | N113: 38438 VELEUČILIŠTE MARKO MARULIĆ | O113: 38438 | P113: VELEUČILIŠTE MARKO MARULIĆ | Q113: VELEUČILIŠTA | R113: KRALJA PETRA KREŠIMIRA IV 30 | S113: 22300 KNIN | T113: 01963813 | U113: 13664089430 | V113: Sveučilišta i veleučilišta u Republici Hrvatskoj | W113: 08006
M114: 110. | N114: 38446 VELEUČILIŠTE LAVOSLAV RUŽIČKA U VUKOVARU | O114: 38446 | P114: VELEUČILIŠTE LAVOSLAV RUŽIČKA U VUKOVARU | Q114: VELEUČILIŠTA | R114: ŽUPANIJSKA 50 | S114: 32000 VUKOVAR | T114: 01970828 | U114: 21720825730 | V114: Sveučilišta i veleučilišta u Republici Hrvatskoj | W114: 08006
M115: 111. | N115: 38454 SVEUČILIŠTE U RIJECI, AKADEMIJA PRIMIJENJENIH UMJETNOSTI | O115: 38454 | P115: SVEUČILIŠTE U RIJECI, AKADEMIJA PRIMIJENJENIH UMJETNOSTI | Q115: SVEUČILIŠTE U RIJECI | R115: SLAVKA KRAUTZEKA 83 | S115: 51000 RIJEKA | T115: 01954253 | U115: 55704161999 | V115: Sveučilišta i veleučilišta u Republici Hrvatskoj | W115: 08006
M116: 112. | N116: 38479 SVEUČILIŠTE JOSIPA JURJA STROSSMAYERA U OSIJEKU, KATOLIČKI BOGOSLOVNI FAKULTET U ĐAKOVU | O116: 38479 | P116: SVEUČILIŠTE JOSIPA JURJA STROSSMAYERA U OSIJEKU, KATOLIČKI BOGOSLOVNI FAKULTET U ĐAKOVU | Q116: SVEUČILIŠTE J.J STROSSMAYERA U OSIJEKU | R116: PETRA PRERADOVIĆA 17 | S116: 31400 ĐAKOVO | T116: 01986490 | U116: 05384220316 | V116: Sveučilišta i veleučilišta u Republici Hrvatskoj | W116: 08006
M117: 113. | N117: 38487 AGENCIJA ZA ZNANOST I VISOKO OBRAZOVANJE | O117: 38487 | P117: AGENCIJA ZA ZNANOST I VISOKO OBRAZOVANJE | Q117: AGENCIJE | R117: DONJE SVETICE 38/5 | S117: 10000 ZAGREB | T117: 01922548 | U117: 83358955356 | V117: Agencije | W117: 08091
M118: 114. | N118: 40883 NACIONALNI CENTAR ZA VANJSKO VREDNOVANJE OBRAZOVANJA | O118: 40883 | P118: NACIONALNI CENTAR ZA VANJSKO VREDNOVANJE OBRAZOVANJA | Q118: AGENCIJE | R118: ULICA D. TOMLJANOVIĆA GAVRANA 11 | S118: 10020 ZAGREB | T118: 01943430 | U118: 94833993984 | V118: Agencije | W118: 08091
M119: 115. | N119: 40947 SVEUČILIŠTE U RIJECI, UČITELJSKI FAKULTET | O119: 40947 | P119: SVEUČILIŠTE U RIJECI, UČITELJSKI FAKULTET | Q119: SVEUČILIŠTE U RIJECI | R119: SVEUČILIŠNA AVENIJA 6 | S119: 51000 RIJEKA | T119: 02116073 | U119: 96996385705 | V119: Sveučilišta i veleučilišta u Republici Hrvatskoj | W119: 08006
M120: 116. | N120: 41185 VELEUČILIŠTE NIKOLA TESLA U GOSPIĆU | O120: 41185 | P120: VELEUČILIŠTE NIKOLA TESLA U GOSPIĆU | Q120: VELEUČILIŠTA | R120: ULICA BANA IVANA KARLOVIĆA 16 | S120: 53000 GOSPIĆ | T120: 02103133 | U120: 42552392522 | V120: Sveučilišta i veleučilišta u Republici Hrvatskoj | W120: 08006
M121: 117. | N121: 42024 SVEUČILIŠTE JURJA DOBRILE U PULI | O121: 42024 | P121: SVEUČILIŠTE JURJA DOBRILE U PULI | Q121: SVEUČILIŠTE U PULI | R121: ZAGREBAČKA 30 | S121: 52100 PULA | T121: 02161753 | U121: 61738073226 | V121: Sveučilišta i veleučilišta u Republici Hrvatskoj | W121: 08006
M122: 118. | N122: 42993 VELEUČILIŠTE U VIROVITICI | O122: 42993 | P122: VELEUČILIŠTE U VIROVITICI | Q122: VELEUČILIŠTA | R122: ULICA MATIJE GUPCA 78 | S122: 33000 VIROVITICA | T122: 02282208 | U122: 46576407858 | V122: Sveučilišta i veleučilišta u Republici Hrvatskoj | W122: 08006
M123: 119. | N123: 43335 AGENCIJA ZA MOBILNOST I PROGRAME EUROPSKE UNIJE | O123: 43335 | P123: AGENCIJA ZA MOBILNOST I PROGRAME EUROPSKE UNIJE | Q123: AGENCIJE | R123: FRANKOPANSKA 26 | S123: 10000 ZAGREB | T123: 02298007 | U123: 25385906011 | V123: Agencije | W123: 08091
M124: 120. | N124: 43749 MEĐIMURSKO VELEUČILIŠTE U ČAKOVCU | O124: 43749 | P124: MEĐIMURSKO VELEUČILIŠTE U ČAKOVCU | Q124: VELEUČILIŠTA | R124: BANA JOSIPA JELAČIĆA 22/A | S124: 40000 ČAKOVEC | T124: 02382512 | U124: 31444990605 | V124: Sveučilišta i veleučilišta u Republici Hrvatskoj | W124: 08006
M125: 121. | N125: 43773 SVEUČILIŠTE U SPLITU, KINEZIOLOŠKI FAKULTET | O125: 43773 | P125: SVEUČILIŠTE U SPLITU, KINEZIOLOŠKI FAKULTET | Q125: SVEUČILIŠTE U SPLITU | R125: NIKOLE TESLE 6 | S125: 21000 SPLIT | T125: 02393255 | U125: 57848936921 | V125: Sveučilišta i veleučilišta u Republici Hrvatskoj | W125: 08006
M126: 122. | N126: 46173 AGENCIJA ZA STRUKOVNO OBRAZOVANJE I OBRAZOVANJE ODRASLIH | O126: 46173 | P126: AGENCIJA ZA STRUKOVNO OBRAZOVANJE I OBRAZOVANJE ODRASLIH | Q126: AGENCIJE | R126: GARIĆGRADSKA ULICA 18 | S126: 10000 ZAGREB | T126: 02650029 | U126: 40719411729 | V126: Agencije | W126: 08091
M127: 123. | N127: 48023 SVEUČILIŠTE U RIJECI, FAKULTET ZDRAVSTVENIH STUDIJA | O127: 48023 | P127: SVEUČILIŠTE U RIJECI, FAKULTET ZDRAVSTVENIH STUDIJA | Q127: SVEUČILIŠTE U RIJECI | R127: VIKTORA CARA EMINA 5 | S127: 51000 RIJEKA | T127: 04052510 | U127: 19213484918 | V127: Sveučilišta i veleučilišta u Republici Hrvatskoj | W127: 08006
M128: 124. | N128: 48267 SVEUČILIŠTE SJEVER | O128: 48267 | P128: SVEUČILIŠTE SJEVER | Q128: SVEUČILIŠTE SJEVER | R128: TRG DR. ŽARKA DOLINARA 1 | S128: 48000 KOPRIVNICA | T128: 02752298 | U128: 59624928052 | V128: Sveučilišta i veleučilišta u Republici Hrvatskoj | W128: 08006
M129: 125. | N129: =O129&" "&P129 -> 49796 SVEUČILIŠTE J.J. STROSMAYERA U OSIJEKU - FAKULTET ZA DENTALNU MEDICINU I ZDRAVSTVO | O129: 49796 | P129: SVEUČILIŠTE J.J. STROSMAYERA U OSIJEKU - FAKULTET ZA DENTALNU MEDICINU I ZDRAVSTVO | Q129: SVEUČILIŠTE J.J STROSSMAYERA U OSIJEKU | R129: CRKVENA 21 | S129: 31000 OSIJEK | T129: 04748875 | U129: 83830458507 | V129: Sveučilišta i veleučilišta u Republici Hrvatskoj | W129: 08006
M130: 126. | N130: 50215 SVEUČILIŠTE JOSIPA JURJA STROSSMAYERA U OSIJEKU - AKADEMIJA ZA UMJETNOST I KULTURU U OSIJEKU | O130: 50215 | P130: SVEUČILIŠTE JOSIPA JURJA STROSSMAYERA U OSIJEKU - AKADEMIJA ZA UMJETNOST I KULTURU U OSIJEKU | Q130: SVEUČILIŠTE J.J STROSSMAYERA U OSIJEKU | R130: KRALJA PETRA SVAČIĆA 1/F | S130: 31000 OSIJEK | T130: 04907361 | U130: 60277424315 | V130: Sveučilišta i veleučilišta u Republici Hrvatskoj | W130: 08006
M131: 127. | N131: 50848 VELEUČILIŠTE HRVATSKO ZAGORJE KRAPINA | O131: 50848 | P131: VELEUČILIŠTE HRVATSKO ZAGORJE KRAPINA | Q131: VELEUČILIŠTA | R131: ŠETALIŠTE HRVATSKOG NARODNOG PREPORODA 6 | S131: 49000 KRAPINA | T131: 02271354 | U131: 16465214888 | V131: Sveučilišta i veleučilišta u Republici Hrvatskoj | W131: 08006
M132: 128. | N132: 51191 Sveučilište u Zagrebu Fakultet hrvatskih studija | O132: 51191 | P132: Sveučilište u Zagrebu Fakultet hrvatskih studija | Q132: SVEUČILIŠTE U ZAGREBU | R132: BORONGAJSKA CESTA 83D | S132: 10000 ZAGREB | T132: 05214068 | U132: 99454315441 | V132: Sveučilišta i veleučilišta u Republici Hrvatskoj | W132: 08006
M133: 129. | N133: 51360 SVEUČILIŠTE U SLAVONSKOM BRODU | O133: 51360 | P133: SVEUČILIŠTE U SLAVONSKOM BRODU | Q133: SVEUČILIŠTE U SLAVONSKOM BRODU | R133: TRG IVANE BRLIĆ MAŽURANIĆ 2 | S133: 35000 SLAVONSKI BROD | T133: 05290538 | U133: 33027834374 | V133: Sveučilišta i veleučilišta u Republici Hrvatskoj | W133: 08006
M134: 130. | N134: 51450 SVEUČILIŠTE JOSIPA JURJA STROSSMAYERA U OSIJEKU - KINEZIOLOŠKI FAKULTET OSIJEK | O134: 51450 | P134: SVEUČILIŠTE JOSIPA JURJA STROSSMAYERA U OSIJEKU - KINEZIOLOŠKI FAKULTET OSIJEK | Q134: SVEUČILIŠTE J.J STROSSMAYERA U OSIJEKU | R134: DRINSKA 16/A | S134: 31000 OSIJEK | T134: 05302099 | U134: 70788591483 | V134: Sveučilišta i veleučilišta u Republici Hrvatskoj | W134: 08006
M135: 131. | N135: 52209 HRVATSKA ZAKLADA ZA ZNANOST | O135: 52209 | P135: HRVATSKA ZAKLADA ZA ZNANOST | Q135: AGENCIJE | R135: ILICA 24 | S135: 10000 ZAGREB | T135: 01626841 | U135: 88776522763 | V135: Agencije | W135: 08091
M136: =+M135+1 -> 132. | N136: 52565 SVEUČILIŠTE JOSIPA JURJA STROSSMAYERA U OSIJEKU, FAKULTET TURIZMA I RURALNOG RAZVOJA U POŽEGI | O136: 52565 | P136: SVEUČILIŠTE JOSIPA JURJA STROSSMAYERA U OSIJEKU, FAKULTET TURIZMA I RURALNOG RAZVOJA U POŽEGI | Q136: SVEUČILIŠTE J.J STROSSMAYERA U OSIJEKU | R136: VUKOVARSKA 17 | S136: 31000 OSIJEK | T136: 05619696 | U136: 11614501047 | V136: Sveučilišta i veleučilišta u Republici Hrvatskoj | W136: 08006
M137: =+M136+1 -> 133. | N137: 53919 Sveučilište u Osijeku, Fakultet primijenjene matematike i informatike | O137: 53919 | P137: Sveučilište u Osijeku, Fakultet primijenjene matematike i informatike | Q137: SVEUČILIŠTE J.J STROSSMAYERA U OSIJEKU | V137: Sveučilišta i veleučilišta u Republici Hrvatskoj | W137: 08006

Sheet Unos prihoda i primitaka
A1: Plan za unos u SAP - prihodi i primici | F1: =IF(OR('OPĆI DIO'!C1="odaberite -",'OPĆI DIO'!C1=""),"Molimo odaberite proračunskog korisnika na radnom listu Opći podaci!","") ->  | K1: u EUR
A2: GLAVA | B2: OPIS GLAVE | C2: IZVOR NA TERET | D2: IZVOR | E2: OPIS IZVORA | F2: STAVKA | G2: Stavka-Izvor | H2: OPIS STAVKE | I2: PLAN 2026. | J2: PROJEKCIJA 2027. | K2: PROJEKCIJA 2028. | L2: Davatelj prijenosa | M2: Ustanova | N2: left3 | O2: left2
A3: =IF(F3="","",VLOOKUP('OPĆI DIO'!$C$1,'OPĆI DIO'!$N$4:$W$137,10,FALSE)) -> 08006 | B3: =IF(F3="","",VLOOKUP('OPĆI DIO'!$C$1,'OPĆI DIO'!$N$4:$W$137,9,FALSE)) -> Sveučilišta i veleučilišta u Republici Hrvatskoj | C3: =IFERROR(VLOOKUP(G3,$T$6:$AA$500,8,FALSE),"") -> 11 | D3: =IFERROR(VLOOKUP(G3,$T$6:$AA$500,4,FALSE),"") -> 11 | E3: =IFERROR(VLOOKUP(G3,$T$6:$AA$500,5,FALSE),"") -> Opći prihodi i primici | F3: =IFERROR(VLOOKUP(G3,$T$6:$AA$500,2,FALSE),"") -> 67111 | G3: 67111-11 | H3: =IFERROR(VLOOKUP(G3,$T$6:$AA$500,3,FALSE),"") -> Prihodi iz nadležnog proračuna za financiranje rashoda poslovanja | I3: 7,779,089 | J3: 8,296,172 | K3: 8,844,948 | M3: =IF(F3="","",'OPĆI DIO'!$C$1) -> 1812 Sveučilište u Zagrebu FAKULTET PROMETNIH ZNANOSTI | N3: =LEFT(F3,2) -> 67 | O3: =LEFT(F3,3) -> 671 | P3: glava za visoko 6
A4: =IF(F4="","",VLOOKUP('OPĆI DIO'!$C$1,'OPĆI DIO'!$N$4:$W$137,10,FALSE)) -> 08006 | B4: =IF(F4="","",VLOOKUP('OPĆI DIO'!$C$1,'OPĆI DIO'!$N$4:$W$137,9,FALSE)) -> Sveučilišta i veleučilišta u Republici Hrvatskoj | C4: =IFERROR(VLOOKUP(G4,$T$6:$AA$500,8,FALSE),"") -> 11 | D4: =IFERROR(VLOOKUP(G4,$T$6:$AA$500,4,FALSE),"") -> 11 | E4: =IFERROR(VLOOKUP(G4,$T$6:$AA$500,5,FALSE),"") -> Opći prihodi i primici | F4: =IFERROR(VLOOKUP(G4,$T$6:$AA$500,2,FALSE),"") -> 67111 | G4: 67111-11 | H4: =IFERROR(VLOOKUP(G4,$T$6:$AA$500,3,FALSE),"") -> Prihodi iz nadležnog proračuna za financiranje rashoda poslovanja | I4: 158,566 | J4: 166,494 | K4: 174,819 | M4: =IF(F4="","",'OPĆI DIO'!$C$1) -> 1812 Sveučilište u Zagrebu FAKULTET PROMETNIH ZNANOSTI | N4: =LEFT(F4,2) -> 67 | O4: =LEFT(F4,3) -> 671
A5: =IF(F5="","",VLOOKUP('OPĆI DIO'!$C$1,'OPĆI DIO'!$N$4:$W$137,10,FALSE)) -> 08006 | B5: =IF(F5="","",VLOOKUP('OPĆI DIO'!$C$1,'OPĆI DIO'!$N$4:$W$137,9,FALSE)) -> Sveučilišta i veleučilišta u Republici Hrvatskoj | C5: 11 | D5: 11 | E5: Opći prihodi i primici | F5: 67111 | G5: 67111-11 | H5: Prihodi iz nadležnog proračuna za financiranje rashoda poslovanja | I5: 39,015 | J5: 40,966 | K5: 43,014 | M5: =IF(F5="","",'OPĆI DIO'!$C$1) -> 1812 Sveučilište u Zagrebu FAKULTET PROMETNIH ZNANOSTI | N5: 67 | O5: 671 | P5: IZVOR | Q5: OPIS IZVORA | T5: StavkaIzvor | U5: Stavka | V5: opis stavke | W5: izvor | X5: OPIS IZVORA | Y5: 3 konto | Z5: 2 konto | AA5: Izvor
A6: =IF(F6="","",VLOOKUP('OPĆI DIO'!$C$1,'OPĆI DIO'!$N$4:$W$137,10,FALSE)) -> 08006 | B6: =IF(F6="","",VLOOKUP('OPĆI DIO'!$C$1,'OPĆI DIO'!$N$4:$W$137,9,FALSE)) -> Sveučilišta i veleučilišta u Republici Hrvatskoj | C6: 581 | D6: 581 | E6: Mehanizam za oporavak i otpornost – bespovratna sredstva – raspoloživ predujam ili unaprijed naplaćen prihod | F6: 67111 | G6: 67111-581 | H6: Prihodi iz nadležnog proračuna za financiranje rashoda poslovanja | I6: =296371+296376 -> 592,747 | J6: =296371+89446 -> 385,817 | K6: =296371+145760 -> 442,131 | M6: =IF(F6="","",'OPĆI DIO'!$C$1) -> 1812 Sveučilište u Zagrebu FAKULTET PROMETNIH ZNANOSTI | N6: =LEFT(F6,2) -> 67 | O6: 671 | P6: 11 | Q6: Opći prihodi i primici | R6: 11 | T6: =U6&"-"&W6 -> 67111-11 | U6: 67111 | V6: Prihodi iz nadležnog proračuna za financiranje rashoda poslovanja | W6: 11 | X6: Opći prihodi i primici | Y6: =LEFT(U6,3) -> 671 | Z6: =LEFT(U6,2) -> 67 | AA6: 11
A7: =IF(F7="","",VLOOKUP('OPĆI DIO'!$C$1,'OPĆI DIO'!$N$4:$W$137,10,FALSE)) -> 08006 | B7: =IF(F7="","",VLOOKUP('OPĆI DIO'!$C$1,'OPĆI DIO'!$N$4:$W$137,9,FALSE)) -> Sveučilišta i veleučilišta u Republici Hrvatskoj | C7: 51000 | D7: 51000 | E7: 51000 Programi Unije – raspoloživ predujam | F7: 63231 | G7: 63231-51000 | H7: Tekuće pomoći od institucija i tijela EU | I7: 808,360 | J7: 987,540 | K7: 715,000 | M7: =IF(F7="","",'OPĆI DIO'!$C$1) -> 1812 Sveučilište u Zagrebu FAKULTET PROMETNIH ZNANOSTI | N7: 63 | O7: 632 | P7: 12 | Q7: Sredstva učešća za pomoći | R7: 12 | T7: =U7&"-"&W7 -> 67111-12 | U7: 67111 | V7: Prihodi iz nadležnog proračuna za financiranje rashoda poslovanja | W7: 12 | X7: Sredstva učešća za pomoći | Y7: =LEFT(U7,3) -> 671 | Z7: =LEFT(U7,2) -> 67 | AA7: 12
A8: =IF(F8="","",VLOOKUP('OPĆI DIO'!$C$1,'OPĆI DIO'!$N$4:$W$137,10,FALSE)) -> 08006 | B8: =IF(F8="","",VLOOKUP('OPĆI DIO'!$C$1,'OPĆI DIO'!$N$4:$W$137,9,FALSE)) -> Sveučilišta i veleučilišta u Republici Hrvatskoj | C8: 31 | D8: 31 | E8: Vlastiti prihodi | F8: 66151 | G8: 66151-31 | H8: Prihodi od pruženih usluga | I8: 3,590,000 | J8: 3,690,000 | K8: 3,790,000 | M8: =IF(F8="","",'OPĆI DIO'!$C$1) -> 1812 Sveučilište u Zagrebu FAKULTET PROMETNIH ZNANOSTI | N8: 66 | O8: 661 | P8: 31 | Q8: Vlastiti prihodi | R8: 31 | T8: 67111-531 | U8: 67111 | V8: Prihodi iz nadležnog proračuna za financiranje rashoda poslovanja | W8: 531 | X8: Švicarsko - hrvatski program suradnje | Y8: 671 | Z8: 67 | AA8: 531
A9: =IF(F9="","",VLOOKUP('OPĆI DIO'!$C$1,'OPĆI DIO'!$N$4:$W$137,10,FALSE)) -> 08006 | B9: =IF(F9="","",VLOOKUP('OPĆI DIO'!$C$1,'OPĆI DIO'!$N$4:$W$137,9,FALSE)) -> Sveučilišta i veleučilišta u Republici Hrvatskoj | C9: 43 | D9: 43 | E9: Ostali prihodi za posebne namjene | F9: 65264 | G9: 65264-43 | H9: Sufinanciranje cijene usluge, participacije i slično | I9: 825,000 | J9: 850,000 | K9: 875,000 | M9: =IF(F9="","",'OPĆI DIO'!$C$1) -> 1812 Sveučilište u Zagrebu FAKULTET PROMETNIH ZNANOSTI | N9: 65 | O9: 652 | P9: 41 | Q9: Prihodi od igara na sreću | R9: 41 | T9: 67111-532 | U9: 67111 | V9: Prihodi iz nadležnog proračuna za financiranje rashoda poslovanja | W9: 532 | X9: Financijski mehanizam Europskog gospodarskog prostora i Norveški financijski mehanizam | Y9: 671 | Z9: 67 | AA9: 532
A10: =IF(F10="","",VLOOKUP('OPĆI DIO'!$C$1,'OPĆI DIO'!$N$4:$W$137,10,FALSE)) -> 08006 | B10: =IF(F10="","",VLOOKUP('OPĆI DIO'!$C$1,'OPĆI DIO'!$N$4:$W$137,9,FALSE)) -> Sveučilišta i veleučilišta u Republici Hrvatskoj | C10: 61 | D10: 61 | E10: Donacije | F10: 66311 | G10: 66311-61 | H10: Tekuće donacije od fizičkih osoba | I10: 20,000 | J10: 20,000 | K10: 20,000 | M10: =IF(F10="","",'OPĆI DIO'!$C$1) -> 1812 Sveučilište u Zagrebu FAKULTET PROMETNIH ZNANOSTI | N10: 66 | O10: 663 | P10: 43 | Q10: Ostali prihodi za posebne namjene | R10: 43 | T10: 67111-54 | U10: 67111 | V10: Prihodi iz nadležnog proračuna za financiranje rashoda poslovanja | W10: 54 | X10: Europski poljoprivredni jamstveni fond (EAGF) | Y10: 671 | Z10: 67 | AA10: 54
A11: =IF(F11="","",VLOOKUP('OPĆI DIO'!$C$1,'OPĆI DIO'!$N$4:$W$137,10,FALSE)) -> 08006 | B11: =IF(F11="","",VLOOKUP('OPĆI DIO'!$C$1,'OPĆI DIO'!$N$4:$W$137,9,FALSE)) -> Sveučilišta i veleučilišta u Republici Hrvatskoj | C11: 51000 | D11: 51000 | E11: 51000 Programi Unije – raspoloživ predujam | F11: 63931 | G11: 63931-51000 | H11: Tekući prijenosi između proračunskih korisnika istog proračuna temeljem prijenosa EU sredstava | I11: 38,535 | J11: 0 | K11: 0 | L11: 21852 HRVATSKA AKADEMSKA ISTRAŽIVAČKA MREŽA - CARNET | M11: =IF(F11="","",'OPĆI DIO'!$C$1) -> 1812 Sveučilište u Zagrebu FAKULTET PROMETNIH ZNANOSTI | N11: 63 | O11: 639 | P11: 50 | Q11: 5011 Pomoći iz državnog proračuna kroz opće prihode i primitke | R11: 50 | T11: 67111-561 | U11: 67111 | V11: Prihodi iz nadležnog proračuna za financiranje rashoda poslovanja | W11: 561 | X11: Europski socijalni fond plus – predfinanciranje iz izvora 11 Opći prihodi i primici | Y11: 671 | Z11: 67 | AA11: 561
A12: =IF(F12="","",VLOOKUP('OPĆI DIO'!$C$1,'OPĆI DIO'!$N$4:$W$137,10,FALSE)) -> 08006 | B12: =IF(F12="","",VLOOKUP('OPĆI DIO'!$C$1,'OPĆI DIO'!$N$4:$W$137,9,FALSE)) -> Sveučilišta i veleučilišta u Republici Hrvatskoj | C12: 581 | D12: 581 | E12: Mehanizam za oporavak i otpornost – bespovratna sredstva – raspoloživ predujam ili unaprijed naplaćen prihod | F12: 63931 | G12: 63931-581 | H12: Tekući prijenosi između proračunskih korisnika istog proračuna temeljem prijenosa EU sredstava | I12: 38,535 | J12: 0 | K12: 0 | L12: 21852 HRVATSKA AKADEMSKA ISTRAŽIVAČKA MREŽA - CARNET | M12: =IF(F12="","",'OPĆI DIO'!$C$1) -> 1812 Sveučilište u Zagrebu FAKULTET PROMETNIH ZNANOSTI | N12: 63 | O12: 639 | P12: 50 | Q12: 5012 Pomoći iz državnog proračuna kroz nacionalno sufinanciranje EU projekata | R12: 50 | T12: 67111-562 | U12: 67111 | V12: Prihodi iz nadležnog proračuna za financiranje rashoda poslovanja | W12: 562 | X12: Kohezijski fond - predfinanciranje iz izvora 11 Opći prihodi i primici | Y12: 671 | Z12: 67 | AA12: 562
A13: =IF(F13="","",VLOOKUP('OPĆI DIO'!$C$1,'OPĆI DIO'!$N$4:$W$137,10,FALSE)) -> 08006 | B13: =IF(F13="","",VLOOKUP('OPĆI DIO'!$C$1,'OPĆI DIO'!$N$4:$W$137,9,FALSE)) -> Sveučilišta i veleučilišta u Republici Hrvatskoj | C13: 563 | D13: 563 | E13: Europski fond za regionalni razvoj - predfinanciranje iz izvora 11 Opći prihodi i primici | F13: 63931 | G13: 63931-563 | H13: Tekući prijenosi između proračunskih korisnika istog proračuna temeljem prijenosa EU sredstava | I13: 186,995 | J13: 0 | K13: 0 | L13: 47123 MINISTARSTVO REGIONALNOGA RAZVOJA I FONDOVA EUROPSKE UNIJE | M13: =IF(F13="","",'OPĆI DIO'!$C$1) -> 1812 Sveučilište u Zagrebu FAKULTET PROMETNIH ZNANOSTI | N13: 63 | O13: 639 | P13: 50 | Q13: 5041 Pomoći iz državnog proračuna kroz prihode od igara na sreću | R13: 50 | T13: 67111-563 | U13: 67111 | V13: Prihodi iz nadležnog proračuna za financiranje rashoda poslovanja | W13: 563 | X13: Europski fond za regionalni razvoj - predfinanciranje iz izvora 11 Opći prihodi i primici | Y13: 671 | Z13: 67 | AA13: 563
A14: =IF(F14="","",VLOOKUP('OPĆI DIO'!$C$1,'OPĆI DIO'!$N$4:$W$137,10,FALSE)) -> 08006 | B14: =IF(F14="","",VLOOKUP('OPĆI DIO'!$C$1,'OPĆI DIO'!$N$4:$W$137,9,FALSE)) -> Sveučilišta i veleučilišta u Republici Hrvatskoj | C14: 533 | D14: 533 | E14: Ostale darovnice | F14: 63211 | G14: 63211-533 | H14: Tekuće pomoći od međunarodnih organizacija | I14: 59,360 | J14: 0 | K14: 0 | M14: =IF(F14="","",'OPĆI DIO'!$C$1) -> 1812 Sveučilište u Zagrebu FAKULTET PROMETNIH ZNANOSTI | N14: 63 | O14: 632 | P14: 50 | Q14: 5043 Pomoći iz državnog proračuna kroz ostale prihode za posebne namjene | R14: 50 | T14: 67111-564 | U14: 67111 | V14: Prihodi iz nadležnog proračuna za financiranje rashoda poslovanja | W14: 564 | X14: Fond za pomorstvo, ribarstvo i akvakulturu - predfinanciranje iz izvora 11 Opći prihodi i primici | Y14: 671 | Z14: 67 | AA14: 564
A15: =IF(F15="","",VLOOKUP('OPĆI DIO'!$C$1,'OPĆI DIO'!$N$4:$W$137,10,FALSE)) -> 08006 | B15: =IF(F15="","",VLOOKUP('OPĆI DIO'!$C$1,'OPĆI DIO'!$N$4:$W$137,9,FALSE)) -> Sveučilišta i veleučilišta u Republici Hrvatskoj | C15: 5011 | D15: 5011 | E15: 5011 Pomoći iz državnog proračuna kroz opće prihode i primitke | F15: 63911 | G15: 63911-5011 | H15: Tekući prijenosi između proračunskih korisnika istog proračuna | I15: 90,000 | J15: 90,000 | K15: 90,000 | L15: 52209 HRVATSKA ZAKLADA ZA ZNANOST | M15: =IF(F15="","",'OPĆI DIO'!$C$1) -> 1812 Sveučilište u Zagrebu FAKULTET PROMETNIH ZNANOSTI | N15: 63 | O15: 639 | P15: 50 | Q15: 5052 Pomoći iz državnog proračuna kroz ostale pomoći | R15: 50 | T15: 67111-565 | U15: 67111 | V15: Prihodi iz nadležnog proračuna za financiranje rashoda poslovanja | W15: 565 | X15: Europski poljoprivredni fond za ruralni razvoj - predfinanciranje iz izvora 11 Opći prihodi i primici | Y15: 671 | Z15: 67 | AA15: 565
A16: =IF(F16="","",VLOOKUP('OPĆI DIO'!$C$1,'OPĆI DIO'!$N$4:$W$137,10,FALSE)) -> 08006 | B16: =IF(F16="","",VLOOKUP('OPĆI DIO'!$C$1,'OPĆI DIO'!$N$4:$W$137,9,FALSE)) -> Sveučilišta i veleučilišta u Republici Hrvatskoj | C16: 563 | D16: 563 | E16: Europski fond za regionalni razvoj - predfinanciranje iz izvora 11 Opći prihodi i primici | F16: 63931 | G16: 63931-563 | H16: Tekući prijenosi između proračunskih korisnika istog proračuna temeljem prijenosa EU sredstava | I16: 30,618 | J16: 0 | K16: 0 | L16: 1757 SVEUČILIŠTE U ZAGREBU FAKULTET ELEKTROTEHNIKE I RAČUNARSTVA | M16: =IF(F16="","",'OPĆI DIO'!$C$1) -> 1812 Sveučilište u Zagrebu FAKULTET PROMETNIH ZNANOSTI | N16: 63 | O16: 639 | P16: 50 | Q16: 50810 Pomoći iz državnog proračuna kroz namjenske primitke od zaduživanja – ostali | R16: 50 | T16: 67111-566 | U16: 67111 | V16: Prihodi iz nadležnog proračuna za financiranje rashoda poslovanja | W16: 566 | X16: Modernizacijski fond - predfinanciranje iz izvora 11 Opći prihodi i primici | Y16: 671 | Z16: 67 | AA16: 566
A17: =IF(F17="","",VLOOKUP('OPĆI DIO'!$C$1,'OPĆI DIO'!$N$4:$W$137,10,FALSE)) ->  | B17: =IF(F17="","",VLOOKUP('OPĆI DIO'!$C$1,'OPĆI DIO'!$N$4:$W$137,9,FALSE)) ->  | M17: =IF(F17="","",'OPĆI DIO'!$C$1) ->  | P17: 50 | Q17: 50815 Pomoći iz državnog proračuna kroz namjenske primitke od zaduživanja – NPOO | R17: 50 | T17: 67111-567 | U17: 67111 | V17: Prihodi iz nadležnog proračuna za financiranje rashoda poslovanja | W17: 567 | X17: Socijalni fond za klimatsku politiku - predfinanciranje iz izvora 11 Opći prihodi i primici | Y17: 671 | Z17: 67 | AA17: 567
A18: =IF(F18="","",VLOOKUP('OPĆI DIO'!$C$1,'OPĆI DIO'!$N$4:$W$137,10,FALSE)) ->  | B18: =IF(F18="","",VLOOKUP('OPĆI DIO'!$C$1,'OPĆI DIO'!$N$4:$W$137,9,FALSE)) ->  | M18: =IF(F18="","",'OPĆI DIO'!$C$1) ->  | P18: 51 | Q18: 51000 Programi Unije – raspoloživ predujam | R18: 51 | T18: 67111-575 | U18: 67111 | V18: Prihodi iz nadležnog proračuna za financiranje rashoda poslovanja | W18: 575 | X18: Fond za azil, migracije i integraciju - predfinanciranje iz izvora 11 Opći prihodi i primici | Y18: 671 | Z18: 67 | AA18: 575
A19: =IF(F19="","",VLOOKUP('OPĆI DIO'!$C$1,'OPĆI DIO'!$N$4:$W$137,10,FALSE)) ->  | B19: =IF(F19="","",VLOOKUP('OPĆI DIO'!$C$1,'OPĆI DIO'!$N$4:$W$137,9,FALSE)) ->  | M19: =IF(F19="","",'OPĆI DIO'!$C$1) ->  | P19: 11 | Q19: 51011 Programi Unije – predfinanciranje iz izvora 11 Opći prihodi i primici | R19: 11 | T19: 67111-577 | U19: 67111 | V19: Prihodi iz nadležnog proračuna za financiranje rashoda poslovanja | W19: 577 | X19: Fond za pravednu tranziciju - predfinanciranje iz izvora 11 Opći prihodi i primici | Y19: 671 | Z19: 67 | AA19: 577
A20: =IF(F20="","",VLOOKUP('OPĆI DIO'!$C$1,'OPĆI DIO'!$N$4:$W$137,10,FALSE)) ->  | B20: =IF(F20="","",VLOOKUP('OPĆI DIO'!$C$1,'OPĆI DIO'!$N$4:$W$137,9,FALSE)) ->  | M20: =IF(F20="","",'OPĆI DIO'!$C$1) ->  | P20: 31 | Q20: 51031 Programi Unije – predfinanciranje iz izvora 31 Vlastiti prihodi | R20: 31 | T20: 67111-578 | U20: 67111 | V20: Prihodi iz nadležnog proračuna za financiranje rashoda poslovanja | W20: 578 | X20: Fond za unutarnju sigurnost - predfinanciranje iz izvora 11 Opći prihodi i primici | Y20: 671 | Z20: 67 | AA20: 578
A21: =IF(F21="","",VLOOKUP('OPĆI DIO'!$C$1,'OPĆI DIO'!$N$4:$W$137,10,FALSE)) ->  | B21: =IF(F21="","",VLOOKUP('OPĆI DIO'!$C$1,'OPĆI DIO'!$N$4:$W$137,9,FALSE)) ->  | M21: =IF(F21="","",'OPĆI DIO'!$C$1) ->  | P21: 43 | Q21: 51043 Programi Unije – predfinanciranje iz izvora 43 Ostali prihodi za posebne namjene | R21: 43 | T21: 67111-579 | U21: 67111 | V21: Prihodi iz nadležnog proračuna za financiranje rashoda poslovanja | W21: 579 | X21: Fond za integrirano upravljanje granicama - predfinanciranje iz izvora 11 Opći prihodi i primici | Y21: 671 | Z21: 67 | AA21: 579
A22: =IF(F22="","",VLOOKUP('OPĆI DIO'!$C$1,'OPĆI DIO'!$N$4:$W$137,10,FALSE)) ->  | B22: =IF(F22="","",VLOOKUP('OPĆI DIO'!$C$1,'OPĆI DIO'!$N$4:$W$137,9,FALSE)) ->  | M22: =IF(F22="","",'OPĆI DIO'!$C$1) ->  | P22: 81 | Q22: 51081 Programi Unije – predfinanciranje iz izvora 81 Namjenski primici od zaduživanja | R22: 81 | T22: 67111-581 | U22: 67111 | V22: Prihodi iz nadležnog proračuna za financiranje rashoda poslovanja | W22: 581 | X22: Mehanizam za oporavak i otpornost – bespovratna sredstva – raspoloživ predujam ili unaprijed naplaćen prihod | Y22: 671 | Z22: 67 | AA22: 581
A23: =IF(F23="","",VLOOKUP('OPĆI DIO'!$C$1,'OPĆI DIO'!$N$4:$W$137,10,FALSE)) ->  | B23: =IF(F23="","",VLOOKUP('OPĆI DIO'!$C$1,'OPĆI DIO'!$N$4:$W$137,9,FALSE)) ->  | M23: =IF(F23="","",'OPĆI DIO'!$C$1) ->  | P23: 52 | Q23: Ostale pomoći | R23: 52 | T23: 67111-815 | U23: 67111 | V23: Prihodi iz nadležnog proračuna za financiranje rashoda poslovanja | W23: 815 | X23: Mehanizam za oporavak i otpornost (NPOO – zajam) | Y23: 671 | Z23: 67 | AA23: 815
A24: =IF(F24="","",VLOOKUP('OPĆI DIO'!$C$1,'OPĆI DIO'!$N$4:$W$137,10,FALSE)) ->  | B24: =IF(F24="","",VLOOKUP('OPĆI DIO'!$C$1,'OPĆI DIO'!$N$4:$W$137,9,FALSE)) ->  | M24: =IF(F24="","",'OPĆI DIO'!$C$1) ->  | P24: 531 | Q24: Švicarsko - hrvatski program suradnje | R24: 53 | T24: 67121-11 | U24: 67121 | V24: Prihodi iz nadležnog proračuna za financiranje rashoda za nabavu nefinancijske imovine | W24: 11 | X24: Opći prihodi i primici | Y24: 671 | Z24: 67 | AA24: 11
A25: =IF(F25="","",VLOOKUP('OPĆI DIO'!$C$1,'OPĆI DIO'!$N$4:$W$137,10,FALSE)) ->  | B25: =IF(F25="","",VLOOKUP('OPĆI DIO'!$C$1,'OPĆI DIO'!$N$4:$W$137,9,FALSE)) ->  | M25: =IF(F25="","",'OPĆI DIO'!$C$1) ->  | P25: 532 | Q25: Financijski mehanizam Europskog gospodarskog prostora i Norveški financijski mehanizam | R25: 53 | T25: 67121-12 | U25: 67121 | V25: Prihodi iz nadležnog proračuna za financiranje rashoda za nabavu nefinancijske imovine | W25: 12 | X25: Sredstva učešća za pomoći | Y25: 671 | Z25: 67 | AA25: 12
A26: =IF(F26="","",VLOOKUP('OPĆI DIO'!$C$1,'OPĆI DIO'!$N$4:$W$137,10,FALSE)) ->  | B26: =IF(F26="","",VLOOKUP('OPĆI DIO'!$C$1,'OPĆI DIO'!$N$4:$W$137,9,FALSE)) ->  | M26: =IF(F26="","",'OPĆI DIO'!$C$1) ->  | P26: 533 | Q26: Ostale darovnice | R26: 53 | T26: 67121-531 | U26: 67121 | V26: Prihodi iz nadležnog proračuna za financiranje rashoda za nabavu nefinancijske imovine | W26: 531 | X26: Švicarsko - hrvatski program suradnje | Y26: 671 | Z26: 67 | AA26: 531
A27: =IF(F27="","",VLOOKUP('OPĆI DIO'!$C$1,'OPĆI DIO'!$N$4:$W$137,10,FALSE)) ->  | B27: =IF(F27="","",VLOOKUP('OPĆI DIO'!$C$1,'OPĆI DIO'!$N$4:$W$137,9,FALSE)) ->  | M27: =IF(F27="","",'OPĆI DIO'!$C$1) ->  | P27: 54 | Q27: Europski poljoprivredni jamstveni fond (EAGF) | R27: 54 | T27: 67121-532 | U27: 67121 | V27: Prihodi iz nadležnog proračuna za financiranje rashoda za nabavu nefinancijske imovine | W27: 532 | X27: Financijski mehanizam Europskog gospodarskog prostora i Norveški financijski mehanizam | Y27: 671 | Z27: 67 | AA27: 532
A28: =IF(F28="","",VLOOKUP('OPĆI DIO'!$C$1,'OPĆI DIO'!$N$4:$W$137,10,FALSE)) ->  | B28: =IF(F28="","",VLOOKUP('OPĆI DIO'!$C$1,'OPĆI DIO'!$N$4:$W$137,9,FALSE)) ->  | P28: 561 | Q28: Europski socijalni fond plus – predfinanciranje iz izvora 11 Opći prihodi i primici | R28: 561 | T28: 67121-54 | U28: 67121 | V28: Prihodi iz nadležnog proračuna za financiranje rashoda za nabavu nefinancijske imovine | W28: 54 | X28: Europski poljoprivredni jamstveni fond (EAGF) | Y28: 671 | Z28: 67 | AA28: 54
A29: =IF(F29="","",VLOOKUP('OPĆI DIO'!$C$1,'OPĆI DIO'!$N$4:$W$137,10,FALSE)) ->  | B29: =IF(F29="","",VLOOKUP('OPĆI DIO'!$C$1,'OPĆI DIO'!$N$4:$W$137,9,FALSE)) ->  | M29: =IF(F29="","",'OPĆI DIO'!$C$1) ->  | P29: 562 | Q29: Kohezijski fond | R29: 562 | T29: 67121-531 | U29: 67121 | V29: Prihodi iz nadležnog proračuna za financiranje rashoda za nabavu nefinancijske imovine | W29: 531 | X29: Švicarsko - hrvatski program suradnje | Y29: 671 | Z29: 67 | AA29: 531
A30: =IF(F30="","",VLOOKUP('OPĆI DIO'!$C$1,'OPĆI DIO'!$N$4:$W$137,10,FALSE)) ->  | B30: =IF(F30="","",VLOOKUP('OPĆI DIO'!$C$1,'OPĆI DIO'!$N$4:$W$137,9,FALSE)) ->  | M30: =IF(F30="","",'OPĆI DIO'!$C$1) ->  | P30: 563 | Q30: Europski fond za regionalni razvoj – predfinanciranje iz izvora 11 Opći prihodi i primici | R30: 563 | T30: 67121-532 | U30: 67121 | V30: Prihodi iz nadležnog proračuna za financiranje rashoda za nabavu nefinancijske imovine | W30: 532 | X30: Financijski mehanizam Europskog gospodarskog prostora i Norveški financijski mehanizam | Y30: 671 | Z30: 67 | AA30: 532
A31: =IF(F31="","",VLOOKUP('OPĆI DIO'!$C$1,'OPĆI DIO'!$N$4:$W$137,10,FALSE)) ->  | B31: =IF(F31="","",VLOOKUP('OPĆI DIO'!$C$1,'OPĆI DIO'!$N$4:$W$137,9,FALSE)) ->  | M31: =IF(F31="","",'OPĆI DIO'!$C$1) ->  | P31: 564 | Q31: Fond za pomorstvo, ribarstvo i akvakulturu | R31: 564 | T31: 67121-561 | U31: 67121 | V31: Prihodi iz nadležnog proračuna za financiranje rashoda za nabavu nefinancijske imovine | W31: 561 | X31: Europski socijalni fond plus – predfinanciranje iz izvora 11 Opći prihodi i primici | Y31: 671 | Z31: 67 | AA31: 561
A32: =IF(F32="","",VLOOKUP('OPĆI DIO'!$C$1,'OPĆI DIO'!$N$4:$W$137,10,FALSE)) ->  | B32: =IF(F32="","",VLOOKUP('OPĆI DIO'!$C$1,'OPĆI DIO'!$N$4:$W$137,9,FALSE)) ->  | M32: =IF(F32="","",'OPĆI DIO'!$C$1) ->  | P32: 565 | Q32: Europski poljoprivredni fond za ruralni razvoj | R32: 565 | T32: 67121-562 | U32: 67121 | V32: Prihodi iz nadležnog proračuna za financiranje rashoda za nabavu nefinancijske imovine | W32: 562 | X32: Kohezijski fond - predfinanciranje iz izvora 11 Opći prihodi i primici | Y32: 671 | Z32: 67 | AA32: 562
A33: =IF(F33="","",VLOOKUP('OPĆI DIO'!$C$1,'OPĆI DIO'!$N$4:$W$137,10,FALSE)) ->  | B33: =IF(F33="","",VLOOKUP('OPĆI DIO'!$C$1,'OPĆI DIO'!$N$4:$W$137,9,FALSE)) ->  | M33: =IF(F33="","",'OPĆI DIO'!$C$1) ->  | P33: 566 | Q33: Modernizacijski fond | R33: 566 | T33: 67121-563 | U33: 67121 | V33: Prihodi iz nadležnog proračuna za financiranje rashoda za nabavu nefinancijske imovine | W33: 563 | X33: Europski fond za regionalni razvoj - predfinanciranje iz izvora 11 Opći prihodi i primici | Y33: 671 | Z33: 67 | AA33: 563
A34: =IF(F34="","",VLOOKUP('OPĆI DIO'!$C$1,'OPĆI DIO'!$N$4:$W$137,10,FALSE)) ->  | B34: =IF(F34="","",VLOOKUP('OPĆI DIO'!$C$1,'OPĆI DIO'!$N$4:$W$137,9,FALSE)) ->  | M34: =IF(F34="","",'OPĆI DIO'!$C$1) ->  | P34: 567 | Q34: Socijalni fond za klimatsku politiku | R34: 567 | T34: 67121-564 | U34: 67121 | V34: Prihodi iz nadležnog proračuna za financiranje rashoda za nabavu nefinancijske imovine | W34: 564 | X34: Fond za pomorstvo, ribarstvo i akvakulturu - predfinanciranje iz izvora 11 Opći prihodi i primici | Y34: 671 | Z34: 67 | AA34: 564
A35: =IF(F35="","",VLOOKUP('OPĆI DIO'!$C$1,'OPĆI DIO'!$N$4:$W$137,10,FALSE)) ->  | B35: =IF(F35="","",VLOOKUP('OPĆI DIO'!$C$1,'OPĆI DIO'!$N$4:$W$137,9,FALSE)) ->  | M35: =IF(F35="","",'OPĆI DIO'!$C$1) ->  | P35: 575 | Q35: Fond za azil, migracije i integraciju – predfinanciranje iz izvora 11 Opći prihodi i primici | R35: 575 | T35: 67121-565 | U35: 67121 | V35: Prihodi iz nadležnog proračuna za financiranje rashoda za nabavu nefinancijske imovine | W35: 565 | X35: Europski poljoprivredni fond za ruralni razvoj - predfinanciranje iz izvora 11 Opći prihodi i primici | Y35: 671 | Z35: 67 | AA35: 565
A36: =IF(F36="","",VLOOKUP('OPĆI DIO'!$C$1,'OPĆI DIO'!$N$4:$W$137,10,FALSE)) ->  | B36: =IF(F36="","",VLOOKUP('OPĆI DIO'!$C$1,'OPĆI DIO'!$N$4:$W$137,9,FALSE)) ->  | M36: =IF(F36="","",'OPĆI DIO'!$C$1) ->  | P36: 577 | Q36: Fond za pravednu tranziciju | R36: 577 | T36: 67121-566 | U36: 67121 | V36: Prihodi iz nadležnog proračuna za financiranje rashoda za nabavu nefinancijske imovine | W36: 566 | X36: Modernizacijski fond - predfinanciranje iz izvora 11 Opći prihodi i primici | Y36: 671 | Z36: 67 | AA36: 566
A37: =IF(F37="","",VLOOKUP('OPĆI DIO'!$C$1,'OPĆI DIO'!$N$4:$W$137,10,FALSE)) ->  | B37: =IF(F37="","",VLOOKUP('OPĆI DIO'!$C$1,'OPĆI DIO'!$N$4:$W$137,9,FALSE)) ->  | M37: =IF(F37="","",'OPĆI DIO'!$C$1) ->  | P37: 578 | Q37: Fond za unutarnju sigurnost | R37: 578 | T37: 67121-567 | U37: 67121 | V37: Prihodi iz nadležnog proračuna za financiranje rashoda za nabavu nefinancijske imovine | W37: 567 | X37: Socijalni fond za klimatsku politiku - predfinanciranje iz izvora 11 Opći prihodi i primici | Y37: 671 | Z37: 67 | AA37: 567
A38: =IF(F38="","",VLOOKUP('OPĆI DIO'!$C$1,'OPĆI DIO'!$N$4:$W$137,10,FALSE)) ->  | B38: =IF(F38="","",VLOOKUP('OPĆI DIO'!$C$1,'OPĆI DIO'!$N$4:$W$137,9,FALSE)) ->  | M38: =IF(F38="","",'OPĆI DIO'!$C$1) ->  | P38: 579 | Q38: Fond za integrirano upravljanje granicama | R38: 579 | T38: 67121-575 | U38: 67121 | V38: Prihodi iz nadležnog proračuna za financiranje rashoda za nabavu nefinancijske imovine | W38: 575 | X38: Fond za azil, migracije i integraciju - predfinanciranje iz izvora 11 Opći prihodi i primici | Y38: 671 | Z38: 67 | AA38: 575
A39: =IF(F39="","",VLOOKUP('OPĆI DIO'!$C$1,'OPĆI DIO'!$N$4:$W$137,10,FALSE)) ->  | B39: =IF(F39="","",VLOOKUP('OPĆI DIO'!$C$1,'OPĆI DIO'!$N$4:$W$137,9,FALSE)) ->  | M39: =IF(F39="","",'OPĆI DIO'!$C$1) ->  | P39: 581 | Q39: Mehanizam za oporavak i otpornost – bespovratna sredstva – raspoloživ predujam ili unaprijed naplaćen prihod | R39: 581 | T39: 67121-577 | U39: 67121 | V39: Prihodi iz nadležnog proračuna za financiranje rashoda za nabavu nefinancijske imovine | W39: 577 | X39: Fond za pravednu tranziciju - predfinanciranje iz izvora 11 Opći prihodi i primici | Y39: 671 | Z39: 67 | AA39: 577
A40: =IF(F40="","",VLOOKUP('OPĆI DIO'!$C$1,'OPĆI DIO'!$N$4:$W$137,10,FALSE)) ->  | B40: =IF(F40="","",VLOOKUP('OPĆI DIO'!$C$1,'OPĆI DIO'!$N$4:$W$137,9,FALSE)) ->  | M40: =IF(F40="","",'OPĆI DIO'!$C$1) ->  | P40: 61 | Q40: Donacije | R40: 61 | T40: 67121-578 | U40: 67121 | V40: Prihodi iz nadležnog proračuna za financiranje rashoda za nabavu nefinancijske imovine | W40: 578 | X40: Fond za unutarnju sigurnost - predfinanciranje iz izvora 11 Opći prihodi i primici | Y40: 671 | Z40: 67 | AA40: 578
A41: =IF(F41="","",VLOOKUP('OPĆI DIO'!$C$1,'OPĆI DIO'!$N$4:$W$137,10,FALSE)) ->  | B41: =IF(F41="","",VLOOKUP('OPĆI DIO'!$C$1,'OPĆI DIO'!$N$4:$W$137,9,FALSE)) ->  | M41: =IF(F41="","",'OPĆI DIO'!$C$1) ->  | P41: 71 | Q41: Prihodi od nefin. imovine i nadoknade štete s osnova osig. | R41: 71 | T41: 67121-579 | U41: 67121 | V41: Prihodi iz nadležnog proračuna za financiranje rashoda za nabavu nefinancijske imovine | W41: 579 | X41: Fond za integrirano upravljanje granicama - predfinanciranje iz izvora 11 Opći prihodi i primici | Y41: 671 | Z41: 67 | AA41: 579
A42: =IF(F42="","",VLOOKUP('OPĆI DIO'!$C$1,'OPĆI DIO'!$N$4:$W$137,10,FALSE)) ->  | B42: =IF(F42="","",VLOOKUP('OPĆI DIO'!$C$1,'OPĆI DIO'!$N$4:$W$137,9,FALSE)) ->  | M42: =IF(F42="","",'OPĆI DIO'!$C$1) ->  | P42: 810 | Q42: Namjenski primici od zaduživanja – ostali | R42: 810 | T42: 67121-581 | U42: 67121 | V42: Prihodi iz nadležnog proračuna za financiranje rashoda za nabavu nefinancijske imovine | W42: 581 | X42: Mehanizam za oporavak i otpornost – bespovratna sredstva – raspoloživ predujam ili unaprijed naplaćen prihod | Y42: 671 | Z42: 67 | AA42: 581
A43: =IF(F43="","",VLOOKUP('OPĆI DIO'!$C$1,'OPĆI DIO'!$N$4:$W$137,10,FALSE)) ->  | B43: =IF(F43="","",VLOOKUP('OPĆI DIO'!$C$1,'OPĆI DIO'!$N$4:$W$137,9,FALSE)) ->  | M43: =IF(F43="","",'OPĆI DIO'!$C$1) ->  | P43: 815 | Q43: Mehanizam za oporavak i otpornost (NPOO – zajam) | R43: 815 | T43: 67121-815 | U43: 67121 | V43: Prihodi iz nadležnog proračuna za financiranje rashoda za nabavu nefinancijske imovine | W43: 815 | X43: Mehanizam za oporavak i otpornost (NPOO – zajam) | Y43: 671 | Z43: 67 | AA43: 815
A44: =IF(F44="","",VLOOKUP('OPĆI DIO'!$C$1,'OPĆI DIO'!$N$4:$W$137,10,FALSE)) ->  | B44: =IF(F44="","",VLOOKUP('OPĆI DIO'!$C$1,'OPĆI DIO'!$N$4:$W$137,9,FALSE)) ->  | M44: =IF(F44="","",'OPĆI DIO'!$C$1) ->  | T44: 66141-31 | U44: 66141 | V44: Prihodi od prodanih proizvoda | W44: 31 | X44: Vlastiti prihodi | Y44: 661 | Z44: 66 | AA44: 31
A45: =IF(F45="","",VLOOKUP('OPĆI DIO'!$C$1,'OPĆI DIO'!$N$4:$W$137,10,FALSE)) ->  | B45: =IF(F45="","",VLOOKUP('OPĆI DIO'!$C$1,'OPĆI DIO'!$N$4:$W$137,9,FALSE)) ->  | M45: =IF(F45="","",'OPĆI DIO'!$C$1) ->  | T45: 66142-31 | U45: 66142 | V45: Prihodi od prodaje robe | W45: 31 | X45: Vlastiti prihodi | Y45: 661 | Z45: 66 | AA45: 31
A46: =IF(F46="","",VLOOKUP('OPĆI DIO'!$C$1,'OPĆI DIO'!$N$4:$W$137,10,FALSE)) ->  | B46: =IF(F46="","",VLOOKUP('OPĆI DIO'!$C$1,'OPĆI DIO'!$N$4:$W$137,9,FALSE)) ->  | M46: =IF(F46="","",'OPĆI DIO'!$C$1) ->  | T46: 66151-31 | U46: 66151 | V46: Prihodi od pruženih usluga | W46: 31 | X46: Vlastiti prihodi | Y46: 661 | Z46: 66 | AA46: 31
A47: =IF(F47="","",VLOOKUP('OPĆI DIO'!$C$1,'OPĆI DIO'!$N$4:$W$137,10,FALSE)) ->  | B47: =IF(F47="","",VLOOKUP('OPĆI DIO'!$C$1,'OPĆI DIO'!$N$4:$W$137,9,FALSE)) ->  | M47: =IF(F47="","",'OPĆI DIO'!$C$1) ->  | T47: 66311-61 | U47: 66311 | V47: Tekuće donacije od fizičkih osoba | W47: 61 | X47: Donacije | Y47: 663 | Z47: 66 | AA47: 61
A48: =IF(F48="","",VLOOKUP('OPĆI DIO'!$C$1,'OPĆI DIO'!$N$4:$W$137,10,FALSE)) ->  | B48: =IF(F48="","",VLOOKUP('OPĆI DIO'!$C$1,'OPĆI DIO'!$N$4:$W$137,9,FALSE)) ->  | M48: =IF(F48="","",'OPĆI DIO'!$C$1) ->  | T48: 66312-561 | U48: 66312 | V48: Tekuće donacije od neprofitnih organizacija | W48: 561 | X48: Europski socijalni fond plus – predfinanciranje iz izvora 11 Opći prihodi i primici | Y48: 663 | Z48: 66 | AA48: 561
A49: =IF(F49="","",VLOOKUP('OPĆI DIO'!$C$1,'OPĆI DIO'!$N$4:$W$137,10,FALSE)) ->  | B49: =IF(F49="","",VLOOKUP('OPĆI DIO'!$C$1,'OPĆI DIO'!$N$4:$W$137,9,FALSE)) ->  | M49: =IF(F49="","",'OPĆI DIO'!$C$1) ->  | T49: 66312-562 | U49: 66312 | V49: Tekuće donacije od neprofitnih organizacija | W49: 562 | X49: Kohezijski fond - predfinanciranje iz izvora 11 Opći prihodi i primici | Y49: 663 | Z49: 66 | AA49: 562
A50: =IF(F50="","",VLOOKUP('OPĆI DIO'!$C$1,'OPĆI DIO'!$N$4:$W$137,10,FALSE)) ->  | B50: =IF(F50="","",VLOOKUP('OPĆI DIO'!$C$1,'OPĆI DIO'!$N$4:$W$137,9,FALSE)) ->  | M50: =IF(F50="","",'OPĆI DIO'!$C$1) ->  | T50: 66312-563 | U50: 66312 | V50: Tekuće donacije od neprofitnih organizacija | W50: 563 | X50: Europski fond za regionalni razvoj - predfinanciranje iz izvora 11 Opći prihodi i primici | Y50: 663 | Z50: 66 | AA50: 563
A51: =IF(F51="","",VLOOKUP('OPĆI DIO'!$C$1,'OPĆI DIO'!$N$4:$W$137,10,FALSE)) ->  | B51: =IF(F51="","",VLOOKUP('OPĆI DIO'!$C$1,'OPĆI DIO'!$N$4:$W$137,9,FALSE)) ->  | M51: =IF(F51="","",'OPĆI DIO'!$C$1) ->  | T51: 66312-564 | U51: 66312 | V51: Tekuće donacije od neprofitnih organizacija | W51: 564 | X51: Fond za pomorstvo, ribarstvo i akvakulturu - predfinanciranje iz izvora 11 Opći prihodi i primici | Y51: 663 | Z51: 66 | AA51: 564
A52: =IF(F52="","",VLOOKUP('OPĆI DIO'!$C$1,'OPĆI DIO'!$N$4:$W$137,10,FALSE)) ->  | B52: =IF(F52="","",VLOOKUP('OPĆI DIO'!$C$1,'OPĆI DIO'!$N$4:$W$137,9,FALSE)) ->  | M52: =IF(F52="","",'OPĆI DIO'!$C$1) ->  | T52: 66312-565 | U52: 66312 | V52: Tekuće donacije od neprofitnih organizacija | W52: 565 | X52: Europski poljoprivredni fond za ruralni razvoj - predfinanciranje iz izvora 11 Opći prihodi i primici | Y52: 663 | Z52: 66 | AA52: 565
A53: =IF(F53="","",VLOOKUP('OPĆI DIO'!$C$1,'OPĆI DIO'!$N$4:$W$137,10,FALSE)) ->  | B53: =IF(F53="","",VLOOKUP('OPĆI DIO'!$C$1,'OPĆI DIO'!$N$4:$W$137,9,FALSE)) ->  | M53: =IF(F53="","",'OPĆI DIO'!$C$1) ->  | T53: 66312-566 | U53: 66312 | V53: Tekuće donacije od neprofitnih organizacija | W53: 566 | X53: Modernizacijski fond - predfinanciranje iz izvora 11 Opći prihodi i primici | Y53: 663 | Z53: 66 | AA53: 566
A54: =IF(F54="","",VLOOKUP('OPĆI DIO'!$C$1,'OPĆI DIO'!$N$4:$W$137,10,FALSE)) ->  | B54: =IF(F54="","",VLOOKUP('OPĆI DIO'!$C$1,'OPĆI DIO'!$N$4:$W$137,9,FALSE)) ->  | M54: =IF(F54="","",'OPĆI DIO'!$C$1) ->  | T54: 66312-567 | U54: 66312 | V54: Tekuće donacije od neprofitnih organizacija | W54: 567 | X54: Socijalni fond za klimatsku politiku - predfinanciranje iz izvora 11 Opći prihodi i primici | Y54: 663 | Z54: 66 | AA54: 567
A55: =IF(F55="","",VLOOKUP('OPĆI DIO'!$C$1,'OPĆI DIO'!$N$4:$W$137,10,FALSE)) ->  | B55: =IF(F55="","",VLOOKUP('OPĆI DIO'!$C$1,'OPĆI DIO'!$N$4:$W$137,9,FALSE)) ->  | M55: =IF(F55="","",'OPĆI DIO'!$C$1) ->  | T55: 66312-575 | U55: 66312 | V55: Tekuće donacije od neprofitnih organizacija | W55: 575 | X55: Fond za azil, migracije i integraciju - predfinanciranje iz izvora 11 Opći prihodi i primici | Y55: 663 | Z55: 66 | AA55: 575
A56: =IF(F56="","",VLOOKUP('OPĆI DIO'!$C$1,'OPĆI DIO'!$N$4:$W$137,10,FALSE)) ->  | B56: =IF(F56="","",VLOOKUP('OPĆI DIO'!$C$1,'OPĆI DIO'!$N$4:$W$137,9,FALSE)) ->  | M56: =IF(F56="","",'OPĆI DIO'!$C$1) ->  | T56: 66312-577 | U56: 66312 | V56: Tekuće donacije od neprofitnih organizacija | W56: 577 | X56: Fond za pravednu tranziciju - predfinanciranje iz izvora 11 Opći prihodi i primici | Y56: 663 | Z56: 66 | AA56: 577
A57: =IF(F57="","",VLOOKUP('OPĆI DIO'!$C$1,'OPĆI DIO'!$N$4:$W$137,10,FALSE)) ->  | B57: =IF(F57="","",VLOOKUP('OPĆI DIO'!$C$1,'OPĆI DIO'!$N$4:$W$137,9,FALSE)) ->  | M57: =IF(F57="","",'OPĆI DIO'!$C$1) ->  | T57: 66312-578 | U57: 66312 | V57: Tekuće donacije od neprofitnih organizacija | W57: 578 | X57: Fond za unutarnju sigurnost - predfinanciranje iz izvora 11 Opći prihodi i primici | Y57: 663 | Z57: 66 | AA57: 578
A58: =IF(F58="","",VLOOKUP('OPĆI DIO'!$C$1,'OPĆI DIO'!$N$4:$W$137,10,FALSE)) ->  | B58: =IF(F58="","",VLOOKUP('OPĆI DIO'!$C$1,'OPĆI DIO'!$N$4:$W$137,9,FALSE)) ->  | M58: =IF(F58="","",'OPĆI DIO'!$C$1) ->  | T58: 66312-579 | U58: 66312 | V58: Tekuće donacije od neprofitnih organizacija | W58: 579 | X58: Fond za integrirano upravljanje granicama - predfinanciranje iz izvora 11 Opći prihodi i primici | Y58: 663 | Z58: 66 | AA58: 579
A59: =IF(F59="","",VLOOKUP('OPĆI DIO'!$C$1,'OPĆI DIO'!$N$4:$W$137,10,FALSE)) ->  | B59: =IF(F59="","",VLOOKUP('OPĆI DIO'!$C$1,'OPĆI DIO'!$N$4:$W$137,9,FALSE)) ->  | M59: =IF(F59="","",'OPĆI DIO'!$C$1) ->  | T59: 66312-581 | U59: 66312 | V59: Tekuće donacije od neprofitnih organizacija | W59: 581 | X59: Mehanizam za oporavak i otpornost – bespovratna sredstva – raspoloživ predujam ili unaprijed naplaćen prihod | Y59: 663 | Z59: 66 | AA59: 581
A60: =IF(F60="","",VLOOKUP('OPĆI DIO'!$C$1,'OPĆI DIO'!$N$4:$W$137,10,FALSE)) ->  | B60: =IF(F60="","",VLOOKUP('OPĆI DIO'!$C$1,'OPĆI DIO'!$N$4:$W$137,9,FALSE)) ->  | M60: =IF(F60="","",'OPĆI DIO'!$C$1) ->  | T60: 66312-61 | U60: 66312 | V60: Tekuće donacije od neprofitnih organizacija | W60: 61 | X60: Donacije | Y60: 663 | Z60: 66 | AA60: 61
A61: =IF(F61="","",VLOOKUP('OPĆI DIO'!$C$1,'OPĆI DIO'!$N$4:$W$137,10,FALSE)) ->  | B61: =IF(F61="","",VLOOKUP('OPĆI DIO'!$C$1,'OPĆI DIO'!$N$4:$W$137,9,FALSE)) ->  | M61: =IF(F61="","",'OPĆI DIO'!$C$1) ->  | T61: 66313-561 | U61: 66313 | V61: Tekuće donacije od trgovačkih društava | W61: 561 | X61: Europski socijalni fond plus – predfinanciranje iz izvora 11 Opći prihodi i primici | Y61: 663 | Z61: 66 | AA61: 561
A62: =IF(F62="","",VLOOKUP('OPĆI DIO'!$C$1,'OPĆI DIO'!$N$4:$W$137,10,FALSE)) ->  | B62: =IF(F62="","",VLOOKUP('OPĆI DIO'!$C$1,'OPĆI DIO'!$N$4:$W$137,9,FALSE)) ->  | M62: =IF(F62="","",'OPĆI DIO'!$C$1) ->  | T62: 66313-562 | U62: 66313 | V62: Tekuće donacije od trgovačkih društava | W62: 562 | X62: Kohezijski fond - predfinanciranje iz izvora 11 Opći prihodi i primici | Y62: 663 | Z62: 66 | AA62: 562
A63: =IF(F63="","",VLOOKUP('OPĆI DIO'!$C$1,'OPĆI DIO'!$N$4:$W$137,10,FALSE)) ->  | B63: =IF(F63="","",VLOOKUP('OPĆI DIO'!$C$1,'OPĆI DIO'!$N$4:$W$137,9,FALSE)) ->  | M63: =IF(F63="","",'OPĆI DIO'!$C$1) ->  | T63: 66313-563 | U63: 66313 | V63: Tekuće donacije od trgovačkih društava | W63: 563 | X63: Europski fond za regionalni razvoj - predfinanciranje iz izvora 11 Opći prihodi i primici | Y63: 663 | Z63: 66 | AA63: 563
A64: =IF(F64="","",VLOOKUP('OPĆI DIO'!$C$1,'OPĆI DIO'!$N$4:$W$137,10,FALSE)) ->  | B64: =IF(F64="","",VLOOKUP('OPĆI DIO'!$C$1,'OPĆI DIO'!$N$4:$W$137,9,FALSE)) ->  | M64: =IF(F64="","",'OPĆI DIO'!$C$1) ->  | T64: 66313-564 | U64: 66313 | V64: Tekuće donacije od trgovačkih društava | W64: 564 | X64: Fond za pomorstvo, ribarstvo i akvakulturu - predfinanciranje iz izvora 11 Opći prihodi i primici | Y64: 663 | Z64: 66 | AA64: 564
A65: =IF(F65="","",VLOOKUP('OPĆI DIO'!$C$1,'OPĆI DIO'!$N$4:$W$137,10,FALSE)) ->  | B65: =IF(F65="","",VLOOKUP('OPĆI DIO'!$C$1,'OPĆI DIO'!$N$4:$W$137,9,FALSE)) ->  | M65: =IF(F65="","",'OPĆI DIO'!$C$1) ->  | S65: EVT | T65: =U65&"-"&W65 -> 66313-565 | U65: 66313 | V65: Tekuće donacije od trgovačkih društava | W65: 565 | X65: Europski poljoprivredni fond za ruralni razvoj - predfinanciranje iz izvora 11 Opći prihodi i primici | Y65: 663 | Z65: 66 | AA65: 565
A66: =IF(F66="","",VLOOKUP('OPĆI DIO'!$C$1,'OPĆI DIO'!$N$4:$W$137,10,FALSE)) ->  | B66: =IF(F66="","",VLOOKUP('OPĆI DIO'!$C$1,'OPĆI DIO'!$N$4:$W$137,9,FALSE)) ->  | M66: =IF(F66="","",'OPĆI DIO'!$C$1) ->  | S66: EVT | T66: 66313-566 | U66: 66313 | V66: Tekuće donacije od trgovačkih društava | W66: 566 | X66: Modernizacijski fond - predfinanciranje iz izvora 11 Opći prihodi i primici | Y66: 663 | Z66: 66 | AA66: 566
A67: =IF(F67="","",VLOOKUP('OPĆI DIO'!$C$1,'OPĆI DIO'!$N$4:$W$137,10,FALSE)) ->  | B67: =IF(F67="","",VLOOKUP('OPĆI DIO'!$C$1,'OPĆI DIO'!$N$4:$W$137,9,FALSE)) ->  | M67: =IF(F67="","",'OPĆI DIO'!$C$1) ->  | S67: EVT | T67: 66313-567 | U67: 66313 | V67: Tekuće donacije od trgovačkih društava | W67: 567 | X67: Socijalni fond za klimatsku politiku - predfinanciranje iz izvora 11 Opći prihodi i primici | Y67: 663 | Z67: 66 | AA67: 567
A68: =IF(F68="","",VLOOKUP('OPĆI DIO'!$C$1,'OPĆI DIO'!$N$4:$W$137,10,FALSE)) ->  | B68: =IF(F68="","",VLOOKUP('OPĆI DIO'!$C$1,'OPĆI DIO'!$N$4:$W$137,9,FALSE)) ->  | C68: =IFERROR(VLOOKUP(G68,$T$6:$AA$500,8,FALSE),"") ->  | D68: =IFERROR(VLOOKUP(G68,$T$6:$AA$500,4,FALSE),"") ->  | E68: =IFERROR(VLOOKUP(G68,$T$6:$AA$500,5,FALSE),"") ->  | F68: =IFERROR(VLOOKUP(G68,$T$6:$AA$500,2,FALSE),"") ->  | H68: =IFERROR(VLOOKUP(G68,$T$6:$AA$500,3,FALSE),"") ->  | M68: =IF(F68="","",'OPĆI DIO'!$C$1) ->  | N68: =LEFT(F68,2) ->  | O68: =LEFT(F68,3) ->  | S68: EVT | T68: 66313-575 | U68: 66313 | V68: Tekuće donacije od trgovačkih društava | W68: 575 | X68: Fond za azil, migracije i integraciju - predfinanciranje iz izvora 11 Opći prihodi i primici | Y68: 663 | Z68: 66 | AA68: 575
M69: =IF(F69="","",'OPĆI DIO'!$C$1) ->  | T69: 66313-577 | U69: 66313 | V69: Tekuće donacije od trgovačkih društava | W69: 577 | X69: Fond za pravednu tranziciju - predfinanciranje iz izvora 11 Opći prihodi i primici | Y69: 663 | Z69: 66 | AA69: 577
A70: =IF(F70="","",VLOOKUP('OPĆI DIO'!$C$1,'OPĆI DIO'!$N$4:$W$137,10,FALSE)) ->  | B70: =IF(F70="","",VLOOKUP('OPĆI DIO'!$C$1,'OPĆI DIO'!$N$4:$W$137,9,FALSE)) ->  | M70: =IF(F70="","",'OPĆI DIO'!$C$1) ->  | S70: EVT | T70: 66313-578 | U70: 66313 | V70: Tekuće donacije od trgovačkih društava | W70: 578 | X70: Fond za unutarnju sigurnost - predfinanciranje iz izvora 11 Opći prihodi i primici | Y70: 663 | Z70: 66 | AA70: 578
T71: 66313-579 | U71: 66313 | V71: Tekuće donacije od trgovačkih društava | W71: 579 | X71: Fond za integrirano upravljanje granicama - predfinanciranje iz izvora 11 Opći prihodi i primici | Y71: 663 | Z71: 66 | AA71: 579
T72: 66313-581 | U72: 66313 | V72: Tekuće donacije od trgovačkih društava | W72: 581 | X72: Mehanizam za oporavak i otpornost – bespovratna sredstva – raspoloživ predujam ili unaprijed naplaćen prihod | Y72: 663 | Z72: 66 | AA72: 581
T73: 66313-61 | U73: 66313 | V73: Tekuće donacije od trgovačkih društava | W73: 61 | X73: Donacije | Y73: 663 | Z73: 66 | AA73: 61
T74: 66314-561 | U74: 66314 | V74: Tekuće donacije od ostalih subjekata izvan općeg proračuna | W74: 561 | X74: Europski socijalni fond plus – predfinanciranje iz izvora 11 Opći prihodi i primici | Y74: 663 | Z74: 66 | AA74: 561
A75: =IF(F75="","",VLOOKUP('OPĆI DIO'!$C$1,'OPĆI DIO'!$N$4:$W$137,10,FALSE)) ->  | B75: =IF(F75="","",VLOOKUP('OPĆI DIO'!$C$1,'OPĆI DIO'!$N$4:$W$137,9,FALSE)) ->  | E75: =IFERROR(VLOOKUP(F75,$U$6:$X$113,4,FALSE),"") ->  | M75: =IF(F75="","",'OPĆI DIO'!$C$1) ->  | S75: EVT | T75: 66314-562 | U75: 66314 | V75: Tekuće donacije od ostalih subjekata izvan općeg proračuna | W75: 562 | X75: Kohezijski fond - predfinanciranje iz izvora 11 Opći prihodi i primici | Y75: 663 | Z75: 66 | AA75: 562
A76: =IF(F76="","",VLOOKUP('OPĆI DIO'!$C$1,'OPĆI DIO'!$N$4:$W$137,10,FALSE)) ->  | B76: =IF(F76="","",VLOOKUP('OPĆI DIO'!$C$1,'OPĆI DIO'!$N$4:$W$137,9,FALSE)) ->  | M76: =IF(F76="","",'OPĆI DIO'!$C$1) ->  | S76: EVT | T76: 66314-563 | U76: 66314 | V76: Tekuće donacije od ostalih subjekata izvan općeg proračuna | W76: 563 | X76: Europski fond za regionalni razvoj - predfinanciranje iz izvora 11 Opći prihodi i primici | Y76: 663 | Z76: 66 | AA76: 563
A77: =IF(F77="","",VLOOKUP('OPĆI DIO'!$C$1,'OPĆI DIO'!$N$4:$W$137,10,FALSE)) ->  | B77: =IF(F77="","",VLOOKUP('OPĆI DIO'!$C$1,'OPĆI DIO'!$N$4:$W$137,9,FALSE)) ->  | M77: =IF(F77="","",'OPĆI DIO'!$C$1) ->  | S77: EVT | T77: 66314-564 | U77: 66314 | V77: Tekuće donacije od ostalih subjekata izvan općeg proračuna | W77: 564 | X77: Fond za pomorstvo, ribarstvo i akvakulturu - predfinanciranje iz izvora 11 Opći prihodi i primici | Y77: 663 | Z77: 66 | AA77: 564
A78: =IF(F78="","",VLOOKUP('OPĆI DIO'!$C$1,'OPĆI DIO'!$N$4:$W$137,10,FALSE)) ->  | B78: =IF(F78="","",VLOOKUP('OPĆI DIO'!$C$1,'OPĆI DIO'!$N$4:$W$137,9,FALSE)) ->  | M78: =IF(F78="","",'OPĆI DIO'!$C$1) ->  | S78: EVT | T78: 66314-565 | U78: 66314 | V78: Tekuće donacije od ostalih subjekata izvan općeg proračuna | W78: 565 | X78: Europski poljoprivredni fond za ruralni razvoj - predfinanciranje iz izvora 11 Opći prihodi i primici | Y78: 663 | Z78: 66 | AA78: 565
A79: =IF(F79="","",VLOOKUP('OPĆI DIO'!$C$1,'OPĆI DIO'!$N$4:$W$137,10,FALSE)) ->  | B79: =IF(F79="","",VLOOKUP('OPĆI DIO'!$C$1,'OPĆI DIO'!$N$4:$W$137,9,FALSE)) ->  | M79: =IF(F79="","",'OPĆI DIO'!$C$1) ->  | S79: EVT | T79: 66314-566 | U79: 66314 | V79: Tekuće donacije od ostalih subjekata izvan općeg proračuna | W79: 566 | X79: Modernizacijski fond - predfinanciranje iz izvora 11 Opći prihodi i primici | Y79: 663 | Z79: 66 | AA79: 566
A80: =IF(F80="","",VLOOKUP('OPĆI DIO'!$C$1,'OPĆI DIO'!$N$4:$W$137,10,FALSE)) ->  | B80: =IF(F80="","",VLOOKUP('OPĆI DIO'!$C$1,'OPĆI DIO'!$N$4:$W$137,9,FALSE)) ->  | M80: =IF(F80="","",'OPĆI DIO'!$C$1) ->  | S80: EVT | T80: 66314-567 | U80: 66314 | V80: Tekuće donacije od ostalih subjekata izvan općeg proračuna | W80: 567 | X80: Socijalni fond za klimatsku politiku - predfinanciranje iz izvora 11 Opći prihodi i primici | Y80: 663 | Z80: 66 | AA80: 567
A81: =IF(F81="","",VLOOKUP('OPĆI DIO'!$C$1,'OPĆI DIO'!$N$4:$W$137,10,FALSE)) ->  | B81: =IF(F81="","",VLOOKUP('OPĆI DIO'!$C$1,'OPĆI DIO'!$N$4:$W$137,9,FALSE)) ->  | M81: =IF(F81="","",'OPĆI DIO'!$C$1) ->  | S81: EVT | T81: 66314-575 | U81: 66314 | V81: Tekuće donacije od ostalih subjekata izvan općeg proračuna | W81: 575 | X81: Fond za azil, migracije i integraciju - predfinanciranje iz izvora 11 Opći prihodi i primici | Y81: 663 | Z81: 66 | AA81: 575
A82: =IF(F82="","",VLOOKUP('OPĆI DIO'!$C$1,'OPĆI DIO'!$N$4:$W$137,10,FALSE)) ->  | B82: =IF(F82="","",VLOOKUP('OPĆI DIO'!$C$1,'OPĆI DIO'!$N$4:$W$137,9,FALSE)) ->  | M82: =IF(F82="","",'OPĆI DIO'!$C$1) ->  | S82: EVT | T82: 66314-577 | U82: 66314 | V82: Tekuće donacije od ostalih subjekata izvan općeg proračuna | W82: 577 | X82: Fond za pravednu tranziciju - predfinanciranje iz izvora 11 Opći prihodi i primici | Y82: 663 | Z82: 66 | AA82: 577
A83: =IF(F83="","",VLOOKUP('OPĆI DIO'!$C$1,'OPĆI DIO'!$N$4:$W$137,10,FALSE)) ->  | B83: =IF(F83="","",VLOOKUP('OPĆI DIO'!$C$1,'OPĆI DIO'!$N$4:$W$137,9,FALSE)) ->  | M83: =IF(F83="","",'OPĆI DIO'!$C$1) ->  | S83: EVT | T83: 66314-578 | U83: 66314 | V83: Tekuće donacije od ostalih subjekata izvan općeg proračuna | W83: 578 | X83: Fond za unutarnju sigurnost - predfinanciranje iz izvora 11 Opći prihodi i primici | Y83: 663 | Z83: 66 | AA83: 578
A84: =IF(F84="","",VLOOKUP('OPĆI DIO'!$C$1,'OPĆI DIO'!$N$4:$W$137,10,FALSE)) ->  | B84: =IF(F84="","",VLOOKUP('OPĆI DIO'!$C$1,'OPĆI DIO'!$N$4:$W$137,9,FALSE)) ->  | M84: =IF(F84="","",'OPĆI DIO'!$C$1) ->  | S84: EVT | T84: 66314-579 | U84: 66314 | V84: Tekuće donacije od ostalih subjekata izvan općeg proračuna | W84: 579 | X84: Fond za integrirano upravljanje granicama - predfinanciranje iz izvora 11 Opći prihodi i primici | Y84: 663 | Z84: 66 | AA84: 579
A85: =IF(F85="","",VLOOKUP('OPĆI DIO'!$C$1,'OPĆI DIO'!$N$4:$W$137,10,FALSE)) ->  | B85: =IF(F85="","",VLOOKUP('OPĆI DIO'!$C$1,'OPĆI DIO'!$N$4:$W$137,9,FALSE)) ->  | M85: =IF(F85="","",'OPĆI DIO'!$C$1) ->  | S85: EVT | T85: 66314-581 | U85: 66314 | V85: Tekuće donacije od ostalih subjekata izvan općeg proračuna | W85: 581 | X85: Mehanizam za oporavak i otpornost – bespovratna sredstva – raspoloživ predujam ili unaprijed naplaćen prihod | Y85: 663 | Z85: 66 | AA85: 581
A86: =IF(F86="","",VLOOKUP('OPĆI DIO'!$C$1,'OPĆI DIO'!$N$4:$W$137,10,FALSE)) ->  | B86: =IF(F86="","",VLOOKUP('OPĆI DIO'!$C$1,'OPĆI DIO'!$N$4:$W$137,9,FALSE)) ->  | M86: =IF(F86="","",'OPĆI DIO'!$C$1) ->  | T86: 66314-61 | U86: 66314 | V86: Tekuće donacije od ostalih subjekata izvan općeg proračuna | W86: 61 | X86: Donacije | Y86: 663 | Z86: 66 | AA86: 61
A87: =IF(F87="","",VLOOKUP('OPĆI DIO'!$C$1,'OPĆI DIO'!$N$4:$W$137,10,FALSE)) ->  | B87: =IF(F87="","",VLOOKUP('OPĆI DIO'!$C$1,'OPĆI DIO'!$N$4:$W$137,9,FALSE)) ->  | M87: =IF(F87="","",'OPĆI DIO'!$C$1) ->  | S87: EVT | T87: 66321-61 | U87: 66321 | V87: Kapitalne donacije od fizičkih osoba | W87: 61 | X87: Donacije | Y87: 663 | Z87: 66 | AA87: 61
A88: =IF(F88="","",VLOOKUP('OPĆI DIO'!$C$1,'OPĆI DIO'!$N$4:$W$137,10,FALSE)) ->  | B88: =IF(F88="","",VLOOKUP('OPĆI DIO'!$C$1,'OPĆI DIO'!$N$4:$W$137,9,FALSE)) ->  | M88: =IF(F88="","",'OPĆI DIO'!$C$1) ->  | S88: EVT | T88: 66322-561 | U88: 66322 | V88: Kapitalne donacije od neprofitnih organizacija | W88: 561 | X88: Europski socijalni fond plus – predfinanciranje iz izvora 11 Opći prihodi i primici | Y88: 663 | Z88: 66 | AA88: 561
A89: =IF(F89="","",VLOOKUP('OPĆI DIO'!$C$1,'OPĆI DIO'!$N$4:$W$137,10,FALSE)) ->  | B89: =IF(F89="","",VLOOKUP('OPĆI DIO'!$C$1,'OPĆI DIO'!$N$4:$W$137,9,FALSE)) ->  | M89: =IF(F89="","",'OPĆI DIO'!$C$1) ->  | S89: EVT | T89: 66322-562 | U89: 66322 | V89: Kapitalne donacije od neprofitnih organizacija | W89: 562 | X89: Kohezijski fond - predfinanciranje iz izvora 11 Opći prihodi i primici | Y89: 663 | Z89: 66 | AA89: 562
A90: =IF(F90="","",VLOOKUP('OPĆI DIO'!$C$1,'OPĆI DIO'!$N$4:$W$137,10,FALSE)) ->  | B90: =IF(F90="","",VLOOKUP('OPĆI DIO'!$C$1,'OPĆI DIO'!$N$4:$W$137,9,FALSE)) ->  | M90: =IF(F90="","",'OPĆI DIO'!$C$1) ->  | S90: EVT | T90: 66322-563 | U90: 66322 | V90: Kapitalne donacije od neprofitnih organizacija | W90: 563 | X90: Europski fond za regionalni razvoj - predfinanciranje iz izvora 11 Opći prihodi i primici | Y90: 663 | Z90: 66 | AA90: 563
A91: =IF(F91="","",VLOOKUP('OPĆI DIO'!$C$1,'OPĆI DIO'!$N$4:$W$137,10,FALSE)) ->  | B91: =IF(F91="","",VLOOKUP('OPĆI DIO'!$C$1,'OPĆI DIO'!$N$4:$W$137,9,FALSE)) ->  | M91: =IF(F91="","",'OPĆI DIO'!$C$1) ->  | T91: 66322-564 | U91: 66322 | V91: Kapitalne donacije od neprofitnih organizacija | W91: 564 | X91: Fond za pomorstvo, ribarstvo i akvakulturu - predfinanciranje iz izvora 11 Opći prihodi i primici | Y91: 663 | Z91: 66 | AA91: 564
A92: =IF(F92="","",VLOOKUP('OPĆI DIO'!$C$1,'OPĆI DIO'!$N$4:$W$137,10,FALSE)) ->  | B92: =IF(F92="","",VLOOKUP('OPĆI DIO'!$C$1,'OPĆI DIO'!$N$4:$W$137,9,FALSE)) ->  | M92: =IF(F92="","",'OPĆI DIO'!$C$1) ->  | T92: =U92&"-"&W92 -> 66322-565 | U92: 66322 | V92: Kapitalne donacije od neprofitnih organizacija | W92: 565 | X92: Europski poljoprivredni fond za ruralni razvoj - predfinanciranje iz izvora 11 Opći prihodi i primici | Y92: 663 | Z92: 66 | AA92: 565
A93: =IF(F93="","",VLOOKUP('OPĆI DIO'!$C$1,'OPĆI DIO'!$N$4:$W$137,10,FALSE)) ->  | B93: =IF(F93="","",VLOOKUP('OPĆI DIO'!$C$1,'OPĆI DIO'!$N$4:$W$137,9,FALSE)) ->  | M93: =IF(F93="","",'OPĆI DIO'!$C$1) ->  | T93: 66322-566 | U93: 66322 | V93: Kapitalne donacije od neprofitnih organizacija | W93: 566 | X93: Modernizacijski fond - predfinanciranje iz izvora 11 Opći prihodi i primici | Y93: 663 | Z93: 66 | AA93: 566
A94: =IF(F94="","",VLOOKUP('OPĆI DIO'!$C$1,'OPĆI DIO'!$N$4:$W$137,10,FALSE)) ->  | B94: =IF(F94="","",VLOOKUP('OPĆI DIO'!$C$1,'OPĆI DIO'!$N$4:$W$137,9,FALSE)) ->  | M94: =IF(F94="","",'OPĆI DIO'!$C$1) ->  | T94: 66322-567 | U94: 66322 | V94: Kapitalne donacije od neprofitnih organizacija | W94: 567 | X94: Socijalni fond za klimatsku politiku - predfinanciranje iz izvora 11 Opći prihodi i primici | Y94: 663 | Z94: 66 | AA94: 567
A95: =IF(F95="","",VLOOKUP('OPĆI DIO'!$C$1,'OPĆI DIO'!$N$4:$W$137,10,FALSE)) ->  | B95: =IF(F95="","",VLOOKUP('OPĆI DIO'!$C$1,'OPĆI DIO'!$N$4:$W$137,9,FALSE)) ->  | M95: =IF(F95="","",'OPĆI DIO'!$C$1) ->  | T95: 66322-575 | U95: 66322 | V95: Kapitalne donacije od neprofitnih organizacija | W95: 575 | X95: Fond za azil, migracije i integraciju - predfinanciranje iz izvora 11 Opći prihodi i primici | Y95: 663 | Z95: 66 | AA95: 575
A96: =IF(F96="","",VLOOKUP('OPĆI DIO'!$C$1,'OPĆI DIO'!$N$4:$W$137,10,FALSE)) ->  | B96: =IF(F96="","",VLOOKUP('OPĆI DIO'!$C$1,'OPĆI DIO'!$N$4:$W$137,9,FALSE)) ->  | M96: =IF(F96="","",'OPĆI DIO'!$C$1) ->  | T96: 66322-577 | U96: 66322 | V96: Kapitalne donacije od neprofitnih organizacija | W96: 577 | X96: Fond za pravednu tranziciju - predfinanciranje iz izvora 11 Opći prihodi i primici | Y96: 663 | Z96: 66 | AA96: 577
A97: =IF(F97="","",VLOOKUP('OPĆI DIO'!$C$1,'OPĆI DIO'!$N$4:$W$137,10,FALSE)) ->  | B97: =IF(F97="","",VLOOKUP('OPĆI DIO'!$C$1,'OPĆI DIO'!$N$4:$W$137,9,FALSE)) ->  | M97: =IF(F97="","",'OPĆI DIO'!$C$1) ->  | T97: 66322-578 | U97: 66322 | V97: Kapitalne donacije od neprofitnih organizacija | W97: 578 | X97: Fond za unutarnju sigurnost - predfinanciranje iz izvora 11 Opći prihodi i primici | Y97: 663 | Z97: 66 | AA97: 578
A98: =IF(F98="","",VLOOKUP('OPĆI DIO'!$C$1,'OPĆI DIO'!$N$4:$W$137,10,FALSE)) ->  | B98: =IF(F98="","",VLOOKUP('OPĆI DIO'!$C$1,'OPĆI DIO'!$N$4:$W$137,9,FALSE)) ->  | M98: =IF(F98="","",'OPĆI DIO'!$C$1) ->  | T98: 66322-579 | U98: 66322 | V98: Kapitalne donacije od neprofitnih organizacija | W98: 579 | X98: Fond za integrirano upravljanje granicama - predfinanciranje iz izvora 11 Opći prihodi i primici | Y98: 663 | Z98: 66 | AA98: 579
A99: =IF(F99="","",VLOOKUP('OPĆI DIO'!$C$1,'OPĆI DIO'!$N$4:$W$137,10,FALSE)) ->  | B99: =IF(F99="","",VLOOKUP('OPĆI DIO'!$C$1,'OPĆI DIO'!$N$4:$W$137,9,FALSE)) ->  | M99: =IF(F99="","",'OPĆI DIO'!$C$1) ->  | T99: 66322-581 | U99: 66322 | V99: Kapitalne donacije od neprofitnih organizacija | W99: 581 | X99: Mehanizam za oporavak i otpornost – bespovratna sredstva – raspoloživ predujam ili unaprijed naplaćen prihod | Y99: 663 | Z99: 66 | AA99: 581
A100: =IF(F100="","",VLOOKUP('OPĆI DIO'!$C$1,'OPĆI DIO'!$N$4:$W$137,10,FALSE)) ->  | B100: =IF(F100="","",VLOOKUP('OPĆI DIO'!$C$1,'OPĆI DIO'!$N$4:$W$137,9,FALSE)) ->  | M100: =IF(F100="","",'OPĆI DIO'!$C$1) ->  | T100: 66322-61 | U100: 66322 | V100: Kapitalne donacije od neprofitnih organizacija | W100: 61 | X100: Donacije | Y100: 663 | Z100: 66 | AA100: 61
A101: =IF(F101="","",VLOOKUP('OPĆI DIO'!$C$1,'OPĆI DIO'!$N$4:$W$137,10,FALSE)) ->  | B101: =IF(F101="","",VLOOKUP('OPĆI DIO'!$C$1,'OPĆI DIO'!$N$4:$W$137,9,FALSE)) ->  | M101: =IF(F101="","",'OPĆI DIO'!$C$1) ->  | T101: 66323-561 | U101: 66323 | V101: Kapitalne donacije od trgovačkih društava | W101: 561 | X101: Europski socijalni fond plus – predfinanciranje iz izvora 11 Opći prihodi i primici | Y101: 663 | Z101: 66 | AA101: 561
A102: =IF(F102="","",VLOOKUP('OPĆI DIO'!$C$1,'OPĆI DIO'!$N$4:$W$137,10,FALSE)) ->  | B102: =IF(F102="","",VLOOKUP('OPĆI DIO'!$C$1,'OPĆI DIO'!$N$4:$W$137,9,FALSE)) ->  | M102: =IF(F102="","",'OPĆI DIO'!$C$1) ->  | T102: 66323-562 | U102: 66323 | V102: Kapitalne donacije od trgovačkih društava | W102: 562 | X102: Kohezijski fond - predfinanciranje iz izvora 11 Opći prihodi i primici | Y102: 663 | Z102: 66 | AA102: 562
A103: =IF(F103="","",VLOOKUP('OPĆI DIO'!$C$1,'OPĆI DIO'!$N$4:$W$137,10,FALSE)) ->  | B103: =IF(F103="","",VLOOKUP('OPĆI DIO'!$C$1,'OPĆI DIO'!$N$4:$W$137,9,FALSE)) ->  | M103: =IF(F103="","",'OPĆI DIO'!$C$1) ->  | T103: 66323-563 | U103: 66323 | V103: Kapitalne donacije od trgovačkih društava | W103: 563 | X103: Europski fond za regionalni razvoj - predfinanciranje iz izvora 11 Opći prihodi i primici | Y103: 663 | Z103: 66 | AA103: 563
A104: =IF(F104="","",VLOOKUP('OPĆI DIO'!$C$1,'OPĆI DIO'!$N$4:$W$137,10,FALSE)) ->  | B104: =IF(F104="","",VLOOKUP('OPĆI DIO'!$C$1,'OPĆI DIO'!$N$4:$W$137,9,FALSE)) ->  | M104: =IF(F104="","",'OPĆI DIO'!$C$1) ->  | T104: 66323-564 | U104: 66323 | V104: Kapitalne donacije od trgovačkih društava | W104: 564 | X104: Fond za pomorstvo, ribarstvo i akvakulturu - predfinanciranje iz izvora 11 Opći prihodi i primici | Y104: 663 | Z104: 66 | AA104: 564
A105: =IF(F105="","",VLOOKUP('OPĆI DIO'!$C$1,'OPĆI DIO'!$N$4:$W$137,10,FALSE)) ->  | B105: =IF(F105="","",VLOOKUP('OPĆI DIO'!$C$1,'OPĆI DIO'!$N$4:$W$137,9,FALSE)) ->  | M105: =IF(F105="","",'OPĆI DIO'!$C$1) ->  | T105: 66323-565 | U105: 66323 | V105: Kapitalne donacije od trgovačkih društava | W105: 565 | X105: Europski poljoprivredni fond za ruralni razvoj - predfinanciranje iz izvora 11 Opći prihodi i primici | Y105: 663 | Z105: 66 | AA105: 565
A106: =IF(F106="","",VLOOKUP('OPĆI DIO'!$C$1,'OPĆI DIO'!$N$4:$W$137,10,FALSE)) ->  | B106: =IF(F106="","",VLOOKUP('OPĆI DIO'!$C$1,'OPĆI DIO'!$N$4:$W$137,9,FALSE)) ->  | M106: =IF(F106="","",'OPĆI DIO'!$C$1) ->  | T106: 66323-566 | U106: 66323 | V106: Kapitalne donacije od trgovačkih društava | W106: 566 | X106: Modernizacijski fond - predfinanciranje iz izvora 11 Opći prihodi i primici | Y106: 663 | Z106: 66 | AA106: 566
A107: =IF(F107="","",VLOOKUP('OPĆI DIO'!$C$1,'OPĆI DIO'!$N$4:$W$137,10,FALSE)) ->  | B107: =IF(F107="","",VLOOKUP('OPĆI DIO'!$C$1,'OPĆI DIO'!$N$4:$W$137,9,FALSE)) ->  | M107: =IF(F107="","",'OPĆI DIO'!$C$1) ->  | T107: 66323-567 | U107: 66323 | V107: Kapitalne donacije od trgovačkih društava | W107: 567 | X107: Socijalni fond za klimatsku politiku - predfinanciranje iz izvora 11 Opći prihodi i primici | Y107: 663 | Z107: 66 | AA107: 567
A108: =IF(F108="","",VLOOKUP('OPĆI DIO'!$C$1,'OPĆI DIO'!$N$4:$W$137,10,FALSE)) ->  | B108: =IF(F108="","",VLOOKUP('OPĆI DIO'!$C$1,'OPĆI DIO'!$N$4:$W$137,9,FALSE)) ->  | M108: =IF(F108="","",'OPĆI DIO'!$C$1) ->  | T108: 66323-575 | U108: 66323 | V108: Kapitalne donacije od trgovačkih društava | W108: 575 | X108: Fond za azil, migracije i integraciju - predfinanciranje iz izvora 11 Opći prihodi i primici | Y108: 663 | Z108: 66 | AA108: 575
A109: =IF(F109="","",VLOOKUP('OPĆI DIO'!$C$1,'OPĆI DIO'!$N$4:$W$137,10,FALSE)) ->  | B109: =IF(F109="","",VLOOKUP('OPĆI DIO'!$C$1,'OPĆI DIO'!$N$4:$W$137,9,FALSE)) ->  | M109: =IF(F109="","",'OPĆI DIO'!$C$1) ->  | T109: 66323-577 | U109: 66323 | V109: Kapitalne donacije od trgovačkih društava | W109: 577 | X109: Fond za pravednu tranziciju - predfinanciranje iz izvora 11 Opći prihodi i primici | Y109: 663 | Z109: 66 | AA109: 577
A110: =IF(F110="","",VLOOKUP('OPĆI DIO'!$C$1,'OPĆI DIO'!$N$4:$W$137,10,FALSE)) ->  | B110: =IF(F110="","",VLOOKUP('OPĆI DIO'!$C$1,'OPĆI DIO'!$N$4:$W$137,9,FALSE)) ->  | M110: =IF(F110="","",'OPĆI DIO'!$C$1) ->  | T110: 66323-578 | U110: 66323 | V110: Kapitalne donacije od trgovačkih društava | W110: 578 | X110: Fond za unutarnju sigurnost - predfinanciranje iz izvora 11 Opći prihodi i primici | Y110: 663 | Z110: 66 | AA110: 578
A111: =IF(F111="","",VLOOKUP('OPĆI DIO'!$C$1,'OPĆI DIO'!$N$4:$W$137,10,FALSE)) ->  | B111: =IF(F111="","",VLOOKUP('OPĆI DIO'!$C$1,'OPĆI DIO'!$N$4:$W$137,9,FALSE)) ->  | M111: =IF(F111="","",'OPĆI DIO'!$C$1) ->  | T111: 66323-579 | U111: 66323 | V111: Kapitalne donacije od trgovačkih društava | W111: 579 | X111: Fond za integrirano upravljanje granicama - predfinanciranje iz izvora 11 Opći prihodi i primici | Y111: 663 | Z111: 66 | AA111: 579
A112: =IF(F112="","",VLOOKUP('OPĆI DIO'!$C$1,'OPĆI DIO'!$N$4:$W$137,10,FALSE)) ->  | B112: =IF(F112="","",VLOOKUP('OPĆI DIO'!$C$1,'OPĆI DIO'!$N$4:$W$137,9,FALSE)) ->  | M112: =IF(F112="","",'OPĆI DIO'!$C$1) ->  | T112: 66323-581 | U112: 66323 | V112: Kapitalne donacije od trgovačkih društava | W112: 581 | X112: Mehanizam za oporavak i otpornost – bespovratna sredstva – raspoloživ predujam ili unaprijed naplaćen prihod | Y112: 663 | Z112: 66 | AA112: 581
A113: =IF(F113="","",VLOOKUP('OPĆI DIO'!$C$1,'OPĆI DIO'!$N$4:$W$137,10,FALSE)) ->  | B113: =IF(F113="","",VLOOKUP('OPĆI DIO'!$C$1,'OPĆI DIO'!$N$4:$W$137,9,FALSE)) ->  | M113: =IF(F113="","",'OPĆI DIO'!$C$1) ->  | T113: 66323-61 | U113: 66323 | V113: Kapitalne donacije od trgovačkih društava | W113: 61 | X113: Donacije | Y113: 663 | Z113: 66 | AA113: 61
A114: =IF(F114="","",VLOOKUP('OPĆI DIO'!$C$1,'OPĆI DIO'!$N$4:$W$137,10,FALSE)) ->  | B114: =IF(F114="","",VLOOKUP('OPĆI DIO'!$C$1,'OPĆI DIO'!$N$4:$W$137,9,FALSE)) ->  | M114: =IF(F114="","",'OPĆI DIO'!$C$1) ->  | T114: 66324-561 | U114: 66324 | V114: Kapitalne donacije od ostalih subjekata izvan općeg proračuna | W114: 561 | X114: Europski socijalni fond plus – predfinanciranje iz izvora 11 Opći prihodi i primici | Y114: 663 | Z114: 66 | AA114: 561
A115: =IF(F115="","",VLOOKUP('OPĆI DIO'!$C$1,'OPĆI DIO'!$N$4:$W$137,10,FALSE)) ->  | B115: =IF(F115="","",VLOOKUP('OPĆI DIO'!$C$1,'OPĆI DIO'!$N$4:$W$137,9,FALSE)) ->  | M115: =IF(F115="","",'OPĆI DIO'!$C$1) ->  | T115: 66324-562 | U115: 66324 | V115: Kapitalne donacije od ostalih subjekata izvan općeg proračuna | W115: 562 | X115: Kohezijski fond - predfinanciranje iz izvora 11 Opći prihodi i primici | Y115: 663 | Z115: 66 | AA115: 562
A116: =IF(F116="","",VLOOKUP('OPĆI DIO'!$C$1,'OPĆI DIO'!$N$4:$W$137,10,FALSE)) ->  | B116: =IF(F116="","",VLOOKUP('OPĆI DIO'!$C$1,'OPĆI DIO'!$N$4:$W$137,9,FALSE)) ->  | M116: =IF(F116="","",'OPĆI DIO'!$C$1) ->  | T116: 66324-563 | U116: 66324 | V116: Kapitalne donacije od ostalih subjekata izvan općeg proračuna | W116: 563 | X116: Europski fond za regionalni razvoj - predfinanciranje iz izvora 11 Opći prihodi i primici | Y116: 663 | Z116: 66 | AA116: 563
A117: =IF(F117="","",VLOOKUP('OPĆI DIO'!$C$1,'OPĆI DIO'!$N$4:$W$137,10,FALSE)) ->  | B117: =IF(F117="","",VLOOKUP('OPĆI DIO'!$C$1,'OPĆI DIO'!$N$4:$W$137,9,FALSE)) ->  | M117: =IF(F117="","",'OPĆI DIO'!$C$1) ->  | T117: 66324-564 | U117: 66324 | V117: Kapitalne donacije od ostalih subjekata izvan općeg proračuna | W117: 564 | X117: Fond za pomorstvo, ribarstvo i akvakulturu - predfinanciranje iz izvora 11 Opći prihodi i primici | Y117: 663 | Z117: 66 | AA117: 564
A118: =IF(F118="","",VLOOKUP('OPĆI DIO'!$C$1,'OPĆI DIO'!$N$4:$W$137,10,FALSE)) ->  | B118: =IF(F118="","",VLOOKUP('OPĆI DIO'!$C$1,'OPĆI DIO'!$N$4:$W$137,9,FALSE)) ->  | M118: =IF(F118="","",'OPĆI DIO'!$C$1) ->  | T118: 66324-565 | U118: 66324 | V118: Kapitalne donacije od ostalih subjekata izvan općeg proračuna | W118: 565 | X118: Europski poljoprivredni fond za ruralni razvoj - predfinanciranje iz izvora 11 Opći prihodi i primici | Y118: 663 | Z118: 66 | AA118: 565
A119: =IF(F119="","",VLOOKUP('OPĆI DIO'!$C$1,'OPĆI DIO'!$N$4:$W$137,10,FALSE)) ->  | B119: =IF(F119="","",VLOOKUP('OPĆI DIO'!$C$1,'OPĆI DIO'!$N$4:$W$137,9,FALSE)) ->  | M119: =IF(F119="","",'OPĆI DIO'!$C$1) ->  | T119: 66324-566 | U119: 66324 | V119: Kapitalne donacije od ostalih subjekata izvan općeg proračuna | W119: 566 | X119: Modernizacijski fond - predfinanciranje iz izvora 11 Opći prihodi i primici | Y119: 663 | Z119: 66 | AA119: 566
A120: =IF(F120="","",VLOOKUP('OPĆI DIO'!$C$1,'OPĆI DIO'!$N$4:$W$137,10,FALSE)) ->  | B120: =IF(F120="","",VLOOKUP('OPĆI DIO'!$C$1,'OPĆI DIO'!$N$4:$W$137,9,FALSE)) ->  | M120: =IF(F120="","",'OPĆI DIO'!$C$1) ->  | T120: 66324-567 | U120: 66324 | V120: Kapitalne donacije od ostalih subjekata izvan općeg proračuna | W120: 567 | X120: Socijalni fond za klimatsku politiku - predfinanciranje iz izvora 11 Opći prihodi i primici | Y120: 663 | Z120: 66 | AA120: 567
A121: =IF(F121="","",VLOOKUP('OPĆI DIO'!$C$1,'OPĆI DIO'!$N$4:$W$137,10,FALSE)) ->  | B121: =IF(F121="","",VLOOKUP('OPĆI DIO'!$C$1,'OPĆI DIO'!$N$4:$W$137,9,FALSE)) ->  | M121: =IF(F121="","",'OPĆI DIO'!$C$1) ->  | T121: 66324-575 | U121: 66324 | V121: Kapitalne donacije od ostalih subjekata izvan općeg proračuna | W121: 575 | X121: Fond za azil, migracije i integraciju - predfinanciranje iz izvora 11 Opći prihodi i primici | Y121: 663 | Z121: 66 | AA121: 575
A122: =IF(F122="","",VLOOKUP('OPĆI DIO'!$C$1,'OPĆI DIO'!$N$4:$W$137,10,FALSE)) ->  | B122: =IF(F122="","",VLOOKUP('OPĆI DIO'!$C$1,'OPĆI DIO'!$N$4:$W$137,9,FALSE)) ->  | M122: =IF(F122="","",'OPĆI DIO'!$C$1) ->  | T122: 66324-577 | U122: 66324 | V122: Kapitalne donacije od ostalih subjekata izvan općeg proračuna | W122: 577 | X122: Fond za pravednu tranziciju - predfinanciranje iz izvora 11 Opći prihodi i primici | Y122: 663 | Z122: 66 | AA122: 577
A123: =IF(F123="","",VLOOKUP('OPĆI DIO'!$C$1,'OPĆI DIO'!$N$4:$W$137,10,FALSE)) ->  | B123: =IF(F123="","",VLOOKUP('OPĆI DIO'!$C$1,'OPĆI DIO'!$N$4:$W$137,9,FALSE)) ->  | M123: =IF(F123="","",'OPĆI DIO'!$C$1) ->  | T123: 66324-578 | U123: 66324 | V123: Kapitalne donacije od ostalih subjekata izvan općeg proračuna | W123: 578 | X123: Fond za unutarnju sigurnost - predfinanciranje iz izvora 11 Opći prihodi i primici | Y123: 663 | Z123: 66 | AA123: 578
A124: =IF(F124="","",VLOOKUP('OPĆI DIO'!$C$1,'OPĆI DIO'!$N$4:$W$137,10,FALSE)) ->  | B124: =IF(F124="","",VLOOKUP('OPĆI DIO'!$C$1,'OPĆI DIO'!$N$4:$W$137,9,FALSE)) ->  | M124: =IF(F124="","",'OPĆI DIO'!$C$1) ->  | T124: 66324-579 | U124: 66324 | V124: Kapitalne donacije od ostalih subjekata izvan općeg proračuna | W124: 579 | X124: Fond za integrirano upravljanje granicama - predfinanciranje iz izvora 11 Opći prihodi i primici | Y124: 663 | Z124: 66 | AA124: 579
A125: =IF(F125="","",VLOOKUP('OPĆI DIO'!$C$1,'OPĆI DIO'!$N$4:$W$137,10,FALSE)) ->  | B125: =IF(F125="","",VLOOKUP('OPĆI DIO'!$C$1,'OPĆI DIO'!$N$4:$W$137,9,FALSE)) ->  | M125: =IF(F125="","",'OPĆI DIO'!$C$1) ->  | T125: 66324-581 | U125: 66324 | V125: Kapitalne donacije od ostalih subjekata izvan općeg proračuna | W125: 581 | X125: Mehanizam za oporavak i otpornost – bespovratna sredstva – raspoloživ predujam ili unaprijed naplaćen prihod | Y125: 663 | Z125: 66 | AA125: 581
A126: =IF(F126="","",VLOOKUP('OPĆI DIO'!$C$1,'OPĆI DIO'!$N$4:$W$137,10,FALSE)) ->  | B126: =IF(F126="","",VLOOKUP('OPĆI DIO'!$C$1,'OPĆI DIO'!$N$4:$W$137,9,FALSE)) ->  | M126: =IF(F126="","",'OPĆI DIO'!$C$1) ->  | T126: 66324-61 | U126: 66324 | V126: Kapitalne donacije od ostalih subjekata izvan općeg proračuna | W126: 61 | X126: Donacije | Y126: 663 | Z126: 66 | AA126: 61
A127: =IF(F127="","",VLOOKUP('OPĆI DIO'!$C$1,'OPĆI DIO'!$N$4:$W$137,10,FALSE)) ->  | B127: =IF(F127="","",VLOOKUP('OPĆI DIO'!$C$1,'OPĆI DIO'!$N$4:$W$137,9,FALSE)) ->  | M127: =IF(F127="","",'OPĆI DIO'!$C$1) ->  | T127: 65148-43 | U127: 65148 | V127: Ostale naknade i pristojbe za posebne namjene | W127: 43 | X127: Ostali prihodi za posebne namjene | Y127: 651 | Z127: 65 | AA127: 43
A128: =IF(F128="","",VLOOKUP('OPĆI DIO'!$C$1,'OPĆI DIO'!$N$4:$W$137,10,FALSE)) ->  | B128: =IF(F128="","",VLOOKUP('OPĆI DIO'!$C$1,'OPĆI DIO'!$N$4:$W$137,9,FALSE)) ->  | M128: =IF(F128="","",'OPĆI DIO'!$C$1) ->  | T128: 65218-43 | U128: 65218 | V128: Ostali prihodi državne uprave za posebne namjene | W128: 43 | X128: Ostali prihodi za posebne namjene | Y128: 652 | Z128: 65 | AA128: 43
A129: =IF(F129="","",VLOOKUP('OPĆI DIO'!$C$1,'OPĆI DIO'!$N$4:$W$137,10,FALSE)) ->  | B129: =IF(F129="","",VLOOKUP('OPĆI DIO'!$C$1,'OPĆI DIO'!$N$4:$W$137,9,FALSE)) ->  | M129: =IF(F129="","",'OPĆI DIO'!$C$1) ->  | T129: =U129&"-"&W129 -> 65264-43 | U129: 65264 | V129: Sufinanciranje cijene usluge, participacije i slično | W129: 43 | X129: Ostali prihodi za posebne namjene | Y129: 652 | Z129: 65 | AA129: 43
A130: =IF(F130="","",VLOOKUP('OPĆI DIO'!$C$1,'OPĆI DIO'!$N$4:$W$137,10,FALSE)) ->  | B130: =IF(F130="","",VLOOKUP('OPĆI DIO'!$C$1,'OPĆI DIO'!$N$4:$W$137,9,FALSE)) ->  | M130: =IF(F130="","",'OPĆI DIO'!$C$1) ->  | T130: 65267-71 | U130: 65267 | V130: Prihodi s naslova osiguranja, refundacije štete i totalne štete | W130: 71 | X130: Prihodi od nefin. imovine i nadoknade štete s osnova osig. | Y130: 652 | Z130: 65 | AA130: 71
A131: =IF(F131="","",VLOOKUP('OPĆI DIO'!$C$1,'OPĆI DIO'!$N$4:$W$137,10,FALSE)) ->  | B131: =IF(F131="","",VLOOKUP('OPĆI DIO'!$C$1,'OPĆI DIO'!$N$4:$W$137,9,FALSE)) ->  | M131: =IF(F131="","",'OPĆI DIO'!$C$1) ->  | T131: 65267-11 | U131: 65267 | V131: Prihodi s naslova osiguranja, refundacije štete i totalne štete | W131: 11 | X131: Opći prihodi i primici | Y131: 652 | Z131: 65 | AA131: 11
A132: =IF(F132="","",VLOOKUP('OPĆI DIO'!$C$1,'OPĆI DIO'!$N$4:$W$137,10,FALSE)) ->  | B132: =IF(F132="","",VLOOKUP('OPĆI DIO'!$C$1,'OPĆI DIO'!$N$4:$W$137,9,FALSE)) ->  | C132: =IFERROR(VLOOKUP(G132,$T$6:$AA$500,8,FALSE),"") ->  | D132: =IFERROR(VLOOKUP(G132,$T$6:$AA$500,4,FALSE),"") ->  | F132: =IFERROR(VLOOKUP(G132,$T$6:$AA$500,2,FALSE),"") ->  | H132: =IFERROR(VLOOKUP(G132,$T$6:$AA$500,3,FALSE),"") ->  | M132: =IF(F132="","",'OPĆI DIO'!$C$1) ->  | T132: 65268-43 | U132: 65268 | V132: Ostali prihodi za posebne namjene | W132: 43 | X132: Ostali prihodi za posebne namjene | Y132: 652 | Z132: 65 | AA132: 43
A133: =IF(F133="","",VLOOKUP('OPĆI DIO'!$C$1,'OPĆI DIO'!$N$4:$W$137,10,FALSE)) ->  | B133: =IF(F133="","",VLOOKUP('OPĆI DIO'!$C$1,'OPĆI DIO'!$N$4:$W$137,9,FALSE)) ->  | M133: =IF(F133="","",'OPĆI DIO'!$C$1) ->  | T133: 65411-41 | U133: 65411 | V133: Naknada za priređivanje lutrijskih igara | W133: 41 | X133: Prihodi od igara na sreću | Y133: 654 | Z133: 65 | AA133: 41
A134: =IF(F134="","",VLOOKUP('OPĆI DIO'!$C$1,'OPĆI DIO'!$N$4:$W$137,10,FALSE)) ->  | B134: =IF(F134="","",VLOOKUP('OPĆI DIO'!$C$1,'OPĆI DIO'!$N$4:$W$137,9,FALSE)) ->  | M134: =IF(F134="","",'OPĆI DIO'!$C$1) ->  | T134: 65412-41 | U134: 65412 | V134: Naknade za priređivanje igara na sreću u casinima | W134: 41 | X134: Prihodi od igara na sreću | Y134: 654 | Z134: 65 | AA134: 41
A135: =IF(F135="","",VLOOKUP('OPĆI DIO'!$C$1,'OPĆI DIO'!$N$4:$W$137,10,FALSE)) ->  | B135: =IF(F135="","",VLOOKUP('OPĆI DIO'!$C$1,'OPĆI DIO'!$N$4:$W$137,9,FALSE)) ->  | M135: =IF(F135="","",'OPĆI DIO'!$C$1) ->  | T135: 65413-41 | U135: 65413 | V135: Naknade za priređivanje klađenja | W135: 41 | X135: Prihodi od igara na sreću | Y135: 654 | Z135: 65 | AA135: 41
A136: =IF(F136="","",VLOOKUP('OPĆI DIO'!$C$1,'OPĆI DIO'!$N$4:$W$137,10,FALSE)) ->  | B136: =IF(F136="","",VLOOKUP('OPĆI DIO'!$C$1,'OPĆI DIO'!$N$4:$W$137,9,FALSE)) ->  | M136: =IF(F136="","",'OPĆI DIO'!$C$1) ->  | N136: =LEFT(F136,2) ->  | O136: =LEFT(F136,3) ->  | T136: 65414-41 | U136: 65414 | V136: Naknade za priređivanje igara na sreću na automatima | W136: 41 | X136: Prihodi od igara na sreću | Y136: 654 | Z136: 65 | AA136: 41
A137: =IF(F137="","",VLOOKUP('OPĆI DIO'!$C$1,'OPĆI DIO'!$N$4:$W$137,10,FALSE)) ->  | B137: =IF(F137="","",VLOOKUP('OPĆI DIO'!$C$1,'OPĆI DIO'!$N$4:$W$137,9,FALSE)) ->  | M137: =IF(F137="","",'OPĆI DIO'!$C$1) ->  | T137: 64129-31 | U137: 64129 | V137: Kamate za ostale vrijednosne papire | W137: 31 | X137: Vlastiti prihodi | Y137: 641 | Z137: 64 | AA137: 31
A138: =IF(F138="","",VLOOKUP('OPĆI DIO'!$C$1,'OPĆI DIO'!$N$4:$W$137,10,FALSE)) ->  | B138: =IF(F138="","",VLOOKUP('OPĆI DIO'!$C$1,'OPĆI DIO'!$N$4:$W$137,9,FALSE)) ->  | M138: =IF(F138="","",'OPĆI DIO'!$C$1) ->  | T138: 64131-31 | U138: 64131 | V138: Kamate na oročena sredstva | W138: 31 | X138: Vlastiti prihodi | Y138: 641 | Z138: 64 | AA138: 31
A139: =IF(F139="","",VLOOKUP('OPĆI DIO'!$C$1,'OPĆI DIO'!$N$4:$W$137,10,FALSE)) ->  | B139: =IF(F139="","",VLOOKUP('OPĆI DIO'!$C$1,'OPĆI DIO'!$N$4:$W$137,9,FALSE)) ->  | E139: =IFERROR(VLOOKUP(F139,$U$6:$X$113,4,FALSE),"") ->  | M139: =IF(F139="","",'OPĆI DIO'!$C$1) ->  | T139: 64132-31 | U139: 64132 | V139: Kamate na depozite po viđenju | W139: 31 | X139: Vlastiti prihodi | Y139: =LEFT(U139,3) -> 641 | Z139: =LEFT(U139,2) -> 64 | AA139: 31
A140: =IF(F140="","",VLOOKUP('OPĆI DIO'!$C$1,'OPĆI DIO'!$N$4:$W$137,10,FALSE)) ->  | B140: =IF(F140="","",VLOOKUP('OPĆI DIO'!$C$1,'OPĆI DIO'!$N$4:$W$137,9,FALSE)) ->  | M140: =IF(F140="","",'OPĆI DIO'!$C$1) ->  | T140: 64132-43 | U140: 64132 | V140: Kamate na depozite po viđenju | W140: 43 | X140: Ostali prihodi za posebne namjene | Y140: 641 | Z140: 64 | AA140: 43
A141: =IF(F141="","",VLOOKUP('OPĆI DIO'!$C$1,'OPĆI DIO'!$N$4:$W$137,10,FALSE)) ->  | B141: =IF(F141="","",VLOOKUP('OPĆI DIO'!$C$1,'OPĆI DIO'!$N$4:$W$137,9,FALSE)) ->  | M141: =IF(F141="","",'OPĆI DIO'!$C$1) ->  | T141: 64143-31 | U141: 64143 | V141: Zatezne kamate iz obveznih odnosa i drugo | W141: 31 | X141: Vlastiti prihodi | Y141: 641 | Z141: 64 | AA141: 31
A142: =IF(F142="","",VLOOKUP('OPĆI DIO'!$C$1,'OPĆI DIO'!$N$4:$W$137,10,FALSE)) ->  | B142: =IF(F142="","",VLOOKUP('OPĆI DIO'!$C$1,'OPĆI DIO'!$N$4:$W$137,9,FALSE)) ->  | M142: =IF(F142="","",'OPĆI DIO'!$C$1) ->  | T142: 64143-43 | U142: 64143 | V142: Zatezne kamate iz obveznih odnosa i drugo | W142: 43 | X142: Ostali prihodi za posebne namjene | Y142: 641 | Z142: 64 | AA142: 43
A143: =IF(F143="","",VLOOKUP('OPĆI DIO'!$C$1,'OPĆI DIO'!$N$4:$W$137,10,FALSE)) ->  | B143: =IF(F143="","",VLOOKUP('OPĆI DIO'!$C$1,'OPĆI DIO'!$N$4:$W$137,9,FALSE)) ->  | M143: =IF(F143="","",'OPĆI DIO'!$C$1) ->  | T143: 64151-31 | U143: 64151 | V143: Prihodi od pozitivnih tečajnih razlika | W143: 31 | X143: Vlastiti prihodi | Y143: 641 | Z143: 64 | AA143: 31
A144: =IF(F144="","",VLOOKUP('OPĆI DIO'!$C$1,'OPĆI DIO'!$N$4:$W$137,10,FALSE)) ->  | B144: =IF(F144="","",VLOOKUP('OPĆI DIO'!$C$1,'OPĆI DIO'!$N$4:$W$137,9,FALSE)) ->  | M144: =IF(F144="","",'OPĆI DIO'!$C$1) ->  | T144: =U144&"-"&W144 -> 64151-43 | U144: 64151 | V144: Prihodi od pozitivnih tečajnih razlika | W144: 43 | X144: Ostali prihodi za posebne namjene | Y144: 641 | Z144: 64 | AA144: 43
A145: =IF(F145="","",VLOOKUP('OPĆI DIO'!$C$1,'OPĆI DIO'!$N$4:$W$137,10,FALSE)) ->  | B145: =IF(F145="","",VLOOKUP('OPĆI DIO'!$C$1,'OPĆI DIO'!$N$4:$W$137,9,FALSE)) ->  | M145: =IF(F145="","",'OPĆI DIO'!$C$1) ->  | T145: 64163-31 | U145: 64163 | V145: Prihod od dividendi na dionice u kreditnim i ostalim financijskim institucijama izvan javnog sektora | W145: 31 | X145: Vlastiti prihodi | Y145: 641 | Z145: 64 | AA145: 31
A146: =IF(F146="","",VLOOKUP('OPĆI DIO'!$C$1,'OPĆI DIO'!$N$4:$W$137,10,FALSE)) ->  | B146: =IF(F146="","",VLOOKUP('OPĆI DIO'!$C$1,'OPĆI DIO'!$N$4:$W$137,9,FALSE)) ->  | M146: =IF(F146="","",'OPĆI DIO'!$C$1) ->  | T146: 64164-31 | U146: 64164 | V146: Prihodi od dividendi na dionice u trgovačkim društvima izvan javnog sektora | W146: 31 | X146: Vlastiti prihodi | Y146: 641 | Z146: 64 | AA146: 31
A147: =IF(F147="","",VLOOKUP('OPĆI DIO'!$C$1,'OPĆI DIO'!$N$4:$W$137,10,FALSE)) ->  | B147: =IF(F147="","",VLOOKUP('OPĆI DIO'!$C$1,'OPĆI DIO'!$N$4:$W$137,9,FALSE)) ->  | M147: =IF(F147="","",'OPĆI DIO'!$C$1) ->  | T147: 64172-43 | U147: 64172 | V147: Prihodi iz dobiti trgovačkih društava u javnom sektoru | W147: 43 | X147: Ostali prihodi za posebne namjene | Y147: 641 | Z147: 64 | AA147: 43
A148: =IF(F148="","",VLOOKUP('OPĆI DIO'!$C$1,'OPĆI DIO'!$N$4:$W$137,10,FALSE)) ->  | B148: =IF(F148="","",VLOOKUP('OPĆI DIO'!$C$1,'OPĆI DIO'!$N$4:$W$137,9,FALSE)) ->  | M148: =IF(F148="","",'OPĆI DIO'!$C$1) ->  | T148: 64177-41 | U148: 64177 | V148: Prihodi iz dobiti Hrvatske lutrije | W148: 41 | X148: Prihodi od igara na sreću | Y148: 641 | Z148: 64 | AA148: 41
A149: =IF(F149="","",VLOOKUP('OPĆI DIO'!$C$1,'OPĆI DIO'!$N$4:$W$137,10,FALSE)) ->  | B149: =IF(F149="","",VLOOKUP('OPĆI DIO'!$C$1,'OPĆI DIO'!$N$4:$W$137,9,FALSE)) ->  | M149: =IF(F149="","",'OPĆI DIO'!$C$1) ->  | T149: 64199-43 | U149: 64199 | V149: Ostali prihodi od financijske imovine | W149: 43 | X149: Ostali prihodi za posebne namjene | Y149: 641 | Z149: 64 | AA149: 43
A150: =IF(F150="","",VLOOKUP('OPĆI DIO'!$C$1,'OPĆI DIO'!$N$4:$W$137,10,FALSE)) ->  | B150: =IF(F150="","",VLOOKUP('OPĆI DIO'!$C$1,'OPĆI DIO'!$N$4:$W$137,9,FALSE)) ->  | M150: =IF(F150="","",'OPĆI DIO'!$C$1) ->  | T150: 64251-31 | U150: 64251 | V150: Prihodi od prodaje kratkotrajne nefinancijske imovine, sitnog inventara i autoguma | W150: 31 | X150: Vlastiti prihodi | Y150: 642 | Z150: 64 | AA150: 31
A151: =IF(F151="","",VLOOKUP('OPĆI DIO'!$C$1,'OPĆI DIO'!$N$4:$W$137,10,FALSE)) ->  | B151: =IF(F151="","",VLOOKUP('OPĆI DIO'!$C$1,'OPĆI DIO'!$N$4:$W$137,9,FALSE)) ->  | M151: =IF(F151="","",'OPĆI DIO'!$C$1) ->  | T151: =U151&"-"&W151 -> 64299-31 | U151: 64299 | V151: Ostali prihodi od nefinancijske imovine | W151: 31 | X151: Vlastiti prihodi | Y151: 642 | Z151: 64 | AA151: 31
A152: =IF(F152="","",VLOOKUP('OPĆI DIO'!$C$1,'OPĆI DIO'!$N$4:$W$137,10,FALSE)) ->  | B152: =IF(F152="","",VLOOKUP('OPĆI DIO'!$C$1,'OPĆI DIO'!$N$4:$W$137,9,FALSE)) ->  | M152: =IF(F152="","",'OPĆI DIO'!$C$1) ->  | T152: 64341-31 | U152: 64341 | V152: Prihodi od kamata na dane zajmove trgovačkim društvima u javnom sektoru | W152: 31 | X152: Vlastiti prihodi | Y152: 643 | Z152: 64 | AA152: 31
A153: =IF(F153="","",VLOOKUP('OPĆI DIO'!$C$1,'OPĆI DIO'!$N$4:$W$137,10,FALSE)) ->  | B153: =IF(F153="","",VLOOKUP('OPĆI DIO'!$C$1,'OPĆI DIO'!$N$4:$W$137,9,FALSE)) ->  | M153: =IF(F153="","",'OPĆI DIO'!$C$1) ->  | T153: 63111-533 | U153: 63111 | V153: Tekuće pomoći od inozemnih vlada u EU | W153: 533 | X153: Ostale darovnice | Y153: 631 | Z153: 63 | AA153: 533
A154: =IF(F154="","",VLOOKUP('OPĆI DIO'!$C$1,'OPĆI DIO'!$N$4:$W$137,10,FALSE)) ->  | B154: =IF(F154="","",VLOOKUP('OPĆI DIO'!$C$1,'OPĆI DIO'!$N$4:$W$137,9,FALSE)) ->  | M154: =IF(F154="","",'OPĆI DIO'!$C$1) ->  | T154: 63111-51000 | U154: 63111 | V154: Tekuće pomoći od inozemnih vlada u EU | W154: 51000 | X154: 51000 Programi Unije – raspoloživ predujam | Y154: 631 | Z154: 63 | AA154: 51000
A155: =IF(F155="","",VLOOKUP('OPĆI DIO'!$C$1,'OPĆI DIO'!$N$4:$W$137,10,FALSE)) ->  | B155: =IF(F155="","",VLOOKUP('OPĆI DIO'!$C$1,'OPĆI DIO'!$N$4:$W$137,9,FALSE)) ->  | M155: =IF(F155="","",'OPĆI DIO'!$C$1) ->  | T155: 63111-51011 | U155: 63111 | V155: Tekuće pomoći od inozemnih vlada u EU | W155: 51011 | X155: 51011 Programi Unije – predfinanciranje iz izvora 11 Opći prihodi i primici | Y155: 631 | Z155: 63 | AA155: 51011
A156: =IF(F156="","",VLOOKUP('OPĆI DIO'!$C$1,'OPĆI DIO'!$N$4:$W$137,10,FALSE)) ->  | B156: =IF(F156="","",VLOOKUP('OPĆI DIO'!$C$1,'OPĆI DIO'!$N$4:$W$137,9,FALSE)) ->  | M156: =IF(F156="","",'OPĆI DIO'!$C$1) ->  | T156: 63111-563 | U156: 63111 | V156: Tekuće pomoći od inozemnih vlada u EU | W156: 563 | X156: Europski fond za regionalni razvoj – predfinanciranje iz izvora 11 Opći prihodi i primici | Y156: 631 | Z156: 63 | AA156: 563
A157: =IF(F157="","",VLOOKUP('OPĆI DIO'!$C$1,'OPĆI DIO'!$N$4:$W$137,10,FALSE)) ->  | B157: =IF(F157="","",VLOOKUP('OPĆI DIO'!$C$1,'OPĆI DIO'!$N$4:$W$137,9,FALSE)) ->  | M157: =IF(F157="","",'OPĆI DIO'!$C$1) ->  | T157: 63112-533 | U157: 63112 | V157: Tekuće pomoći od inozemnih vlada izvan EU | W157: 533 | X157: Ostale darovnice | Y157: 631 | Z157: 63 | AA157: 533
A158: =IF(F158="","",VLOOKUP('OPĆI DIO'!$C$1,'OPĆI DIO'!$N$4:$W$137,10,FALSE)) ->  | B158: =IF(F158="","",VLOOKUP('OPĆI DIO'!$C$1,'OPĆI DIO'!$N$4:$W$137,9,FALSE)) ->  | M158: =IF(F158="","",'OPĆI DIO'!$C$1) ->  | T158: 63112-563 | U158: 63112 | V158: Tekuće pomoći od inozemnih vlada izvan EU | W158: 563 | X158: Europski fond za regionalni razvoj – predfinanciranje iz izvora 11 Opći prihodi i primici | Y158: 631 | Z158: 63 | AA158: 563
A159: =IF(F159="","",VLOOKUP('OPĆI DIO'!$C$1,'OPĆI DIO'!$N$4:$W$137,10,FALSE)) ->  | B159: =IF(F159="","",VLOOKUP('OPĆI DIO'!$C$1,'OPĆI DIO'!$N$4:$W$137,9,FALSE)) ->  | M159: =IF(F159="","",'OPĆI DIO'!$C$1) ->  | T159: 63121-533 | U159: 63121 | V159: Kapitalne pomoći od inozemnih vlada u EU | W159: 533 | X159: Ostale darovnice | Y159: 631 | Z159: 63 | AA159: 533
A160: =IF(F160="","",VLOOKUP('OPĆI DIO'!$C$1,'OPĆI DIO'!$N$4:$W$137,10,FALSE)) ->  | B160: =IF(F160="","",VLOOKUP('OPĆI DIO'!$C$1,'OPĆI DIO'!$N$4:$W$137,9,FALSE)) ->  | M160: =IF(F160="","",'OPĆI DIO'!$C$1) ->  | T160: 63121-51000 | U160: 63121 | V160: Kapitalne pomoći od inozemnih vlada u EU | W160: 51000 | X160: 51000 Programi Unije – raspoloživ predujam | Y160: 631 | Z160: 63 | AA160: 51000
A161: =IF(F161="","",VLOOKUP('OPĆI DIO'!$C$1,'OPĆI DIO'!$N$4:$W$137,10,FALSE)) ->  | B161: =IF(F161="","",VLOOKUP('OPĆI DIO'!$C$1,'OPĆI DIO'!$N$4:$W$137,9,FALSE)) ->  | M161: =IF(F161="","",'OPĆI DIO'!$C$1) ->  | T161: 63121-51011 | U161: 63121 | V161: Kapitalne pomoći od inozemnih vlada u EU | W161: 51011 | X161: 51011 Programi Unije – predfinanciranje iz izvora 11 Opći prihodi i primici | Y161: 631 | Z161: 63 | AA161: 51011
A162: =IF(F162="","",VLOOKUP('OPĆI DIO'!$C$1,'OPĆI DIO'!$N$4:$W$137,10,FALSE)) ->  | B162: =IF(F162="","",VLOOKUP('OPĆI DIO'!$C$1,'OPĆI DIO'!$N$4:$W$137,9,FALSE)) ->  | M162: =IF(F162="","",'OPĆI DIO'!$C$1) ->  | T162: 63121-563 | U162: 63121 | V162: Kapitalne pomoći od inozemnih vlada u EU | W162: 563 | X162: Europski fond za regionalni razvoj – predfinanciranje iz izvora 11 Opći prihodi i primici | Y162: 631 | Z162: 63 | AA162: 563
A163: =IF(F163="","",VLOOKUP('OPĆI DIO'!$C$1,'OPĆI DIO'!$N$4:$W$137,10,FALSE)) ->  | B163: =IF(F163="","",VLOOKUP('OPĆI DIO'!$C$1,'OPĆI DIO'!$N$4:$W$137,9,FALSE)) ->  | M163: =IF(F163="","",'OPĆI DIO'!$C$1) ->  | T163: 63122-563 | U163: 63122 | V163: Kapitalne pomoći od inozemnih vlada izvan EU | W163: 563 | X163: Europski fond za regionalni razvoj – predfinanciranje iz izvora 11 Opći prihodi i primici | Y163: 631 | Z163: 63 | AA163: 563
A164: =IF(F164="","",VLOOKUP('OPĆI DIO'!$C$1,'OPĆI DIO'!$N$4:$W$137,10,FALSE)) ->  | B164: =IF(F164="","",VLOOKUP('OPĆI DIO'!$C$1,'OPĆI DIO'!$N$4:$W$137,9,FALSE)) ->  | M164: =IF(F164="","",'OPĆI DIO'!$C$1) ->  | T164: 63122-533 | U164: 63122 | V164: Kapitalne pomoći od inozemnih vlada izvan EU | W164: 533 | X164: Ostale darovnice | Y164: 631 | Z164: 63 | AA164: 533
A165: =IF(F165="","",VLOOKUP('OPĆI DIO'!$C$1,'OPĆI DIO'!$N$4:$W$137,10,FALSE)) ->  | B165: =IF(F165="","",VLOOKUP('OPĆI DIO'!$C$1,'OPĆI DIO'!$N$4:$W$137,9,FALSE)) ->  | M165: =IF(F165="","",'OPĆI DIO'!$C$1) ->  | T165: 63211-533 | U165: 63211 | V165: Tekuće pomoći od međunarodnih organizacija | W165: 533 | X165: Ostale darovnice | Y165: 632 | Z165: 63 | AA165: 533
A166: =IF(F166="","",VLOOKUP('OPĆI DIO'!$C$1,'OPĆI DIO'!$N$4:$W$137,10,FALSE)) ->  | B166: =IF(F166="","",VLOOKUP('OPĆI DIO'!$C$1,'OPĆI DIO'!$N$4:$W$137,9,FALSE)) ->  | M166: =IF(F166="","",'OPĆI DIO'!$C$1) ->  | T166: 63221-533 | U166: 63221 | V166: Kapitalne pomoći od međunarodnih organizacija | W166: 533 | X166: Ostale darovnice | Y166: 632 | Z166: 63 | AA166: 533
A167: =IF(F167="","",VLOOKUP('OPĆI DIO'!$C$1,'OPĆI DIO'!$N$4:$W$137,10,FALSE)) ->  | B167: =IF(F167="","",VLOOKUP('OPĆI DIO'!$C$1,'OPĆI DIO'!$N$4:$W$137,9,FALSE)) ->  | M167: =IF(F167="","",'OPĆI DIO'!$C$1) ->  | T167: 63231-51000 | U167: 63231 | V167: Tekuće pomoći od institucija i tijela EU | W167: 51000 | X167: 51000 Programi Unije – raspoloživ predujam | Y167: 632 | Z167: 63 | AA167: 51000
A168: =IF(F168="","",VLOOKUP('OPĆI DIO'!$C$1,'OPĆI DIO'!$N$4:$W$137,10,FALSE)) ->  | B168: =IF(F168="","",VLOOKUP('OPĆI DIO'!$C$1,'OPĆI DIO'!$N$4:$W$137,9,FALSE)) ->  | M168: =IF(F168="","",'OPĆI DIO'!$C$1) ->  | T168: 63231-51011 | U168: 63231 | V168: Tekuće pomoći od institucija i tijela EU | W168: 51011 | X168: 51011 Programi Unije – predfinanciranje iz izvora 11 Opći prihodi i primici | Y168: 632 | Z168: 63 | AA168: 51011
A169: =IF(F169="","",VLOOKUP('OPĆI DIO'!$C$1,'OPĆI DIO'!$N$4:$W$137,10,FALSE)) ->  | B169: =IF(F169="","",VLOOKUP('OPĆI DIO'!$C$1,'OPĆI DIO'!$N$4:$W$137,9,FALSE)) ->  | M169: =IF(F169="","",'OPĆI DIO'!$C$1) ->  | T169: 63231-51031 | U169: 63231 | V169: Tekuće pomoći od institucija i tijela EU | W169: 51031 | X169: 51031 Programi Unije – predfinanciranje iz izvora 31 Vlastiti prihodi | Y169: 632 | Z169: 63 | AA169: 51031
A170: =IF(F170="","",VLOOKUP('OPĆI DIO'!$C$1,'OPĆI DIO'!$N$4:$W$137,10,FALSE)) ->  | B170: =IF(F170="","",VLOOKUP('OPĆI DIO'!$C$1,'OPĆI DIO'!$N$4:$W$137,9,FALSE)) ->  | M170: =IF(F170="","",'OPĆI DIO'!$C$1) ->  | T170: 63231-51043 | U170: 63231 | V170: Tekuće pomoći od institucija i tijela EU | W170: 51043 | X170: 51043 Programi Unije – predfinanciranje iz izvora 43 Ostali prihodi za posebne namjene | Y170: 632 | Z170: 63 | AA170: 51043
A171: =IF(F171="","",VLOOKUP('OPĆI DIO'!$C$1,'OPĆI DIO'!$N$4:$W$137,10,FALSE)) ->  | B171: =IF(F171="","",VLOOKUP('OPĆI DIO'!$C$1,'OPĆI DIO'!$N$4:$W$137,9,FALSE)) ->  | M171: =IF(F171="","",'OPĆI DIO'!$C$1) ->  | T171: 63231-51081 | U171: 63231 | V171: Tekuće pomoći od institucija i tijela EU | W171: 51081 | X171: 51081 Programi Unije – predfinanciranje iz izvora 81 Namjenski primici od zaduživanja | Y171: 632 | Z171: 63 | AA171: 51081
A172: =IF(F172="","",VLOOKUP('OPĆI DIO'!$C$1,'OPĆI DIO'!$N$4:$W$137,10,FALSE)) ->  | B172: =IF(F172="","",VLOOKUP('OPĆI DIO'!$C$1,'OPĆI DIO'!$N$4:$W$137,9,FALSE)) ->  | M172: =IF(F172="","",'OPĆI DIO'!$C$1) ->  | T172: 63241-51000 | U172: 63241 | V172: Kapitalne pomoći od institucija i tijela EU | W172: 51000 | X172: 51000 Programi Unije – raspoloživ predujam | Y172: 632 | Z172: 63 | AA172: 51000
A173: =IF(F173="","",VLOOKUP('OPĆI DIO'!$C$1,'OPĆI DIO'!$N$4:$W$137,10,FALSE)) ->  | B173: =IF(F173="","",VLOOKUP('OPĆI DIO'!$C$1,'OPĆI DIO'!$N$4:$W$137,9,FALSE)) ->  | M173: =IF(F173="","",'OPĆI DIO'!$C$1) ->  | T173: 63241-51011 | U173: 63241 | V173: Kapitalne pomoći od institucija i tijela EU | W173: 51011 | X173: 51011 Programi Unije – predfinanciranje iz izvora 11 Opći prihodi i primici | Y173: 632 | Z173: 63 | AA173: 51011
A174: =IF(F174="","",VLOOKUP('OPĆI DIO'!$C$1,'OPĆI DIO'!$N$4:$W$137,10,FALSE)) ->  | B174: =IF(F174="","",VLOOKUP('OPĆI DIO'!$C$1,'OPĆI DIO'!$N$4:$W$137,9,FALSE)) ->  | M174: =IF(F174="","",'OPĆI DIO'!$C$1) ->  | T174: 63241-51031 | U174: 63241 | V174: Kapitalne pomoći od institucija i tijela EU | W174: 51031 | X174: 51031 Programi Unije – predfinanciranje iz izvora 31 Vlastiti prihodi | Y174: 632 | Z174: 63 | AA174: 51031
A175: =IF(F175="","",VLOOKUP('OPĆI DIO'!$C$1,'OPĆI DIO'!$N$4:$W$137,10,FALSE)) ->  | B175: =IF(F175="","",VLOOKUP('OPĆI DIO'!$C$1,'OPĆI DIO'!$N$4:$W$137,9,FALSE)) ->  | M175: =IF(F175="","",'OPĆI DIO'!$C$1) ->  | T175: 63241-51043 | U175: 63241 | V175: Kapitalne pomoći od institucija i tijela EU | W175: 51043 | X175: 51043 Programi Unije – predfinanciranje iz izvora 43 Ostali prihodi za posebne namjene | Y175: 632 | Z175: 63 | AA175: 51043
A176: =IF(F176="","",VLOOKUP('OPĆI DIO'!$C$1,'OPĆI DIO'!$N$4:$W$137,10,FALSE)) ->  | B176: =IF(F176="","",VLOOKUP('OPĆI DIO'!$C$1,'OPĆI DIO'!$N$4:$W$137,9,FALSE)) ->  | M176: =IF(F176="","",'OPĆI DIO'!$C$1) ->  | T176: 63241-51081 | U176: 63241 | V176: Kapitalne pomoći od institucija i tijela EU | W176: 51081 | X176: 51081 Programi Unije – predfinanciranje iz izvora 81 Namjenski primici od zaduživanja | Y176: 632 | Z176: 63 | AA176: 51081
A177: =IF(F177="","",VLOOKUP('OPĆI DIO'!$C$1,'OPĆI DIO'!$N$4:$W$137,10,FALSE)) ->  | B177: =IF(F177="","",VLOOKUP('OPĆI DIO'!$C$1,'OPĆI DIO'!$N$4:$W$137,9,FALSE)) ->  | M177: =IF(F177="","",'OPĆI DIO'!$C$1) ->  | T177: 63414-52 | U177: 63414 | V177: Tekuće pomoći od HZMO-a, HZZ-a i HZZO-a | W177: 52 | X177: Ostale pomoći | Y177: 634 | Z177: 63 | AA177: 52
A178: =IF(F178="","",VLOOKUP('OPĆI DIO'!$C$1,'OPĆI DIO'!$N$4:$W$137,10,FALSE)) ->  | B178: =IF(F178="","",VLOOKUP('OPĆI DIO'!$C$1,'OPĆI DIO'!$N$4:$W$137,9,FALSE)) ->  | M178: =IF(F178="","",'OPĆI DIO'!$C$1) ->  | T178: 63415-52 | U178: 63415 | V178: Tekuće pomoći od ostalih izvanproračunskih korisnika državnog proračuna | W178: 52 | X178: Ostale pomoći | Y178: 634 | Z178: 63 | AA178: 52
A179: =IF(F179="","",VLOOKUP('OPĆI DIO'!$C$1,'OPĆI DIO'!$N$4:$W$137,10,FALSE)) ->  | B179: =IF(F179="","",VLOOKUP('OPĆI DIO'!$C$1,'OPĆI DIO'!$N$4:$W$137,9,FALSE)) ->  | M179: =IF(F179="","",'OPĆI DIO'!$C$1) ->  | T179: 63424-52 | U179: 63424 | V179: Kapitalne pomoći od HZMO-a, HZZ-a i HZZO-a | W179: 52 | X179: Ostale pomoći | Y179: 634 | Z179: 63 | AA179: 52
A180: =IF(F180="","",VLOOKUP('OPĆI DIO'!$C$1,'OPĆI DIO'!$N$4:$W$137,10,FALSE)) ->  | B180: =IF(F180="","",VLOOKUP('OPĆI DIO'!$C$1,'OPĆI DIO'!$N$4:$W$137,9,FALSE)) ->  | M180: =IF(F180="","",'OPĆI DIO'!$C$1) ->  | T180: 63425-52 | U180: 63425 | V180: Kapitalne pomoći od ostalih izvanproračunskih korisnika državnog proračuna | W180: 52 | X180: Ostale pomoći | Y180: 634 | Z180: 63 | AA180: 52
A181: =IF(F181="","",VLOOKUP('OPĆI DIO'!$C$1,'OPĆI DIO'!$N$4:$W$137,10,FALSE)) ->  | B181: =IF(F181="","",VLOOKUP('OPĆI DIO'!$C$1,'OPĆI DIO'!$N$4:$W$137,9,FALSE)) ->  | M181: =IF(F181="","",'OPĆI DIO'!$C$1) ->  | T181: 63613-52 | U181: 63613 | V181: Tekuće pomoći proračunskim korisnicima iz proračuna JLP(R)S koji im nije nadležan | W181: 52 | X181: Ostale pomoći | Y181: 636 | Z181: 63 | AA181: 52
A182: =IF(F182="","",VLOOKUP('OPĆI DIO'!$C$1,'OPĆI DIO'!$N$4:$W$137,10,FALSE)) ->  | B182: =IF(F182="","",VLOOKUP('OPĆI DIO'!$C$1,'OPĆI DIO'!$N$4:$W$137,9,FALSE)) ->  | M182: =IF(F182="","",'OPĆI DIO'!$C$1) ->  | T182: 63623-52 | U182: 63623 | V182: Kapitalne pomoći proračunskim korisnicima iz proračuna JLP(R)S koji im nije nadležan | W182: 52 | X182: Ostale pomoći | Y182: 636 | Z182: 63 | AA182: 52
A183: =IF(F183="","",VLOOKUP('OPĆI DIO'!$C$1,'OPĆI DIO'!$N$4:$W$137,10,FALSE)) ->  | B183: =IF(F183="","",VLOOKUP('OPĆI DIO'!$C$1,'OPĆI DIO'!$N$4:$W$137,9,FALSE)) ->  | M183: =IF(F183="","",'OPĆI DIO'!$C$1) ->  | T183: 63812-561 | U183: 63812 | V183: Tekuće pomoći iz proračuna JLP(R)S temeljem prijenosa EU sredstava | W183: 561 | X183: Europski socijalni fond plus – predfinanciranje iz izvora 11 Opći prihodi i primici | Y183: 638 | Z183: 63 | AA183: 561
A184: =IF(F184="","",VLOOKUP('OPĆI DIO'!$C$1,'OPĆI DIO'!$N$4:$W$137,10,FALSE)) ->  | B184: =IF(F184="","",VLOOKUP('OPĆI DIO'!$C$1,'OPĆI DIO'!$N$4:$W$137,9,FALSE)) ->  | M184: =IF(F184="","",'OPĆI DIO'!$C$1) ->  | T184: 63812-562 | U184: 63812 | V184: Tekuće pomoći iz proračuna JLP(R)S temeljem prijenosa EU sredstava | W184: 562 | X184: Kohezijski fond - predfinanciranje iz izvora 11 Opći prihodi i primici | Y184: 638 | Z184: 63 | AA184: 562
A185: =IF(F185="","",VLOOKUP('OPĆI DIO'!$C$1,'OPĆI DIO'!$N$4:$W$137,10,FALSE)) ->  | B185: =IF(F185="","",VLOOKUP('OPĆI DIO'!$C$1,'OPĆI DIO'!$N$4:$W$137,9,FALSE)) ->  | M185: =IF(F185="","",'OPĆI DIO'!$C$1) ->  | T185: 63812-563 | U185: 63812 | V185: Tekuće pomoći iz proračuna JLP(R)S temeljem prijenosa EU sredstava | W185: 563 | X185: Europski fond za regionalni razvoj - predfinanciranje iz izvora 11 Opći prihodi i primici | Y185: 638 | Z185: 63 | AA185: 563
A186: =IF(F186="","",VLOOKUP('OPĆI DIO'!$C$1,'OPĆI DIO'!$N$4:$W$137,10,FALSE)) ->  | B186: =IF(F186="","",VLOOKUP('OPĆI DIO'!$C$1,'OPĆI DIO'!$N$4:$W$137,9,FALSE)) ->  | M186: =IF(F186="","",'OPĆI DIO'!$C$1) ->  | N186: =LEFT(F186,2) ->  | O186: =LEFT(F186,3) ->  | T186: 63812-564 | U186: 63812 | V186: Tekuće pomoći iz proračuna JLP(R)S temeljem prijenosa EU sredstava | W186: 564 | X186: Fond za pomorstvo, ribarstvo i akvakulturu - predfinanciranje iz izvora 11 Opći prihodi i primici | Y186: 638 | Z186: 63 | AA186: 564
A187: =IF(F187="","",VLOOKUP('OPĆI DIO'!$C$1,'OPĆI DIO'!$N$4:$W$137,10,FALSE)) ->  | B187: =IF(F187="","",VLOOKUP('OPĆI DIO'!$C$1,'OPĆI DIO'!$N$4:$W$137,9,FALSE)) ->  | M187: =IF(F187="","",'OPĆI DIO'!$C$1) ->  | T187: 63812-565 | U187: 63812 | V187: Tekuće pomoći iz proračuna JLP(R)S temeljem prijenosa EU sredstava | W187: 565 | X187: Europski poljoprivredni fond za ruralni razvoj - predfinanciranje iz izvora 11 Opći prihodi i primici | Y187: 638 | Z187: 63 | AA187: 565
A188: =IF(F188="","",VLOOKUP('OPĆI DIO'!$C$1,'OPĆI DIO'!$N$4:$W$137,10,FALSE)) ->  | B188: =IF(F188="","",VLOOKUP('OPĆI DIO'!$C$1,'OPĆI DIO'!$N$4:$W$137,9,FALSE)) ->  | M188: =IF(F188="","",'OPĆI DIO'!$C$1) ->  | T188: 63812-566 | U188: 63812 | V188: Tekuće pomoći iz proračuna JLP(R)S temeljem prijenosa EU sredstava | W188: 566 | X188: Modernizacijski fond - predfinanciranje iz izvora 11 Opći prihodi i primici | Y188: 638 | Z188: 63 | AA188: 566
A189: =IF(F189="","",VLOOKUP('OPĆI DIO'!$C$1,'OPĆI DIO'!$N$4:$W$137,10,FALSE)) ->  | B189: =IF(F189="","",VLOOKUP('OPĆI DIO'!$C$1,'OPĆI DIO'!$N$4:$W$137,9,FALSE)) ->  | M189: =IF(F189="","",'OPĆI DIO'!$C$1) ->  | T189: 63812-567 | U189: 63812 | V189: Tekuće pomoći iz proračuna JLP(R)S temeljem prijenosa EU sredstava | W189: 567 | X189: Socijalni fond za klimatsku politiku - predfinanciranje iz izvora 11 Opći prihodi i primici | Y189: 638 | Z189: 63 | AA189: 567
A190: =IF(F190="","",VLOOKUP('OPĆI DIO'!$C$1,'OPĆI DIO'!$N$4:$W$137,10,FALSE)) ->  | B190: =IF(F190="","",VLOOKUP('OPĆI DIO'!$C$1,'OPĆI DIO'!$N$4:$W$137,9,FALSE)) ->  | M190: =IF(F190="","",'OPĆI DIO'!$C$1) ->  | T190: 63812-575 | U190: 63812 | V190: Tekuće pomoći iz proračuna JLP(R)S temeljem prijenosa EU sredstava | W190: 575 | X190: Fond za azil, migracije i integraciju - predfinanciranje iz izvora 11 Opći prihodi i primici | Y190: 638 | Z190: 63 | AA190: 575
A191: =IF(F191="","",VLOOKUP('OPĆI DIO'!$C$1,'OPĆI DIO'!$N$4:$W$137,10,FALSE)) ->  | B191: =IF(F191="","",VLOOKUP('OPĆI DIO'!$C$1,'OPĆI DIO'!$N$4:$W$137,9,FALSE)) ->  | M191: =IF(F191="","",'OPĆI DIO'!$C$1) ->  | T191: 63812-577 | U191: 63812 | V191: Tekuće pomoći iz proračuna JLP(R)S temeljem prijenosa EU sredstava | W191: 577 | X191: Fond za pravednu tranziciju - predfinanciranje iz izvora 11 Opći prihodi i primici | Y191: 638 | Z191: 63 | AA191: 577
A192: =IF(F192="","",VLOOKUP('OPĆI DIO'!$C$1,'OPĆI DIO'!$N$4:$W$137,10,FALSE)) ->  | B192: =IF(F192="","",VLOOKUP('OPĆI DIO'!$C$1,'OPĆI DIO'!$N$4:$W$137,9,FALSE)) ->  | M192: =IF(F192="","",'OPĆI DIO'!$C$1) ->  | T192: 63812-578 | U192: 63812 | V192: Tekuće pomoći iz proračuna JLP(R)S temeljem prijenosa EU sredstava | W192: 578 | X192: Fond za unutarnju sigurnost - predfinanciranje iz izvora 11 Opći prihodi i primici | Y192: 638 | Z192: 63 | AA192: 578
A193: =IF(F193="","",VLOOKUP('OPĆI DIO'!$C$1,'OPĆI DIO'!$N$4:$W$137,10,FALSE)) ->  | B193: =IF(F193="","",VLOOKUP('OPĆI DIO'!$C$1,'OPĆI DIO'!$N$4:$W$137,9,FALSE)) ->  | M193: =IF(F193="","",'OPĆI DIO'!$C$1) ->  | T193: =U193&"-"&W193 -> 63812-579 | U193: 63812 | V193: Tekuće pomoći iz proračuna JLP(R)S temeljem prijenosa EU sredstava | W193: 579 | X193: Fond za integrirano upravljanje granicama - predfinanciranje iz izvora 11 Opći prihodi i primici | Y193: 638 | Z193: 63 | AA193: 579
A194: =IF(F194="","",VLOOKUP('OPĆI DIO'!$C$1,'OPĆI DIO'!$N$4:$W$137,10,FALSE)) ->  | B194: =IF(F194="","",VLOOKUP('OPĆI DIO'!$C$1,'OPĆI DIO'!$N$4:$W$137,9,FALSE)) ->  | M194: =IF(F194="","",'OPĆI DIO'!$C$1) ->  | T194: 63812-581 | U194: 63812 | V194: Tekuće pomoći iz proračuna JLP(R)S temeljem prijenosa EU sredstava | W194: 581 | X194: Mehanizam za oporavak i otpornost – bespovratna sredstva – raspoloživ predujam ili unaprijed naplaćen prihod | Y194: 638 | Z194: 63 | AA194: 581
A195: =IF(F195="","",VLOOKUP('OPĆI DIO'!$C$1,'OPĆI DIO'!$N$4:$W$137,10,FALSE)) ->  | B195: =IF(F195="","",VLOOKUP('OPĆI DIO'!$C$1,'OPĆI DIO'!$N$4:$W$137,9,FALSE)) ->  | M195: =IF(F195="","",'OPĆI DIO'!$C$1) ->  | T195: 63813-561 | U195: 63813 | V195: Tekuće pomoći od proračunskog korisnika drugog proračuna temeljem prijenosa EU sredstava | W195: 561 | X195: Europski socijalni fond plus – predfinanciranje iz izvora 11 Opći prihodi i primici | Y195: 638 | Z195: 63 | AA195: 561
A196: =IF(F196="","",VLOOKUP('OPĆI DIO'!$C$1,'OPĆI DIO'!$N$4:$W$137,10,FALSE)) ->  | B196: =IF(F196="","",VLOOKUP('OPĆI DIO'!$C$1,'OPĆI DIO'!$N$4:$W$137,9,FALSE)) ->  | C196: =IFERROR(VLOOKUP(G196,$T$6:$AA$500,8,FALSE),"") ->  | D196: =IFERROR(VLOOKUP(G196,$T$6:$AA$500,4,FALSE),"") ->  | F196: =IFERROR(VLOOKUP(G196,$T$6:$AA$500,2,FALSE),"") ->  | H196: =IFERROR(VLOOKUP(G196,$T$6:$AA$500,3,FALSE),"") ->  | M196: =IF(F196="","",'OPĆI DIO'!$C$1) ->  | T196: 63813-562 | U196: 63813 | V196: Tekuće pomoći od proračunskog korisnika drugog proračuna temeljem prijenosa EU sredstava | W196: 562 | X196: Kohezijski fond - predfinanciranje iz izvora 11 Opći prihodi i primici | Y196: 638 | Z196: 63 | AA196: 562
A197: =IF(F197="","",VLOOKUP('OPĆI DIO'!$C$1,'OPĆI DIO'!$N$4:$W$137,10,FALSE)) ->  | B197: =IF(F197="","",VLOOKUP('OPĆI DIO'!$C$1,'OPĆI DIO'!$N$4:$W$137,9,FALSE)) ->  | M197: =IF(F197="","",'OPĆI DIO'!$C$1) ->  | T197: 63813-563 | U197: 63813 | V197: Tekuće pomoći od proračunskog korisnika drugog proračuna temeljem prijenosa EU sredstava | W197: 563 | X197: Europski fond za regionalni razvoj - predfinanciranje iz izvora 11 Opći prihodi i primici | Y197: 638 | Z197: 63 | AA197: 563
A198: =IF(F198="","",VLOOKUP('OPĆI DIO'!$C$1,'OPĆI DIO'!$N$4:$W$137,10,FALSE)) ->  | B198: =IF(F198="","",VLOOKUP('OPĆI DIO'!$C$1,'OPĆI DIO'!$N$4:$W$137,9,FALSE)) ->  | M198: =IF(F198="","",'OPĆI DIO'!$C$1) ->  | T198: 63813-564 | U198: 63813 | V198: Tekuće pomoći od proračunskog korisnika drugog proračuna temeljem prijenosa EU sredstava | W198: 564 | X198: Fond za pomorstvo, ribarstvo i akvakulturu - predfinanciranje iz izvora 11 Opći prihodi i primici | Y198: 638 | Z198: 63 | AA198: 564
A199: =IF(F199="","",VLOOKUP('OPĆI DIO'!$C$1,'OPĆI DIO'!$N$4:$W$137,10,FALSE)) ->  | B199: =IF(F199="","",VLOOKUP('OPĆI DIO'!$C$1,'OPĆI DIO'!$N$4:$W$137,9,FALSE)) ->  | M199: =IF(F199="","",'OPĆI DIO'!$C$1) ->  | T199: 63813-565 | U199: 63813 | V199: Tekuće pomoći od proračunskog korisnika drugog proračuna temeljem prijenosa EU sredstava | W199: 565 | X199: Europski poljoprivredni fond za ruralni razvoj - predfinanciranje iz izvora 11 Opći prihodi i primici | Y199: 638 | Z199: 63 | AA199: 565
A200: =IF(F200="","",VLOOKUP('OPĆI DIO'!$C$1,'OPĆI DIO'!$N$4:$W$137,10,FALSE)) ->  | B200: =IF(F200="","",VLOOKUP('OPĆI DIO'!$C$1,'OPĆI DIO'!$N$4:$W$137,9,FALSE)) ->  | M200: =IF(F200="","",'OPĆI DIO'!$C$1) ->  | T200: 63813-566 | U200: 63813 | V200: Tekuće pomoći od proračunskog korisnika drugog proračuna temeljem prijenosa EU sredstava | W200: 566 | X200: Modernizacijski fond - predfinanciranje iz izvora 11 Opći prihodi i primici | Y200: 638 | Z200: 63 | AA200: 566
... 305 more rows

Sheet Unos rashoda i izdataka
A1: Plan za unos u SAP - rashodi i izdaci | F1: =IF(OR('OPĆI DIO'!C1="odaberite -",'OPĆI DIO'!C1=""),"Molimo odaberite proračunskog korisnika na radnom listu Opći podaci!","") ->  | M1: u EUR
A2: GLAVA | B2: OPIS GLAVE | C2: IZVOR NA TERET | D2: IZVOR (odaberite) | E2: OPIS IZVORA | F2: Stavka (odaberite) | G2: OPIS STAVKE | H2: AKTIVNOST (odaberite) | I2: OPIS AKTIVNOSTI | J2: FP | K2: PLAN 2026. | L2: PROJEKCIJA 2027. | M2: PROJEKCIJA 2028. | N2: Primatelj prijenosa | O2: Ustanova | P2: left3 | Q2: left2 | R2: leftIzvor | S2: mid | T2: left1 | U2: IzvorKrovno
A3: =IF(C3="","",VLOOKUP('OPĆI DIO'!$C$1,'OPĆI DIO'!$N$4:$W$137,10,FALSE)) -> 08006 | B3: =IF(C3="","",VLOOKUP('OPĆI DIO'!$C$1,'OPĆI DIO'!$N$4:$W$137,9,FALSE)) -> Sveučilišta i veleučilišta u Republici Hrvatskoj | C3: =IFERROR(VLOOKUP(D3,$V$6:$X$34,3,FALSE),"") -> 11 | D3: 11 | E3: =IFERROR(VLOOKUP(D3,$V$6:$W$34,2,FALSE),"") -> Opći prihodi i primici | F3: 3111 | G3: =IFERROR(VLOOKUP(F3,$Y$5:$AA$129,2,FALSE),"") -> Plaće za redovan rad | H3: A679134 | I3: =IFERROR(VLOOKUP(H3,$AE$6:$AF$353,2,FALSE),"") -> 'PROGRAMSKO FINANCIRANJE JAVNIH VISOKIH UČILIŠTA 2025. - 2029. | J3: =IFERROR(VLOOKUP(H3,$AE$6:$AI$353,3,FALSE),"") -> 0942 | K3: 5,868,930 | L3: 6,266,413 | M3: 6,689,851 | O3: =IF(C3="","",'OPĆI DIO'!$C$1) -> 1812 Sveučilište u Zagrebu FAKULTET PROMETNIH ZNANOSTI | P3: =LEFT(F3,3) -> 311 | Q3: =LEFT(F3,2) -> 31 | R3: =LEFT(C3,3) -> 11 | S3: =MID(J3,2,2) -> 94 | T3: =LEFT(F3,1) -> 3 | U3: =IFERROR(VLOOKUP(C3,$V$6:$X$34,3,FALSE),"") -> 11
A4: =IF(C4="","",VLOOKUP('OPĆI DIO'!$C$1,'OPĆI DIO'!$N$4:$W$137,10,FALSE)) -> 08006 | B4: =IF(C4="","",VLOOKUP('OPĆI DIO'!$C$1,'OPĆI DIO'!$N$4:$W$137,9,FALSE)) -> Sveučilišta i veleučilišta u Republici Hrvatskoj | C4: =IFERROR(VLOOKUP(D4,$V$6:$X$34,3,FALSE),"") -> 11 | D4: 11 | E4: =IFERROR(VLOOKUP(D4,$V$6:$W$34,2,FALSE),"") -> Opći prihodi i primici | F4: 3121 | G4: Ostali rashodi za zaposlene | H4: A679134 | I4: 'PROGRAMSKO FINANCIRANJE JAVNIH VISOKIH UČILIŠTA 2025. - 2029. | J4: 0942 | K4: 127,312 | L4: 133,678 | M4: 140,362 | O4: =IF(C4="","",'OPĆI DIO'!$C$1) -> 1812 Sveučilište u Zagrebu FAKULTET PROMETNIH ZNANOSTI | P4: =LEFT(F4,3) -> 312 | Q4: =LEFT(F4,2) -> 31 | R4: =LEFT(C4,3) -> 11 | S4: =MID(J4,2,2) -> 94 | T4: =LEFT(F4,1) -> 3 | U4: =IFERROR(VLOOKUP(C4,$V$6:$X$34,3,FALSE),"") -> 11
A5: =IF(C5="","",VLOOKUP('OPĆI DIO'!$C$1,'OPĆI DIO'!$N$4:$W$137,10,FALSE)) -> 08006 | B5: =IF(C5="","",VLOOKUP('OPĆI DIO'!$C$1,'OPĆI DIO'!$N$4:$W$137,9,FALSE)) -> Sveučilišta i veleučilišta u Republici Hrvatskoj | C5: 11 | D5: 11 | E5: Opći prihodi i primici | F5: 3132 | G5: Doprinosi za obvezno zdravstveno osiguranje | H5: A679134 | I5: 'PROGRAMSKO FINANCIRANJE JAVNIH VISOKIH UČILIŠTA 2025. - 2029. | J5: 0942 | K5: 968,374 | L5: 1,033,958 | M5: 1,103,825 | O5: =IF(C5="","",'OPĆI DIO'!$C$1) -> 1812 Sveučilište u Zagrebu FAKULTET PROMETNIH ZNANOSTI | P5: 313 | Q5: 31 | R5: 11 | S5: 94 | T5: 3 | U5: 11 | V5: IZVOR | W5: OPIS IZVORA | Y5: 3111 | Z5: Plaće za redovan rad | AB5: =LEFT(Y5,2) -> 31 | AC5: =LEFT(Y5,3) -> 311 | AE5: AKTIVNOST | AF5: OPIS AKTIVNOSTI
A6: =IF(C6="","",VLOOKUP('OPĆI DIO'!$C$1,'OPĆI DIO'!$N$4:$W$137,10,FALSE)) -> 08006 | B6: =IF(C6="","",VLOOKUP('OPĆI DIO'!$C$1,'OPĆI DIO'!$N$4:$W$137,9,FALSE)) -> Sveučilišta i veleučilišta u Republici Hrvatskoj | C6: 11 | D6: 11 | E6: Opći prihodi i primici | F6: 3212 | G6: Naknade za prijevoz, za rad na terenu i odvojeni život | H6: A679134 | I6: 'PROGRAMSKO FINANCIRANJE JAVNIH VISOKIH UČILIŠTA 2025. - 2029. | J6: 0942 | K6: 157,155 | L6: 171,375 | M6: 185,150 | O6: =IF(C6="","",'OPĆI DIO'!$C$1) -> 1812 Sveučilište u Zagrebu FAKULTET PROMETNIH ZNANOSTI | P6: 321 | Q6: 32 | R6: 11 | S6: 94 | T6: 3 | U6: 11 | V6: 11 | W6: Opći prihodi i primici | X6: 11 | Y6: 3112 | Z6: Plaće u naravi | AB6: =LEFT(Y6,2) -> 31 | AC6: =LEFT(Y6,3) -> 311 | AE6: Podprogram (P3) | AF6: Naziv P3 | AG6: Funkcijsko područje | AH6: Naziv FP | AI6: NOVA AKT | AJ6: NOVA AKT
A7: =IF(C7="","",VLOOKUP('OPĆI DIO'!$C$1,'OPĆI DIO'!$N$4:$W$137,10,FALSE)) -> 08006 | B7: =IF(C7="","",VLOOKUP('OPĆI DIO'!$C$1,'OPĆI DIO'!$N$4:$W$137,9,FALSE)) -> Sveučilišta i veleučilišta u Republici Hrvatskoj | C7: 11 | D7: 11 | E7: Opći prihodi i primici | F7: 3236 | G7: Zdravstvene i veterinarske usluge | H7: A679134 | I7: 'PROGRAMSKO FINANCIRANJE JAVNIH VISOKIH UČILIŠTA 2025. - 2029. | J7: 0942 | K7: 14,225 | L7: 15,500 | M7: 16,750 | O7: =IF(C7="","",'OPĆI DIO'!$C$1) -> 1812 Sveučilište u Zagrebu FAKULTET PROMETNIH ZNANOSTI | P7: 323 | Q7: 32 | R7: 11 | S7: 94 | T7: 3 | U7: 11 | V7: 12 | W7: Sredstva učešća za pomoći | X7: 12 | Y7: 3113 | Z7: Plaće za prekovremeni rad | AB7: =LEFT(Y7,2) -> 31 | AC7: =LEFT(Y7,3) -> 311 | AE7: A111111 | AF7: PROGRAMSKO FINANCIRANJE JAVNIH VISOKIH UČILIŠTA | AG7: 0942 | AH7: Drugi stupanj visoke naobrazbe | AI7: =LEFT(AG7,2) -> 09 | AJ7: =LEFT(AG7,3) -> 094
A8: =IF(C8="","",VLOOKUP('OPĆI DIO'!$C$1,'OPĆI DIO'!$N$4:$W$137,10,FALSE)) -> 08006 | B8: =IF(C8="","",VLOOKUP('OPĆI DIO'!$C$1,'OPĆI DIO'!$N$4:$W$137,9,FALSE)) -> Sveučilišta i veleučilišta u Republici Hrvatskoj | C8: 11 | D8: 11 | E8: Opći prihodi i primici | F8: 3235 | G8: Zakupnine i najamnine | H8: A679134 | I8: 'PROGRAMSKO FINANCIRANJE JAVNIH VISOKIH UČILIŠTA 2025. - 2029. | J8: 0942 | K8: 34,989 | L8: 36,751 | M8: 38,595 | O8: =IF(C8="","",'OPĆI DIO'!$C$1) -> 1812 Sveučilište u Zagrebu FAKULTET PROMETNIH ZNANOSTI | P8: 323 | Q8: 32 | R8: 11 | S8: 94 | T8: 3 | U8: 11 | V8: 31 | W8: Vlastiti prihodi | X8: 31 | Y8: 3114 | Z8: Plaće za posebne uvjete rada | AB8: =LEFT(Y8,2) -> 31 | AC8: =LEFT(Y8,3) -> 311 | AE8: A222222 | AF8: PROGRAMSKO I OSTALO FINANCIRANJE JAVNIH VISOKIH UČILIŠTA – IZ EVIDENCIJSKIH PRIHODA | AG8: 0942 | AH8: Drugi stupanj visoke naobrazbe | AI8: 09 | AJ8: 094
A9: =IF(C9="","",VLOOKUP('OPĆI DIO'!$C$1,'OPĆI DIO'!$N$4:$W$137,10,FALSE)) -> 08006 | B9: =IF(C9="","",VLOOKUP('OPĆI DIO'!$C$1,'OPĆI DIO'!$N$4:$W$137,9,FALSE)) -> Sveučilišta i veleučilišta u Republici Hrvatskoj | C9: 11 | D9: 11 | E9: Opći prihodi i primici | F9: 3223 | G9: Energija | H9: A679134 | I9: 'PROGRAMSKO FINANCIRANJE JAVNIH VISOKIH UČILIŠTA 2025. - 2029. | J9: 0942 | K9: 29,697 | L9: 31,192 | M9: 32,746 | O9: =IF(C9="","",'OPĆI DIO'!$C$1) -> 1812 Sveučilište u Zagrebu FAKULTET PROMETNIH ZNANOSTI | P9: 322 | Q9: 32 | R9: 11 | S9: 94 | T9: 3 | U9: 11 | V9: 41 | W9: Prihodi od igara na sreću | X9: 41 | Y9: 3121 | Z9: Ostali rashodi za zaposlene | AB9: =LEFT(Y9,2) -> 31 | AC9: =LEFT(Y9,3) -> 312 | AE9: A333333 | AF9: PROGRAM PREKOGRANIČNE SURADNJE | AG9: 0942 | AH9: Drugi stupanj visoke naobrazbe | AI9: 09 | AJ9: 094
A10: =IF(C10="","",VLOOKUP('OPĆI DIO'!$C$1,'OPĆI DIO'!$N$4:$W$137,10,FALSE)) -> 08006 | B10: =IF(C10="","",VLOOKUP('OPĆI DIO'!$C$1,'OPĆI DIO'!$N$4:$W$137,9,FALSE)) -> Sveučilišta i veleučilišta u Republici Hrvatskoj | C10: 11 | D10: 11 | E10: Opći prihodi i primici | F10: 3224 | G10: Materijal i dijelovi za tekuće i investicijsko održavanje | H10: A679134 | I10: 'PROGRAMSKO FINANCIRANJE JAVNIH VISOKIH UČILIŠTA 2025. - 2029. | J10: 0942 | K10: 17,916 | L10: 18,775 | M10: 19,725 | O10: =IF(C10="","",'OPĆI DIO'!$C$1) -> 1812 Sveučilište u Zagrebu FAKULTET PROMETNIH ZNANOSTI | P10: 322 | Q10: 32 | R10: 11 | S10: 94 | T10: 3 | U10: 11 | V10: 43 | W10: Ostali prihodi za posebne namjene | X10: 43 | Y10: 3132 | Z10: Doprinosi za obvezno zdravstveno osiguranje | AB10: =LEFT(Y10,2) -> 31 | AC10: =LEFT(Y10,3) -> 313 | AE10: A444444 | AF10: PROGRAM PREKOGRANIČNE SURADNJE UPRAVLJAČKO TIJELO IZ INOZEMSTVA | AG10: 0942 | AH10: Drugi stupanj visoke naobrazbe | AI10: 09 | AJ10: 094
A11: =IF(C11="","",VLOOKUP('OPĆI DIO'!$C$1,'OPĆI DIO'!$N$4:$W$137,10,FALSE)) -> 08006 | B11: =IF(C11="","",VLOOKUP('OPĆI DIO'!$C$1,'OPĆI DIO'!$N$4:$W$137,9,FALSE)) -> Sveučilišta i veleučilišta u Republici Hrvatskoj | C11: 11 | D11: 11 | E11: Opći prihodi i primici | F11: 3221 | G11: Uredski materijal i ostali materijalni rashodi | H11: A679134 | I11: 'PROGRAMSKO FINANCIRANJE JAVNIH VISOKIH UČILIŠTA 2025. - 2029. | J11: 0942 | K11: 18,484 | L11: 19,415 | M11: 20,357 | O11: =IF(C11="","",'OPĆI DIO'!$C$1) -> 1812 Sveučilište u Zagrebu FAKULTET PROMETNIH ZNANOSTI | P11: 322 | Q11: 32 | R11: 11 | S11: 94 | T11: 3 | U11: 11 | V11: 5011 | W11: 5011 Pomoći iz državnog proračuna kroz opće prihode i primitke | X11: 50 | Y11: 3211 | Z11: Službena putovanja | AB11: 32 | AC11: 321 | AE11: A555555 | AF11: PROGRAM PREKOGRANIČNE SURADNJE | AG11: 0150 | AH11: Istraživanje i razvoj: Opće javne usluge | AI11: 01 | AJ11: 015
A12: =IF(C12="","",VLOOKUP('OPĆI DIO'!$C$1,'OPĆI DIO'!$N$4:$W$137,10,FALSE)) -> 08006 | B12: =IF(C12="","",VLOOKUP('OPĆI DIO'!$C$1,'OPĆI DIO'!$N$4:$W$137,9,FALSE)) -> Sveučilišta i veleučilišta u Republici Hrvatskoj | C12: 11 | D12: 11 | E12: Opći prihodi i primici | F12: 3225 | G12: Sitni inventar i autogume | H12: A679134 | I12: 'PROGRAMSKO FINANCIRANJE JAVNIH VISOKIH UČILIŠTA 2025. - 2029. | J12: 0942 | K12: 1,803 | L12: 1,860 | M12: 1,977 | O12: =IF(C12="","",'OPĆI DIO'!$C$1) -> 1812 Sveučilište u Zagrebu FAKULTET PROMETNIH ZNANOSTI | P12: 322 | Q12: 32 | R12: 11 | S12: 94 | T12: 3 | U12: 11 | V12: 5012 | W12: 5012 Pomoći iz državnog proračuna kroz nacionalno sufinanciranje EU projekata | X12: 50 | Y12: 3212 | Z12: Naknade za prijevoz, za rad na terenu i odvojeni život | AB12: 32 | AC12: 321 | AE12: A557041 | AF12: PREUZIMANJE OBVEZA ZA PROJEKTE JAVNO PRIVATNOG PARTNERSTVA U VARAŽDINSKOJ I KOPRIVNIČKO-KRIŽEVAČKOJ ŽUPANIJI | AG12: 0912 | AH12: Osnovno obrazovanje | AI12: 09 | AJ12: 091
A13: =IF(C13="","",VLOOKUP('OPĆI DIO'!$C$1,'OPĆI DIO'!$N$4:$W$137,10,FALSE)) -> 08006 | B13: =IF(C13="","",VLOOKUP('OPĆI DIO'!$C$1,'OPĆI DIO'!$N$4:$W$137,9,FALSE)) -> Sveučilišta i veleučilišta u Republici Hrvatskoj | C13: 11 | D13: 11 | E13: Opći prihodi i primici | F13: 3299 | G13: Ostali nespomenuti rashodi poslovanja | H13: A679134 | I13: 'PROGRAMSKO FINANCIRANJE JAVNIH VISOKIH UČILIŠTA 2025. - 2029. | J13: 0942 | K13: 47,319 | L13: 49,727 | M13: 52,227 | O13: =IF(C13="","",'OPĆI DIO'!$C$1) -> 1812 Sveučilište u Zagrebu FAKULTET PROMETNIH ZNANOSTI | P13: 329 | Q13: 32 | R13: 11 | S13: 94 | T13: 3 | U13: 11 | V13: 5051 | W13: 5041 Pomoći iz državnog proračuna kroz prihode od igara na sreću | X13: 50 | Y13: 3213 | Z13: Stručno usavršavanje zaposlenika | AB13: 32 | AC13: 321 | AE13: A557042 | AF13: PROGRAM DOKTORANADA I POSLIJEDOKTORANADA HRVATSKE ZAKLADE ZA ZNANOST | AG13: 0150 | AH13: Istraživanje i razvoj: Opće javne usluge | AI13: 01 | AJ13: 015
A14: =IF(C14="","",VLOOKUP('OPĆI DIO'!$C$1,'OPĆI DIO'!$N$4:$W$137,10,FALSE)) -> 08006 | B14: =IF(C14="","",VLOOKUP('OPĆI DIO'!$C$1,'OPĆI DIO'!$N$4:$W$137,9,FALSE)) -> Sveučilišta i veleučilišta u Republici Hrvatskoj | C14: 11 | D14: 11 | E14: Opći prihodi i primici | F14: 3211 | G14: Službena putovanja | H14: A679134 | I14: 'PROGRAMSKO FINANCIRANJE JAVNIH VISOKIH UČILIŠTA 2025. - 2029. | J14: 0942 | K14: 7,899 | L14: 8,298 | M14: 8,701 | O14: =IF(C14="","",'OPĆI DIO'!$C$1) -> 1812 Sveučilište u Zagrebu FAKULTET PROMETNIH ZNANOSTI | P14: 321 | Q14: 32 | R14: 11 | S14: 94 | T14: 3 | U14: 11 | V14: 5043 | W14: 5043 Pomoći iz državnog proračuna kroz ostale prihode za posebne namjene | X14: 50 | Y14: 3214 | Z14: Ostale naknade troškova zaposlenima | AB14: 32 | AC14: 321 | AE14: A557043 | AF14: NACIONALNO VIJEĆE ZA ODGOJ I OBRAZOVANJE | AG14: 0970 | AH14: Istraživanje i razvoj obrazovanja | AI14: 09 | AJ14: 097
A15: =IF(C15="","",VLOOKUP('OPĆI DIO'!$C$1,'OPĆI DIO'!$N$4:$W$137,10,FALSE)) -> 08006 | B15: =IF(C15="","",VLOOKUP('OPĆI DIO'!$C$1,'OPĆI DIO'!$N$4:$W$137,9,FALSE)) -> Sveučilišta i veleučilišta u Republici Hrvatskoj | C15: 11 | D15: 11 | E15: Opći prihodi i primici | F15: 3292 | G15: Premije osiguranja | H15: A679134 | I15: 'PROGRAMSKO FINANCIRANJE JAVNIH VISOKIH UČILIŠTA 2025. - 2029. | J15: 0942 | K15: 12,624 | L15: 13,217 | M15: 13,877 | O15: =IF(C15="","",'OPĆI DIO'!$C$1) -> 1812 Sveučilište u Zagrebu FAKULTET PROMETNIH ZNANOSTI | P15: 329 | Q15: 32 | R15: 11 | S15: 94 | T15: 3 | U15: 11 | V15: 5052 | W15: 5052 Pomoći iz državnog proračuna kroz ostale pomoći | X15: 50 | Y15: 3221 | Z15: Uredski materijal i ostali materijalni rashodi | AB15: 32 | AC15: 322 | AE15: A558047 | AF15: POLITIKA ZA MLADE | AG15: 1040 | AH15: Obitelj i djeca | AI15: 10 | AJ15: 104
A16: =IF(C16="","",VLOOKUP('OPĆI DIO'!$C$1,'OPĆI DIO'!$N$4:$W$137,10,FALSE)) -> 08006 | B16: =IF(C16="","",VLOOKUP('OPĆI DIO'!$C$1,'OPĆI DIO'!$N$4:$W$137,9,FALSE)) -> Sveučilišta i veleučilišta u Republici Hrvatskoj | C16: 11 | D16: 11 | E16: Opći prihodi i primici | F16: 3231 | G16: Usluge telefona, interneta, pošte i prijevoza | H16: A679134 | I16: 'PROGRAMSKO FINANCIRANJE JAVNIH VISOKIH UČILIŠTA 2025. - 2029. | J16: 0942 | K16: 20,288 | L16: 21,275 | M16: 22,334 | O16: =IF(C16="","",'OPĆI DIO'!$C$1) -> 1812 Sveučilište u Zagrebu FAKULTET PROMETNIH ZNANOSTI | P16: 323 | Q16: 32 | R16: 11 | S16: 94 | T16: 3 | U16: 11 | V16: 50810 | W16: 50810 Pomoći iz državnog proračuna kroz namjenske primitke od zaduživanja – ostali | X16: 50 | Y16: 3222 | Z16: Materijal i sirovine | AB16: 32 | AC16: 322 | AE16: A558053 | AF16: POTPORA ZA PROGRAME USMJERENE MLADIMA | AG16: 1040 | AH16: Obitelj i djeca | AI16: 10 | AJ16: 104
A17: =IF(C17="","",VLOOKUP('OPĆI DIO'!$C$1,'OPĆI DIO'!$N$4:$W$137,10,FALSE)) -> 08006 | B17: =IF(C17="","",VLOOKUP('OPĆI DIO'!$C$1,'OPĆI DIO'!$N$4:$W$137,9,FALSE)) -> Sveučilišta i veleučilišta u Republici Hrvatskoj | C17: 11 | D17: 11 | E17: Opći prihodi i primici | F17: 3212 | G17: Naknade za prijevoz, za rad na terenu i odvojeni život | H17: A679134 | I17: 'PROGRAMSKO FINANCIRANJE JAVNIH VISOKIH UČILIŠTA 2025. - 2029. | J17: 0942 | K17: 1,019 | L17: 1,060 | M17: 1,141 | O17: =IF(C17="","",'OPĆI DIO'!$C$1) -> 1812 Sveučilište u Zagrebu FAKULTET PROMETNIH ZNANOSTI | P17: 321 | Q17: 32 | R17: 11 | S17: 94 | T17: 3 | U17: 11 | V17: 50815 | W17: 50815 Pomoći iz državnog proračuna kroz namjenske primitke od zaduživanja – NPOO | X17: 50 | Y17: 3223 | Z17: Energija | AB17: 32 | AC17: 322 | AE17: A577000 | AF17: ADMINISTRACIJA I UPRAVLJANJE | AG17: 0970 | AH17: Istraživanje i razvoj obrazovanja | AI17: 09 | AJ17: 097
A18: =IF(C18="","",VLOOKUP('OPĆI DIO'!$C$1,'OPĆI DIO'!$N$4:$W$137,10,FALSE)) -> 08006 | B18: =IF(C18="","",VLOOKUP('OPĆI DIO'!$C$1,'OPĆI DIO'!$N$4:$W$137,9,FALSE)) -> Sveučilišta i veleučilišta u Republici Hrvatskoj | C18: 11 | D18: 11 | E18: Opći prihodi i primici | F18: 3238 | G18: Računalne usluge | H18: A679134 | I18: 'PROGRAMSKO FINANCIRANJE JAVNIH VISOKIH UČILIŠTA 2025. - 2029. | J18: 0942 | K18: 46,201 | L18: 48,508 | M18: 50,923 | O18: =IF(C18="","",'OPĆI DIO'!$C$1) -> 1812 Sveučilište u Zagrebu FAKULTET PROMETNIH ZNANOSTI | P18: 323 | Q18: 32 | R18: 11 | S18: 94 | T18: 3 | U18: 11 | V18: 51000 | W18: 51000 Programi Unije – raspoloživ predujam | X18: 51 | Y18: 3224 | Z18: Materijal i dijelovi za tekuće i investicijsko održavanje | AB18: 32 | AC18: 322 | AE18: A577004 | AF18: POTPORA UNAPREĐENJU SUSTAVA | AG18: 0970 | AH18: Istraživanje i razvoj obrazovanja | AI18: 09 | AJ18: 097
A19: =IF(C19="","",VLOOKUP('OPĆI DIO'!$C$1,'OPĆI DIO'!$N$4:$W$137,10,FALSE)) -> 08006 | B19: =IF(C19="","",VLOOKUP('OPĆI DIO'!$C$1,'OPĆI DIO'!$N$4:$W$137,9,FALSE)) -> Sveučilišta i veleučilišta u Republici Hrvatskoj | C19: 11 | D19: 11 | E19: Opći prihodi i primici | F19: 3232 | G19: Usluge tekućeg i investicijskog održavanja | H19: A679134 | I19: 'PROGRAMSKO FINANCIRANJE JAVNIH VISOKIH UČILIŠTA 2025. - 2029. | J19: 0942 | K19: 44,320 | L19: 46,568 | M19: 48,865 | O19: =IF(C19="","",'OPĆI DIO'!$C$1) -> 1812 Sveučilište u Zagrebu FAKULTET PROMETNIH ZNANOSTI | P19: 323 | Q19: 32 | R19: 11 | S19: 94 | T19: 3 | U19: 11 | V19: 51011 | W19: 51011 Programi Unije – predfinanciranje iz izvora 11 Opći prihodi i primici | X19: 11 | Y19: 3225 | Z19: Sitni inventar i autogume | AB19: 32 | AC19: 322 | AE19: A577012 | AF19: OBRAZOVANJE DJECE HRVATSKIH GRAĐANA U INOZEMSTVU | AG19: 0970 | AH19: Istraživanje i razvoj obrazovanja | AI19: 09 | AJ19: 097
A20: =IF(C20="","",VLOOKUP('OPĆI DIO'!$C$1,'OPĆI DIO'!$N$4:$W$137,10,FALSE)) -> 08006 | B20: =IF(C20="","",VLOOKUP('OPĆI DIO'!$C$1,'OPĆI DIO'!$N$4:$W$137,9,FALSE)) -> Sveučilišta i veleučilišta u Republici Hrvatskoj | C20: 11 | D20: 11 | E20: Opći prihodi i primici | F20: 3234 | G20: Komunalne usluge | H20: A679134 | I20: 'PROGRAMSKO FINANCIRANJE JAVNIH VISOKIH UČILIŠTA 2025. - 2029. | J20: 0942 | K20: 11,761 | L20: 12,335 | M20: 12,980 | O20: =IF(C20="","",'OPĆI DIO'!$C$1) -> 1812 Sveučilište u Zagrebu FAKULTET PROMETNIH ZNANOSTI | P20: 323 | Q20: 32 | R20: 11 | S20: 94 | T20: 3 | U20: 11 | V20: 51031 | W20: 51031 Programi Unije – predfinanciranje iz izvora 31 Vlastiti prihodi | X20: 31 | Y20: 3226 | Z20: Vojna sredstva za jednokratnu upotrebu | AB20: 32 | AC20: 322 | AE20: A577015 | AF20: DRŽAVNE NAGRADE ZA IZUZETNE REZULTATE U OBRAZOVANJU I TEHNIČKOJ KULTURI | AG20: 0942 | AH20: Drugi stupanj visoke naobrazbe | AI20: 09 | AJ20: 094
A21: =IF(C21="","",VLOOKUP('OPĆI DIO'!$C$1,'OPĆI DIO'!$N$4:$W$137,10,FALSE)) -> 08006 | B21: =IF(C21="","",VLOOKUP('OPĆI DIO'!$C$1,'OPĆI DIO'!$N$4:$W$137,9,FALSE)) -> Sveučilišta i veleučilišta u Republici Hrvatskoj | C21: 11 | D21: 11 | E21: Opći prihodi i primici | F21: 3431 | G21: Bankarske usluge i usluge platnog prometa | H21: A679134 | I21: 'PROGRAMSKO FINANCIRANJE JAVNIH VISOKIH UČILIŠTA 2025. - 2029. | J21: 0942 | K21: 8,919 | L21: 9,358 | M21: 9,842 | O21: =IF(C21="","",'OPĆI DIO'!$C$1) -> 1812 Sveučilište u Zagrebu FAKULTET PROMETNIH ZNANOSTI | P21: 343 | Q21: 34 | R21: 11 | S21: 94 | T21: 3 | U21: 11 | V21: 51043 | W21: 51043 Programi Unije – predfinanciranje iz izvora 43 Ostali prihodi za posebne namjene | X21: 43 | Y21: 3227 | Z21: Službena, radna i zaštitna odjeća i obuća | AB21: 32 | AC21: 322 | AE21: A577016 | AF21: PREVENCIJA NASILJA I OVISNOSTI | AG21: 0912 | AH21: Osnovno obrazovanje | AI21: 09 | AJ21: 091
A22: =IF(C22="","",VLOOKUP('OPĆI DIO'!$C$1,'OPĆI DIO'!$N$4:$W$137,10,FALSE)) -> 08006 | B22: =IF(C22="","",VLOOKUP('OPĆI DIO'!$C$1,'OPĆI DIO'!$N$4:$W$137,9,FALSE)) -> Sveučilišta i veleučilišta u Republici Hrvatskoj | C22: 11 | D22: 11 | E22: Opći prihodi i primici | F22: 3237 | G22: Intelektualne i osobne usluge | H22: A679134 | I22: 'PROGRAMSKO FINANCIRANJE JAVNIH VISOKIH UČILIŠTA 2025. - 2029. | J22: 0942 | K22: 79,152 | L22: 83,159 | M22: 87,297 | O22: =IF(C22="","",'OPĆI DIO'!$C$1) -> 1812 Sveučilište u Zagrebu FAKULTET PROMETNIH ZNANOSTI | P22: 323 | Q22: 32 | R22: 11 | S22: 94 | T22: 3 | U22: 11 | V22: 51081 | W22: 51081 Programi Unije – predfinanciranje iz izvora 81 Namjenski primici od zaduživanja | X22: 81 | Y22: 3231 | Z22: Usluge telefona, interneta, pošte i prijevoza | AB22: 32 | AC22: 323 | AE22: A577028 | AF22: POTICAJI HRVATSKOJ ZAJEDNICI TEHNIČKE KULTURE | AG22: 0820 | AH22: Službe kulture | AI22: 08 | AJ22: 082
A23: =IF(C23="","",VLOOKUP('OPĆI DIO'!$C$1,'OPĆI DIO'!$N$4:$W$137,10,FALSE)) -> 08006 | B23: =IF(C23="","",VLOOKUP('OPĆI DIO'!$C$1,'OPĆI DIO'!$N$4:$W$137,9,FALSE)) -> Sveučilišta i veleučilišta u Republici Hrvatskoj | C23: 11 | D23: 11 | E23: Opći prihodi i primici | F23: 3222 | G23: Materijal i sirovine | H23: A679134 | I23: 'PROGRAMSKO FINANCIRANJE JAVNIH VISOKIH UČILIŠTA 2025. - 2029. | J23: 0942 | K23: 41,320 | L23: 43,429 | M23: 45,564 | O23: =IF(C23="","",'OPĆI DIO'!$C$1) -> 1812 Sveučilište u Zagrebu FAKULTET PROMETNIH ZNANOSTI | P23: 322 | Q23: 32 | R23: 11 | S23: 94 | T23: 3 | U23: 11 | V23: 52 | W23: Ostale pomoći | X23: 52 | Y23: 3232 | Z23: Usluge tekućeg i investicijskog održavanja | AB23: 32 | AC23: 323 | AE23: A577124 | AF23: HRVATSKA NASTAVA U INOZEMSTVU | AG23: 0970 | AH23: Istraživanje i razvoj obrazovanja | AI23: 09 | AJ23: 097
A24: =IF(C24="","",VLOOKUP('OPĆI DIO'!$C$1,'OPĆI DIO'!$N$4:$W$137,10,FALSE)) -> 08006 | B24: =IF(C24="","",VLOOKUP('OPĆI DIO'!$C$1,'OPĆI DIO'!$N$4:$W$137,9,FALSE)) -> Sveučilišta i veleučilišta u Republici Hrvatskoj | C24: 11 | D24: 11 | E24: Opći prihodi i primici | F24: 3211 | G24: Službena putovanja | H24: A679134 | I24: 'PROGRAMSKO FINANCIRANJE JAVNIH VISOKIH UČILIŠTA 2025. - 2029. | J24: 0942 | K24: 30,637 | L24: 32,152 | M24: 33,765 | O24: =IF(C24="","",'OPĆI DIO'!$C$1) -> 1812 Sveučilište u Zagrebu FAKULTET PROMETNIH ZNANOSTI | P24: 321 | Q24: 32 | R24: 11 | S24: 94 | T24: 3 | U24: 11 | V24: 531 | W24: Švicarsko - hrvatski program suradnje | X24: 53 | Y24: 3233 | Z24: Usluge promidžbe i informiranja | AB24: 32 | AC24: 323 | AE24: A577130 | AF24: POTICAJI UDRUGAMA ZA IZVANINSTITUCIONALNI ODGOJ I OBRAZOVANJE DJECE I MLADIH | AG24: 0970 | AH24: Istraživanje i razvoj obrazovanja | AI24: 09 | AJ24: 097
A25: =IF(C25="","",VLOOKUP('OPĆI DIO'!$C$1,'OPĆI DIO'!$N$4:$W$137,10,FALSE)) -> 08006 | B25: =IF(C25="","",VLOOKUP('OPĆI DIO'!$C$1,'OPĆI DIO'!$N$4:$W$137,9,FALSE)) -> Sveučilišta i veleučilišta u Republici Hrvatskoj | C25: 11 | D25: 11 | E25: Opći prihodi i primici | F25: 3213 | G25: Stručno usavršavanje zaposlenika | H25: A679134 | I25: 'PROGRAMSKO FINANCIRANJE JAVNIH VISOKIH UČILIŠTA 2025. - 2029. | J25: 0942 | K25: 51,651 | L25: 54,226 | M25: 56,894 | O25: =IF(C25="","",'OPĆI DIO'!$C$1) -> 1812 Sveučilište u Zagrebu FAKULTET PROMETNIH ZNANOSTI | P25: 321 | Q25: 32 | R25: 11 | S25: 94 | T25: 3 | U25: 11 | V25: 532 | W25: Financijski mehanizam Europskog gospodarskog prostora i Norveški financijski mehanizam | X25: 53 | Y25: 3234 | Z25: Komunalne usluge | AB25: 32 | AC25: 323 | AE25: A577131 | AF25: POTICAJI OBRAZOVANJA NACIONALNIH MANJINA | AG25: 0970 | AH25: Istraživanje i razvoj obrazovanja | AI25: 09 | AJ25: 097
A26: =IF(C26="","",VLOOKUP('OPĆI DIO'!$C$1,'OPĆI DIO'!$N$4:$W$137,10,FALSE)) -> 08006 | B26: =IF(C26="","",VLOOKUP('OPĆI DIO'!$C$1,'OPĆI DIO'!$N$4:$W$137,9,FALSE)) -> Sveučilišta i veleučilišta u Republici Hrvatskoj | C26: 11 | D26: 11 | E26: Opći prihodi i primici | F26: 3239 | G26: Ostale usluge | H26: A679134 | I26: 'PROGRAMSKO FINANCIRANJE JAVNIH VISOKIH UČILIŠTA 2025. - 2029. | J26: 0942 | K26: 137,095 | L26: 143,943 | M26: 151,200 | O26: =IF(C26="","",'OPĆI DIO'!$C$1) -> 1812 Sveučilište u Zagrebu FAKULTET PROMETNIH ZNANOSTI | P26: 323 | Q26: 32 | R26: 11 | S26: 94 | T26: 3 | U26: 11 | V26: 533 | W26: Ostale darovnice | X26: 53 | Y26: 3235 | Z26: Zakupnine i najamnine | AB26: 32 | AC26: 323 | AE26: A577132 | AF26: POTICANJE MEĐUNARODNE OBRAZOVNE SURADNJE ŠKOLA | AG26: 0970 | AH26: Istraživanje i razvoj obrazovanja | AI26: 09 | AJ26: 097
A27: =IF(C27="","",VLOOKUP('OPĆI DIO'!$C$1,'OPĆI DIO'!$N$4:$W$137,10,FALSE)) ->  | B27: =IF(C27="","",VLOOKUP('OPĆI DIO'!$C$1,'OPĆI DIO'!$N$4:$W$137,9,FALSE)) ->  | O27: =IF(C27="","",'OPĆI DIO'!$C$1) ->  | V27: 54 | W27: Europski poljoprivredni jamstveni fond (EAGF) | X27: 54 | Y27: 3236 | Z27: Zdravstvene i veterinarske usluge | AB27: 32 | AC27: 323 | AE27: A577133 | AF27: POTICANJE PROGRAMA RADA S DAROVITIM UČENICIMA I STUDENTIMA | AG27: 0912 | AH27: Osnovno obrazovanje | AI27: 09 | AJ27: 091
A28: =IF(C28="","",VLOOKUP('OPĆI DIO'!$C$1,'OPĆI DIO'!$N$4:$W$137,10,FALSE)) -> 08006 | B28: =IF(C28="","",VLOOKUP('OPĆI DIO'!$C$1,'OPĆI DIO'!$N$4:$W$137,9,FALSE)) -> Sveučilišta i veleučilišta u Republici Hrvatskoj | C28: 11 | D28: 11 | E28: Opći prihodi i primici | F28: 3235 | G28: Zakupnine i najamnine | H28: A679134 | I28: 'PROGRAMSKO FINANCIRANJE JAVNIH VISOKIH UČILIŠTA 2025. - 2029. | J28: 0942 | K28: 5,000 | L28: 5,000 | M28: 5,000 | O28: =IF(C28="","",'OPĆI DIO'!$C$1) -> 1812 Sveučilište u Zagrebu FAKULTET PROMETNIH ZNANOSTI | P28: 323 | Q28: 32 | R28: 11 | S28: 94 | T28: 3 | U28: 11 | V28: 561 | W28: Europski socijalni fond plus – predfinanciranje iz izvora 11 Opći prihodi i primici | X28: 561 | Y28: 3237 | Z28: Intelektualne i osobne usluge | AB28: 32 | AC28: 323 | AE28: A577137 | AF28: POSEBNI PROGRAMI OBRAZOVANJA ZA PROVOĐENJE PROGRAMA NACIONALNIH MANJINA | AG28: 0970 | AH28: Istraživanje i razvoj obrazovanja | AI28: 09 | AJ28: 097
A29: =IF(C29="","",VLOOKUP('OPĆI DIO'!$C$1,'OPĆI DIO'!$N$4:$W$137,10,FALSE)) -> 08006 | B29: =IF(C29="","",VLOOKUP('OPĆI DIO'!$C$1,'OPĆI DIO'!$N$4:$W$137,9,FALSE)) -> Sveučilišta i veleučilišta u Republici Hrvatskoj | C29: 11 | D29: 11 | E29: Opći prihodi i primici | F29: 3237 | G29: Intelektualne i osobne usluge | H29: A679134 | I29: 'PROGRAMSKO FINANCIRANJE JAVNIH VISOKIH UČILIŠTA 2025. - 2029. | J29: 0942 | K29: 7,500 | L29: 10,000 | M29: 10,000 | O29: =IF(C29="","",'OPĆI DIO'!$C$1) -> 1812 Sveučilište u Zagrebu FAKULTET PROMETNIH ZNANOSTI | P29: 323 | Q29: 32 | R29: 11 | S29: 94 | T29: 3 | U29: 11 | V29: 562 | W29: Kohezijski fond | X29: 562 | Y29: 3238 | Z29: Računalne usluge | AB29: 32 | AC29: 323 | AE29: A577143 | AF29: RAZVOJ I ODRŽAVANJE INFORMACIJSKE INFRASTRUKTURE MINISTARSTVA | AG29: 0980 | AH29: Usluge obrazovanja koje nisu drugdje svrstane | AI29: 09 | AJ29: 098
A30: =IF(C30="","",VLOOKUP('OPĆI DIO'!$C$1,'OPĆI DIO'!$N$4:$W$137,10,FALSE)) -> 08006 | B30: =IF(C30="","",VLOOKUP('OPĆI DIO'!$C$1,'OPĆI DIO'!$N$4:$W$137,9,FALSE)) -> Sveučilišta i veleučilišta u Republici Hrvatskoj | C30: 11 | D30: 11 | E30: Opći prihodi i primici | F30: 3239 | G30: Ostale usluge | H30: A679134 | I30: 'PROGRAMSKO FINANCIRANJE JAVNIH VISOKIH UČILIŠTA 2025. - 2029. | J30: 0942 | K30: 1,793 | L30: 1,733 | M30: 5,219 | O30: =IF(C30="","",'OPĆI DIO'!$C$1) -> 1812 Sveučilište u Zagrebu FAKULTET PROMETNIH ZNANOSTI | P30: 323 | Q30: 32 | R30: 11 | S30: 94 | T30: 3 | U30: 11 | V30: 563 | W30: Europski fond za regionalni razvoj – predfinanciranje iz izvora 11 Opći prihodi i primici | X30: 563 | Y30: 3239 | Z30: Ostale usluge | AB30: 32 | AC30: 323 | AE30: A578003 | AF30: ODGOJ I NAOBRAZBA DJECE PRIPADNIKA NACIONALNIH MANJINA | AG30: 0911 | AH30: Predškolsko obrazovanje | AI30: 09 | AJ30: 091
A31: =IF(C31="","",VLOOKUP('OPĆI DIO'!$C$1,'OPĆI DIO'!$N$4:$W$137,10,FALSE)) -> 08006 | B31: =IF(C31="","",VLOOKUP('OPĆI DIO'!$C$1,'OPĆI DIO'!$N$4:$W$137,9,FALSE)) -> Sveučilišta i veleučilišta u Republici Hrvatskoj | C31: 11 | D31: 11 | E31: Opći prihodi i primici | F31: 4225 | G31: Instrumenti i uređaji | H31: A679134 | I31: 'PROGRAMSKO FINANCIRANJE JAVNIH VISOKIH UČILIŠTA 2025. - 2029. | J31: 0942 | K31: 4,000 | L31: 2,500 | M31: 0 | O31: =IF(C31="","",'OPĆI DIO'!$C$1) -> 1812 Sveučilište u Zagrebu FAKULTET PROMETNIH ZNANOSTI | P31: 422 | Q31: 42 | R31: 11 | S31: 94 | T31: 4 | U31: 11 | V31: 564 | W31: Fond za pomorstvo, ribarstvo i akvakulturu | X31: 564 | Y31: 3241 | Z31: Naknade troškova osobama izvan radnog odnosa | AB31: 32 | AC31: 324 | AE31: A578004 | AF31: PREDŠKOLSKI ODGOJ I OBRAZOVANJE DJECE S TEŠKOĆAMA U RAZVOJU (SUFINANCIRANJE) | AG31: 0911 | AH31: Predškolsko obrazovanje | AI31: 09 | AJ31: 091
A32: =IF(C32="","",VLOOKUP('OPĆI DIO'!$C$1,'OPĆI DIO'!$N$4:$W$137,10,FALSE)) -> 08006 | B32: =IF(C32="","",VLOOKUP('OPĆI DIO'!$C$1,'OPĆI DIO'!$N$4:$W$137,9,FALSE)) -> Sveučilišta i veleučilišta u Republici Hrvatskoj | C32: 11 | D32: 11 | E32: Opći prihodi i primici | F32: 3225 | G32: Sitni inventar i autogume | H32: A679134 | I32: 'PROGRAMSKO FINANCIRANJE JAVNIH VISOKIH UČILIŠTA 2025. - 2029. | J32: 0942 | K32: 500 | L32: 500 | M32: 500 | O32: =IF(C32="","",'OPĆI DIO'!$C$1) -> 1812 Sveučilište u Zagrebu FAKULTET PROMETNIH ZNANOSTI | P32: 322 | Q32: 32 | R32: 11 | S32: 94 | T32: 3 | U32: 11 | V32: 565 | W32: Europski poljoprivredni fond za ruralni razvoj | X32: 565 | Y32: 3291 | Z32: Naknade za rad predstavničkih i izvršnih tijela, povjerensta | AB32: 32 | AC32: 329 | AE32: A578008 | AF32: ODGOJ I NAOBRAZBA DJECE U PROGRAMIMA PREDŠKOLE | AG32: 0911 | AH32: Predškolsko obrazovanje | AI32: 09 | AJ32: 091
A33: =IF(C33="","",VLOOKUP('OPĆI DIO'!$C$1,'OPĆI DIO'!$N$4:$W$137,10,FALSE)) ->  | B33: =IF(C33="","",VLOOKUP('OPĆI DIO'!$C$1,'OPĆI DIO'!$N$4:$W$137,9,FALSE)) ->  | O33: =IF(C33="","",'OPĆI DIO'!$C$1) ->  | V33: 566 | W33: Modernizacijski fond | X33: 566 | Y33: 3292 | Z33: Premije osiguranja | AB33: 32 | AC33: 329 | AE33: A578009 | AF33: ODGOJ I OBRAZOVANJE DAROVITE DJECE PREDŠKOLSKE DOBI U DJEČJIM VRTIĆIMA | AG33: 0911 | AH33: Predškolsko obrazovanje | AI33: 09 | AJ33: 091
A34: =IF(C34="","",VLOOKUP('OPĆI DIO'!$C$1,'OPĆI DIO'!$N$4:$W$137,10,FALSE)) -> 08006 | B34: =IF(C34="","",VLOOKUP('OPĆI DIO'!$C$1,'OPĆI DIO'!$N$4:$W$137,9,FALSE)) -> Sveučilišta i veleučilišta u Republici Hrvatskoj | C34: 11 | D34: 11 | E34: Opći prihodi i primici | F34: 3237 | G34: Intelektualne i osobne usluge | H34: A679134 | I34: 'PROGRAMSKO FINANCIRANJE JAVNIH VISOKIH UČILIŠTA 2025. - 2029. | J34: 0942 | K34: 12,000 | L34: 12,000 | M34: 12,000 | O34: =IF(C34="","",'OPĆI DIO'!$C$1) -> 1812 Sveučilište u Zagrebu FAKULTET PROMETNIH ZNANOSTI | P34: 323 | Q34: 32 | R34: 11 | S34: 94 | T34: 3 | U34: 11 | V34: 567 | W34: Socijalni fond za klimatsku politiku | X34: 567 | Y34: 3293 | Z34: Reprezentacija | AB34: 32 | AC34: 329 | AE34: A578041 | AF34: POMOĆNICI U NASTAVI ZA DJECU S TEŠKOĆAMA U RAZVOJU | AG34: 0970 | AH34: Istraživanje i razvoj obrazovanja | AI34: 09 | AJ34: 097
A35: =IF(C35="","",VLOOKUP('OPĆI DIO'!$C$1,'OPĆI DIO'!$N$4:$W$137,10,FALSE)) -> 08006 | B35: =IF(C35="","",VLOOKUP('OPĆI DIO'!$C$1,'OPĆI DIO'!$N$4:$W$137,9,FALSE)) -> Sveučilišta i veleučilišta u Republici Hrvatskoj | C35: 11 | D35: 11 | E35: Opći prihodi i primici | F35: 4225 | G35: Instrumenti i uređaji | H35: A679134 | I35: 'PROGRAMSKO FINANCIRANJE JAVNIH VISOKIH UČILIŠTA 2025. - 2029. | J35: 0942 | K35: 35,000 | L35: 35,000 | M35: 35,000 | O35: =IF(C35="","",'OPĆI DIO'!$C$1) -> 1812 Sveučilište u Zagrebu FAKULTET PROMETNIH ZNANOSTI | P35: 422 | Q35: 42 | R35: 11 | S35: 94 | T35: 4 | U35: 11 | V35: 575 | W35: Fond za azil, migracije i integraciju – predfinanciranje iz izvora 11 Opći prihodi i primici | X35: 575 | Y35: 3293 | Z35: Reprezentacija | AB35: 32 | AC35: 329 | AE35: A578042 | AF35: OSIGURANJE UČENIKA I STUDENATA NA PRAKTIČNOJ NASTAVI I STRUČNOJ PRAKSI | AG35: 0980 | AH35: Usluge obrazovanja koje nisu drugdje svrstane | AI35: 09 | AJ35: 098
A36: =IF(C36="","",VLOOKUP('OPĆI DIO'!$C$1,'OPĆI DIO'!$N$4:$W$137,10,FALSE)) -> 08006 | B36: =IF(C36="","",VLOOKUP('OPĆI DIO'!$C$1,'OPĆI DIO'!$N$4:$W$137,9,FALSE)) -> Sveučilišta i veleučilišta u Republici Hrvatskoj | C36: 11 | D36: 11 | E36: Opći prihodi i primici | F36: 4221 | G36: Uredska oprema i namještaj | H36: A679134 | I36: 'PROGRAMSKO FINANCIRANJE JAVNIH VISOKIH UČILIŠTA 2025. - 2029. | J36: 0942 | K36: 35,000 | L36: 35,000 | M36: 35,000 | O36: =IF(C36="","",'OPĆI DIO'!$C$1) -> 1812 Sveučilište u Zagrebu FAKULTET PROMETNIH ZNANOSTI | P36: 422 | Q36: 42 | R36: 11 | S36: 94 | T36: 4 | U36: 11 | V36: 577 | W36: Fond za pravednu tranziciju | X36: 577 | Y36: 3294 | Z36: Članarine i norme | AB36: 32 | AC36: 329 | AE36: A578045 | AF36: SUFINANCIRANJE NASTAVNIH MATERIJALA I OPREME ZA UČENIKE OSNOVNIH I SREDNJIH ŠKOLA | AG36: 0970 | AH36: Istraživanje i razvoj obrazovanja | AI36: 09 | AJ36: 097
A37: =IF(C37="","",VLOOKUP('OPĆI DIO'!$C$1,'OPĆI DIO'!$N$4:$W$137,10,FALSE)) -> 08006 | B37: =IF(C37="","",VLOOKUP('OPĆI DIO'!$C$1,'OPĆI DIO'!$N$4:$W$137,9,FALSE)) -> Sveučilišta i veleučilišta u Republici Hrvatskoj | C37: 11 | D37: 11 | E37: Opći prihodi i primici | F37: 3239 | G37: Ostale usluge | H37: A679134 | I37: 'PROGRAMSKO FINANCIRANJE JAVNIH VISOKIH UČILIŠTA 2025. - 2029. | J37: 0942 | K37: 4,110 | L37: 9,396 | M37: 14,946 | O37: =IF(C37="","",'OPĆI DIO'!$C$1) -> 1812 Sveučilište u Zagrebu FAKULTET PROMETNIH ZNANOSTI | P37: 323 | Q37: 32 | R37: 11 | S37: 94 | T37: 3 | U37: 11 | V37: 578 | W37: Fond za unutarnju sigurnost | X37: 578 | Y37: 3295 | Z37: Pristojbe i naknade | AB37: 32 | AC37: 329 | AE37: A578050 | AF37: POTPORA INOVACIJSKIM PROCESIMA | AG37: 0150 | AH37: Istraživanje i razvoj: Opće javne usluge | AI37: 01 | AJ37: 015
A38: =IF(C38="","",VLOOKUP('OPĆI DIO'!$C$1,'OPĆI DIO'!$N$4:$W$137,10,FALSE)) -> 08006 | B38: =IF(C38="","",VLOOKUP('OPĆI DIO'!$C$1,'OPĆI DIO'!$N$4:$W$137,9,FALSE)) -> Sveučilišta i veleučilišta u Republici Hrvatskoj | C38: 11 | D38: 11 | E38: Opći prihodi i primici | F38: 3235 | G38: Zakupnine i najamnine | H38: A679134 | I38: 'PROGRAMSKO FINANCIRANJE JAVNIH VISOKIH UČILIŠTA 2025. - 2029. | J38: 0942 | K38: 19,600 | L38: 19,600 | M38: 19,600 | O38: =IF(C38="","",'OPĆI DIO'!$C$1) -> 1812 Sveučilište u Zagrebu FAKULTET PROMETNIH ZNANOSTI | P38: 323 | Q38: 32 | R38: 11 | S38: 94 | T38: 3 | U38: 11 | V38: 579 | W38: Fond za integrirano upravljanje granicama | X38: 579 | Y38: 3296 | Z38: Troškovi sudskih postupaka | AB38: 32 | AC38: 329 | AE38: A578055 | AF38: HRVATSKO-ŠVICARSKI ISTRAŽIVAČKI PROGRAM | AG38: 0150 | AH38: Istraživanje i razvoj: Opće javne usluge | AI38: 01 | AJ38: 015
A39: =IF(C39="","",VLOOKUP('OPĆI DIO'!$C$1,'OPĆI DIO'!$N$4:$W$137,10,FALSE)) ->  | B39: =IF(C39="","",VLOOKUP('OPĆI DIO'!$C$1,'OPĆI DIO'!$N$4:$W$137,9,FALSE)) ->  | O39: =IF(C39="","",'OPĆI DIO'!$C$1) ->  | V39: 581 | W39: Mehanizam za oporavak i otpornost – bespovratna sredstva – raspoloživ predujam ili unaprijed naplaćen prihod | X39: 581 | Y39: 3299 | Z39: Ostali nespomenuti rashodi poslovanja | AB39: 32 | AC39: 329 | AE39: A578059 | AF39: EUROPSKA MREŽA ŠKOLA - EUROPEAN SCHOOLNET | AG39: 0970 | AH39: Istraživanje i razvoj obrazovanja | AI39: 09 | AJ39: 097
A40: =IF(C40="","",VLOOKUP('OPĆI DIO'!$C$1,'OPĆI DIO'!$N$4:$W$137,10,FALSE)) -> 08006 | B40: =IF(C40="","",VLOOKUP('OPĆI DIO'!$C$1,'OPĆI DIO'!$N$4:$W$137,9,FALSE)) -> Sveučilišta i veleučilišta u Republici Hrvatskoj | C40: 11 | D40: 11 | E40: Opći prihodi i primici | F40: 4225 | G40: Instrumenti i uređaji | H40: A679134 | I40: 'PROGRAMSKO FINANCIRANJE JAVNIH VISOKIH UČILIŠTA 2025. - 2029. | J40: 0942 | K40: 10,000 | L40: 10,000 | M40: 10,000 | O40: =IF(C40="","",'OPĆI DIO'!$C$1) -> 1812 Sveučilište u Zagrebu FAKULTET PROMETNIH ZNANOSTI | P40: 422 | Q40: 42 | R40: 11 | S40: 94 | T40: 4 | U40: 11 | V40: 61 | W40: Donacije | X40: 61 | Y40: 3411 | Z40: Kamate za izdane trezorske zapise | AB40: 34 | AC40: 341 | AE40: A578061 | AF40: OBZOR 2020. - PROGRAM POTICANJA ISTRAŽIVANJA I RAZVOJA U PERSONALIZIRANOJ MEDICINI – ERA PERMED | AG40: 0150 | AH40: Istraživanje i razvoj: Opće javne usluge | AI40: 01 | AJ40: 015
A41: =IF(C41="","",VLOOKUP('OPĆI DIO'!$C$1,'OPĆI DIO'!$N$4:$W$137,10,FALSE)) -> 08006 | B41: =IF(C41="","",VLOOKUP('OPĆI DIO'!$C$1,'OPĆI DIO'!$N$4:$W$137,9,FALSE)) -> Sveučilišta i veleučilišta u Republici Hrvatskoj | C41: 11 | D41: 11 | E41: Opći prihodi i primici | F41: 3235 | G41: Zakupnine i najamnine | H41: A679134 | I41: 'PROGRAMSKO FINANCIRANJE JAVNIH VISOKIH UČILIŠTA 2025. - 2029. | J41: 0942 | K41: 12,000 | L41: 12,000 | M41: 12,000 | O41: =IF(C41="","",'OPĆI DIO'!$C$1) -> 1812 Sveučilište u Zagrebu FAKULTET PROMETNIH ZNANOSTI | P41: 323 | Q41: 32 | R41: 11 | S41: 94 | T41: 3 | U41: 11 | V41: 71 | W41: Prihodi od nefin. imovine i nadoknade štete s osnova osig. | X41: 71 | Y41: 3422 | Z41: Kamate za primljene kredite i zajmove od kreditnih i ostalih | AB41: 34 | AC41: 342 | AE41: A578069 | AF41: ADMINISTRACIJA I UPRAVLJANJE HRVATSKE ZAKLADE ZA ZNANOST | AG41: 0150 | AH41: Istraživanje i razvoj: Opće javne usluge | AI41: 01 | AJ41: 015
A42: =IF(C42="","",VLOOKUP('OPĆI DIO'!$C$1,'OPĆI DIO'!$N$4:$W$137,10,FALSE)) -> 08006 | B42: =IF(C42="","",VLOOKUP('OPĆI DIO'!$C$1,'OPĆI DIO'!$N$4:$W$137,9,FALSE)) -> Sveučilišta i veleučilišta u Republici Hrvatskoj | C42: 11 | D42: 11 | E42: Opći prihodi i primici | F42: 4222 | G42: Komunikacijska oprema | H42: A679134 | I42: 'PROGRAMSKO FINANCIRANJE JAVNIH VISOKIH UČILIŠTA 2025. - 2029. | J42: 0942 | K42: 12,062 | L42: 13,765 | M42: 15,554 | O42: =IF(C42="","",'OPĆI DIO'!$C$1) -> 1812 Sveučilište u Zagrebu FAKULTET PROMETNIH ZNANOSTI | P42: 422 | Q42: 42 | R42: 11 | S42: 94 | T42: 4 | U42: 11 | V42: 810 | W42: Namjenski primici od zaduživanja – ostali | X42: 810 | Y42: 3423 | Z42: Kamate za primljene kredite i zajmove od kreditnih i ostalih | AB42: =LEFT(Y42,2) -> 34 | AC42: =LEFT(Y42,3) -> 342 | AE42: A578072 | AF42: OBZOR ERA-NET CHANSE | AG42: 0150 | AH42: Istraživanje i razvoj: Opće javne usluge | AI42: 01 | AJ42: 015
A43: =IF(C43="","",VLOOKUP('OPĆI DIO'!$C$1,'OPĆI DIO'!$N$4:$W$137,10,FALSE)) ->  | B43: =IF(C43="","",VLOOKUP('OPĆI DIO'!$C$1,'OPĆI DIO'!$N$4:$W$137,9,FALSE)) ->  | O43: =IF(C43="","",'OPĆI DIO'!$C$1) ->  | V43: 815 | W43: Mehanizam za oporavak i otpornost (NPOO – zajam) | X43: 815 | Y43: 3427 | Z43: Kamate za primljene zajmove od trgovačkih društava i obrtnik | AB43: 34 | AC43: 342 | AE43: A578073 | AF43: PROGRAM MOBILNOSTI - NPOO (C3.2. R2-I1 ) | AG43: 0150 | AH43: Istraživanje i razvoj: Opće javne usluge | AI43: 01 | AJ43: 015
A44: =IF(C44="","",VLOOKUP('OPĆI DIO'!$C$1,'OPĆI DIO'!$N$4:$W$137,10,FALSE)) -> 08006 | B44: =IF(C44="","",VLOOKUP('OPĆI DIO'!$C$1,'OPĆI DIO'!$N$4:$W$137,9,FALSE)) -> Sveučilišta i veleučilišta u Republici Hrvatskoj | C44: 11 | D44: 11 | E44: Opći prihodi i primici | F44: 3238 | G44: Računalne usluge | H44: A679134 | I44: 'PROGRAMSKO FINANCIRANJE JAVNIH VISOKIH UČILIŠTA 2025. - 2029. | J44: 0942 | K44: 10,000 | L44: 10,000 | M44: 10,000 | O44: =IF(C44="","",'OPĆI DIO'!$C$1) -> 1812 Sveučilište u Zagrebu FAKULTET PROMETNIH ZNANOSTI | P44: 323 | Q44: 32 | R44: 11 | S44: 94 | T44: 3 | U44: 11 | Y44: 3431 | Z44: Bankarske usluge i usluge platnog prometa | AB44: 34 | AC44: 343 | AE44: A578074 | AF44: DRUGI ŠVICARSKI DOPRINOS - MULTILATERALNI POZIVI ZA ZAJEDNIČKE ISTRAŽIVAČKE PROJEKTE (MCJRP) | AG44: 0150 | AH44: Istraživanje i razvoj: Opće javne usluge | AI44: 01 | AJ44: 015
A45: =IF(C45="","",VLOOKUP('OPĆI DIO'!$C$1,'OPĆI DIO'!$N$4:$W$137,10,FALSE)) -> 08006 | B45: =IF(C45="","",VLOOKUP('OPĆI DIO'!$C$1,'OPĆI DIO'!$N$4:$W$137,9,FALSE)) -> Sveučilišta i veleučilišta u Republici Hrvatskoj | C45: 11 | D45: 11 | E45: Opći prihodi i primici | F45: 3233 | G45: Usluge promidžbe i informiranja | H45: A679134 | I45: 'PROGRAMSKO FINANCIRANJE JAVNIH VISOKIH UČILIŠTA 2025. - 2029. | J45: 0942 | K45: 5,000 | L45: 5,000 | M45: 5,000 | O45: =IF(C45="","",'OPĆI DIO'!$C$1) -> 1812 Sveučilište u Zagrebu FAKULTET PROMETNIH ZNANOSTI | P45: 323 | Q45: 32 | R45: 11 | S45: 94 | T45: 3 | U45: 11 | Y45: 3432 | Z45: Negativne tečajne razlike i razlike zbog primjene valutne kl | AB45: 34 | AC45: 343 | AE45: A579000 | AF45: OSNOVNOŠKOLSKO OBRAZOVANJE | AG45: 0180 | AH45: Prijenosi općeg karaktera između različitih državnih razina | AI45: 01 | AJ45: 018
A46: =IF(C46="","",VLOOKUP('OPĆI DIO'!$C$1,'OPĆI DIO'!$N$4:$W$137,10,FALSE)) -> 08006 | B46: =IF(C46="","",VLOOKUP('OPĆI DIO'!$C$1,'OPĆI DIO'!$N$4:$W$137,9,FALSE)) -> Sveučilišta i veleučilišta u Republici Hrvatskoj | C46: 11 | D46: 11 | E46: Opći prihodi i primici | F46: 3237 | G46: Intelektualne i osobne usluge | H46: A679134 | I46: 'PROGRAMSKO FINANCIRANJE JAVNIH VISOKIH UČILIŠTA 2025. - 2029. | J46: 0942 | K46: 6,250 | L46: 6,250 | M46: 6,250 | O46: =IF(C46="","",'OPĆI DIO'!$C$1) -> 1812 Sveučilište u Zagrebu FAKULTET PROMETNIH ZNANOSTI | P46: 323 | Q46: 32 | R46: 11 | S46: 94 | T46: 3 | U46: 11 | Y46: 3433 | Z46: Zatezne kamate | AB46: 34 | AC46: 343 | AE46: A579003 | AF46: ODGOJ I NAOBRAZBA UČENIKA S TEŠKOĆAMA U RAZVOJU U OSNOVNIM ŠKOLAMA | AG46: 0912 | AH46: Osnovno obrazovanje | AI46: 09 | AJ46: 091
A47: =IF(C47="","",VLOOKUP('OPĆI DIO'!$C$1,'OPĆI DIO'!$N$4:$W$137,10,FALSE)) -> 08006 | B47: =IF(C47="","",VLOOKUP('OPĆI DIO'!$C$1,'OPĆI DIO'!$N$4:$W$137,9,FALSE)) -> Sveučilišta i veleučilišta u Republici Hrvatskoj | C47: 11 | D47: 11 | E47: Opći prihodi i primici | F47: 3239 | G47: Ostale usluge | H47: A679134 | I47: 'PROGRAMSKO FINANCIRANJE JAVNIH VISOKIH UČILIŠTA 2025. - 2029. | J47: 0942 | K47: 17,765 | L47: 19,716 | M47: 21,764 | O47: =IF(C47="","",'OPĆI DIO'!$C$1) -> 1812 Sveučilište u Zagrebu FAKULTET PROMETNIH ZNANOSTI | P47: 323 | Q47: 32 | R47: 11 | S47: 94 | T47: 3 | U47: 11 | Y47: 3434 | Z47: Ostali nespomenuti financijski rashodi | AB47: 34 | AC47: 343 | AE47: A579004 | AF47: POTICANJE IZVANNASTAVNIH AKTIVNOSTI U OŠ | AG47: 0970 | AH47: Istraživanje i razvoj obrazovanja | AI47: 09 | AJ47: 097
A48: =IF(C48="","",VLOOKUP('OPĆI DIO'!$C$1,'OPĆI DIO'!$N$4:$W$137,10,FALSE)) ->  | B48: =IF(C48="","",VLOOKUP('OPĆI DIO'!$C$1,'OPĆI DIO'!$N$4:$W$137,9,FALSE)) ->  | O48: =IF(C48="","",'OPĆI DIO'!$C$1) ->  | Y48: 3511 | Z48: Subvencije kreditnim i ostalim financijskim institucijama u | AB48: 35 | AC48: 351 | AE48: A579007 | AF48: PRAVOMOĆNE SUDSKE PRESUDE | AG48: 0180 | AH48: Prijenosi općeg karaktera između različitih državnih razina | AI48: 01 | AJ48: 018
A49: =IF(C49="","",VLOOKUP('OPĆI DIO'!$C$1,'OPĆI DIO'!$N$4:$W$137,10,FALSE)) ->  | B49: =IF(C49="","",VLOOKUP('OPĆI DIO'!$C$1,'OPĆI DIO'!$N$4:$W$137,9,FALSE)) ->  | D49: 581 | F49: 3213 | G49: Stručno usavršavanje zaposlenika | H49: A679136 | I49: RAZVOJ SUSTAVA PROGRAMSKIH SPORAZUMA ZA FINANCIRANJE SVEUČILIŠTA I ZNANSTVENIH INSTITUTA USMJERENIH NA INOVACIJE, ISTRAŽIVANJE I RAZVOJ - NPOO (C3.2. R1-I1 ) | J49: 0942 | K49: 55,373 | L49: 55,373 | M49: 55,373 | O49: =IF(C49="","",'OPĆI DIO'!$C$1) ->  | P49: 321 | Q49: 32 | S49: 94 | T49: 3 | Y49: 3512 | Z49: Subvencije trgovačkim društvima u javnom sektoru | AB49: 35 | AC49: 351 | AE49: A579069 | AF49: RAZVOJ PREDŠKOLSKOG I OSNOVNOŠKOLSKOG SUSTAVA ODGOJA I OBRAZOVANJA | AG49: 0912 | AH49: Osnovno obrazovanje | AI49: 09 | AJ49: 091
A50: =IF(C50="","",VLOOKUP('OPĆI DIO'!$C$1,'OPĆI DIO'!$N$4:$W$137,10,FALSE)) ->  | B50: =IF(C50="","",VLOOKUP('OPĆI DIO'!$C$1,'OPĆI DIO'!$N$4:$W$137,9,FALSE)) ->  | D50: 581 | F50: 4225 | G50: Instrumenti i uređaji | H50: A679136 | I50: RAZVOJ SUSTAVA PROGRAMSKIH SPORAZUMA ZA FINANCIRANJE SVEUČILIŠTA I ZNANSTVENIH INSTITUTA USMJERENIH NA INOVACIJE, ISTRAŽIVANJE I RAZVOJ - NPOO (C3.2. R1-I1 ) | J50: 0942 | K50: 105,622 | L50: 105,622 | M50: 105,622 | O50: =IF(C50="","",'OPĆI DIO'!$C$1) ->  | P50: 422 | Q50: 42 | S50: 94 | T50: 4 | Y50: 3522 | Z50: Subvencije trgovačkim društvima izvan javnog sektora | AB50: 35 | AC50: 352 | AE50: A579072 | AF50: POTPORA UČENICIMA RASELJENIMA IZ UKRAJINE | AG50: 0970 | AH50: Istraživanje i razvoj obrazovanja | AI50: 09 | AJ50: 097
A51: =IF(C51="","",VLOOKUP('OPĆI DIO'!$C$1,'OPĆI DIO'!$N$4:$W$137,10,FALSE)) ->  | B51: =IF(C51="","",VLOOKUP('OPĆI DIO'!$C$1,'OPĆI DIO'!$N$4:$W$137,9,FALSE)) ->  | D51: 581 | F51: 3239 | G51: Ostale usluge | H51: A679136 | I51: RAZVOJ SUSTAVA PROGRAMSKIH SPORAZUMA ZA FINANCIRANJE SVEUČILIŠTA I ZNANSTVENIH INSTITUTA USMJERENIH NA INOVACIJE, ISTRAŽIVANJE I RAZVOJ - NPOO (C3.2. R1-I1 ) | J51: 0942 | K51: 9,490 | L51: 9,490 | M51: 9,490 | O51: =IF(C51="","",'OPĆI DIO'!$C$1) ->  | P51: 323 | Q51: 32 | S51: 94 | T51: 3 | Y51: 3531 | Z51: Subvencije trgovačkim društvima, zadrugama, poljoprivrednici | AB51: 35 | AC51: 353 | AE51: A579073 | AF51: UČIMO PODUZETNIŠTVO 5.0 | AG51: 0970 | AH51: Istraživanje i razvoj obrazovanja | AI51: 09 | AJ51: 097
A52: =IF(C52="","",VLOOKUP('OPĆI DIO'!$C$1,'OPĆI DIO'!$N$4:$W$137,10,FALSE)) ->  | B52: =IF(C52="","",VLOOKUP('OPĆI DIO'!$C$1,'OPĆI DIO'!$N$4:$W$137,9,FALSE)) ->  | D52: 581 | F52: 3237 | G52: Intelektualne i osobne usluge | H52: A679136 | I52: RAZVOJ SUSTAVA PROGRAMSKIH SPORAZUMA ZA FINANCIRANJE SVEUČILIŠTA I ZNANSTVENIH INSTITUTA USMJERENIH NA INOVACIJE, ISTRAŽIVANJE I RAZVOJ - NPOO (C3.2. R1-I1 ) | J52: 0942 | K52: 60,460 | L52: 60,460 | M52: 60,460 | O52: =IF(C52="","",'OPĆI DIO'!$C$1) ->  | P52: 323 | Q52: 32 | S52: 94 | T52: 3 | Y52: 3611 | Z52: Tekuće pomoći inozemnim vladama | AB52: 36 | AC52: 361 | AE52: A580000 | AF52: SREDNJOŠKOLSKO OBRAZOVANJE | AG52: 0180 | AH52: Prijenosi općeg karaktera između različitih državnih razina | AI52: 01 | AJ52: 018
A53: =IF(C53="","",VLOOKUP('OPĆI DIO'!$C$1,'OPĆI DIO'!$N$4:$W$137,10,FALSE)) ->  | B53: =IF(C53="","",VLOOKUP('OPĆI DIO'!$C$1,'OPĆI DIO'!$N$4:$W$137,9,FALSE)) ->  | D53: 581 | F53: 3235 | G53: Zakupnine i najamnine | H53: A679136 | I53: RAZVOJ SUSTAVA PROGRAMSKIH SPORAZUMA ZA FINANCIRANJE SVEUČILIŠTA I ZNANSTVENIH INSTITUTA USMJERENIH NA INOVACIJE, ISTRAŽIVANJE I RAZVOJ - NPOO (C3.2. R1-I1 ) | J53: 0942 | K53: 25,100 | L53: 25,100 | M53: 25,100 | O53: =IF(C53="","",'OPĆI DIO'!$C$1) ->  | P53: 323 | Q53: 32 | S53: 94 | T53: 3 | Y53: 3621 | Z53: Tekuće pomoći međunarodnim organizacijama te institucijama i | AB53: 36 | AC53: 362 | AE53: A580003 | AF53: POTICANJE IZVANNASTAVNIH AKTIVNOSTI U SREDNJIM ŠKOLAMA I VISOKOŠKOLSKOM OBRAZOVANJU | AG53: 0922 | AH53: Više srednjoškolsko obrazovanje | AI53: 09 | AJ53: 092
A54: =IF(C54="","",VLOOKUP('OPĆI DIO'!$C$1,'OPĆI DIO'!$N$4:$W$137,10,FALSE)) ->  | B54: =IF(C54="","",VLOOKUP('OPĆI DIO'!$C$1,'OPĆI DIO'!$N$4:$W$137,9,FALSE)) ->  | D54: 581 | F54: 3211 | G54: Službena putovanja | H54: A679136 | I54: RAZVOJ SUSTAVA PROGRAMSKIH SPORAZUMA ZA FINANCIRANJE SVEUČILIŠTA I ZNANSTVENIH INSTITUTA USMJERENIH NA INOVACIJE, ISTRAŽIVANJE I RAZVOJ - NPOO (C3.2. R1-I1 ) | J54: 0942 | K54: 40,326 | L54: 40,326 | M54: 40,326 | O54: =IF(C54="","",'OPĆI DIO'!$C$1) ->  | P54: 321 | Q54: 32 | S54: 94 | T54: 3 | Y54: 3631 | Z54: Tekuće pomoći unutar općeg proračuna | AB54: 36 | AC54: 363 | AE54: A580004 | AF54: STANDARD UČENIKA S POSEBNIM POTREBAMA | AG54: 0922 | AH54: Više srednjoškolsko obrazovanje | AI54: 09 | AJ54: 092
A55: =IF(C55="","",VLOOKUP('OPĆI DIO'!$C$1,'OPĆI DIO'!$N$4:$W$137,10,FALSE)) ->  | B55: =IF(C55="","",VLOOKUP('OPĆI DIO'!$C$1,'OPĆI DIO'!$N$4:$W$137,9,FALSE)) ->  | O55: =IF(C55="","",'OPĆI DIO'!$C$1) ->  | Y55: 3632 | Z55: Kapitalne pomoći unutar općeg proračuna | AB55: 36 | AC55: 363 | AE55: A580006 | AF55: STRUČNO USAVRŠAVANJE U OKVIRU ŽUPANIJSKIH STRUČNIH VIJEĆA SREDNJE ŠKOLE | AG55: 0970 | AH55: Istraživanje i razvoj obrazovanja | AI55: 09 | AJ55: 097
A56: =IF(C56="","",VLOOKUP('OPĆI DIO'!$C$1,'OPĆI DIO'!$N$4:$W$137,10,FALSE)) -> 08006 | B56: =IF(C56="","",VLOOKUP('OPĆI DIO'!$C$1,'OPĆI DIO'!$N$4:$W$137,9,FALSE)) -> Sveučilišta i veleučilišta u Republici Hrvatskoj | C56: 51 | D56: 51000 | E56: 51000 Programi Unije – raspoloživ predujam | F56: 3211 | G56: Službena putovanja | H56: A679135 | I56: PROGRAMSKO I OSTALO FINANCIRANJE JAVNIH VISOKIH UČILIŠTA - IZ EVIDENCIJSKIH PRIHODA | J56: 0942 | K56: 43,118 | L56: 111,150 | M56: 124,175 | O56: =IF(C56="","",'OPĆI DIO'!$C$1) -> 1812 Sveučilište u Zagrebu FAKULTET PROMETNIH ZNANOSTI | P56: 321 | Q56: 32 | R56: 51 | S56: 94 | T56: 3 | Y56: 3661 | Z56: Tekuće pomoći proračunskim korisnicima drugih proračuna | AB56: 36 | AC56: 366 | AE56: A580007 | AF56: PRAVOMOĆNE SUDSKE PRESUDE | AG56: 0180 | AH56: Prijenosi općeg karaktera između različitih državnih razina | AI56: 01 | AJ56: 018
A57: =IF(C57="","",VLOOKUP('OPĆI DIO'!$C$1,'OPĆI DIO'!$N$4:$W$137,10,FALSE)) -> 08006 | B57: =IF(C57="","",VLOOKUP('OPĆI DIO'!$C$1,'OPĆI DIO'!$N$4:$W$137,9,FALSE)) -> Sveučilišta i veleučilišta u Republici Hrvatskoj | C57: 51 | D57: 51000 | E57: 51000 Programi Unije – raspoloživ predujam | F57: 3213 | G57: Stručno usavršavanje zaposlenika | H57: A679135 | I57: PROGRAMSKO I OSTALO FINANCIRANJE JAVNIH VISOKIH UČILIŠTA - IZ EVIDENCIJSKIH PRIHODA | J57: 0942 | K57: 5,116 | L57: 13,187 | M57: 14,733 | O57: =IF(C57="","",'OPĆI DIO'!$C$1) -> 1812 Sveučilište u Zagrebu FAKULTET PROMETNIH ZNANOSTI | P57: 321 | Q57: 32 | R57: 51 | S57: 94 | T57: 3 | Y57: 3662 | Z57: Kapitalne pomoći proračunskim korisnicima drugih proračuna | AB57: 36 | AC57: 366 | AE57: A580014 | AF57: RAZVOJ SUSTAVA OBRAZOVANJA ODRASLIH | AG57: 0922 | AH57: Više srednjoškolsko obrazovanje | AI57: 09 | AJ57: 092
A58: =IF(C58="","",VLOOKUP('OPĆI DIO'!$C$1,'OPĆI DIO'!$N$4:$W$137,10,FALSE)) -> 08006 | B58: =IF(C58="","",VLOOKUP('OPĆI DIO'!$C$1,'OPĆI DIO'!$N$4:$W$137,9,FALSE)) -> Sveučilišta i veleučilišta u Republici Hrvatskoj | C58: 51 | D58: 51000 | E58: 51000 Programi Unije – raspoloživ predujam | F58: 3293 | G58: Reprezentacija | H58: A679135 | I58: PROGRAMSKO I OSTALO FINANCIRANJE JAVNIH VISOKIH UČILIŠTA - IZ EVIDENCIJSKIH PRIHODA | J58: 0942 | K58: 731 | L58: 1,884 | M58: 2,105 | O58: =IF(C58="","",'OPĆI DIO'!$C$1) -> 1812 Sveučilište u Zagrebu FAKULTET PROMETNIH ZNANOSTI | P58: 329 | Q58: 32 | R58: 51 | S58: 94 | T58: 3 | Y58: 3681 | Z58: Tekuće pomoći temeljem prijenosa EU sredstava | AB58: 36 | AC58: 368 | AE58: A580037 | AF58: JAVNI MEĐUMJESNI PRIJEVOZ ZA UČENIKE | AG58: 0922 | AH58: Više srednjoškolsko obrazovanje | AI58: 09 | AJ58: 092
A59: =IF(C59="","",VLOOKUP('OPĆI DIO'!$C$1,'OPĆI DIO'!$N$4:$W$137,10,FALSE)) -> 08006 | B59: =IF(C59="","",VLOOKUP('OPĆI DIO'!$C$1,'OPĆI DIO'!$N$4:$W$137,9,FALSE)) -> Sveučilišta i veleučilišta u Republici Hrvatskoj | C59: 51 | D59: 51000 | E59: 51000 Programi Unije – raspoloživ predujam | F59: 3431 | G59: Bankarske usluge i usluge platnog prometa | H59: A679135 | I59: PROGRAMSKO I OSTALO FINANCIRANJE JAVNIH VISOKIH UČILIŠTA - IZ EVIDENCIJSKIH PRIHODA | J59: 0942 | K59: 73 | L59: 188 | M59: 210 | O59: =IF(C59="","",'OPĆI DIO'!$C$1) -> 1812 Sveučilište u Zagrebu FAKULTET PROMETNIH ZNANOSTI | P59: 343 | Q59: 34 | R59: 51 | S59: 94 | T59: 3 | Y59: 3682 | Z59: Kapitalne pomoći temeljem prijenosa EU sredstava | AB59: 36 | AC59: 368 | AE59: A580044 | AF59: RAZVOJ SUSTAVA SREDNJOŠKOLSKOG ODGOJA I OBRAZOVANJA | AG59: 0922 | AH59: Više srednjoškolsko obrazovanje | AI59: 09 | AJ59: 092
A60: =IF(C60="","",VLOOKUP('OPĆI DIO'!$C$1,'OPĆI DIO'!$N$4:$W$137,10,FALSE)) -> 08006 | B60: =IF(C60="","",VLOOKUP('OPĆI DIO'!$C$1,'OPĆI DIO'!$N$4:$W$137,9,FALSE)) -> Sveučilišta i veleučilišta u Republici Hrvatskoj | C60: 51 | D60: 51000 | E60: 51000 Programi Unije – raspoloživ predujam | F60: 3299 | G60: Ostali nespomenuti rashodi poslovanja | H60: A679135 | I60: PROGRAMSKO I OSTALO FINANCIRANJE JAVNIH VISOKIH UČILIŠTA - IZ EVIDENCIJSKIH PRIHODA | J60: 0942 | K60: 3,425 | L60: 8,828 | M60: 9,862 | O60: =IF(C60="","",'OPĆI DIO'!$C$1) -> 1812 Sveučilište u Zagrebu FAKULTET PROMETNIH ZNANOSTI | P60: 329 | Q60: 32 | R60: 51 | S60: 94 | T60: 3 | Y60: 3691 | Z60: Tekući prijenosi između proračunskih korisnika istog proraču | AB60: 36 | AC60: 369 | AE60: A580046 | AF60: ADMINISTRACIJA I UPRAVLJANJE NACIONALNOG CENTRA ZA VANJSKO VREDNOVANJE OBRAZOVANJA | AG60: 0970 | AH60: Istraživanje i razvoj obrazovanja | AI60: 09 | AJ60: 097
A61: =IF(C61="","",VLOOKUP('OPĆI DIO'!$C$1,'OPĆI DIO'!$N$4:$W$137,10,FALSE)) -> 08006 | B61: =IF(C61="","",VLOOKUP('OPĆI DIO'!$C$1,'OPĆI DIO'!$N$4:$W$137,9,FALSE)) -> Sveučilišta i veleučilišta u Republici Hrvatskoj | C61: 51 | D61: 51000 | E61: 51000 Programi Unije – raspoloživ predujam | F61: 4221 | G61: Uredska oprema i namještaj | H61: A679135 | I61: PROGRAMSKO I OSTALO FINANCIRANJE JAVNIH VISOKIH UČILIŠTA - IZ EVIDENCIJSKIH PRIHODA | J61: 0942 | K61: 731 | L61: 1,884 | M61: 2,105 | O61: =IF(C61="","",'OPĆI DIO'!$C$1) -> 1812 Sveučilište u Zagrebu FAKULTET PROMETNIH ZNANOSTI | P61: 422 | Q61: 42 | R61: 51 | S61: 94 | T61: 4 | Y61: 3692 | Z61: Kapitalni prijenosi između proračunskih korisnika istog pror | AB61: 36 | AC61: 369 | AE61: A580072 | AF61: ERASMUS PLUS - PROJEKTI | AG61: 0970 | AH61: Istraživanje i razvoj obrazovanja | AI61: 09 | AJ61: 097
A62: =IF(C62="","",VLOOKUP('OPĆI DIO'!$C$1,'OPĆI DIO'!$N$4:$W$137,10,FALSE)) -> 08006 | B62: =IF(C62="","",VLOOKUP('OPĆI DIO'!$C$1,'OPĆI DIO'!$N$4:$W$137,9,FALSE)) -> Sveučilišta i veleučilišta u Republici Hrvatskoj | C62: 51 | D62: 51000 | E62: 51000 Programi Unije – raspoloživ predujam | F62: 3214 | G62: Ostale naknade troškova zaposlenima | H62: A679135 | I62: PROGRAMSKO I OSTALO FINANCIRANJE JAVNIH VISOKIH UČILIŠTA - IZ EVIDENCIJSKIH PRIHODA | J62: 0942 | K62: 731 | L62: 1,884 | M62: 2,105 | O62: =IF(C62="","",'OPĆI DIO'!$C$1) -> 1812 Sveučilište u Zagrebu FAKULTET PROMETNIH ZNANOSTI | P62: 321 | Q62: 32 | R62: 51 | S62: 94 | T62: 3 | Y62: 3693 | Z62: Tekući prijenosi između proračunskih korisnika istog proraču | AB62: 36 | AC62: 369 | AE62: A589088 | AF62: ADMINISTRACIJA I UPRAVLJANJE AGENCIJE ZA MOBILNOST I EU PROGRAME | AG62: 0970 | AH62: Istraživanje i razvoj obrazovanja | AI62: 09 | AJ62: 097
A63: =IF(C63="","",VLOOKUP('OPĆI DIO'!$C$1,'OPĆI DIO'!$N$4:$W$137,10,FALSE)) -> 08006 | B63: =IF(C63="","",VLOOKUP('OPĆI DIO'!$C$1,'OPĆI DIO'!$N$4:$W$137,9,FALSE)) -> Sveučilišta i veleučilišta u Republici Hrvatskoj | C63: 51 | D63: 51000 | E63: 51000 Programi Unije – raspoloživ predujam | F63: 3294 | G63: Članarine i norme | H63: A679135 | I63: PROGRAMSKO I OSTALO FINANCIRANJE JAVNIH VISOKIH UČILIŠTA - IZ EVIDENCIJSKIH PRIHODA | J63: 0942 | K63: 731 | L63: 1,884 | M63: 2,105 | O63: =IF(C63="","",'OPĆI DIO'!$C$1) -> 1812 Sveučilište u Zagrebu FAKULTET PROMETNIH ZNANOSTI | P63: 329 | Q63: 32 | R63: 51 | S63: 94 | T63: 3 | Y63: 3694 | Z63: Kapitalni prijenosi između proračunskih korisnika istog pror | AB63: 36 | AC63: 369 | AE63: A589091 | AF63: PROVEDBA MREŽNIH PROJEKATA FINANCIRANIH IZ OKVIRNIH PROGRAMA EU-A | AG63: 0970 | AH63: Istraživanje i razvoj obrazovanja | AI63: 09 | AJ63: 097
A64: =IF(C64="","",VLOOKUP('OPĆI DIO'!$C$1,'OPĆI DIO'!$N$4:$W$137,10,FALSE)) -> 08006 | B64: =IF(C64="","",VLOOKUP('OPĆI DIO'!$C$1,'OPĆI DIO'!$N$4:$W$137,9,FALSE)) -> Sveučilišta i veleučilišta u Republici Hrvatskoj | C64: 51 | D64: 51000 | E64: 51000 Programi Unije – raspoloživ predujam | F64: 3299 | G64: Ostali nespomenuti rashodi poslovanja | H64: A679135 | I64: PROGRAMSKO I OSTALO FINANCIRANJE JAVNIH VISOKIH UČILIŠTA - IZ EVIDENCIJSKIH PRIHODA | J64: 0942 | K64: 15,300 | L64: 39,441 | M64: 44,062 | O64: =IF(C64="","",'OPĆI DIO'!$C$1) -> 1812 Sveučilište u Zagrebu FAKULTET PROMETNIH ZNANOSTI | P64: 329 | Q64: 32 | R64: 51 | S64: 94 | T64: 3 | Y64: 3711 | Z64: Naknade građ. i kuć. u novcu-neposr. ili putem ust.izvan js | AB64: 37 | AC64: 371 | AE64: A621021 | AF64: SMJEŠTAJ I PREHRANA STUDENATA STUDENTSKOG CENTRA ZAGREB - SUFINANCIRANJE | AG64: 0960 | AH64: Dodatne usluge u obrazovanju | AI64: 09 | AJ64: 096
A65: =IF(C65="","",VLOOKUP('OPĆI DIO'!$C$1,'OPĆI DIO'!$N$4:$W$137,10,FALSE)) -> 08006 | B65: =IF(C65="","",VLOOKUP('OPĆI DIO'!$C$1,'OPĆI DIO'!$N$4:$W$137,9,FALSE)) -> Sveučilišta i veleučilišta u Republici Hrvatskoj | C65: 51 | D65: 51000 | E65: 51000 Programi Unije – raspoloživ predujam | F65: 4222 | G65: Komunikacijska oprema | H65: A679135 | I65: PROGRAMSKO I OSTALO FINANCIRANJE JAVNIH VISOKIH UČILIŠTA - IZ EVIDENCIJSKIH PRIHODA | J65: 0942 | K65: 730 | L65: 1,884 | M65: 2,105 | O65: =IF(C65="","",'OPĆI DIO'!$C$1) -> 1812 Sveučilište u Zagrebu FAKULTET PROMETNIH ZNANOSTI | P65: 422 | Q65: 42 | R65: 51 | S65: 94 | T65: 4 | Y65: 3712 | Z65: Naknade građ. i kuć. u naravi-neposr. ili putem ust.izvan js | AB65: 37 | AC65: 371 | AE65: A621022 | AF65: SMJEŠTAJ I PREHRANA STUDENATA STUDENTSKOG CENTRA OSIJEK - SUFINANCIRANJE | AG65: 0960 | AH65: Dodatne usluge u obrazovanju | AI65: 09 | AJ65: 096
A66: =IF(C66="","",VLOOKUP('OPĆI DIO'!$C$1,'OPĆI DIO'!$N$4:$W$137,10,FALSE)) -> 08006 | B66: =IF(C66="","",VLOOKUP('OPĆI DIO'!$C$1,'OPĆI DIO'!$N$4:$W$137,9,FALSE)) -> Sveučilišta i veleučilišta u Republici Hrvatskoj | C66: 51 | D66: 51000 | E66: 51000 Programi Unije – raspoloživ predujam | F66: 3111 | G66: Plaće za redovan rad | H66: A679135 | I66: PROGRAMSKO I OSTALO FINANCIRANJE JAVNIH VISOKIH UČILIŠTA - IZ EVIDENCIJSKIH PRIHODA | J66: 0942 | K66: 146,163 | L66: 376,779 | M66: 420,932 | O66: =IF(C66="","",'OPĆI DIO'!$C$1) -> 1812 Sveučilište u Zagrebu FAKULTET PROMETNIH ZNANOSTI | P66: 311 | Q66: 31 | R66: 51 | S66: 94 | T66: 3 | Y66: 3713 | Z66: Naknade građanima i kućanstvima u novcu - putem ustanova u j | AB66: 37 | AC66: 371 | AE66: A621023 | AF66: SMJEŠTAJ I PREHRANA STUDENATA STUDENTSKOG CENTRA RIJEKA - SUFINANCIRANJE | AG66: 0960 | AH66: Dodatne usluge u obrazovanju | AI66: 09 | AJ66: 096
A67: =IF(C67="","",VLOOKUP('OPĆI DIO'!$C$1,'OPĆI DIO'!$N$4:$W$137,10,FALSE)) -> 08006 | B67: =IF(C67="","",VLOOKUP('OPĆI DIO'!$C$1,'OPĆI DIO'!$N$4:$W$137,9,FALSE)) -> Sveučilišta i veleučilišta u Republici Hrvatskoj | C67: 51 | D67: 51000 | E67: 51000 Programi Unije – raspoloživ predujam | F67: 3121 | G67: =IFERROR(VLOOKUP(F67,$Y$5:$AA$129,2,FALSE),"") -> Ostali rashodi za zaposlene | H67: A679135 | I67: =IFERROR(VLOOKUP(H67,$AE$6:$AF$353,2,FALSE),"") -> PROGRAMSKO I OSTALO FINANCIRANJE JAVNIH VISOKIH UČILIŠTA - IZ EVIDENCIJSKIH PRIHODA | J67: =IFERROR(VLOOKUP(H67,$AE$6:$AI$353,3,FALSE),"") -> 0942 | K67: 7,308 | L67: 18,839 | M67: 21,047 | O67: =IF(C67="","",'OPĆI DIO'!$C$1) -> 1812 Sveučilište u Zagrebu FAKULTET PROMETNIH ZNANOSTI | P67: 312 | Q67: 31 | R67: 51 | S67: 94 | T67: 3 | Y67: 3714 | Z67: Naknade građanima i kućanstvima u naravi - putem ustanova u | AB67: 37 | AC67: 371 | AE67: A621024 | AF67: SMJEŠTAJ I PREHRANA STUDENATA STUDENTSKOG CENTRA SPLIT - SUFINANCIRANJE | AG67: 0960 | AH67: Dodatne usluge u obrazovanju | AI67: 09 | AJ67: 096
A68: =IF(C68="","",VLOOKUP('OPĆI DIO'!$C$1,'OPĆI DIO'!$N$4:$W$137,10,FALSE)) -> 08006 | B68: =IF(C68="","",VLOOKUP('OPĆI DIO'!$C$1,'OPĆI DIO'!$N$4:$W$137,9,FALSE)) -> Sveučilišta i veleučilišta u Republici Hrvatskoj | C68: =IFERROR(VLOOKUP(D68,$V$6:$X$34,3,FALSE),"") -> 51 | D68: 51000 | E68: =IFERROR(VLOOKUP(D68,$V$6:$W$34,2,FALSE),"") -> 51000 Programi Unije – raspoloživ predujam | F68: 3132 | G68: Doprinosi za obvezno zdravstveno osiguranje | H68: A679135 | I68: PROGRAMSKO I OSTALO FINANCIRANJE JAVNIH VISOKIH UČILIŠTA - IZ EVIDENCIJSKIH PRIHODA | J68: 0942 | K68: 24,117 | L68: 62,168 | M68: 69,454 | O68: =IF(C68="","",'OPĆI DIO'!$C$1) -> 1812 Sveučilište u Zagrebu FAKULTET PROMETNIH ZNANOSTI | P68: =LEFT(F68,3) -> 313 | Q68: =LEFT(F68,2) -> 31 | R68: =LEFT(C68,3) -> 51 | S68: =MID(J68,2,2) -> 94 | T68: =LEFT(F68,1) -> 3 | U68: =IFERROR(VLOOKUP(C68,$V$6:$X$34,3,FALSE),"") ->  | Y68: 3715 | Z68: Naknade građanima i kućanstvima na temelju osiguranja iz EU | AB68: 37 | AC68: 371 | AE68: A621026 | AF68: SMJEŠTAJ I PREHRANA STUDENATA STUDENTSKOG CENTRA ŠIBENIK - SUFINANCIRANJE | AG68: 0960 | AH68: Dodatne usluge u obrazovanju | AI68: 09 | AJ68: 096
A69: =IF(C69="","",VLOOKUP('OPĆI DIO'!$C$1,'OPĆI DIO'!$N$4:$W$137,10,FALSE)) ->  | B69: =IF(C69="","",VLOOKUP('OPĆI DIO'!$C$1,'OPĆI DIO'!$N$4:$W$137,9,FALSE)) ->  | O69: =IF(C69="","",'OPĆI DIO'!$C$1) ->  | Y69: 3721 | Z69: Naknade građanima i kućanstvima u novcu | AB69: 37 | AC69: 372 | AE69: A621028 | AF69: SMJEŠTAJ I PREHRANA STUDENATA STUDENTSKOG CENTRA VARAŽDIN - SUFINANCIRANJE | AG69: 0960 | AH69: Dodatne usluge u obrazovanju | AI69: 09 | AJ69: 096
A70: =IF(C70="","",VLOOKUP('OPĆI DIO'!$C$1,'OPĆI DIO'!$N$4:$W$137,10,FALSE)) ->  | B70: =IF(C70="","",VLOOKUP('OPĆI DIO'!$C$1,'OPĆI DIO'!$N$4:$W$137,9,FALSE)) ->  | G70: =IFERROR(VLOOKUP(#REF!,$Y$5:$AA$129,2,FALSE),"") ->  | O70: =IF(C70="","",'OPĆI DIO'!$C$1) ->  | P70: =LEFT(#REF!,3) ->  | Q70: =LEFT(#REF!,2) ->  | T70: =LEFT(#REF!,1) ->  | Y70: 3722 | Z70: Naknade građanima i kućanstvima u naravi | AB70: 37 | AC70: 372 | AE70: A621029 | AF70: SMJEŠTAJ I PREHRANA STUDENATA STUDENTSKOG CENTRA SLAVONSKI BROD - SUFINANCIRANJE | AG70: 0960 | AH70: Dodatne usluge u obrazovanju | AI70: 09 | AJ70: 096
A71: =IF(C71="","",VLOOKUP('OPĆI DIO'!$C$1,'OPĆI DIO'!$N$4:$W$137,10,FALSE)) ->  | B71: =IF(C71="","",VLOOKUP('OPĆI DIO'!$C$1,'OPĆI DIO'!$N$4:$W$137,9,FALSE)) ->  | G71: =IFERROR(VLOOKUP(F70,$Y$5:$AA$129,2,FALSE),"") ->  | O71: =IF(C71="","",'OPĆI DIO'!$C$1) ->  | P71: =LEFT(F70,3) ->  | Q71: =LEFT(F70,2) ->  | T71: =LEFT(F70,1) ->  | Y71: 3723 | Z71: Naknade građanima i kućanstvima iz EU sredstava | AB71: 37 | AC71: 372 | AE71: A621030 | AF71: SMJEŠTAJ I PREHRANA STUDENATA STUDENTSKOG CENTRA POŽEGA - SUFINANCIRANJE | AG71: 0960 | AH71: Dodatne usluge u obrazovanju | AI71: =LEFT(AG71,2) -> 09 | AJ71: =LEFT(AG71,3) -> 096
A72: =IF(C72="","",VLOOKUP('OPĆI DIO'!$C$1,'OPĆI DIO'!$N$4:$W$137,10,FALSE)) -> 08006 | B72: =IF(C72="","",VLOOKUP('OPĆI DIO'!$C$1,'OPĆI DIO'!$N$4:$W$137,9,FALSE)) -> Sveučilišta i veleučilišta u Republici Hrvatskoj | C72: 31 | D72: 31 | E72: Vlastiti prihodi | F72: 3111 | G72: Plaće za redovan rad | H72: A679135 | I72: PROGRAMSKO I OSTALO FINANCIRANJE JAVNIH VISOKIH UČILIŠTA - IZ EVIDENCIJSKIH PRIHODA | J72: 0942 | K72: 1,022,017 | L72: 1,050,486 | M72: 1,078,954 | O72: =IF(C72="","",'OPĆI DIO'!$C$1) -> 1812 Sveučilište u Zagrebu FAKULTET PROMETNIH ZNANOSTI | P72: 311 | Q72: 31 | R72: 31 | S72: 94 | T72: 3 | U72: 31 | Y72: 3811 | Z72: Tekuće donacije u novcu | AB72: 38 | AC72: 381 | AE72: A621031 | AF72: SMJEŠTAJ I PREHRANA STUDENATA STUDENTSKOG CENTRA KARLOVAC - SUFINANCIRANJE | AG72: 0960 | AH72: Dodatne usluge u obrazovanju | AI72: 09 | AJ72: 096
A73: =IF(C73="","",VLOOKUP('OPĆI DIO'!$C$1,'OPĆI DIO'!$N$4:$W$137,10,FALSE)) -> 08006 | B73: =IF(C73="","",VLOOKUP('OPĆI DIO'!$C$1,'OPĆI DIO'!$N$4:$W$137,9,FALSE)) -> Sveučilišta i veleučilišta u Republici Hrvatskoj | C73: 31 | D73: 31 | E73: Vlastiti prihodi | F73: 3121 | G73: Ostali rashodi za zaposlene | H73: A679135 | I73: PROGRAMSKO I OSTALO FINANCIRANJE JAVNIH VISOKIH UČILIŠTA - IZ EVIDENCIJSKIH PRIHODA | J73: 0942 | K73: 113,545 | L73: 116,708 | M73: 119,871 | O73: =IF(C73="","",'OPĆI DIO'!$C$1) -> 1812 Sveučilište u Zagrebu FAKULTET PROMETNIH ZNANOSTI | P73: 312 | Q73: 31 | R73: 31 | S73: 94 | T73: 3 | U73: 31 | Y73: 3812 | Z73: Tekuće donacije u naravi | AB73: 38 | AC73: 381 | AE73: A621047 | AF73: DRŽAVNE, AKADEMSKE NAGRADE I POTPORE U ZNANOSTI I VISOKOM ŠKOLSTVU | AG73: 0942 | AH73: Drugi stupanj visoke naobrazbe | AI73: 09 | AJ73: 094
A74: =IF(C74="","",VLOOKUP('OPĆI DIO'!$C$1,'OPĆI DIO'!$N$4:$W$137,10,FALSE)) -> 08006 | B74: =IF(C74="","",VLOOKUP('OPĆI DIO'!$C$1,'OPĆI DIO'!$N$4:$W$137,9,FALSE)) -> Sveučilišta i veleučilišta u Republici Hrvatskoj | C74: 31 | D74: 31 | E74: Vlastiti prihodi | F74: 3132 | G74: Doprinosi za obvezno zdravstveno osiguranje | H74: A679135 | I74: PROGRAMSKO I OSTALO FINANCIRANJE JAVNIH VISOKIH UČILIŠTA - IZ EVIDENCIJSKIH PRIHODA | J74: 0942 | K74: 65,820 | L74: 67,653 | M74: 69,487 | O74: =IF(C74="","",'OPĆI DIO'!$C$1) -> 1812 Sveučilište u Zagrebu FAKULTET PROMETNIH ZNANOSTI | P74: 313 | Q74: 31 | R74: 31 | S74: 94 | T74: 3 | U74: 31 | Y74: 3813 | Z74: Tekuće donacije iz EU sredstava | AB74: =LEFT(Y74,2) -> 38 | AC74: =LEFT(Y74,3) -> 381 | AE74: A621048 | AF74: PROJEKTNO FINANCIRANJE ZNANSTVENE DJELATNOSTI | AG74: 0150 | AH74: Istraživanje i razvoj: Opće javne usluge | AI74: 01 | AJ74: 015
A75: =IF(C75="","",VLOOKUP('OPĆI DIO'!$C$1,'OPĆI DIO'!$N$4:$W$137,10,FALSE)) -> 08006 | B75: =IF(C75="","",VLOOKUP('OPĆI DIO'!$C$1,'OPĆI DIO'!$N$4:$W$137,9,FALSE)) -> Sveučilišta i veleučilišta u Republici Hrvatskoj | C75: 31 | D75: 31 | E75: Vlastiti prihodi | F75: 3211 | G75: Službena putovanja | H75: A679135 | I75: PROGRAMSKO I OSTALO FINANCIRANJE JAVNIH VISOKIH UČILIŠTA - IZ EVIDENCIJSKIH PRIHODA | J75: 0942 | K75: 106,509 | L75: 109,475 | M75: 112,442 | O75: =IF(C75="","",'OPĆI DIO'!$C$1) -> 1812 Sveučilište u Zagrebu FAKULTET PROMETNIH ZNANOSTI | P75: 321 | Q75: 32 | R75: 31 | S75: 94 | T75: 3 | U75: 31 | Y75: 3821 | Z75: Kapitalne donacije neprofitnim organizacijama | AB75: 38 | AC75: 382 | AE75: A621049 | AF75: KAMATE ZA STANOVE ZNANSTVENIH NOVAKA I ASISTENATA | AG75: 0942 | AH75: Drugi stupanj visoke naobrazbe | AI75: 09 | AJ75: 094
A76: =IF(C76="","",VLOOKUP('OPĆI DIO'!$C$1,'OPĆI DIO'!$N$4:$W$137,10,FALSE)) -> 08006 | B76: =IF(C76="","",VLOOKUP('OPĆI DIO'!$C$1,'OPĆI DIO'!$N$4:$W$137,9,FALSE)) -> Sveučilišta i veleučilišta u Republici Hrvatskoj | C76: 31 | D76: 31 | E76: Vlastiti prihodi | F76: 3212 | G76: Naknade za prijevoz, za rad na terenu i odvojeni život | H76: A679135 | I76: PROGRAMSKO I OSTALO FINANCIRANJE JAVNIH VISOKIH UČILIŠTA - IZ EVIDENCIJSKIH PRIHODA | J76: 0942 | K76: 6,984 | L76: 7,179 | M76: 7,373 | O76: =IF(C76="","",'OPĆI DIO'!$C$1) -> 1812 Sveučilište u Zagrebu FAKULTET PROMETNIH ZNANOSTI | P76: 321 | Q76: 32 | R76: 31 | S76: 94 | T76: 3 | U76: 31 | Y76: 3831 | Z76: Naknade šteta pravnim i fizičkim osobama | AB76: 38 | AC76: 383 | AE76: A621058 | AF76: PROGRAMI POBOLJŠANJA STUDENTSKOG STANDARDA | AG76: 0960 | AH76: Dodatne usluge u obrazovanju | AI76: 09 | AJ76: 096
A77: =IF(C77="","",VLOOKUP('OPĆI DIO'!$C$1,'OPĆI DIO'!$N$4:$W$137,10,FALSE)) -> 08006 | B77: =IF(C77="","",VLOOKUP('OPĆI DIO'!$C$1,'OPĆI DIO'!$N$4:$W$137,9,FALSE)) -> Sveučilišta i veleučilišta u Republici Hrvatskoj | C77: 31 | D77: 31 | E77: Vlastiti prihodi | F77: 3213 | G77: Stručno usavršavanje zaposlenika | H77: A679135 | I77: PROGRAMSKO I OSTALO FINANCIRANJE JAVNIH VISOKIH UČILIŠTA - IZ EVIDENCIJSKIH PRIHODA | J77: 0942 | K77: 108,144 | L77: 111,156 | M77: 114,169 | O77: =IF(C77="","",'OPĆI DIO'!$C$1) -> 1812 Sveučilište u Zagrebu FAKULTET PROMETNIH ZNANOSTI | P77: 321 | Q77: 32 | R77: 31 | S77: 94 | T77: 3 | U77: 31 | Y77: 3832 | Z77: Penali, ležarine i drugo | AB77: 38 | AC77: 383 | AE77: A621155 | AF77: ADMINISTRACIJA I UPRAVLJANJE AGENCIJE ZA ZNANOST I VISOKO OBRAZOVANJE | AG77: 0942 | AH77: Drugi stupanj visoke naobrazbe | AI77: 09 | AJ77: 094
A78: =IF(C78="","",VLOOKUP('OPĆI DIO'!$C$1,'OPĆI DIO'!$N$4:$W$137,10,FALSE)) -> 08006 | B78: =IF(C78="","",VLOOKUP('OPĆI DIO'!$C$1,'OPĆI DIO'!$N$4:$W$137,9,FALSE)) -> Sveučilišta i veleučilišta u Republici Hrvatskoj | C78: 31 | D78: 31 | E78: Vlastiti prihodi | F78: 3214 | G78: Ostale naknade troškova zaposlenima | H78: A679135 | I78: PROGRAMSKO I OSTALO FINANCIRANJE JAVNIH VISOKIH UČILIŠTA - IZ EVIDENCIJSKIH PRIHODA | J78: 0942 | K78: 111,111 | L78: 114,206 | M78: 117,301 | O78: =IF(C78="","",'OPĆI DIO'!$C$1) -> 1812 Sveučilište u Zagrebu FAKULTET PROMETNIH ZNANOSTI | P78: 321 | Q78: 32 | R78: 31 | S78: 94 | T78: 3 | U78: 31 | Y78: 3833 | Z78: Naknade šteta zaposlenicima | AB78: 38 | AC78: 383 | AE78: A621179 | AF78: TROŠKOVI NACIONALNOG VIJEĆA ZA VISOKO OBRAZOVANJE, ZNANOST I TEHNOLOŠKI RAZVOJ | AG78: 0150 | AH78: Istraživanje i razvoj: Opće javne usluge | AI78: 01 | AJ78: 015
A79: =IF(C79="","",VLOOKUP('OPĆI DIO'!$C$1,'OPĆI DIO'!$N$4:$W$137,10,FALSE)) -> 08006 | B79: =IF(C79="","",VLOOKUP('OPĆI DIO'!$C$1,'OPĆI DIO'!$N$4:$W$137,9,FALSE)) -> Sveučilišta i veleučilišta u Republici Hrvatskoj | C79: 31 | D79: 31 | E79: Vlastiti prihodi | F79: 3221 | G79: Uredski materijal i ostali materijalni rashodi | H79: A679135 | I79: PROGRAMSKO I OSTALO FINANCIRANJE JAVNIH VISOKIH UČILIŠTA - IZ EVIDENCIJSKIH PRIHODA | J79: 0942 | K79: 69,842 | L79: 71,787 | M79: 73,733 | O79: =IF(C79="","",'OPĆI DIO'!$C$1) -> 1812 Sveučilište u Zagrebu FAKULTET PROMETNIH ZNANOSTI | P79: 322 | Q79: 32 | R79: 31 | S79: 94 | T79: 3 | U79: 31 | Y79: 3834 | Z79: Ugovorene kazne i ostale naknade šteta | AB79: 38 | AC79: 383 | AE79: A621180 | AF79: REKTORSKI ZBOR | AG79: 0942 | AH79: Drugi stupanj visoke naobrazbe | AI79: 09 | AJ79: 094
A80: =IF(C80="","",VLOOKUP('OPĆI DIO'!$C$1,'OPĆI DIO'!$N$4:$W$137,10,FALSE)) -> 08006 | B80: =IF(C80="","",VLOOKUP('OPĆI DIO'!$C$1,'OPĆI DIO'!$N$4:$W$137,9,FALSE)) -> Sveučilišta i veleučilišta u Republici Hrvatskoj | C80: 31 | D80: 31 | E80: Vlastiti prihodi | F80: 3222 | G80: Materijal i sirovine | H80: A679135 | I80: PROGRAMSKO I OSTALO FINANCIRANJE JAVNIH VISOKIH UČILIŠTA - IZ EVIDENCIJSKIH PRIHODA | J80: 0942 | K80: 7,724 | L80: 7,940 | M80: 8,155 | O80: =IF(C80="","",'OPĆI DIO'!$C$1) -> 1812 Sveučilište u Zagrebu FAKULTET PROMETNIH ZNANOSTI | P80: 322 | Q80: 32 | R80: 31 | S80: 94 | T80: 3 | U80: 31 | Y80: 3835 | Z80: Ostale kazne | AB80: 38 | AC80: 383 | AE80: A621181 | AF80: PRAVOMOĆNE SUDSKE PRESUDE | AG80: 0942 | AH80: Drugi stupanj visoke naobrazbe | AI80: 09 | AJ80: 094
A81: =IF(C81="","",VLOOKUP('OPĆI DIO'!$C$1,'OPĆI DIO'!$N$4:$W$137,10,FALSE)) -> 08006 | B81: =IF(C81="","",VLOOKUP('OPĆI DIO'!$C$1,'OPĆI DIO'!$N$4:$W$137,9,FALSE)) -> Sveučilišta i veleučilišta u Republici Hrvatskoj | C81: 31 | D81: 31 | E81: Vlastiti prihodi | F81: 3223 | G81: Energija | H81: A679135 | I81: PROGRAMSKO I OSTALO FINANCIRANJE JAVNIH VISOKIH UČILIŠTA - IZ EVIDENCIJSKIH PRIHODA | J81: 0942 | K81: 7,724 | L81: 7,940 | M81: 8,155 | O81: =IF(C81="","",'OPĆI DIO'!$C$1) -> 1812 Sveučilište u Zagrebu FAKULTET PROMETNIH ZNANOSTI | P81: 322 | Q81: 32 | R81: 31 | S81: 94 | T81: 3 | U81: 31 | Y81: 3861 | Z81: Kapitalne pomoći kreditnim i ostalim financijskim institucijama te trgovačkim društvima u javnom sektoru | AB81: =LEFT(Y81,2) -> 38 | AC81: =LEFT(Y81,3) -> 386 | AE81: A621182 | AF81: ZBOR VELEUČILIŠTA | AG81: 0942 | AH81: Drugi stupanj visoke naobrazbe | AI81: 09 | AJ81: 094
A82: =IF(C82="","",VLOOKUP('OPĆI DIO'!$C$1,'OPĆI DIO'!$N$4:$W$137,10,FALSE)) -> 08006 | B82: =IF(C82="","",VLOOKUP('OPĆI DIO'!$C$1,'OPĆI DIO'!$N$4:$W$137,9,FALSE)) -> Sveučilišta i veleučilišta u Republici Hrvatskoj | C82: 31 | D82: 31 | E82: Vlastiti prihodi | F82: 3224 | G82: Materijal i dijelovi za tekuće i investicijsko održavanje | H82: A679135 | I82: PROGRAMSKO I OSTALO FINANCIRANJE JAVNIH VISOKIH UČILIŠTA - IZ EVIDENCIJSKIH PRIHODA | J82: 0942 | K82: 30,898 | L82: 31,759 | M82: 32,619 | O82: =IF(C82="","",'OPĆI DIO'!$C$1) -> 1812 Sveučilište u Zagrebu FAKULTET PROMETNIH ZNANOSTI | P82: 322 | Q82: 32 | R82: 31 | S82: 94 | T82: 3 | U82: 31 | Y82: 3862 | Z82: Kapitalne pomoći kreditnim i ostalim financijskim institucijama te trgovačkim društvima i zadrugama izvan javnog sektora | AB82: =LEFT(Y82,2) -> 38 | AC82: =LEFT(Y82,3) -> 386 | AE82: A621183 | AF82: STIPENDIJE I ŠKOLARINE ZA DOKTORSKI STUDIJ | AG82: 0942 | AH82: Drugi stupanj visoke naobrazbe | AI82: 09 | AJ82: 094
A83: =IF(C83="","",VLOOKUP('OPĆI DIO'!$C$1,'OPĆI DIO'!$N$4:$W$137,10,FALSE)) -> 08006 | B83: =IF(C83="","",VLOOKUP('OPĆI DIO'!$C$1,'OPĆI DIO'!$N$4:$W$137,9,FALSE)) -> Sveučilišta i veleučilišta u Republici Hrvatskoj | C83: 31 | D83: 31 | E83: Vlastiti prihodi | F83: 3225 | G83: Sitni inventar i autogume | H83: A679135 | I83: PROGRAMSKO I OSTALO FINANCIRANJE JAVNIH VISOKIH UČILIŠTA - IZ EVIDENCIJSKIH PRIHODA | J83: 0942 | K83: 2,114 | L83: 2,173 | M83: 2,232 | O83: =IF(C83="","",'OPĆI DIO'!$C$1) -> 1812 Sveučilište u Zagrebu FAKULTET PROMETNIH ZNANOSTI | P83: 322 | Q83: 32 | R83: 31 | S83: 94 | T83: 3 | U83: 31 | Y83: 3863 | Z83: Kapitalne pomoći poljoprivrednicima i obrtnicima | AB83: =LEFT(Y83,2) -> 38 | AC83: =LEFT(Y83,3) -> 386 | AE83: A621185 | AF83: POTPORA HRVATSKOM KATOLIČKOM SVEUČILIŠTU U ZAGREBU | AG83: 0942 | AH83: Drugi stupanj visoke naobrazbe | AI83: 09 | AJ83: 094
A84: =IF(C84="","",VLOOKUP('OPĆI DIO'!$C$1,'OPĆI DIO'!$N$4:$W$137,10,FALSE)) -> 08006 | B84: =IF(C84="","",VLOOKUP('OPĆI DIO'!$C$1,'OPĆI DIO'!$N$4:$W$137,9,FALSE)) -> Sveučilišta i veleučilišta u Republici Hrvatskoj | C84: 31 | D84: 31 | E84: Vlastiti prihodi | F84: 3227 | G84: Službena, radna i zaštitna odjeća i obuća | H84: A679135 | I84: PROGRAMSKO I OSTALO FINANCIRANJE JAVNIH VISOKIH UČILIŠTA - IZ EVIDENCIJSKIH PRIHODA | J84: 0942 | K84: 4,656 | L84: 4,786 | M84: 4,916 | O84: =IF(C84="","",'OPĆI DIO'!$C$1) -> 1812 Sveučilište u Zagrebu FAKULTET PROMETNIH ZNANOSTI | P84: 322 | Q84: 32 | R84: 31 | S84: 94 | T84: 3 | U84: 31 | Y84: 3865 | Z84: Kapitalne pomoći trgovačkim društvima i obrtnicima po protestiranim jamstvima u tuzemstvu i inozemstvu | AB84: =LEFT(Y84,2) -> 38 | AC84: =LEFT(Y84,3) -> 386 | AE84: A621186 | AF84: VREDNOVANJE ZNANSTVENIH ORGANIZACIJA | AG84: 0942 | AH84: Drugi stupanj visoke naobrazbe | AI84: 09 | AJ84: 094
A85: =IF(C85="","",VLOOKUP('OPĆI DIO'!$C$1,'OPĆI DIO'!$N$4:$W$137,10,FALSE)) -> 08006 | B85: =IF(C85="","",VLOOKUP('OPĆI DIO'!$C$1,'OPĆI DIO'!$N$4:$W$137,9,FALSE)) -> Sveučilišta i veleučilišta u Republici Hrvatskoj | C85: 31 | D85: 31 | E85: Vlastiti prihodi | F85: 3231 | G85: Usluge telefona, interneta, pošte i prijevoza | H85: A679135 | I85: PROGRAMSKO I OSTALO FINANCIRANJE JAVNIH VISOKIH UČILIŠTA - IZ EVIDENCIJSKIH PRIHODA | J85: 0942 | K85: 58,201 | L85: 59,823 | M85: 61,444 | O85: =IF(C85="","",'OPĆI DIO'!$C$1) -> 1812 Sveučilište u Zagrebu FAKULTET PROMETNIH ZNANOSTI | P85: 323 | Q85: 32 | R85: 31 | S85: 94 | T85: 3 | U85: 31 | Y85: 4111 | Z85: Zemljište | AB85: =LEFT(Y85,2) -> 41 | AC85: =LEFT(Y85,3) -> 411 | AE85: A621187 | AF85: VREDNOVANJE VISOKIH UČILIŠTA | AG85: 0942 | AH85: Drugi stupanj visoke naobrazbe | AI85: 09 | AJ85: 094
A86: =IF(C86="","",VLOOKUP('OPĆI DIO'!$C$1,'OPĆI DIO'!$N$4:$W$137,10,FALSE)) -> 08006 | B86: =IF(C86="","",VLOOKUP('OPĆI DIO'!$C$1,'OPĆI DIO'!$N$4:$W$137,9,FALSE)) -> Sveučilišta i veleučilišta u Republici Hrvatskoj | C86: 31 | D86: 31 | E86: Vlastiti prihodi | F86: 3232 | G86: Usluge tekućeg i investicijskog održavanja | H86: A679135 | I86: PROGRAMSKO I OSTALO FINANCIRANJE JAVNIH VISOKIH UČILIŠTA - IZ EVIDENCIJSKIH PRIHODA | J86: 0942 | K86: 108,144 | L86: 111,156 | M86: 114,169 | O86: =IF(C86="","",'OPĆI DIO'!$C$1) -> 1812 Sveučilište u Zagrebu FAKULTET PROMETNIH ZNANOSTI | P86: 323 | Q86: 32 | R86: 31 | S86: 94 | T86: 3 | U86: 31 | Y86: 4113 | Z86: Ostala prirodna materijalna imovina | AB86: 41 | AC86: 411 | AE86: A621190 | AF86: VANJSKA PROSUDBA SUSTAVA OSIGURANJA KVALITETE VISOKIH UČILIŠTA I ZNANSTVENIH ORGANIZACIJA (VP) | AG86: 0942 | AH86: Drugi stupanj visoke naobrazbe | AI86: 09 | AJ86: 094
A87: =IF(C87="","",VLOOKUP('OPĆI DIO'!$C$1,'OPĆI DIO'!$N$4:$W$137,10,FALSE)) -> 08006 | B87: =IF(C87="","",VLOOKUP('OPĆI DIO'!$C$1,'OPĆI DIO'!$N$4:$W$137,9,FALSE)) -> Sveučilišta i veleučilišta u Republici Hrvatskoj | C87: 31 | D87: 31 | E87: Vlastiti prihodi | F87: 3233 | G87: Usluge promidžbe i informiranja | H87: A679135 | I87: PROGRAMSKO I OSTALO FINANCIRANJE JAVNIH VISOKIH UČILIŠTA - IZ EVIDENCIJSKIH PRIHODA | J87: 0942 | K87: 69,522 | L87: 71,458 | M87: 73,395 | O87: =IF(C87="","",'OPĆI DIO'!$C$1) -> 1812 Sveučilište u Zagrebu FAKULTET PROMETNIH ZNANOSTI | P87: 323 | Q87: 32 | R87: 31 | S87: 94 | T87: 3 | U87: 31 | Y87: 4122 | Z87: Koncesije | AB87: 41 | AC87: 412 | AE87: A621191 | AF87: PRAĆENJE ZAPOŠLJAVANJA DIPLOMIRANIH STUDENATA | AG87: 0942 | AH87: Drugi stupanj visoke naobrazbe | AI87: 09 | AJ87: 094
A88: =IF(C88="","",VLOOKUP('OPĆI DIO'!$C$1,'OPĆI DIO'!$N$4:$W$137,10,FALSE)) -> 08006 | B88: =IF(C88="","",VLOOKUP('OPĆI DIO'!$C$1,'OPĆI DIO'!$N$4:$W$137,9,FALSE)) -> Sveučilišta i veleučilišta u Republici Hrvatskoj | C88: 31 | D88: 31 | E88: Vlastiti prihodi | F88: 3234 | G88: Komunalne usluge | H88: A679135 | I88: PROGRAMSKO I OSTALO FINANCIRANJE JAVNIH VISOKIH UČILIŠTA - IZ EVIDENCIJSKIH PRIHODA | J88: 0942 | K88: 116,403 | L88: 119,645 | M88: 122,888 | O88: =IF(C88="","",'OPĆI DIO'!$C$1) -> 1812 Sveučilište u Zagrebu FAKULTET PROMETNIH ZNANOSTI | P88: 323 | Q88: 32 | R88: 31 | S88: 94 | T88: 3 | U88: 31 | Y88: 4123 | Z88: Licence | AB88: 41 | AC88: 412 | AE88: A621192 | AF88: TROŠKOVI SREDIŠNJEG PRIJAVNOG UREDA | AG88: 0942 | AH88: Drugi stupanj visoke naobrazbe | AI88: 09 | AJ88: 094
A89: =IF(C89="","",VLOOKUP('OPĆI DIO'!$C$1,'OPĆI DIO'!$N$4:$W$137,10,FALSE)) -> 08006 | B89: =IF(C89="","",VLOOKUP('OPĆI DIO'!$C$1,'OPĆI DIO'!$N$4:$W$137,9,FALSE)) -> Sveučilišta i veleučilišta u Republici Hrvatskoj | C89: 31 | D89: 31 | E89: Vlastiti prihodi | F89: 3235 | G89: Zakupnine i najamnine | H89: A679135 | I89: PROGRAMSKO I OSTALO FINANCIRANJE JAVNIH VISOKIH UČILIŠTA - IZ EVIDENCIJSKIH PRIHODA | J89: 0942 | K89: 20,083 | L89: 20,642 | M89: 21,202 | O89: =IF(C89="","",'OPĆI DIO'!$C$1) -> 1812 Sveučilište u Zagrebu FAKULTET PROMETNIH ZNANOSTI | P89: 323 | Q89: 32 | R89: 31 | S89: 94 | T89: 3 | U89: 31 | Y89: 4124 | Z89: Ostala prava | AB89: 41 | AC89: 412 | AE89: A622004 | AF89: IZDAVANJE DOMAĆIH ZNANSTVENIH ČASOPISA | AG89: 0150 | AH89: Istraživanje i razvoj: Opće javne usluge | AI89: 01 | AJ89: 015
A90: =IF(C90="","",VLOOKUP('OPĆI DIO'!$C$1,'OPĆI DIO'!$N$4:$W$137,10,FALSE)) -> 08006 | B90: =IF(C90="","",VLOOKUP('OPĆI DIO'!$C$1,'OPĆI DIO'!$N$4:$W$137,9,FALSE)) -> Sveučilišta i veleučilišta u Republici Hrvatskoj | C90: 31 | D90: 31 | E90: Vlastiti prihodi | F90: 3236 | G90: Zdravstvene i veterinarske usluge | H90: A679135 | I90: PROGRAMSKO I OSTALO FINANCIRANJE JAVNIH VISOKIH UČILIŠTA - IZ EVIDENCIJSKIH PRIHODA | J90: 0942 | K90: 13,904 | L90: 14,292 | M90: 14,679 | O90: =IF(C90="","",'OPĆI DIO'!$C$1) -> 1812 Sveučilište u Zagrebu FAKULTET PROMETNIH ZNANOSTI | P90: 323 | Q90: 32 | R90: 31 | S90: 94 | T90: 3 | U90: 31 | Y90: 4126 | Z90: Ostala nematerijalna imovina | AB90: 41 | AC90: 412 | AE90: A622005 | AF90: ORGANIZIRANJE I ODRŽAVANJE ZNANSTVENIH SKUPOVA | AG90: 0150 | AH90: Istraživanje i razvoj: Opće javne usluge | AI90: 01 | AJ90: 015
A91: =IF(C91="","",VLOOKUP('OPĆI DIO'!$C$1,'OPĆI DIO'!$N$4:$W$137,10,FALSE)) -> 08006 | B91: =IF(C91="","",VLOOKUP('OPĆI DIO'!$C$1,'OPĆI DIO'!$N$4:$W$137,9,FALSE)) -> Sveučilišta i veleučilišta u Republici Hrvatskoj | C91: 31 | D91: 31 | E91: Vlastiti prihodi | F91: 3237 | G91: Intelektualne i osobne usluge | H91: A679135 | I91: PROGRAMSKO I OSTALO FINANCIRANJE JAVNIH VISOKIH UČILIŠTA - IZ EVIDENCIJSKIH PRIHODA | J91: 0942 | K91: 1,158,699 | L91: 1,190,974 | M91: 1,223,250 | O91: =IF(C91="","",'OPĆI DIO'!$C$1) -> 1812 Sveučilište u Zagrebu FAKULTET PROMETNIH ZNANOSTI | P91: 323 | Q91: 32 | R91: 31 | S91: 94 | T91: 3 | U91: 31 | Y91: 4211 | Z91: Stambeni objekti | AB91: 42 | AC91: 421 | AE91: A622006 | AF91: IZDAVANJE ZNANSTVENIH KNJIGA I UDŽBENIKA | AG91: 0150 | AH91: Istraživanje i razvoj: Opće javne usluge | AI91: 01 | AJ91: 015
A92: =IF(C92="","",VLOOKUP('OPĆI DIO'!$C$1,'OPĆI DIO'!$N$4:$W$137,10,FALSE)) -> 08006 | B92: =IF(C92="","",VLOOKUP('OPĆI DIO'!$C$1,'OPĆI DIO'!$N$4:$W$137,9,FALSE)) -> Sveučilišta i veleučilišta u Republici Hrvatskoj | C92: 31 | D92: 31 | E92: Vlastiti prihodi | F92: 3238 | G92: Računalne usluge | H92: A679135 | I92: PROGRAMSKO I OSTALO FINANCIRANJE JAVNIH VISOKIH UČILIŠTA - IZ EVIDENCIJSKIH PRIHODA | J92: 0942 | K92: 46,561 | L92: 47,858 | M92: 49,155 | O92: =IF(C92="","",'OPĆI DIO'!$C$1) -> 1812 Sveučilište u Zagrebu FAKULTET PROMETNIH ZNANOSTI | P92: 323 | Q92: 32 | R92: 31 | S92: 94 | T92: 3 | U92: 31 | Y92: 4212 | Z92: Poslovni objekti | AB92: 42 | AC92: 421 | AE92: A622007 | AF92: FINANCIJSKA POTPORA ZNANSTVENIM UDRUGAMA | AG92: 0150 | AH92: Istraživanje i razvoj: Opće javne usluge | AI92: 01 | AJ92: 015
A93: =IF(C93="","",VLOOKUP('OPĆI DIO'!$C$1,'OPĆI DIO'!$N$4:$W$137,10,FALSE)) -> 08006 | B93: =IF(C93="","",VLOOKUP('OPĆI DIO'!$C$1,'OPĆI DIO'!$N$4:$W$137,9,FALSE)) -> Sveučilišta i veleučilišta u Republici Hrvatskoj | C93: 31 | D93: 31 | E93: Vlastiti prihodi | F93: 3239 | G93: Ostale usluge | H93: A679135 | I93: PROGRAMSKO I OSTALO FINANCIRANJE JAVNIH VISOKIH UČILIŠTA - IZ EVIDENCIJSKIH PRIHODA | J93: 0942 | K93: 58,201 | L93: 59,823 | M93: 61,444 | O93: =IF(C93="","",'OPĆI DIO'!$C$1) -> 1812 Sveučilište u Zagrebu FAKULTET PROMETNIH ZNANOSTI | P93: 323 | Q93: 32 | R93: 31 | S93: 94 | T93: 3 | U93: 31 | Y93: 4213 | Z93: Ceste, željeznice i ostali prometni objekti | AB93: 42 | AC93: 421 | AE93: A622011 | AF93: REDOVNA DJELATNOST GEOLOŠKE SLUŽBE | AG93: 0150 | AH93: Istraživanje i razvoj: Opće javne usluge | AI93: 01 | AJ93: 015
A94: =IF(C94="","",VLOOKUP('OPĆI DIO'!$C$1,'OPĆI DIO'!$N$4:$W$137,10,FALSE)) -> 08006 | B94: =IF(C94="","",VLOOKUP('OPĆI DIO'!$C$1,'OPĆI DIO'!$N$4:$W$137,9,FALSE)) -> Sveučilišta i veleučilišta u Republici Hrvatskoj | C94: 31 | D94: 31 | E94: Vlastiti prihodi | F94: 3241 | G94: Naknade troškova osobama izvan radnog odnosa | H94: A679135 | I94: PROGRAMSKO I OSTALO FINANCIRANJE JAVNIH VISOKIH UČILIŠTA - IZ EVIDENCIJSKIH PRIHODA | J94: 0942 | K94: 3,089 | L94: 3,175 | M94: 3,261 | O94: =IF(C94="","",'OPĆI DIO'!$C$1) -> 1812 Sveučilište u Zagrebu FAKULTET PROMETNIH ZNANOSTI | P94: 324 | Q94: 32 | R94: 31 | S94: 94 | T94: 3 | U94: 31 | Y94: 4214 | Z94: Ostali građevinski objekti | AB94: 42 | AC94: 421 | AE94: A622017 | AF94: ADMINISTRACIJA I UPRAVLJANJE NACIONALNE SVEUČILIŠNE KNJIŽNICE | AG94: 0820 | AH94: Službe kulture | AI94: 08 | AJ94: 082
A95: =IF(C95="","",VLOOKUP('OPĆI DIO'!$C$1,'OPĆI DIO'!$N$4:$W$137,10,FALSE)) -> 08006 | B95: =IF(C95="","",VLOOKUP('OPĆI DIO'!$C$1,'OPĆI DIO'!$N$4:$W$137,9,FALSE)) -> Sveučilišta i veleučilišta u Republici Hrvatskoj | C95: 31 | D95: 31 | E95: Vlastiti prihodi | F95: 3292 | G95: Premije osiguranja | H95: A679135 | I95: PROGRAMSKO I OSTALO FINANCIRANJE JAVNIH VISOKIH UČILIŠTA - IZ EVIDENCIJSKIH PRIHODA | J95: 0942 | K95: 46,347 | L95: 47,638 | M95: 48,929 | O95: =IF(C95="","",'OPĆI DIO'!$C$1) -> 1812 Sveučilište u Zagrebu FAKULTET PROMETNIH ZNANOSTI | P95: 329 | Q95: 32 | R95: 31 | S95: 94 | T95: 3 | U95: 31 | Y95: 4221 | Z95: Uredska oprema i namještaj | AB95: 42 | AC95: 422 | AE95: A622107 | AF95: ADMINISTRACIJA I UPRAVLJANJE LEKSIKOGRAFSKOG ZAVODA MIROSLAV KRLEŽA | AG95: 0150 | AH95: Istraživanje i razvoj: Opće javne usluge | AI95: 01 | AJ95: 015
A96: =IF(C96="","",VLOOKUP('OPĆI DIO'!$C$1,'OPĆI DIO'!$N$4:$W$137,10,FALSE)) -> 08006 | B96: =IF(C96="","",VLOOKUP('OPĆI DIO'!$C$1,'OPĆI DIO'!$N$4:$W$137,9,FALSE)) -> Sveučilišta i veleučilišta u Republici Hrvatskoj | C96: 31 | D96: 31 | E96: Vlastiti prihodi | F96: 3293 | G96: Reprezentacija | H96: A679135 | I96: PROGRAMSKO I OSTALO FINANCIRANJE JAVNIH VISOKIH UČILIŠTA - IZ EVIDENCIJSKIH PRIHODA | J96: 0942 | K96: 116,403 | L96: 119,645 | M96: 122,888 | O96: =IF(C96="","",'OPĆI DIO'!$C$1) -> 1812 Sveučilište u Zagrebu FAKULTET PROMETNIH ZNANOSTI | P96: 329 | Q96: 32 | R96: 31 | S96: 94 | T96: 3 | U96: 31 | Y96: 4222 | Z96: Komunikacijska oprema | AB96: 42 | AC96: 422 | AE96: A622120 | AF96: PRAVOMOĆNE SUDSKE PRESUDE | AG96: 0150 | AH96: Istraživanje i razvoj: Opće javne usluge | AI96: 01 | AJ96: 015
A97: =IF(C97="","",VLOOKUP('OPĆI DIO'!$C$1,'OPĆI DIO'!$N$4:$W$137,10,FALSE)) -> 08006 | B97: =IF(C97="","",VLOOKUP('OPĆI DIO'!$C$1,'OPĆI DIO'!$N$4:$W$137,9,FALSE)) -> Sveučilišta i veleučilišta u Republici Hrvatskoj | C97: 31 | D97: 31 | E97: Vlastiti prihodi | F97: 3294 | G97: Članarine i norme | H97: A679135 | I97: PROGRAMSKO I OSTALO FINANCIRANJE JAVNIH VISOKIH UČILIŠTA - IZ EVIDENCIJSKIH PRIHODA | J97: 0942 | K97: 23,173 | L97: 23,819 | M97: 24,464 | O97: =IF(C97="","",'OPĆI DIO'!$C$1) -> 1812 Sveučilište u Zagrebu FAKULTET PROMETNIH ZNANOSTI | P97: 329 | Q97: 32 | R97: 31 | S97: 94 | T97: 3 | U97: 31 | Y97: 4223 | Z97: Oprema za održavanje i zaštitu | AB97: 42 | AC97: 422 | AE97: A622131 | AF97: NABAVA INOZEMNIH ZNANSTVENIH ČASOPISA | AG97: 0820 | AH97: Službe kulture | AI97: 08 | AJ97: 082
A98: =IF(C98="","",VLOOKUP('OPĆI DIO'!$C$1,'OPĆI DIO'!$N$4:$W$137,10,FALSE)) -> 08006 | B98: =IF(C98="","",VLOOKUP('OPĆI DIO'!$C$1,'OPĆI DIO'!$N$4:$W$137,9,FALSE)) -> Sveučilišta i veleučilišta u Republici Hrvatskoj | C98: 31 | D98: 31 | E98: Vlastiti prihodi | F98: 3295 | G98: Pristojbe i naknade | H98: A679135 | I98: PROGRAMSKO I OSTALO FINANCIRANJE JAVNIH VISOKIH UČILIŠTA - IZ EVIDENCIJSKIH PRIHODA | J98: 0942 | K98: 11,640 | L98: 11,965 | M98: 12,289 | O98: =IF(C98="","",'OPĆI DIO'!$C$1) -> 1812 Sveučilište u Zagrebu FAKULTET PROMETNIH ZNANOSTI | P98: 329 | Q98: 32 | R98: 31 | S98: 94 | T98: 3 | U98: 31 | Y98: 4224 | Z98: Medicinska i laboratorijska oprema | AB98: 42 | AC98: 422 | AE98: A622134 | AF98: ADMINISTRACIJA I UPRAVLJANJE NACIONALNE SVEUČILIŠNE KNJIŽNICE (IZ EVIDENCIJSKIH PRIHODA) | AG98: 0820 | AH98: Službe kulture | AI98: 08 | AJ98: 082
A99: =IF(C99="","",VLOOKUP('OPĆI DIO'!$C$1,'OPĆI DIO'!$N$4:$W$137,10,FALSE)) -> 08006 | B99: =IF(C99="","",VLOOKUP('OPĆI DIO'!$C$1,'OPĆI DIO'!$N$4:$W$137,9,FALSE)) -> Sveučilišta i veleučilišta u Republici Hrvatskoj | C99: 31 | D99: 31 | E99: Vlastiti prihodi | F99: 3299 | G99: Ostali nespomenuti rashodi poslovanja | H99: A679135 | I99: PROGRAMSKO I OSTALO FINANCIRANJE JAVNIH VISOKIH UČILIŠTA - IZ EVIDENCIJSKIH PRIHODA | J99: 0942 | K99: 15,449 | L99: 15,879 | M99: 16,310 | O99: =IF(C99="","",'OPĆI DIO'!$C$1) -> 1812 Sveučilište u Zagrebu FAKULTET PROMETNIH ZNANOSTI | P99: 329 | Q99: 32 | R99: 31 | S99: 94 | T99: 3 | U99: 31 | Y99: 4225 | Z99: Instrumenti i uređaji | AB99: 42 | AC99: 422 | AE99: A622136 | AF99: ADMINISTRACIJA I UPRAVLJANJE LEKSIKOGRAFSKOG ZAVODA MIROSLAV KRLEŽA (IZ EVIDENCIJSKIH PRIHODA) | AG99: 0150 | AH99: Istraživanje i razvoj: Opće javne usluge | AI99: 01 | AJ99: 015
A100: =IF(C100="","",VLOOKUP('OPĆI DIO'!$C$1,'OPĆI DIO'!$N$4:$W$137,10,FALSE)) -> 08006 | B100: =IF(C100="","",VLOOKUP('OPĆI DIO'!$C$1,'OPĆI DIO'!$N$4:$W$137,9,FALSE)) -> Sveučilišta i veleučilišta u Republici Hrvatskoj | C100: 31 | D100: 31 | E100: Vlastiti prihodi | F100: 3431 | G100: Bankarske usluge i usluge platnog prometa | H100: A679135 | I100: PROGRAMSKO I OSTALO FINANCIRANJE JAVNIH VISOKIH UČILIŠTA - IZ EVIDENCIJSKIH PRIHODA | J100: 0942 | K100: 17,460 | L100: 17,947 | M100: 18,433 | O100: =IF(C100="","",'OPĆI DIO'!$C$1) -> 1812 Sveučilište u Zagrebu FAKULTET PROMETNIH ZNANOSTI | P100: 343 | Q100: 34 | R100: 31 | S100: 94 | T100: 3 | U100: 31 | Y100: 4226 | Z100: Sportska i glazbena oprema | AB100: 42 | AC100: 422 | AE100: A622145 | AF100: PRAVOMOĆNE SUDSKE PRESUDE | AG100: 0820 | AH100: Službe kulture | AI100: 08 | AJ100: 082
A101: =IF(C101="","",VLOOKUP('OPĆI DIO'!$C$1,'OPĆI DIO'!$N$4:$W$137,10,FALSE)) -> 08006 | B101: =IF(C101="","",VLOOKUP('OPĆI DIO'!$C$1,'OPĆI DIO'!$N$4:$W$137,9,FALSE)) -> Sveučilišta i veleučilišta u Republici Hrvatskoj | C101: 31 | D101: 31 | E101: Vlastiti prihodi | F101: 3434 | G101: Ostali nespomenuti financijski rashodi | H101: A679135 | I101: PROGRAMSKO I OSTALO FINANCIRANJE JAVNIH VISOKIH UČILIŠTA - IZ EVIDENCIJSKIH PRIHODA | J101: 0942 | K101: 7,724 | L101: 7,940 | M101: 8,155 | O101: =IF(C101="","",'OPĆI DIO'!$C$1) -> 1812 Sveučilište u Zagrebu FAKULTET PROMETNIH ZNANOSTI | P101: 343 | Q101: 34 | R101: 31 | S101: 94 | T101: 3 | U101: 31 | Y101: 4227 | Z101: Uređaji, strojevi i oprema za ostale namjene | AB101: 42 | AC101: 422 | AE101: A622146 | AF101: PRAVOMOĆNE SUDSKE PRESUDE | AG101: 0150 | AH101: Istraživanje i razvoj: Opće javne usluge | AI101: 01 | AJ101: 015
A102: =IF(C102="","",VLOOKUP('OPĆI DIO'!$C$1,'OPĆI DIO'!$N$4:$W$137,10,FALSE)) -> 08006 | B102: =IF(C102="","",VLOOKUP('OPĆI DIO'!$C$1,'OPĆI DIO'!$N$4:$W$137,9,FALSE)) -> Sveučilišta i veleučilišta u Republici Hrvatskoj | C102: 31 | D102: 31 | E102: Vlastiti prihodi | F102: 3721 | G102: Naknade građanima i kućanstvima u novcu | H102: A679135 | I102: PROGRAMSKO I OSTALO FINANCIRANJE JAVNIH VISOKIH UČILIŠTA - IZ EVIDENCIJSKIH PRIHODA | J102: 0942 | K102: 1,164 | L102: 1,196 | M102: 1,229 | O102: =IF(C102="","",'OPĆI DIO'!$C$1) -> 1812 Sveučilište u Zagrebu FAKULTET PROMETNIH ZNANOSTI | P102: 372 | Q102: 37 | R102: 31 | S102: 94 | T102: 3 | U102: 31 | Y102: 4231 | Z102: Prijevozna sredstva u cestovnom prometu | AB102: 42 | AC102: 423 | AE102: A622150 | AF102: PROGRAMSKO FINANCIRANJE JAVNIH INSTITUTA | AG102: 0150 | AH102: Istraživanje i razvoj: Opće javne usluge | AI102: 01 | AJ102: 015
A103: =IF(C103="","",VLOOKUP('OPĆI DIO'!$C$1,'OPĆI DIO'!$N$4:$W$137,10,FALSE)) -> 08006 | B103: =IF(C103="","",VLOOKUP('OPĆI DIO'!$C$1,'OPĆI DIO'!$N$4:$W$137,9,FALSE)) -> Sveučilišta i veleučilišta u Republici Hrvatskoj | C103: 31 | D103: 31 | E103: Vlastiti prihodi | F103: 4221 | G103: Uredska oprema i namještaj | H103: A679135 | I103: PROGRAMSKO I OSTALO FINANCIRANJE JAVNIH VISOKIH UČILIŠTA - IZ EVIDENCIJSKIH PRIHODA | J103: 0942 | K103: 29,105 | L103: 29,912 | M103: 30,720 | O103: =IF(C103="","",'OPĆI DIO'!$C$1) -> 1812 Sveučilište u Zagrebu FAKULTET PROMETNIH ZNANOSTI | P103: 422 | Q103: 42 | R103: 31 | S103: 94 | T103: 4 | U103: 31 | Y103: 4233 | Z103: Prijevozna sredstva u pomorskom i riječnom prometu | AB103: =LEFT(Y103,2) -> 42 | AC103: 423 | AE103: A622151 | AF103: PROGRAMSKO I OSTALO FINANCIRANJE JAVNIH INSTITUTA – IZ EVIDENCIJSKIH PRIHODA | AG103: 0150 | AH103: Istraživanje i razvoj: Opće javne usluge | AI103: 01 | AJ103: 015
A104: =IF(C104="","",VLOOKUP('OPĆI DIO'!$C$1,'OPĆI DIO'!$N$4:$W$137,10,FALSE)) -> 08006 | B104: =IF(C104="","",VLOOKUP('OPĆI DIO'!$C$1,'OPĆI DIO'!$N$4:$W$137,9,FALSE)) -> Sveučilišta i veleučilišta u Republici Hrvatskoj | C104: 31 | D104: 31 | E104: Vlastiti prihodi | F104: 4225 | G104: Instrumenti i uređaji | H104: A679135 | I104: PROGRAMSKO I OSTALO FINANCIRANJE JAVNIH VISOKIH UČILIŠTA - IZ EVIDENCIJSKIH PRIHODA | J104: 0942 | K104: 11,640 | L104: 11,965 | M104: 12,289 | O104: =IF(C104="","",'OPĆI DIO'!$C$1) -> 1812 Sveučilište u Zagrebu FAKULTET PROMETNIH ZNANOSTI | P104: 422 | Q104: 42 | R104: 31 | S104: 94 | T104: 4 | U104: 31 | Y104: 4241 | Z104: Knjige | AB104: 42 | AC104: 424 | AE104: A622152 | AF104: PROGRAMSKO FINANCIRANJE JAVNIH INSTITUTA - IZ STRUKTURNIH I INVESTICIJSKIH FONDOVA EU | AG104: 0150 | AH104: Istraživanje i razvoj: Opće javne usluge | AI104: 01 | AJ104: 015
A105: =IF(C105="","",VLOOKUP('OPĆI DIO'!$C$1,'OPĆI DIO'!$N$4:$W$137,10,FALSE)) ->  | B105: =IF(C105="","",VLOOKUP('OPĆI DIO'!$C$1,'OPĆI DIO'!$N$4:$W$137,9,FALSE)) ->  | O105: =IF(C105="","",'OPĆI DIO'!$C$1) ->  | Y105: 4242 | Z105: Umjetnička djela (izložena u galerijama, muzejima i slično) | AB105: 42 | AC105: 424 | AE105: A628003 | AF105: PROJEKTI PRIMJENE INFORMACIJSKE TEHNOLOGIJE | AG105: 0150 | AH105: Istraživanje i razvoj: Opće javne usluge | AI105: 01 | AJ105: 015
A106: =IF(C106="","",VLOOKUP('OPĆI DIO'!$C$1,'OPĆI DIO'!$N$4:$W$137,10,FALSE)) -> 08006 | B106: =IF(C106="","",VLOOKUP('OPĆI DIO'!$C$1,'OPĆI DIO'!$N$4:$W$137,9,FALSE)) -> Sveučilišta i veleučilišta u Republici Hrvatskoj | C106: 43 | D106: 43 | E106: Ostali prihodi za posebne namjene | F106: 3213 | G106: Stručno usavršavanje zaposlenika | H106: A679135 | I106: PROGRAMSKO I OSTALO FINANCIRANJE JAVNIH VISOKIH UČILIŠTA - IZ EVIDENCIJSKIH PRIHODA | J106: 0942 | K106: 11,016 | L106: 11,346 | M106: 11,686 | O106: =IF(C106="","",'OPĆI DIO'!$C$1) -> 1812 Sveučilište u Zagrebu FAKULTET PROMETNIH ZNANOSTI | P106: 321 | Q106: 32 | R106: 43 | S106: 94 | T106: 3 | U106: 43 | Y106: 4244 | Z106: Ostale nespomenute izložbene vrijednosti | AB106: 42 | AC106: 424 | AE106: A628009 | AF106: ADMINISTRACIJA I UPRAVLJANJE HRVATSKE AKADEMSKE I ISTRAŽIVAČKE MREŽE CARNET | AG106: 0133 | AH106: Ostale opće usluge | AI106: 01 | AJ106: 013
A107: =IF(C107="","",VLOOKUP('OPĆI DIO'!$C$1,'OPĆI DIO'!$N$4:$W$137,10,FALSE)) -> 08006 | B107: =IF(C107="","",VLOOKUP('OPĆI DIO'!$C$1,'OPĆI DIO'!$N$4:$W$137,9,FALSE)) -> Sveučilišta i veleučilišta u Republici Hrvatskoj | C107: 43 | D107: 43 | E107: Ostali prihodi za posebne namjene | F107: 3214 | G107: Ostale naknade troškova zaposlenima | H107: A679135 | I107: PROGRAMSKO I OSTALO FINANCIRANJE JAVNIH VISOKIH UČILIŠTA - IZ EVIDENCIJSKIH PRIHODA | J107: 0942 | K107: 1,520 | L107: 1,566 | M107: 1,613 | O107: =IF(C107="","",'OPĆI DIO'!$C$1) -> 1812 Sveučilište u Zagrebu FAKULTET PROMETNIH ZNANOSTI | P107: 321 | Q107: 32 | R107: 43 | S107: 94 | T107: 3 | U107: 43 | Y107: 4251 | Z107: Višegodišnji nasadi | AB107: 42 | AC107: 425 | AE107: A628011 | AF107: PROGRAM TELEKOMUNIKACIJSKIH KAPACITETA ZA MREŽU CARNET | AG107: 0133 | AH107: Ostale opće usluge | AI107: 01 | AJ107: 013
A108: =IF(C108="","",VLOOKUP('OPĆI DIO'!$C$1,'OPĆI DIO'!$N$4:$W$137,10,FALSE)) -> 08006 | B108: =IF(C108="","",VLOOKUP('OPĆI DIO'!$C$1,'OPĆI DIO'!$N$4:$W$137,9,FALSE)) -> Sveučilišta i veleučilišta u Republici Hrvatskoj | C108: 43 | D108: 43 | E108: Ostali prihodi za posebne namjene | F108: 3221 | G108: Uredski materijal i ostali materijalni rashodi | H108: A679135 | I108: PROGRAMSKO I OSTALO FINANCIRANJE JAVNIH VISOKIH UČILIŠTA - IZ EVIDENCIJSKIH PRIHODA | J108: 0942 | K108: 7,601 | L108: 7,829 | M108: 8,064 | O108: =IF(C108="","",'OPĆI DIO'!$C$1) -> 1812 Sveučilište u Zagrebu FAKULTET PROMETNIH ZNANOSTI | P108: 322 | Q108: 32 | R108: 43 | S108: 94 | T108: 3 | U108: 43 | Y108: 4252 | Z108: Osnovno stado | AB108: 42 | AC108: 425 | AE108: A628015 | AF108: UKLJUČIVANJE MREŽE CARNET U PAN-EUROPSKE AKADEMSKE I ISTRAŽIVAČKE MREŽE | AG108: 0460 | AH108: Komunikacije | AI108: 04 | AJ108: 046
A109: =IF(C109="","",VLOOKUP('OPĆI DIO'!$C$1,'OPĆI DIO'!$N$4:$W$137,10,FALSE)) -> 08006 | B109: =IF(C109="","",VLOOKUP('OPĆI DIO'!$C$1,'OPĆI DIO'!$N$4:$W$137,9,FALSE)) -> Sveučilišta i veleučilišta u Republici Hrvatskoj | C109: 43 | D109: 43 | E109: Ostali prihodi za posebne namjene | F109: 3222 | G109: Materijal i sirovine | H109: A679135 | I109: PROGRAMSKO I OSTALO FINANCIRANJE JAVNIH VISOKIH UČILIŠTA - IZ EVIDENCIJSKIH PRIHODA | J109: 0942 | K109: 7,601 | L109: 7,829 | M109: 8,064 | O109: =IF(C109="","",'OPĆI DIO'!$C$1) -> 1812 Sveučilište u Zagrebu FAKULTET PROMETNIH ZNANOSTI | P109: 322 | Q109: 32 | R109: 43 | S109: 94 | T109: 3 | U109: 43 | Y109: 4262 | Z109: Ulaganja u računalne programe | AB109: 42 | AC109: 426 | AE109: A628018 | AF109: ADMINISTRACIJA I UPRAVLJANJE SVEUČILIŠNOG RAČUNSKOG CENTRA SRCE | AG109: 0133 | AH109: Ostale opće usluge | AI109: 01 | AJ109: 013
A110: =IF(C110="","",VLOOKUP('OPĆI DIO'!$C$1,'OPĆI DIO'!$N$4:$W$137,10,FALSE)) -> 08006 | B110: =IF(C110="","",VLOOKUP('OPĆI DIO'!$C$1,'OPĆI DIO'!$N$4:$W$137,9,FALSE)) -> Sveučilišta i veleučilišta u Republici Hrvatskoj | C110: 43 | D110: 43 | E110: Ostali prihodi za posebne namjene | F110: 3224 | G110: Materijal i dijelovi za tekuće i investicijsko održavanje | H110: A679135 | I110: PROGRAMSKO I OSTALO FINANCIRANJE JAVNIH VISOKIH UČILIŠTA - IZ EVIDENCIJSKIH PRIHODA | J110: 0942 | K110: 51,545 | L110: 53,091 | M110: 54,684 | O110: =IF(C110="","",'OPĆI DIO'!$C$1) -> 1812 Sveučilište u Zagrebu FAKULTET PROMETNIH ZNANOSTI | P110: 322 | Q110: 32 | R110: 43 | S110: 94 | T110: 3 | U110: 43 | Y110: 4263 | Z110: Umjetnička, literarna i znanstvena djela | AB110: 42 | AC110: 426 | AE110: A628068 | AF110: SUDJELOVANJE NA IZGRADNJI, TESTIRANJU I RAZVOJU OKOSNICE PAN-EUROPSKE RAČUNALNO KOMUNIKACIJSKE MREŽE | AG110: 0133 | AH110: Ostale opće usluge | AI110: 01 | AJ110: 013
A111: =IF(C111="","",VLOOKUP('OPĆI DIO'!$C$1,'OPĆI DIO'!$N$4:$W$137,10,FALSE)) -> 08006 | B111: =IF(C111="","",VLOOKUP('OPĆI DIO'!$C$1,'OPĆI DIO'!$N$4:$W$137,9,FALSE)) -> Sveučilišta i veleučilišta u Republici Hrvatskoj | C111: 43 | D111: 43 | E111: Ostali prihodi za posebne namjene | F111: 3227 | G111: Službena, radna i zaštitna odjeća i obuća | H111: A679135 | I111: PROGRAMSKO I OSTALO FINANCIRANJE JAVNIH VISOKIH UČILIŠTA - IZ EVIDENCIJSKIH PRIHODA | J111: 0942 | K111: 7,601 | L111: 7,829 | M111: 8,064 | O111: =IF(C111="","",'OPĆI DIO'!$C$1) -> 1812 Sveučilište u Zagrebu FAKULTET PROMETNIH ZNANOSTI | P111: 322 | Q111: 32 | R111: 43 | S111: 94 | T111: 3 | U111: 43 | Y111: 4264 | Z111: Ostala nematerijalna proizvedena imovina | AB111: 42 | AC111: 426 | AE111: A628070 | AF111: PROGRAM OBJEDINJAVANJA I ODRŽAVANJA NACIONALNIH INFORMACIJSKIH SERVISA I E-ŠKOLA | AG111: 0133 | AH111: Ostale opće usluge | AI111: 01 | AJ111: 013
A112: =IF(C112="","",VLOOKUP('OPĆI DIO'!$C$1,'OPĆI DIO'!$N$4:$W$137,10,FALSE)) -> 08006 | B112: =IF(C112="","",VLOOKUP('OPĆI DIO'!$C$1,'OPĆI DIO'!$N$4:$W$137,9,FALSE)) -> Sveučilišta i veleučilišta u Republici Hrvatskoj | C112: 43 | D112: 43 | E112: Ostali prihodi za posebne namjene | F112: 3231 | G112: Usluge telefona, interneta, pošte i prijevoza | H112: A679135 | I112: PROGRAMSKO I OSTALO FINANCIRANJE JAVNIH VISOKIH UČILIŠTA - IZ EVIDENCIJSKIH PRIHODA | J112: 0942 | K112: 3,748 | L112: 3,860 | M112: 3,976 | O112: =IF(C112="","",'OPĆI DIO'!$C$1) -> 1812 Sveučilište u Zagrebu FAKULTET PROMETNIH ZNANOSTI | P112: 323 | Q112: 32 | R112: 43 | S112: 94 | T112: 3 | U112: 43 | Y112: 4312 | Z112: Pohranjene knjige, umjetnička djela i slične vrijednosti | AB112: 43 | AC112: 431 | AE112: A628074 | AF112: PROGRAMI ZAJEDNICE | AG112: 0133 | AH112: Ostale opće usluge | AI112: 01 | AJ112: 013
A113: =IF(C113="","",VLOOKUP('OPĆI DIO'!$C$1,'OPĆI DIO'!$N$4:$W$137,10,FALSE)) -> 08006 | B113: =IF(C113="","",VLOOKUP('OPĆI DIO'!$C$1,'OPĆI DIO'!$N$4:$W$137,9,FALSE)) -> Sveučilišta i veleučilišta u Republici Hrvatskoj | C113: 43 | D113: 43 | E113: Ostali prihodi za posebne namjene | F113: 3232 | G113: Usluge tekućeg i investicijskog održavanja | H113: A679135 | I113: PROGRAMSKO I OSTALO FINANCIRANJE JAVNIH VISOKIH UČILIŠTA - IZ EVIDENCIJSKIH PRIHODA | J113: 0942 | K113: 57,272 | L113: 58,990 | M113: 60,760 | O113: =IF(C113="","",'OPĆI DIO'!$C$1) -> 1812 Sveučilište u Zagrebu FAKULTET PROMETNIH ZNANOSTI | P113: 323 | Q113: 32 | R113: 43 | S113: 94 | T113: 3 | U113: 43 | Y113: 4411 | Z113: Strateške zalihe | AB113: 44 | AC113: 441 | AE113: A628084 | AF113: ADMINISTRACIJA I UPRAVLJANJE SVEUČILIŠNOG RAČUNSKOG CENTRA SRCE (IZ EVIDENCIJSKIH PRIHODA) | AG113: 0133 | AH113: Ostale opće usluge | AI113: 01 | AJ113: 013
A114: =IF(C114="","",VLOOKUP('OPĆI DIO'!$C$1,'OPĆI DIO'!$N$4:$W$137,10,FALSE)) -> 08006 | B114: =IF(C114="","",VLOOKUP('OPĆI DIO'!$C$1,'OPĆI DIO'!$N$4:$W$137,9,FALSE)) -> Sveučilišta i veleučilišta u Republici Hrvatskoj | C114: 43 | D114: 43 | E114: Ostali prihodi za posebne namjene | F114: 3233 | G114: Usluge promidžbe i informiranja | H114: A679135 | I114: PROGRAMSKO I OSTALO FINANCIRANJE JAVNIH VISOKIH UČILIŠTA - IZ EVIDENCIJSKIH PRIHODA | J114: 0942 | K114: 15,202 | L114: 15,658 | M114: 16,128 | O114: =IF(C114="","",'OPĆI DIO'!$C$1) -> 1812 Sveučilište u Zagrebu FAKULTET PROMETNIH ZNANOSTI | P114: 323 | Q114: 32 | R114: 43 | S114: 94 | T114: 3 | U114: 43 | Y114: 4511 | Z114: Dodatna ulaganja na građevinskim objektima | AB114: 45 | AC114: 451 | AE114: A628090 | AF114: UNAPRJEĐENJE JEDNAKIH MOGUĆNOSTI U OBRAZOVANJU ZA UČENIKE S TEŠKOĆAMA U RAZVOJU | AG114: 0133 | AH114: Ostale opće usluge | AI114: 01 | AJ114: 013
A115: =IF(C115="","",VLOOKUP('OPĆI DIO'!$C$1,'OPĆI DIO'!$N$4:$W$137,10,FALSE)) -> 08006 | B115: =IF(C115="","",VLOOKUP('OPĆI DIO'!$C$1,'OPĆI DIO'!$N$4:$W$137,9,FALSE)) -> Sveučilišta i veleučilišta u Republici Hrvatskoj | C115: 43 | D115: 43 | E115: Ostali prihodi za posebne namjene | F115: 3235 | G115: Zakupnine i najamnine | H115: A679135 | I115: PROGRAMSKO I OSTALO FINANCIRANJE JAVNIH VISOKIH UČILIŠTA - IZ EVIDENCIJSKIH PRIHODA | J115: 0942 | K115: 15,202 | L115: 15,658 | M115: 16,128 | O115: =IF(C115="","",'OPĆI DIO'!$C$1) -> 1812 Sveučilište u Zagrebu FAKULTET PROMETNIH ZNANOSTI | P115: 323 | Q115: 32 | R115: 43 | S115: 94 | T115: 3 | U115: 43 | Y115: 4521 | Z115: Dodatna ulaganja na postrojenjima i opremi | AB115: 45 | AC115: 452 | AE115: A628091 | AF115: OBRAZOVANJE U RURALNIM PODRUČJIMA - LEARNING FROM THE EXTREMES, A RURAL SCHOOLS INNOVATION ROADMAP | AG115: 0133 | AH115: Ostale opće usluge | AI115: 01 | AJ115: 013
A116: =IF(C116="","",VLOOKUP('OPĆI DIO'!$C$1,'OPĆI DIO'!$N$4:$W$137,10,FALSE)) -> 08006 | B116: =IF(C116="","",VLOOKUP('OPĆI DIO'!$C$1,'OPĆI DIO'!$N$4:$W$137,9,FALSE)) -> Sveučilišta i veleučilišta u Republici Hrvatskoj | C116: 43 | D116: 43 | E116: Ostali prihodi za posebne namjene | F116: 3236 | G116: Zdravstvene i veterinarske usluge | H116: A679135 | I116: PROGRAMSKO I OSTALO FINANCIRANJE JAVNIH VISOKIH UČILIŠTA - IZ EVIDENCIJSKIH PRIHODA | J116: 0942 | K116: 9,121 | L116: 9,395 | M116: 9,677 | O116: =IF(C116="","",'OPĆI DIO'!$C$1) -> 1812 Sveučilište u Zagrebu FAKULTET PROMETNIH ZNANOSTI | P116: 323 | Q116: 32 | R116: 43 | S116: 94 | T116: 3 | U116: 43 | Y116: 4531 | Z116: Dodatna ulaganja na prijevoznim sredstvima | AB116: 45 | AC116: 453 | AE116: A628098 | AF116: PRAVOMOĆNE SUDSKE PRESUDE | AG116: 0133 | AH116: Ostale opće usluge | AI116: 01 | AJ116: 013
A117: =IF(C117="","",VLOOKUP('OPĆI DIO'!$C$1,'OPĆI DIO'!$N$4:$W$137,10,FALSE)) -> 08006 | B117: =IF(C117="","",VLOOKUP('OPĆI DIO'!$C$1,'OPĆI DIO'!$N$4:$W$137,9,FALSE)) -> Sveučilišta i veleučilišta u Republici Hrvatskoj | C117: 43 | D117: 43 | E117: Ostali prihodi za posebne namjene | F117: 3237 | G117: Intelektualne i osobne usluge | H117: A679135 | I117: PROGRAMSKO I OSTALO FINANCIRANJE JAVNIH VISOKIH UČILIŠTA - IZ EVIDENCIJSKIH PRIHODA | J117: 0942 | K117: 6,873 | L117: 7,079 | M117: 7,291 | O117: =IF(C117="","",'OPĆI DIO'!$C$1) -> 1812 Sveučilište u Zagrebu FAKULTET PROMETNIH ZNANOSTI | P117: 323 | Q117: 32 | R117: 43 | S117: 94 | T117: 3 | U117: 43 | Y117: 4541 | Z117: Dodatna ulaganja za ostalu nefinancijsku imovinu | AB117: 45 | AC117: 454 | AE117: A666666 | AF117: PROGRAM PREKOGRANIČNE SURADNJE UPRAVLJAČKO TIJELO IZ INOZEMSTVA | AG117: 0150 | AH117: Istraživanje i razvoj: Opće javne usluge | AI117: 01 | AJ117: 015
A118: =IF(C118="","",VLOOKUP('OPĆI DIO'!$C$1,'OPĆI DIO'!$N$4:$W$137,10,FALSE)) -> 08006 | B118: =IF(C118="","",VLOOKUP('OPĆI DIO'!$C$1,'OPĆI DIO'!$N$4:$W$137,9,FALSE)) -> Sveučilišta i veleučilišta u Republici Hrvatskoj | C118: 43 | D118: 43 | E118: Ostali prihodi za posebne namjene | F118: 3431 | G118: Bankarske usluge i usluge platnog prometa | H118: A679135 | I118: PROGRAMSKO I OSTALO FINANCIRANJE JAVNIH VISOKIH UČILIŠTA - IZ EVIDENCIJSKIH PRIHODA | J118: 0942 | K118: 1,145 | L118: 1,180 | M118: 1,214 | O118: =IF(C118="","",'OPĆI DIO'!$C$1) -> 1812 Sveučilište u Zagrebu FAKULTET PROMETNIH ZNANOSTI | P118: 343 | Q118: 34 | R118: 43 | S118: 94 | T118: 3 | U118: 43 | Y118: 5422 | Z118: Otplata glavnice primljenih kredita od kreditnih institucija u javnom sektoru | AB118: =LEFT(Y118,2) -> 54 | AC118: =LEFT(Y118,3) -> 542 | AE118: A676072 | AF118: ERASMUS PLUS - PROJEKTI | AG118: 0970 | AH118: Istraživanje i razvoj obrazovanja | AI118: 09 | AJ118: 097
A119: =IF(C119="","",VLOOKUP('OPĆI DIO'!$C$1,'OPĆI DIO'!$N$4:$W$137,10,FALSE)) -> 08006 | B119: =IF(C119="","",VLOOKUP('OPĆI DIO'!$C$1,'OPĆI DIO'!$N$4:$W$137,9,FALSE)) -> Sveučilišta i veleučilišta u Republici Hrvatskoj | C119: 43 | D119: 43 | E119: Ostali prihodi za posebne namjene | F119: 3434 | G119: Ostali nespomenuti financijski rashodi | H119: A679135 | I119: PROGRAMSKO I OSTALO FINANCIRANJE JAVNIH VISOKIH UČILIŠTA - IZ EVIDENCIJSKIH PRIHODA | J119: 0942 | K119: 7,601 | L119: 7,829 | M119: 8,064 | O119: =IF(C119="","",'OPĆI DIO'!$C$1) -> 1812 Sveučilište u Zagrebu FAKULTET PROMETNIH ZNANOSTI | P119: 343 | Q119: 34 | R119: 43 | S119: 94 | T119: 3 | U119: 43 | Y119: 5443 | Z119: Otplata glavnice primljenih kredita od tuzemnih kreditnih institucija izvan javnog sektora | AB119: =LEFT(Y119,2) -> 54 | AC119: =LEFT(Y119,3) -> 544 | AE119: A679005 | AF119: ČLANSTVO U MEĐUNARODNIM UDRUGAMA | AG119: 0150 | AH119: Istraživanje i razvoj: Opće javne usluge | AI119: 01 | AJ119: 015
A120: =IF(C120="","",VLOOKUP('OPĆI DIO'!$C$1,'OPĆI DIO'!$N$4:$W$137,10,FALSE)) -> 08006 | B120: =IF(C120="","",VLOOKUP('OPĆI DIO'!$C$1,'OPĆI DIO'!$N$4:$W$137,9,FALSE)) -> Sveučilišta i veleučilišta u Republici Hrvatskoj | C120: 43 | D120: 43 | E120: Ostali prihodi za posebne namjene | F120: 4221 | G120: Uredska oprema i namještaj | H120: A679135 | I120: PROGRAMSKO I OSTALO FINANCIRANJE JAVNIH VISOKIH UČILIŠTA - IZ EVIDENCIJSKIH PRIHODA | J120: 0942 | K120: 22,909 | L120: 23,596 | M120: 24,304 | O120: =IF(C120="","",'OPĆI DIO'!$C$1) -> 1812 Sveučilište u Zagrebu FAKULTET PROMETNIH ZNANOSTI | P120: 422 | Q120: 42 | R120: 43 | S120: 94 | T120: 4 | U120: 43 | Y120: 5183 | Z120: Izdaci za jamčevne pologe | AB120: =LEFT(Y120,2) -> 51 | AC120: =LEFT(Y120,3) -> 518 | AE120: A679008 | AF120: PROGRAM RAZVOJNE SURADNJE | AG120: 0970 | AH120: Istraživanje i razvoj obrazovanja | AI120: 09 | AJ120: 097
A121: =IF(C121="","",VLOOKUP('OPĆI DIO'!$C$1,'OPĆI DIO'!$N$4:$W$137,10,FALSE)) -> 08006 | B121: =IF(C121="","",VLOOKUP('OPĆI DIO'!$C$1,'OPĆI DIO'!$N$4:$W$137,9,FALSE)) -> Sveučilišta i veleučilišta u Republici Hrvatskoj | C121: 43 | D121: 43 | E121: Ostali prihodi za posebne namjene | F121: 4225 | G121: Instrumenti i uređaji | H121: A679135 | I121: PROGRAMSKO I OSTALO FINANCIRANJE JAVNIH VISOKIH UČILIŠTA - IZ EVIDENCIJSKIH PRIHODA | J121: 0942 | K121: 45,607 | L121: 46,975 | M121: 48,384 | O121: =IF(C121="","",'OPĆI DIO'!$C$1) -> 1812 Sveučilište u Zagrebu FAKULTET PROMETNIH ZNANOSTI | P121: 422 | Q121: 42 | R121: 43 | S121: 94 | T121: 4 | U121: 43 | AE121: A679009 | AF121: REDOVNA DJELATNOST LEKTORATA | AG121: 0970 | AH121: Istraživanje i razvoj obrazovanja | AI121: 09 | AJ121: 097
A122: =IF(C122="","",VLOOKUP('OPĆI DIO'!$C$1,'OPĆI DIO'!$N$4:$W$137,10,FALSE)) -> 08006 | B122: =IF(C122="","",VLOOKUP('OPĆI DIO'!$C$1,'OPĆI DIO'!$N$4:$W$137,9,FALSE)) -> Sveučilišta i veleučilišta u Republici Hrvatskoj | C122: 43 | D122: 43 | E122: Ostali prihodi za posebne namjene | F122: 4241 | G122: Knjige | H122: A679135 | I122: PROGRAMSKO I OSTALO FINANCIRANJE JAVNIH VISOKIH UČILIŠTA - IZ EVIDENCIJSKIH PRIHODA | J122: 0942 | K122: 3,436 | L122: 3,539 | M122: 3,645 | O122: =IF(C122="","",'OPĆI DIO'!$C$1) -> 1812 Sveučilište u Zagrebu FAKULTET PROMETNIH ZNANOSTI | P122: 424 | Q122: 42 | R122: 43 | S122: 94 | T122: 4 | U122: 43 | AE122: A679047 | AF122: MEĐUNARODNA SURADNJA I EUROPSKI POSLOVI | AG122: 0150 | AH122: Istraživanje i razvoj: Opće javne usluge | AI122: 01 | AJ122: 015
A123: =IF(C123="","",VLOOKUP('OPĆI DIO'!$C$1,'OPĆI DIO'!$N$4:$W$137,10,FALSE)) -> 08006 | B123: =IF(C123="","",VLOOKUP('OPĆI DIO'!$C$1,'OPĆI DIO'!$N$4:$W$137,9,FALSE)) -> Sveučilišta i veleučilišta u Republici Hrvatskoj | C123: 43 | D123: 43 | E123: Ostali prihodi za posebne namjene | F123: 3111 | G123: Plaće za redovan rad | H123: A679135 | I123: PROGRAMSKO I OSTALO FINANCIRANJE JAVNIH VISOKIH UČILIŠTA - IZ EVIDENCIJSKIH PRIHODA | J123: 0942 | K123: 437,619 | L123: 450,948 | M123: 464,079 | O123: =IF(C123="","",'OPĆI DIO'!$C$1) -> 1812 Sveučilište u Zagrebu FAKULTET PROMETNIH ZNANOSTI | P123: 311 | Q123: 31 | R123: 43 | S123: 94 | T123: 3 | U123: 43 | AE123: A679049 | AF123: POMOĆI BIH U SUSTAVU ZNANOSTI I OBRAZOVANJA | AG123: 0970 | AH123: Istraživanje i razvoj obrazovanja | AI123: 09 | AJ123: 097
A124: =IF(C124="","",VLOOKUP('OPĆI DIO'!$C$1,'OPĆI DIO'!$N$4:$W$137,10,FALSE)) -> 08006 | B124: =IF(C124="","",VLOOKUP('OPĆI DIO'!$C$1,'OPĆI DIO'!$N$4:$W$137,9,FALSE)) -> Sveučilišta i veleučilišta u Republici Hrvatskoj | C124: 43 | D124: 43 | E124: Ostali prihodi za posebne namjene | F124: 3121 | G124: Ostali rashodi za zaposlene | H124: A679135 | I124: PROGRAMSKO I OSTALO FINANCIRANJE JAVNIH VISOKIH UČILIŠTA - IZ EVIDENCIJSKIH PRIHODA | J124: 0942 | K124: 72,164 | L124: 74,362 | M124: 76,527 | O124: =IF(C124="","",'OPĆI DIO'!$C$1) -> 1812 Sveučilište u Zagrebu FAKULTET PROMETNIH ZNANOSTI | P124: 312 | Q124: 31 | R124: 43 | S124: 94 | T124: 3 | U124: 43 | AE124: A679064 | AF124: ZNANSTVENO-UČILIŠNI KAMPUS BORONGAJ | AG124: 0942 | AH124: Drugi stupanj visoke naobrazbe | AI124: 09 | AJ124: 094
A125: =IF(C125="","",VLOOKUP('OPĆI DIO'!$C$1,'OPĆI DIO'!$N$4:$W$137,10,FALSE)) -> 08006 | B125: =IF(C125="","",VLOOKUP('OPĆI DIO'!$C$1,'OPĆI DIO'!$N$4:$W$137,9,FALSE)) -> Sveučilišta i veleučilišta u Republici Hrvatskoj | C125: 43 | D125: 43 | E125: Ostali prihodi za posebne namjene | F125: 3132 | G125: Doprinosi za obvezno zdravstveno osiguranje | H125: A679135 | I125: PROGRAMSKO I OSTALO FINANCIRANJE JAVNIH VISOKIH UČILIŠTA - IZ EVIDENCIJSKIH PRIHODA | J125: 0942 | K125: 40,217 | L125: 41,441 | M125: 42,648 | O125: =IF(C125="","",'OPĆI DIO'!$C$1) -> 1812 Sveučilište u Zagrebu FAKULTET PROMETNIH ZNANOSTI | P125: 313 | Q125: 31 | R125: 43 | S125: 94 | T125: 3 | U125: 43 | AE125: A679065 | AF125: SMJEŠTAJ I PREHRANA STUDENATA STUDENTSKOG CENTRA PULA - SUFINANCIRANJE | AG125: 0942 | AH125: Drugi stupanj visoke naobrazbe | AI125: 09 | AJ125: 094
A126: =IF(C126="","",VLOOKUP('OPĆI DIO'!$C$1,'OPĆI DIO'!$N$4:$W$137,10,FALSE)) ->  | B126: =IF(C126="","",VLOOKUP('OPĆI DIO'!$C$1,'OPĆI DIO'!$N$4:$W$137,9,FALSE)) ->  | O126: =IF(C126="","",'OPĆI DIO'!$C$1) ->  | AE126: A679066 | AF126: POTPORE ROMSKIM STUDIJIMA I STUDENTIMA ROMIMA | AG126: 0942 | AH126: Drugi stupanj visoke naobrazbe | AI126: 09 | AJ126: 094
A127: =IF(C127="","",VLOOKUP('OPĆI DIO'!$C$1,'OPĆI DIO'!$N$4:$W$137,10,FALSE)) ->  | B127: =IF(C127="","",VLOOKUP('OPĆI DIO'!$C$1,'OPĆI DIO'!$N$4:$W$137,9,FALSE)) ->  | D127: 61 | F127: 3222 | G127: Materijal i sirovine | H127: A679135 | I127: PROGRAMSKO I OSTALO FINANCIRANJE JAVNIH VISOKIH UČILIŠTA - IZ EVIDENCIJSKIH PRIHODA | J127: 0942 | K127: 1,000 | L127: 1,000 | M127: 1,000 | O127: =IF(C127="","",'OPĆI DIO'!$C$1) ->  | P127: 322 | Q127: 32 | S127: 94 | T127: 3 | AE127: A679067 | AF127: DRŽAVNE STIPENDIJE ZA STUDENTE | AG127: 0942 | AH127: Drugi stupanj visoke naobrazbe | AI127: 09 | AJ127: 094
A128: =IF(C128="","",VLOOKUP('OPĆI DIO'!$C$1,'OPĆI DIO'!$N$4:$W$137,10,FALSE)) ->  | B128: =IF(C128="","",VLOOKUP('OPĆI DIO'!$C$1,'OPĆI DIO'!$N$4:$W$137,9,FALSE)) ->  | D128: 61 | F128: 3233 | G128: Usluge promidžbe i informiranja | H128: A679135 | I128: PROGRAMSKO I OSTALO FINANCIRANJE JAVNIH VISOKIH UČILIŠTA - IZ EVIDENCIJSKIH PRIHODA | J128: 0942 | K128: 7,500 | L128: 7,500 | M128: 7,500 | O128: =IF(C128="","",'OPĆI DIO'!$C$1) ->  | P128: 323 | Q128: 32 | S128: 94 | T128: 3 | AE128: A679069 | AF128: SMJEŠTAJ I PREHRANA STUDENATA STUDENTSKOG CENTRA SISAK - SUFINANCIRANJE | AG128: 0942 | AH128: Drugi stupanj visoke naobrazbe | AI128: 09 | AJ128: 094
A129: =IF(C129="","",VLOOKUP('OPĆI DIO'!$C$1,'OPĆI DIO'!$N$4:$W$137,10,FALSE)) ->  | B129: =IF(C129="","",VLOOKUP('OPĆI DIO'!$C$1,'OPĆI DIO'!$N$4:$W$137,9,FALSE)) ->  | D129: 61 | F129: 3235 | G129: Zakupnine i najamnine | H129: A679135 | I129: PROGRAMSKO I OSTALO FINANCIRANJE JAVNIH VISOKIH UČILIŠTA - IZ EVIDENCIJSKIH PRIHODA | J129: 0942 | K129: 1,000 | L129: 1,000 | M129: 1,000 | O129: =IF(C129="","",'OPĆI DIO'!$C$1) ->  | P129: 323 | Q129: 32 | S129: 94 | T129: 3 | AE129: A733001 | AF129: ADMINISTRACIJA I UPRAVLJANJE AGENCIJE ZA ODGOJ I OBRAZOVANJE | AG129: 0970 | AH129: Istraživanje i razvoj obrazovanja | AI129: 09 | AJ129: 097
A130: =IF(C130="","",VLOOKUP('OPĆI DIO'!$C$1,'OPĆI DIO'!$N$4:$W$137,10,FALSE)) ->  | B130: =IF(C130="","",VLOOKUP('OPĆI DIO'!$C$1,'OPĆI DIO'!$N$4:$W$137,9,FALSE)) ->  | D130: 61 | F130: 3238 | G130: Računalne usluge | H130: A679135 | I130: PROGRAMSKO I OSTALO FINANCIRANJE JAVNIH VISOKIH UČILIŠTA - IZ EVIDENCIJSKIH PRIHODA | J130: 0942 | K130: 1,000 | L130: 1,000 | M130: 1,000 | O130: =IF(C130="","",'OPĆI DIO'!$C$1) ->  | P130: 323 | Q130: 32 | S130: 94 | T130: 3 | AE130: A733027 | AF130: STRUČNO USAVRŠAVANJE U OKVIRU ŽUPANIJSKIH STRUČNIH VIJEĆA OSNOVNE ŠKOLE | AG130: 0970 | AH130: Istraživanje i razvoj obrazovanja | AI130: 09 | AJ130: 097
A131: =IF(C131="","",VLOOKUP('OPĆI DIO'!$C$1,'OPĆI DIO'!$N$4:$W$137,10,FALSE)) ->  | B131: =IF(C131="","",VLOOKUP('OPĆI DIO'!$C$1,'OPĆI DIO'!$N$4:$W$137,9,FALSE)) ->  | D131: 61 | F131: 3239 | G131: =IFERROR(VLOOKUP(F131,$Y$5:$AA$129,2,FALSE),"") -> Ostale usluge | H131: A679135 | I131: =IFERROR(VLOOKUP(H131,$AE$6:$AF$353,2,FALSE),"") -> PROGRAMSKO I OSTALO FINANCIRANJE JAVNIH VISOKIH UČILIŠTA - IZ EVIDENCIJSKIH PRIHODA | J131: =IFERROR(VLOOKUP(H131,$AE$6:$AI$353,3,FALSE),"") -> 0942 | K131: 2,000 | L131: 2,000 | M131: 2,000 | O131: =IF(C131="","",'OPĆI DIO'!$C$1) ->  | P131: 323 | Q131: 32 | S131: 94 | T131: 3 | AE131: A733032 | AF131: IZVANNASTAVNE AKTIVNOSTI U OSNOVNIM I SREDNJIM ŠKOLAMA-NATJECANJE | AG131: 0970 | AH131: Istraživanje i razvoj obrazovanja | AI131: 09 | AJ131: 097
A132: =IF(C132="","",VLOOKUP('OPĆI DIO'!$C$1,'OPĆI DIO'!$N$4:$W$137,10,FALSE)) ->  | B132: =IF(C132="","",VLOOKUP('OPĆI DIO'!$C$1,'OPĆI DIO'!$N$4:$W$137,9,FALSE)) ->  | C132: =IFERROR(VLOOKUP(D132,$V$6:$X$34,3,FALSE),"") ->  | D132: 61 | E132: =IFERROR(VLOOKUP(D132,$V$6:$W$34,2,FALSE),"") ->  | F132: 3241 | G132: Naknade troškova osobama izvan radnog odnosa | H132: A679135 | I132: PROGRAMSKO I OSTALO FINANCIRANJE JAVNIH VISOKIH UČILIŠTA - IZ EVIDENCIJSKIH PRIHODA | J132: 0942 | K132: 2,000 | L132: 2,000 | M132: 2,000 | O132: =IF(C132="","",'OPĆI DIO'!$C$1) ->  | P132: =LEFT(F132,3) -> 324 | Q132: =LEFT(F132,2) -> 32 | R132: =LEFT(C132,3) ->  | S132: =MID(J132,2,2) -> 94 | T132: =LEFT(F132,1) -> 3 | U132: =IFERROR(VLOOKUP(C132,$V$6:$X$34,3,FALSE),"") ->  | AE132: A733049 | AF132: EUROPSKA AGENCIJA ZA POSEBNE POTREBE I INKLUZIVNO OBRAZOVANJE | AG132: 0970 | AH132: Istraživanje i razvoj obrazovanja | AI132: 09 | AJ132: 097
A133: =IF(C133="","",VLOOKUP('OPĆI DIO'!$C$1,'OPĆI DIO'!$N$4:$W$137,10,FALSE)) ->  | B133: =IF(C133="","",VLOOKUP('OPĆI DIO'!$C$1,'OPĆI DIO'!$N$4:$W$137,9,FALSE)) ->  | D133: 61 | F133: 3293 | G133: Reprezentacija | H133: A679135 | I133: PROGRAMSKO I OSTALO FINANCIRANJE JAVNIH VISOKIH UČILIŠTA - IZ EVIDENCIJSKIH PRIHODA | J133: 0942 | K133: 5,500 | L133: 5,500 | M133: 5,500 | O133: =IF(C133="","",'OPĆI DIO'!$C$1) ->  | P133: 329 | Q133: 32 | S133: 94 | T133: 3 | AE133: A733050 | AF133: PRAĆENJE I IMPLEMENTACIJA POLITIKA EUROPSKOG ISTRAŽIVAČKOG PROSTORA (ERA) | AG133: 0150 | AH133: Istraživanje i razvoj: Opće javne usluge | AI133: 01 | AJ133: 015
A134: =IF(C134="","",VLOOKUP('OPĆI DIO'!$C$1,'OPĆI DIO'!$N$4:$W$137,10,FALSE)) ->  | B134: =IF(C134="","",VLOOKUP('OPĆI DIO'!$C$1,'OPĆI DIO'!$N$4:$W$137,9,FALSE)) ->  | O134: =IF(C134="","",'OPĆI DIO'!$C$1) ->  | AE134: A733051 | AF134: PROGRAMI IZRADE UDŽBENIKA ZA SLIJEPE I SLABOVIDNE UČENIKE I STUDENTE | AG134: 0970 | AH134: Istraživanje i razvoj obrazovanja | AI134: 09 | AJ134: 097
A135: =IF(C135="","",VLOOKUP('OPĆI DIO'!$C$1,'OPĆI DIO'!$N$4:$W$137,10,FALSE)) -> 08006 | B135: =IF(C135="","",VLOOKUP('OPĆI DIO'!$C$1,'OPĆI DIO'!$N$4:$W$137,9,FALSE)) -> Sveučilišta i veleučilišta u Republici Hrvatskoj | C135: 51 | D135: 51000 | E135: 51000 Programi Unije – raspoloživ predujam | F135: 3111 | G135: Plaće za redovan rad | H135: A679135 | I135: PROGRAMSKO I OSTALO FINANCIRANJE JAVNIH VISOKIH UČILIŠTA - IZ EVIDENCIJSKIH PRIHODA | J135: 0942 | K135: 33,077 | L135: 0 | M135: 0 | O135: =IF(C135="","",'OPĆI DIO'!$C$1) -> 1812 Sveučilište u Zagrebu FAKULTET PROMETNIH ZNANOSTI | P135: 311 | Q135: 31 | R135: 51 | S135: 94 | T135: 3 | AE135: A733055 | AF135: PROGRAM IZVRSNOSTI U VISOKOM OBRAZOVANJU - TENURE-TRACK | AG135: 0150 | AH135: Istraživanje i razvoj: Opće javne usluge | AI135: =LEFT(AG135,2) -> 01 | AJ135: =LEFT(AG135,3) -> 015
A136: =IF(C136="","",VLOOKUP('OPĆI DIO'!$C$1,'OPĆI DIO'!$N$4:$W$137,10,FALSE)) -> 08006 | B136: =IF(C136="","",VLOOKUP('OPĆI DIO'!$C$1,'OPĆI DIO'!$N$4:$W$137,9,FALSE)) -> Sveučilišta i veleučilišta u Republici Hrvatskoj | C136: 51 | D136: 51000 | E136: 51000 Programi Unije – raspoloživ predujam | F136: 3132 | G136: Doprinosi za obvezno zdravstveno osiguranje | H136: A679135 | I136: PROGRAMSKO I OSTALO FINANCIRANJE JAVNIH VISOKIH UČILIŠTA - IZ EVIDENCIJSKIH PRIHODA | J136: 0942 | K136: 5,458 | L136: 0 | M136: 0 | O136: =IF(C136="","",'OPĆI DIO'!$C$1) -> 1812 Sveučilište u Zagrebu FAKULTET PROMETNIH ZNANOSTI | P136: 313 | Q136: 31 | R136: 51 | S136: 94 | T136: 3 | AE136: A733056 | AF136: EUROPSKI ZNANSTVENI PROJEKTI | AG136: 0150 | AH136: Istraživanje i razvoj: Opće javne usluge | AI136: 01 | AJ136: 015
A137: =IF(C137="","",VLOOKUP('OPĆI DIO'!$C$1,'OPĆI DIO'!$N$4:$W$137,10,FALSE)) ->  | B137: =IF(C137="","",VLOOKUP('OPĆI DIO'!$C$1,'OPĆI DIO'!$N$4:$W$137,9,FALSE)) ->  | O137: =IF(C137="","",'OPĆI DIO'!$C$1) ->  | AE137: A733070 | AF137: OBZOR ERA-NET QUANTERA II | AG137: 0150 | AH137: Istraživanje i razvoj: Opće javne usluge | AI137: 01 | AJ137: 015
A138: =IF(C138="","",VLOOKUP('OPĆI DIO'!$C$1,'OPĆI DIO'!$N$4:$W$137,10,FALSE)) ->  | B138: =IF(C138="","",VLOOKUP('OPĆI DIO'!$C$1,'OPĆI DIO'!$N$4:$W$137,9,FALSE)) ->  | D138: 581 | F138: 3111 | G138: Plaće za redovan rad | H138: A679135 | I138: PROGRAMSKO I OSTALO FINANCIRANJE JAVNIH VISOKIH UČILIŠTA - IZ EVIDENCIJSKIH PRIHODA | J138: 0942 | K138: 33,077 | L138: 0 | M138: 0 | O138: =IF(C138="","",'OPĆI DIO'!$C$1) ->  | P138: 311 | Q138: 31 | S138: 94 | T138: 3 | AE138: A733071 | AF138: OBZOR ERA-NET BLUEBIOECONOMY | AG138: 0150 | AH138: Istraživanje i razvoj: Opće javne usluge | AI138: 01 | AJ138: 015
A139: =IF(C139="","",VLOOKUP('OPĆI DIO'!$C$1,'OPĆI DIO'!$N$4:$W$137,10,FALSE)) ->  | B139: =IF(C139="","",VLOOKUP('OPĆI DIO'!$C$1,'OPĆI DIO'!$N$4:$W$137,9,FALSE)) ->  | D139: 581 | F139: 3132 | G139: Doprinosi za obvezno zdravstveno osiguranje | H139: A679135 | I139: PROGRAMSKO I OSTALO FINANCIRANJE JAVNIH VISOKIH UČILIŠTA - IZ EVIDENCIJSKIH PRIHODA | J139: 0942 | K139: 5,458 | L139: 0 | M139: 0 | O139: =IF(C139="","",'OPĆI DIO'!$C$1) ->  | P139: 313 | Q139: 31 | S139: 94 | T139: 3 | AE139: A733073 | AF139: PROGRAM RAZVOJA KARIJERA MLADIH ISTRAŽIVAČA - IZOBRAZBA NOVIH DOKTORA ZNANOSTI - NPOO (C3.2. R2-I1 ) | AG139: 0150 | AH139: Istraživanje i razvoj: Opće javne usluge | AI139: 01 | AJ139: 015
A140: =IF(C140="","",VLOOKUP('OPĆI DIO'!$C$1,'OPĆI DIO'!$N$4:$W$137,10,FALSE)) ->  | B140: =IF(C140="","",VLOOKUP('OPĆI DIO'!$C$1,'OPĆI DIO'!$N$4:$W$137,9,FALSE)) ->  | O140: =IF(C140="","",'OPĆI DIO'!$C$1) ->  | AE140: A733075 | AF140: POKRETANJE URBANIH TRANZICIJA CO-FUND PROJEKT | AG140: 0150 | AH140: Istraživanje i razvoj: Opće javne usluge | AI140: 01 | AJ140: 015
A141: =IF(C141="","",VLOOKUP('OPĆI DIO'!$C$1,'OPĆI DIO'!$N$4:$W$137,10,FALSE)) -> 08006 | B141: =IF(C141="","",VLOOKUP('OPĆI DIO'!$C$1,'OPĆI DIO'!$N$4:$W$137,9,FALSE)) -> Sveučilišta i veleučilišta u Republici Hrvatskoj | C141: 563 | D141: 563 | E141: Europski fond za regionalni razvoj – predfinanciranje iz izvora 11 Opći prihodi i primici | F141: 3693 | G141: Tekući prijenosi između proračunskih korisnika istog proraču | H141: A679135 | I141: PROGRAMSKO I OSTALO FINANCIRANJE JAVNIH VISOKIH UČILIŠTA - IZ EVIDENCIJSKIH PRIHODA | J141: 0942 | K141: 34,252 | L141: 0 | M141: 0 | N141: 24141 SVEUČILIŠTE U DUBROVNIKU | O141: =IF(C141="","",'OPĆI DIO'!$C$1) -> 1812 Sveučilište u Zagrebu FAKULTET PROMETNIH ZNANOSTI | P141: 369 | Q141: 36 | R141: 563 | S141: 94 | T141: 3 | U141: 563 | AE141: A733076 | AF141: ATTRACTADRIA - OSNAŽIVANJE KAPACITETA ZA ZNANSTVENA ISTRAŽIVANJA | AG141: 0150 | AH141: Istraživanje i razvoj: Opće javne usluge | AI141: 01 | AJ141: 015
A142: =IF(C142="","",VLOOKUP('OPĆI DIO'!$C$1,'OPĆI DIO'!$N$4:$W$137,10,FALSE)) -> 08006 | B142: =IF(C142="","",VLOOKUP('OPĆI DIO'!$C$1,'OPĆI DIO'!$N$4:$W$137,9,FALSE)) -> Sveučilišta i veleučilišta u Republici Hrvatskoj | C142: 563 | D142: 563 | E142: Europski fond za regionalni razvoj – predfinanciranje iz izvora 11 Opći prihodi i primici | F142: 3111 | G142: Plaće za redovan rad | H142: A679135 | I142: PROGRAMSKO I OSTALO FINANCIRANJE JAVNIH VISOKIH UČILIŠTA - IZ EVIDENCIJSKIH PRIHODA | J142: 0942 | K142: 32,532 | L142: 0 | M142: 0 | O142: =IF(C142="","",'OPĆI DIO'!$C$1) -> 1812 Sveučilište u Zagrebu FAKULTET PROMETNIH ZNANOSTI | P142: 311 | Q142: 31 | R142: 563 | S142: 94 | T142: 3 | U142: 563 | AE142: A763000 | AF142: ADMINISTRACIJA I UPRAVLJANJE DRŽAVNOG ZAVODA ZA INTELEKTUALNO VLASNIŠTVO | AG142: 0150 | AH142: Istraživanje i razvoj: Opće javne usluge | AI142: 01 | AJ142: 015
A143: =IF(C143="","",VLOOKUP('OPĆI DIO'!$C$1,'OPĆI DIO'!$N$4:$W$137,10,FALSE)) -> 08006 | B143: =IF(C143="","",VLOOKUP('OPĆI DIO'!$C$1,'OPĆI DIO'!$N$4:$W$137,9,FALSE)) -> Sveučilišta i veleučilišta u Republici Hrvatskoj | C143: 563 | D143: 563 | E143: Europski fond za regionalni razvoj – predfinanciranje iz izvora 11 Opći prihodi i primici | F143: 3132 | G143: Doprinosi za obvezno zdravstveno osiguranje | H143: A679135 | I143: PROGRAMSKO I OSTALO FINANCIRANJE JAVNIH VISOKIH UČILIŠTA - IZ EVIDENCIJSKIH PRIHODA | J143: 0942 | K143: 5,367 | L143: 0 | M143: 0 | O143: =IF(C143="","",'OPĆI DIO'!$C$1) -> 1812 Sveučilište u Zagrebu FAKULTET PROMETNIH ZNANOSTI | P143: 313 | Q143: 31 | R143: 563 | S143: 94 | T143: 3 | U143: 563 | AE143: A767002 | AF143: IZRADA DEFICITARNIH UDŽBENIKA U ŠKOLSTVU | AG143: 0970 | AH143: Istraživanje i razvoj obrazovanja | AI143: 09 | AJ143: 097
A144: =IF(C144="","",VLOOKUP('OPĆI DIO'!$C$1,'OPĆI DIO'!$N$4:$W$137,10,FALSE)) -> 08006 | B144: =IF(C144="","",VLOOKUP('OPĆI DIO'!$C$1,'OPĆI DIO'!$N$4:$W$137,9,FALSE)) -> Sveučilišta i veleučilišta u Republici Hrvatskoj | C144: 563 | D144: 563 | E144: Europski fond za regionalni razvoj – predfinanciranje iz izvora 11 Opći prihodi i primici | F144: 3431 | G144: Bankarske usluge i usluge platnog prometa | H144: A679135 | I144: PROGRAMSKO I OSTALO FINANCIRANJE JAVNIH VISOKIH UČILIŠTA - IZ EVIDENCIJSKIH PRIHODA | J144: 0942 | K144: 240 | L144: 0 | M144: 0 | O144: =IF(C144="","",'OPĆI DIO'!$C$1) -> 1812 Sveučilište u Zagrebu FAKULTET PROMETNIH ZNANOSTI | P144: 343 | Q144: 34 | R144: 563 | S144: 94 | T144: 3 | U144: 563 | AE144: A767003 | AF144: SREDNJOŠKOLSKE STIPENDIJE ZA UČENIKE ROME | AG144: 0970 | AH144: Istraživanje i razvoj obrazovanja | AI144: 09 | AJ144: 097
A145: =IF(C145="","",VLOOKUP('OPĆI DIO'!$C$1,'OPĆI DIO'!$N$4:$W$137,10,FALSE)) -> 08006 | B145: =IF(C145="","",VLOOKUP('OPĆI DIO'!$C$1,'OPĆI DIO'!$N$4:$W$137,9,FALSE)) -> Sveučilišta i veleučilišta u Republici Hrvatskoj | C145: 563 | D145: 563 | E145: Europski fond za regionalni razvoj – predfinanciranje iz izvora 11 Opći prihodi i primici | F145: 3237 | G145: Intelektualne i osobne usluge | H145: A679135 | I145: PROGRAMSKO I OSTALO FINANCIRANJE JAVNIH VISOKIH UČILIŠTA - IZ EVIDENCIJSKIH PRIHODA | J145: 0942 | K145: 84,130 | L145: 0 | M145: 0 | O145: =IF(C145="","",'OPĆI DIO'!$C$1) -> 1812 Sveučilište u Zagrebu FAKULTET PROMETNIH ZNANOSTI | P145: 323 | Q145: 32 | R145: 563 | S145: 94 | T145: 3 | U145: 563 | AE145: A767004 | AF145: NAOBRAZBA DJECE U ALTERNATIVNIM ŠKOLAMA | AG145: 0970 | AH145: Istraživanje i razvoj obrazovanja | AI145: 09 | AJ145: 097
A146: =IF(C146="","",VLOOKUP('OPĆI DIO'!$C$1,'OPĆI DIO'!$N$4:$W$137,10,FALSE)) -> 08006 | B146: =IF(C146="","",VLOOKUP('OPĆI DIO'!$C$1,'OPĆI DIO'!$N$4:$W$137,9,FALSE)) -> Sveučilišta i veleučilišta u Republici Hrvatskoj | C146: 563 | D146: 563 | E146: Europski fond za regionalni razvoj – predfinanciranje iz izvora 11 Opći prihodi i primici | F146: 3235 | G146: Zakupnine i najamnine | H146: A679135 | I146: PROGRAMSKO I OSTALO FINANCIRANJE JAVNIH VISOKIH UČILIŠTA - IZ EVIDENCIJSKIH PRIHODA | J146: 0942 | K146: 950 | L146: 0 | M146: 0 | O146: =IF(C146="","",'OPĆI DIO'!$C$1) -> 1812 Sveučilište u Zagrebu FAKULTET PROMETNIH ZNANOSTI | P146: 323 | Q146: 32 | R146: 563 | S146: 94 | T146: 3 | U146: 563 | AE146: A767008 | AF146: SUBVENCIONIRANJE KAMATA ZA STANOVE UČITELJA | AG146: 0970 | AH146: Istraživanje i razvoj obrazovanja | AI146: 09 | AJ146: 097
A147: =IF(C147="","",VLOOKUP('OPĆI DIO'!$C$1,'OPĆI DIO'!$N$4:$W$137,10,FALSE)) -> 08006 | B147: =IF(C147="","",VLOOKUP('OPĆI DIO'!$C$1,'OPĆI DIO'!$N$4:$W$137,9,FALSE)) -> Sveučilišta i veleučilišta u Republici Hrvatskoj | C147: 563 | D147: 563 | E147: Europski fond za regionalni razvoj – predfinanciranje iz izvora 11 Opći prihodi i primici | F147: 3211 | G147: Službena putovanja | H147: A679135 | I147: PROGRAMSKO I OSTALO FINANCIRANJE JAVNIH VISOKIH UČILIŠTA - IZ EVIDENCIJSKIH PRIHODA | J147: 0942 | K147: 29,524 | L147: 0 | M147: 0 | O147: =IF(C147="","",'OPĆI DIO'!$C$1) -> 1812 Sveučilište u Zagrebu FAKULTET PROMETNIH ZNANOSTI | P147: 321 | Q147: 32 | R147: 563 | S147: 94 | T147: 3 | U147: 563 | AE147: A767009 | AF147: ZNANSTVENI CENTRI IZVRSNOSTI - DRUŠTVENO HUMANISTIČKO PODRUČJE | AG147: 0150 | AH147: Istraživanje i razvoj: Opće javne usluge | AI147: 01 | AJ147: 015
A148: =IF(C148="","",VLOOKUP('OPĆI DIO'!$C$1,'OPĆI DIO'!$N$4:$W$137,10,FALSE)) ->  | B148: =IF(C148="","",VLOOKUP('OPĆI DIO'!$C$1,'OPĆI DIO'!$N$4:$W$137,9,FALSE)) ->  | O148: =IF(C148="","",'OPĆI DIO'!$C$1) ->  | AE148: A767013 | AF148: RAZVOJ SUSTAVA OSIGURANJA KVALITETE | AG148: 0922 | AH148: Više srednjoškolsko obrazovanje | AI148: 09 | AJ148: 092
A149: =IF(C149="","",VLOOKUP('OPĆI DIO'!$C$1,'OPĆI DIO'!$N$4:$W$137,10,FALSE)) -> 08006 | B149: =IF(C149="","",VLOOKUP('OPĆI DIO'!$C$1,'OPĆI DIO'!$N$4:$W$137,9,FALSE)) -> Sveučilišta i veleučilišta u Republici Hrvatskoj | C149: 53 | D149: 533 | E149: Ostale darovnice | F149: 3111 | G149: Plaće za redovan rad | H149: A679135 | I149: PROGRAMSKO I OSTALO FINANCIRANJE JAVNIH VISOKIH UČILIŠTA - IZ EVIDENCIJSKIH PRIHODA | J149: 0942 | K149: 48,900 | L149: 0 | M149: 0 | O149: =IF(C149="","",'OPĆI DIO'!$C$1) -> 1812 Sveučilište u Zagrebu FAKULTET PROMETNIH ZNANOSTI | P149: 311 | Q149: 31 | R149: 53 | S149: 94 | T149: 3 | AE149: A767015 | AF149: PROVEDBA PROGRAMA ZA UKLJUČIVANJE ROMA | AG149: 0970 | AH149: Istraživanje i razvoj obrazovanja | AI149: 09 | AJ149: 097
A150: =IF(C150="","",VLOOKUP('OPĆI DIO'!$C$1,'OPĆI DIO'!$N$4:$W$137,10,FALSE)) -> 08006 | B150: =IF(C150="","",VLOOKUP('OPĆI DIO'!$C$1,'OPĆI DIO'!$N$4:$W$137,9,FALSE)) -> Sveučilišta i veleučilišta u Republici Hrvatskoj | C150: 53 | D150: 533 | E150: Ostale darovnice | F150: 3121 | G150: Ostali rashodi za zaposlene | H150: A679135 | I150: PROGRAMSKO I OSTALO FINANCIRANJE JAVNIH VISOKIH UČILIŠTA - IZ EVIDENCIJSKIH PRIHODA | J150: 0942 | K150: 1,310 | L150: 0 | M150: 0 | O150: =IF(C150="","",'OPĆI DIO'!$C$1) -> 1812 Sveučilište u Zagrebu FAKULTET PROMETNIH ZNANOSTI | P150: 312 | Q150: 31 | R150: 53 | S150: 94 | T150: 3 | AE150: A767022 | AF150: STRUČNO USAVRŠAVANJE ODGOJNO-OBRAZOVNIH DJELATNIKA U SUSTAVU OSNOVNOG I SREDNJEG ŠKOLSTVA | AG150: 0970 | AH150: Istraživanje i razvoj obrazovanja | AI150: 09 | AJ150: 097
A151: =IF(C151="","",VLOOKUP('OPĆI DIO'!$C$1,'OPĆI DIO'!$N$4:$W$137,10,FALSE)) -> 08006 | B151: =IF(C151="","",VLOOKUP('OPĆI DIO'!$C$1,'OPĆI DIO'!$N$4:$W$137,9,FALSE)) -> Sveučilišta i veleučilišta u Republici Hrvatskoj | C151: 53 | D151: 533 | E151: Ostale darovnice | F151: 3132 | G151: Doprinosi za obvezno zdravstveno osiguranje | H151: A679135 | I151: PROGRAMSKO I OSTALO FINANCIRANJE JAVNIH VISOKIH UČILIŠTA - IZ EVIDENCIJSKIH PRIHODA | J151: 0942 | K151: 8,150 | L151: 0 | M151: 0 | O151: =IF(C151="","",'OPĆI DIO'!$C$1) -> 1812 Sveučilište u Zagrebu FAKULTET PROMETNIH ZNANOSTI | P151: 313 | Q151: 31 | R151: 53 | S151: 94 | T151: 3 | AE151: A767035 | AF151: MEĐUNARODNA SURADNJA | AG151: 0150 | AH151: Istraživanje i razvoj: Opće javne usluge | AI151: 01 | AJ151: 015
A152: =IF(C152="","",VLOOKUP('OPĆI DIO'!$C$1,'OPĆI DIO'!$N$4:$W$137,10,FALSE)) -> 08006 | B152: =IF(C152="","",VLOOKUP('OPĆI DIO'!$C$1,'OPĆI DIO'!$N$4:$W$137,9,FALSE)) -> Sveučilišta i veleučilišta u Republici Hrvatskoj | C152: 53 | D152: 533 | E152: Ostale darovnice | F152: 3212 | G152: Naknade za prijevoz, za rad na terenu i odvojeni život | H152: A679135 | I152: PROGRAMSKO I OSTALO FINANCIRANJE JAVNIH VISOKIH UČILIŠTA - IZ EVIDENCIJSKIH PRIHODA | J152: 0942 | K152: 1,000 | L152: 0 | M152: 0 | O152: =IF(C152="","",'OPĆI DIO'!$C$1) -> 1812 Sveučilište u Zagrebu FAKULTET PROMETNIH ZNANOSTI | P152: 321 | Q152: 32 | R152: 53 | S152: 94 | T152: 3 | AE152: A767038 | AF152: OBZOR 2020. - PROGRAM MEĐUNARODNE MOBILNOSTI ZA ISTRAŽIVAČE - NEWFELPRO | AG152: 0150 | AH152: Istraživanje i razvoj: Opće javne usluge | AI152: 01 | AJ152: 015
A153: =IF(C153="","",VLOOKUP('OPĆI DIO'!$C$1,'OPĆI DIO'!$N$4:$W$137,10,FALSE)) ->  | B153: =IF(C153="","",VLOOKUP('OPĆI DIO'!$C$1,'OPĆI DIO'!$N$4:$W$137,9,FALSE)) ->  | O153: =IF(C153="","",'OPĆI DIO'!$C$1) ->  | AE153: A767042 | AF153: OBRAZOVANJE OSOBA BEZ HRVATSKOG DRŽAVLJANSTVA | AG153: 0970 | AH153: Istraživanje i razvoj obrazovanja | AI153: 09 | AJ153: 097
A154: =IF(C154="","",VLOOKUP('OPĆI DIO'!$C$1,'OPĆI DIO'!$N$4:$W$137,10,FALSE)) -> 08006 | B154: =IF(C154="","",VLOOKUP('OPĆI DIO'!$C$1,'OPĆI DIO'!$N$4:$W$137,9,FALSE)) -> Sveučilišta i veleučilišta u Republici Hrvatskoj | C154: 50 | D154: 5011 | E154: 5011 Pomoći iz državnog proračuna kroz opće prihode i primitke | F154: 3111 | G154: Plaće za redovan rad | H154: A679135 | I154: PROGRAMSKO I OSTALO FINANCIRANJE JAVNIH VISOKIH UČILIŠTA - IZ EVIDENCIJSKIH PRIHODA | J154: 0942 | K154: 77,253 | L154: 77,253 | M154: 77,253 | O154: =IF(C154="","",'OPĆI DIO'!$C$1) -> 1812 Sveučilište u Zagrebu FAKULTET PROMETNIH ZNANOSTI | P154: 311 | Q154: 31 | R154: 50 | S154: 94 | T154: 3 | AE154: A767043 | AF154: RAZVOJ VISOKOG OBRAZOVANJA | AG154: 0942 | AH154: Drugi stupanj visoke naobrazbe | AI154: 09 | AJ154: 094
A155: =IF(C155="","",VLOOKUP('OPĆI DIO'!$C$1,'OPĆI DIO'!$N$4:$W$137,10,FALSE)) -> 08006 | B155: =IF(C155="","",VLOOKUP('OPĆI DIO'!$C$1,'OPĆI DIO'!$N$4:$W$137,9,FALSE)) -> Sveučilišta i veleučilišta u Republici Hrvatskoj | C155: 50 | D155: 5011 | E155: 5011 Pomoći iz državnog proračuna kroz opće prihode i primitke | F155: 3132 | G155: Doprinosi za obvezno zdravstveno osiguranje | H155: A679135 | I155: PROGRAMSKO I OSTALO FINANCIRANJE JAVNIH VISOKIH UČILIŠTA - IZ EVIDENCIJSKIH PRIHODA | J155: 0942 | K155: 12,747 | L155: 12,747 | M155: 12,747 | O155: =IF(C155="","",'OPĆI DIO'!$C$1) -> 1812 Sveučilište u Zagrebu FAKULTET PROMETNIH ZNANOSTI | P155: 313 | Q155: 31 | R155: 50 | S155: 94 | T155: 3 | AE155: A767056 | AF155: OBZOR 2020. - PARTNERSTVO ZA ISTRAŽIVANJA I INOVACIJE NA MEDITERANSKOM PODRUČJU - PRIMA | AG155: 0150 | AH155: Istraživanje i razvoj: Opće javne usluge | AI155: 01 | AJ155: 015
A156: =IF(C156="","",VLOOKUP('OPĆI DIO'!$C$1,'OPĆI DIO'!$N$4:$W$137,10,FALSE)) ->  | B156: =IF(C156="","",VLOOKUP('OPĆI DIO'!$C$1,'OPĆI DIO'!$N$4:$W$137,9,FALSE)) ->  | O156: =IF(C156="","",'OPĆI DIO'!$C$1) ->  | AE156: A768053 | AF156: EUROPSKE ŠKOLE | AG156: 0970 | AH156: Istraživanje i razvoj obrazovanja | AI156: 09 | AJ156: 097
A157: =IF(C157="","",VLOOKUP('OPĆI DIO'!$C$1,'OPĆI DIO'!$N$4:$W$137,10,FALSE)) -> 08006 | B157: =IF(C157="","",VLOOKUP('OPĆI DIO'!$C$1,'OPĆI DIO'!$N$4:$W$137,9,FALSE)) -> Sveučilišta i veleučilišta u Republici Hrvatskoj | C157: 563 | D157: 563 | E157: Europski fond za regionalni razvoj – predfinanciranje iz izvora 11 Opći prihodi i primici | F157: 3237 | G157: Intelektualne i osobne usluge | H157: A679135 | I157: PROGRAMSKO I OSTALO FINANCIRANJE JAVNIH VISOKIH UČILIŠTA - IZ EVIDENCIJSKIH PRIHODA | J157: 0942 | K157: 30,618 | L157: 0 | M157: 0 | O157: =IF(C157="","",'OPĆI DIO'!$C$1) -> 1812 Sveučilište u Zagrebu FAKULTET PROMETNIH ZNANOSTI | P157: 323 | Q157: 32 | R157: 563 | S157: 94 | T157: 3 | U157: 563 | AE157: A768054 | AF157: DODATNA SREDSTVA IZRAVNANJA ZA DECENTRALIZIRANE FUNKCIJE | AG157: 0970 | AH157: Istraživanje i razvoj obrazovanja | AI157: 09 | AJ157: 097
A158: =IF(C158="","",VLOOKUP('OPĆI DIO'!$C$1,'OPĆI DIO'!$N$4:$W$137,10,FALSE)) ->  | B158: =IF(C158="","",VLOOKUP('OPĆI DIO'!$C$1,'OPĆI DIO'!$N$4:$W$137,9,FALSE)) ->  | O158: =IF(C158="","",'OPĆI DIO'!$C$1) ->  | AE158: A768058 | AF158: PREUZETE OBVEZE PO MEĐUNARODNIM UGOVORIMA | AG158: 0970 | AH158: Istraživanje i razvoj obrazovanja | AI158: 09 | AJ158: 097
A159: =IF(C159="","",VLOOKUP('OPĆI DIO'!$C$1,'OPĆI DIO'!$N$4:$W$137,10,FALSE)) ->  | B159: =IF(C159="","",VLOOKUP('OPĆI DIO'!$C$1,'OPĆI DIO'!$N$4:$W$137,9,FALSE)) ->  | O159: =IF(C159="","",'OPĆI DIO'!$C$1) ->  | AE159: A768063 | AF159: VELEUČILIŠTE HRVATSKO ZAGORJE KRAPINA | AG159: 0942 | AH159: Drugi stupanj visoke naobrazbe | AI159: 09 | AJ159: 094
A160: =IF(C160="","",VLOOKUP('OPĆI DIO'!$C$1,'OPĆI DIO'!$N$4:$W$137,10,FALSE)) ->  | B160: =IF(C160="","",VLOOKUP('OPĆI DIO'!$C$1,'OPĆI DIO'!$N$4:$W$137,9,FALSE)) ->  | O160: =IF(C160="","",'OPĆI DIO'!$C$1) ->  | AE160: A768065 | AF160: OBZOR 2020 - MENTORSTVO ZA UNAPRJEĐENJE ŠKOLE - MENSI | AG160: 0970 | AH160: Istraživanje i razvoj obrazovanja | AI160: 09 | AJ160: 097
A161: =IF(C161="","",VLOOKUP('OPĆI DIO'!$C$1,'OPĆI DIO'!$N$4:$W$137,10,FALSE)) ->  | B161: =IF(C161="","",VLOOKUP('OPĆI DIO'!$C$1,'OPĆI DIO'!$N$4:$W$137,9,FALSE)) ->  | O161: =IF(C161="","",'OPĆI DIO'!$C$1) ->  | AE161: A768068 | AF161: OTKUP ZNANSTVENIH KNJIGA I VISOKOŠKOLSKIH UDŽBENIKA | AG161: 0150 | AH161: Istraživanje i razvoj: Opće javne usluge | AI161: 01 | AJ161: 015
A162: =IF(C162="","",VLOOKUP('OPĆI DIO'!$C$1,'OPĆI DIO'!$N$4:$W$137,10,FALSE)) ->  | B162: =IF(C162="","",VLOOKUP('OPĆI DIO'!$C$1,'OPĆI DIO'!$N$4:$W$137,9,FALSE)) ->  | O162: =IF(C162="","",'OPĆI DIO'!$C$1) ->  | AE162: A768072 | AF162: PREHRANA ZA UČENIKE U OSNOVNIM ŠKOLAMA | AG162: 0912 | AH162: Osnovno obrazovanje | AI162: 09 | AJ162: 091
A163: =IF(C163="","",VLOOKUP('OPĆI DIO'!$C$1,'OPĆI DIO'!$N$4:$W$137,10,FALSE)) ->  | B163: =IF(C163="","",VLOOKUP('OPĆI DIO'!$C$1,'OPĆI DIO'!$N$4:$W$137,9,FALSE)) ->  | O163: =IF(C163="","",'OPĆI DIO'!$C$1) ->  | AE163: A768073 | AF163: ZAŠTITA I PROMICANJE MENTALNOG ZDRAVLJA | AG163: 0970 | AH163: Istraživanje i razvoj obrazovanja | AI163: 09 | AJ163: 097
A164: =IF(C164="","",VLOOKUP('OPĆI DIO'!$C$1,'OPĆI DIO'!$N$4:$W$137,10,FALSE)) ->  | B164: =IF(C164="","",VLOOKUP('OPĆI DIO'!$C$1,'OPĆI DIO'!$N$4:$W$137,9,FALSE)) ->  | O164: =IF(C164="","",'OPĆI DIO'!$C$1) ->  | AE164: A792009 | AF164: PREVENCIJA NASILJA NAD I MEĐU MLADIMA | AG164: 1040 | AH164: Obitelj i djeca | AI164: 10 | AJ164: 104
A165: =IF(C165="","",VLOOKUP('OPĆI DIO'!$C$1,'OPĆI DIO'!$N$4:$W$137,10,FALSE)) ->  | B165: =IF(C165="","",VLOOKUP('OPĆI DIO'!$C$1,'OPĆI DIO'!$N$4:$W$137,9,FALSE)) ->  | O165: =IF(C165="","",'OPĆI DIO'!$C$1) ->  | AE165: A792019 | AF165: PRAVOMOĆNE SUDSKE PRESUDE | AG165: 0970 | AH165: Istraživanje i razvoj obrazovanja | AI165: 09 | AJ165: 097
A166: =IF(C166="","",VLOOKUP('OPĆI DIO'!$C$1,'OPĆI DIO'!$N$4:$W$137,10,FALSE)) ->  | B166: =IF(C166="","",VLOOKUP('OPĆI DIO'!$C$1,'OPĆI DIO'!$N$4:$W$137,9,FALSE)) ->  | O166: =IF(C166="","",'OPĆI DIO'!$C$1) ->  | AE166: A814000 | AF166: MEĐUNARODNI PROJEKTI VREDNOVANJA ZNANJA I VJEŠTINA (IEA: ICCS, ICILS, PIRLS, TIMSS - OECD: PISA, TALIS) | AG166: 0970 | AH166: Istraživanje i razvoj obrazovanja | AI166: 09 | AJ166: 097
A167: =IF(C167="","",VLOOKUP('OPĆI DIO'!$C$1,'OPĆI DIO'!$N$4:$W$137,10,FALSE)) ->  | B167: =IF(C167="","",VLOOKUP('OPĆI DIO'!$C$1,'OPĆI DIO'!$N$4:$W$137,9,FALSE)) ->  | O167: =IF(C167="","",'OPĆI DIO'!$C$1) ->  | AE167: A814001 | AF167: DRŽAVNA MATURA | AG167: 0970 | AH167: Istraživanje i razvoj obrazovanja | AI167: 09 | AJ167: 097
A168: =IF(C168="","",VLOOKUP('OPĆI DIO'!$C$1,'OPĆI DIO'!$N$4:$W$137,10,FALSE)) ->  | B168: =IF(C168="","",VLOOKUP('OPĆI DIO'!$C$1,'OPĆI DIO'!$N$4:$W$137,9,FALSE)) ->  | O168: =IF(C168="","",'OPĆI DIO'!$C$1) ->  | AE168: A814003 | AF168: NACIONALNI ISPITI | AG168: 0970 | AH168: Istraživanje i razvoj obrazovanja | AI168: 09 | AJ168: 097
A169: =IF(C169="","",VLOOKUP('OPĆI DIO'!$C$1,'OPĆI DIO'!$N$4:$W$137,10,FALSE)) ->  | B169: =IF(C169="","",VLOOKUP('OPĆI DIO'!$C$1,'OPĆI DIO'!$N$4:$W$137,9,FALSE)) ->  | O169: =IF(C169="","",'OPĆI DIO'!$C$1) ->  | AE169: A814007 | AF169: UNAPREĐENJE KVALITETE OBRAZOVNOG SUSTAVA | AG169: 0970 | AH169: Istraživanje i razvoj obrazovanja | AI169: 09 | AJ169: 097
A170: =IF(C170="","",VLOOKUP('OPĆI DIO'!$C$1,'OPĆI DIO'!$N$4:$W$137,10,FALSE)) ->  | B170: =IF(C170="","",VLOOKUP('OPĆI DIO'!$C$1,'OPĆI DIO'!$N$4:$W$137,9,FALSE)) ->  | O170: =IF(C170="","",'OPĆI DIO'!$C$1) ->  | AE170: A818021 | AF170: PRIMJENA UDŽBENIČKOG STANDARDA | AG170: 0912 | AH170: Osnovno obrazovanje | AI170: 09 | AJ170: 091
A171: =IF(C171="","",VLOOKUP('OPĆI DIO'!$C$1,'OPĆI DIO'!$N$4:$W$137,10,FALSE)) ->  | B171: =IF(C171="","",VLOOKUP('OPĆI DIO'!$C$1,'OPĆI DIO'!$N$4:$W$137,9,FALSE)) ->  | O171: =IF(C171="","",'OPĆI DIO'!$C$1) ->  | AE171: A818023 | AF171: PROVEDBA EURODESK MREŽE | AG171: 0970 | AH171: Istraživanje i razvoj obrazovanja | AI171: 09 | AJ171: 097
A172: =IF(C172="","",VLOOKUP('OPĆI DIO'!$C$1,'OPĆI DIO'!$N$4:$W$137,10,FALSE)) ->  | B172: =IF(C172="","",VLOOKUP('OPĆI DIO'!$C$1,'OPĆI DIO'!$N$4:$W$137,9,FALSE)) ->  | O172: =IF(C172="","",'OPĆI DIO'!$C$1) ->  | AE172: A818024 | AF172: PROVEDBA E-TWINNING MREŽE | AG172: 0970 | AH172: Istraživanje i razvoj obrazovanja | AI172: 09 | AJ172: 097
A173: =IF(C173="","",VLOOKUP('OPĆI DIO'!$C$1,'OPĆI DIO'!$N$4:$W$137,10,FALSE)) ->  | B173: =IF(C173="","",VLOOKUP('OPĆI DIO'!$C$1,'OPĆI DIO'!$N$4:$W$137,9,FALSE)) ->  | O173: =IF(C173="","",'OPĆI DIO'!$C$1) ->  | AE173: A818033 | AF173: ZNANSTVENA I VISOKOŠKOLSKA MOBILNOST | AG173: 0970 | AH173: Istraživanje i razvoj obrazovanja | AI173: 09 | AJ173: 097
A174: =IF(C174="","",VLOOKUP('OPĆI DIO'!$C$1,'OPĆI DIO'!$N$4:$W$137,10,FALSE)) ->  | B174: =IF(C174="","",VLOOKUP('OPĆI DIO'!$C$1,'OPĆI DIO'!$N$4:$W$137,9,FALSE)) ->  | O174: =IF(C174="","",'OPĆI DIO'!$C$1) ->  | AE174: A818034 | AF174: PROJEKT POVEZIVANJA S EUROPSKIM KVALIFIKACIJSKIM OKVIROM - EQF NCP GRANT | AG174: 0970 | AH174: Istraživanje i razvoj obrazovanja | AI174: 09 | AJ174: 097
A175: =IF(C175="","",VLOOKUP('OPĆI DIO'!$C$1,'OPĆI DIO'!$N$4:$W$137,10,FALSE)) ->  | B175: =IF(C175="","",VLOOKUP('OPĆI DIO'!$C$1,'OPĆI DIO'!$N$4:$W$137,9,FALSE)) ->  | O175: =IF(C175="","",'OPĆI DIO'!$C$1) ->  | AE175: A818035 | AF175: MENTORI I STRUČNI ISPITI U OSNOVNIM I SREDNJIM ŠKOLAMA | AG175: 0970 | AH175: Istraživanje i razvoj obrazovanja | AI175: 09 | AJ175: 097
A176: =IF(C176="","",VLOOKUP('OPĆI DIO'!$C$1,'OPĆI DIO'!$N$4:$W$137,10,FALSE)) ->  | B176: =IF(C176="","",VLOOKUP('OPĆI DIO'!$C$1,'OPĆI DIO'!$N$4:$W$137,9,FALSE)) ->  | O176: =IF(C176="","",'OPĆI DIO'!$C$1) ->  | AE176: A818042 | AF176: OBZOR EUROPA I MOBILNOST ISTRAŽIVAČA | AG176: 0970 | AH176: Istraživanje i razvoj obrazovanja | AI176: 09 | AJ176: 097
A177: =IF(C177="","",VLOOKUP('OPĆI DIO'!$C$1,'OPĆI DIO'!$N$4:$W$137,10,FALSE)) ->  | B177: =IF(C177="","",VLOOKUP('OPĆI DIO'!$C$1,'OPĆI DIO'!$N$4:$W$137,9,FALSE)) ->  | O177: =IF(C177="","",'OPĆI DIO'!$C$1) ->  | AE177: A818043 | AF177: ERASMUS PLUS PROVEDBA PROGRAMA OD 2014. DO 2020. | AG177: 0970 | AH177: Istraživanje i razvoj obrazovanja | AI177: 09 | AJ177: 097
A178: =IF(C178="","",VLOOKUP('OPĆI DIO'!$C$1,'OPĆI DIO'!$N$4:$W$137,10,FALSE)) ->  | B178: =IF(C178="","",VLOOKUP('OPĆI DIO'!$C$1,'OPĆI DIO'!$N$4:$W$137,9,FALSE)) ->  | O178: =IF(C178="","",'OPĆI DIO'!$C$1) ->  | AE178: A818044 | AF178: ERASMUS PLUS – PROJEKTI ZA KORISNIKE OBRAZOVANJE OD 2014. DO 2020. | AG178: 0970 | AH178: Istraživanje i razvoj obrazovanja | AI178: 09 | AJ178: 097
A179: =IF(C179="","",VLOOKUP('OPĆI DIO'!$C$1,'OPĆI DIO'!$N$4:$W$137,10,FALSE)) ->  | B179: =IF(C179="","",VLOOKUP('OPĆI DIO'!$C$1,'OPĆI DIO'!$N$4:$W$137,9,FALSE)) ->  | O179: =IF(C179="","",'OPĆI DIO'!$C$1) ->  | AE179: A818045 | AF179: ERASMUS PLUS – PROJEKTI ZA KORISNIKE MLADI OD 2014. DO 2020. | AG179: 0970 | AH179: Istraživanje i razvoj obrazovanja | AI179: 09 | AJ179: 097
A180: =IF(C180="","",VLOOKUP('OPĆI DIO'!$C$1,'OPĆI DIO'!$N$4:$W$137,10,FALSE)) ->  | B180: =IF(C180="","",VLOOKUP('OPĆI DIO'!$C$1,'OPĆI DIO'!$N$4:$W$137,9,FALSE)) ->  | O180: =IF(C180="","",'OPĆI DIO'!$C$1) ->  | AE180: A818055 | AF180: PORTAL STUDY IN CROATIA | AG180: 0970 | AH180: Istraživanje i razvoj obrazovanja | AI180: 09 | AJ180: 097
A181: =IF(C181="","",VLOOKUP('OPĆI DIO'!$C$1,'OPĆI DIO'!$N$4:$W$137,10,FALSE)) ->  | B181: =IF(C181="","",VLOOKUP('OPĆI DIO'!$C$1,'OPĆI DIO'!$N$4:$W$137,9,FALSE)) ->  | O181: =IF(C181="","",'OPĆI DIO'!$C$1) ->  | AE181: A818058 | AF181: EUROPSKE SNAGE SOLIDARNOSTI PROVEDBA PROGRAMA | AG181: 0970 | AH181: Istraživanje i razvoj obrazovanja | AI181: 09 | AJ181: 097
A182: =IF(C182="","",VLOOKUP('OPĆI DIO'!$C$1,'OPĆI DIO'!$N$4:$W$137,10,FALSE)) ->  | B182: =IF(C182="","",VLOOKUP('OPĆI DIO'!$C$1,'OPĆI DIO'!$N$4:$W$137,9,FALSE)) ->  | O182: =IF(C182="","",'OPĆI DIO'!$C$1) ->  | AE182: A818059 | AF182: EUROPSKE SNAGE SOLIDARNOSTI - PROJEKTI ZA KORISNIKE OD 2018. DO 2020. | AG182: 0970 | AH182: Istraživanje i razvoj obrazovanja | AI182: 09 | AJ182: 097
A183: =IF(C183="","",VLOOKUP('OPĆI DIO'!$C$1,'OPĆI DIO'!$N$4:$W$137,10,FALSE)) ->  | B183: =IF(C183="","",VLOOKUP('OPĆI DIO'!$C$1,'OPĆI DIO'!$N$4:$W$137,9,FALSE)) ->  | O183: =IF(C183="","",'OPĆI DIO'!$C$1) ->  | AE183: A818060 | AF183: EURYDICE EUROPSKA MREŽA ZA PODATKE I ANALIZE O SUSTAVIMA OBRAZOVANJA | AG183: 0970 | AH183: Istraživanje i razvoj obrazovanja | AI183: 09 | AJ183: 097
A184: =IF(C184="","",VLOOKUP('OPĆI DIO'!$C$1,'OPĆI DIO'!$N$4:$W$137,10,FALSE)) ->  | B184: =IF(C184="","",VLOOKUP('OPĆI DIO'!$C$1,'OPĆI DIO'!$N$4:$W$137,9,FALSE)) ->  | O184: =IF(C184="","",'OPĆI DIO'!$C$1) ->  | AE184: A818061 | AF184: ERASMUS PLUS - SUFINANCIRANJE – DIO PROVEDBE MLADI | AG184: 0970 | AH184: Istraživanje i razvoj obrazovanja | AI184: 09 | AJ184: 097
A185: =IF(C185="","",VLOOKUP('OPĆI DIO'!$C$1,'OPĆI DIO'!$N$4:$W$137,10,FALSE)) ->  | B185: =IF(C185="","",VLOOKUP('OPĆI DIO'!$C$1,'OPĆI DIO'!$N$4:$W$137,9,FALSE)) ->  | O185: =IF(C185="","",'OPĆI DIO'!$C$1) ->  | AE185: A818063 | AF185: EUROPSKE SNAGE SOLIDARNOSTI - PROJEKTI ZA KORISNIKE OD 2021. DO 2027. | AG185: 0970 | AH185: Istraživanje i razvoj obrazovanja | AI185: 09 | AJ185: 097
A186: =IF(C186="","",VLOOKUP('OPĆI DIO'!$C$1,'OPĆI DIO'!$N$4:$W$137,10,FALSE)) ->  | B186: =IF(C186="","",VLOOKUP('OPĆI DIO'!$C$1,'OPĆI DIO'!$N$4:$W$137,9,FALSE)) ->  | O186: =IF(C186="","",'OPĆI DIO'!$C$1) ->  | AE186: A818064 | AF186: ERASMUS - PROJEKTI ZA KORISNIKE OBRAZOVANJE OD 2021. DO 2027. | AG186: 0970 | AH186: Istraživanje i razvoj obrazovanja | AI186: 09 | AJ186: 097
A187: =IF(C187="","",VLOOKUP('OPĆI DIO'!$C$1,'OPĆI DIO'!$N$4:$W$137,10,FALSE)) ->  | B187: =IF(C187="","",VLOOKUP('OPĆI DIO'!$C$1,'OPĆI DIO'!$N$4:$W$137,9,FALSE)) ->  | O187: =IF(C187="","",'OPĆI DIO'!$C$1) ->  | AE187: A818065 | AF187: ERASMUS - PROJEKTI ZA KORISNIKE MLADI OD 2021. DO 2027. | AG187: 0970 | AH187: Istraživanje i razvoj obrazovanja | AI187: 09 | AJ187: 097
A188: =IF(C188="","",VLOOKUP('OPĆI DIO'!$C$1,'OPĆI DIO'!$N$4:$W$137,10,FALSE)) ->  | B188: =IF(C188="","",VLOOKUP('OPĆI DIO'!$C$1,'OPĆI DIO'!$N$4:$W$137,9,FALSE)) ->  | O188: =IF(C188="","",'OPĆI DIO'!$C$1) ->  | AE188: A818070 | AF188: PROVEDBA EUROPASS I EUROGUIDANCE | AG188: 0970 | AH188: Istraživanje i razvoj obrazovanja | AI188: 09 | AJ188: 097
A189: =IF(C189="","",VLOOKUP('OPĆI DIO'!$C$1,'OPĆI DIO'!$N$4:$W$137,10,FALSE)) ->  | B189: =IF(C189="","",VLOOKUP('OPĆI DIO'!$C$1,'OPĆI DIO'!$N$4:$W$137,9,FALSE)) ->  | O189: =IF(C189="","",'OPĆI DIO'!$C$1) ->  | AE189: A818071 | AF189: VET RADNA SKUPINA | AG189: 0970 | AH189: Istraživanje i razvoj obrazovanja | AI189: 09 | AJ189: 097
A190: =IF(C190="","",VLOOKUP('OPĆI DIO'!$C$1,'OPĆI DIO'!$N$4:$W$137,10,FALSE)) ->  | B190: =IF(C190="","",VLOOKUP('OPĆI DIO'!$C$1,'OPĆI DIO'!$N$4:$W$137,9,FALSE)) ->  | O190: =IF(C190="","",'OPĆI DIO'!$C$1) ->  | AE190: A818073 | AF190: SALTO - REFERENTNI CENTAR ZA TEMU UKLJUČIVOSTI U PODRUČJU OBRAZOVANJA NA EUROPSKOJ RAZINI | AG190: 0970 | AH190: Istraživanje i razvoj obrazovanja | AI190: 09 | AJ190: 097
A191: =IF(C191="","",VLOOKUP('OPĆI DIO'!$C$1,'OPĆI DIO'!$N$4:$W$137,10,FALSE)) ->  | B191: =IF(C191="","",VLOOKUP('OPĆI DIO'!$C$1,'OPĆI DIO'!$N$4:$W$137,9,FALSE)) ->  | O191: =IF(C191="","",'OPĆI DIO'!$C$1) ->  | AE191: A818075 | AF191: ERASMUS - PROJEKTI ZA KORISNIKE PODRUČJA SPORT OD 2021. DO 2027. | AG191: 0970 | AH191: Istraživanje i razvoj obrazovanja | AI191: 09 | AJ191: 097
A192: =IF(C192="","",VLOOKUP('OPĆI DIO'!$C$1,'OPĆI DIO'!$N$4:$W$137,10,FALSE)) ->  | B192: =IF(C192="","",VLOOKUP('OPĆI DIO'!$C$1,'OPĆI DIO'!$N$4:$W$137,9,FALSE)) ->  | O192: =IF(C192="","",'OPĆI DIO'!$C$1) ->  | AE192: A848001 | AF192: ADMINISTRACIJA I UPRAVLJANJE AGENCIJE ZA STRUKOVNO OBRAZOVANJE I OBRAZOVANJE ODRASLIH | AG192: 0950 | AH192: Obrazovanje koje se ne može definirati po stupnju | AI192: 09 | AJ192: 095
A193: =IF(C193="","",VLOOKUP('OPĆI DIO'!$C$1,'OPĆI DIO'!$N$4:$W$137,10,FALSE)) ->  | B193: =IF(C193="","",VLOOKUP('OPĆI DIO'!$C$1,'OPĆI DIO'!$N$4:$W$137,9,FALSE)) ->  | O193: =IF(C193="","",'OPĆI DIO'!$C$1) ->  | AE193: A848009 | AF193: PROMICANJE KULTURE UČENJA: TJEDAN CJELOŽIVOTNOG UČENJA | AG193: 0970 | AH193: Istraživanje i razvoj obrazovanja | AI193: 09 | AJ193: 097
A194: =IF(C194="","",VLOOKUP('OPĆI DIO'!$C$1,'OPĆI DIO'!$N$4:$W$137,10,FALSE)) ->  | B194: =IF(C194="","",VLOOKUP('OPĆI DIO'!$C$1,'OPĆI DIO'!$N$4:$W$137,9,FALSE)) ->  | O194: =IF(C194="","",'OPĆI DIO'!$C$1) ->  | AE194: A848010 | AF194: STRUČNO SAVJETODAVNA DJELATNOST | AG194: 0970 | AH194: Istraživanje i razvoj obrazovanja | AI194: 09 | AJ194: 097
A195: =IF(C195="","",VLOOKUP('OPĆI DIO'!$C$1,'OPĆI DIO'!$N$4:$W$137,10,FALSE)) ->  | B195: =IF(C195="","",VLOOKUP('OPĆI DIO'!$C$1,'OPĆI DIO'!$N$4:$W$137,9,FALSE)) ->  | G195: =IFERROR(VLOOKUP(F195,$Y$5:$AA$129,2,FALSE),"") ->  | I195: =IFERROR(VLOOKUP(H195,$AE$6:$AF$353,2,FALSE),"") ->  | J195: =IFERROR(VLOOKUP(H195,$AE$6:$AI$353,3,FALSE),"") ->  | O195: =IF(C195="","",'OPĆI DIO'!$C$1) ->  | AE195: A848014 | AF195: RAZVOJ SUSTAVA STRUKOVNOG OBRAZOVANJA | AG195: 0970 | AH195: Istraživanje i razvoj obrazovanja | AI195: 09 | AJ195: 097
A196: =IF(C196="","",VLOOKUP('OPĆI DIO'!$C$1,'OPĆI DIO'!$N$4:$W$137,10,FALSE)) ->  | B196: =IF(C196="","",VLOOKUP('OPĆI DIO'!$C$1,'OPĆI DIO'!$N$4:$W$137,9,FALSE)) ->  | C196: =IFERROR(VLOOKUP(D196,$V$6:$X$34,3,FALSE),"") ->  | E196: =IFERROR(VLOOKUP(D196,$V$6:$W$34,2,FALSE),"") ->  | O196: =IF(C196="","",'OPĆI DIO'!$C$1) ->  | P196: =LEFT(F196,3) ->  | Q196: =LEFT(F196,2) ->  | R196: =LEFT(C196,3) ->  | S196: =MID(J196,2,2) ->  | T196: =LEFT(F196,1) ->  | U196: =IFERROR(VLOOKUP(C196,$V$6:$X$34,3,FALSE),"") ->  | AE196: A848018 | AF196: DRŽAVNA NATJECANJA | AG196: 0970 | AH196: Istraživanje i razvoj obrazovanja | AI196: 09 | AJ196: 097
A197: =IF(C197="","",VLOOKUP('OPĆI DIO'!$C$1,'OPĆI DIO'!$N$4:$W$137,10,FALSE)) ->  | B197: =IF(C197="","",VLOOKUP('OPĆI DIO'!$C$1,'OPĆI DIO'!$N$4:$W$137,9,FALSE)) ->  | O197: =IF(C197="","",'OPĆI DIO'!$C$1) ->  | AE197: A848020 | AF197: RAZVOJ SUSTAVA OBRAZOVANJA ODRASLIH | AG197: 0970 | AH197: Istraživanje i razvoj obrazovanja | AI197: 09 | AJ197: 097
A198: =IF(C198="","",VLOOKUP('OPĆI DIO'!$C$1,'OPĆI DIO'!$N$4:$W$137,10,FALSE)) ->  | B198: =IF(C198="","",VLOOKUP('OPĆI DIO'!$C$1,'OPĆI DIO'!$N$4:$W$137,9,FALSE)) ->  | O198: =IF(C198="","",'OPĆI DIO'!$C$1) ->  | AE198: A848023 | AF198: REFERNET U REPUBLICI HRVATSKOJ | AG198: 0970 | AH198: Istraživanje i razvoj obrazovanja | AI198: 09 | AJ198: 097
A199: =IF(C199="","",VLOOKUP('OPĆI DIO'!$C$1,'OPĆI DIO'!$N$4:$W$137,10,FALSE)) ->  | B199: =IF(C199="","",VLOOKUP('OPĆI DIO'!$C$1,'OPĆI DIO'!$N$4:$W$137,9,FALSE)) ->  | O199: =IF(C199="","",'OPĆI DIO'!$C$1) ->  | AE199: A848051 | AF199: ERASMUS PLUS - PROJEKTI | AG199: 0970 | AH199: Istraživanje i razvoj obrazovanja | AI199: =LEFT(AG199,2) -> 09 | AJ199: =LEFT(AG199,3) -> 097
A200: =IF(C200="","",VLOOKUP('OPĆI DIO'!$C$1,'OPĆI DIO'!$N$4:$W$137,10,FALSE)) ->  | B200: =IF(C200="","",VLOOKUP('OPĆI DIO'!$C$1,'OPĆI DIO'!$N$4:$W$137,9,FALSE)) ->  | O200: =IF(C200="","",'OPĆI DIO'!$C$1) ->  | AE200: A867018 | AF200: PRIMJENA HRVATSKOG KVALIFIKACIJSKOG OKVIRA U VISOKOM OBRAZOVANJU | AG200: 0942 | AH200: Drugi stupanj visoke naobrazbe | AI200: 09 | AJ200: 094
... 301 more rows

Sheet Unos rashoda P4
A1: EU PODPROJEKTI - rashodi | D1: =IF(OR('OPĆI DIO'!C1="odaberite -",'OPĆI DIO'!C1=""),"Molimo odaberite proračunskog korisnika na radnom listu Opći podaci!","") ->  | K1: u EUR
A2: IZVOR NA TERET | B2: IZVOR (odaberite) | C2: OPIS IZVORA | D2: Stavka (odaberite) | E2: OPIS STAVKE | F2: AKTIVNOST/PODPROJEKT (odaberite) | G2: OPIS AKTIVNOSTI | H2: FP | I2: PLAN 2026. | J2: PROJEKCIJA 2027. | K2: PROJEKCIJA 2028. | L2: NAZIV NOVOG PODPROJEKTA | M2: Vrijedi od: | N2: Vrijedi do: | O2: TKO JE UPLATITELJ SREDSTAVA ZA EU PROJEKT | P2: OPIS PODPROJEKTA | Q2: Primatelj prijenosa | R2: Ustanova | S2: left3 | T2: left2 | U2: mid | V2: left1 | W2: IzvorKrovno
A3: =IFERROR(VLOOKUP(B3,$X$6:$AA$34,4,FALSE),"") ->  | B3: 51000 | C3: =IFERROR(VLOOKUP(B3,$X$6:$AA$34,2,FALSE),"") ->  | D3: 3111 | E3: =IFERROR(VLOOKUP(D3,$AB$5:$AD$129,2,FALSE),"") -> Plaće za redovan rad | F3: NOVI PODPROJEKT | G3: =IFERROR(VLOOKUP(F3,$AH$6:$AI$1763,2,FALSE),"") -> NOVI PODPROJEKT | H3: =IFERROR(VLOOKUP(F3,$AH$6:$AK$1763,4,FALSE),"") -> NOVI PODPROJEKT | I3: 3,000 | J3: 0 | K3: 0 | L3: Academics4Rail | M3: 01.09.2023. | N3: 30.08.2026. | O3: EURNEX | P3: Building a community of railway scientific researchers and academia for ERJU and enabling a network of PhDs (academia teaming with industry). | R3: =IF(D3="","",'OPĆI DIO'!$C$1) -> 1812 Sveučilište u Zagrebu FAKULTET PROMETNIH ZNANOSTI | S3: =LEFT(D3,3) -> 311 | T3: =LEFT(D3,2) -> 31 | U3: =MID(H3,2,2) -> OV | V3: =LEFT(D3,1) -> 3
A4: =IFERROR(VLOOKUP(B4,$X$6:$AA$34,4,FALSE),"") ->  | B4: 51000 | C4: =IFERROR(VLOOKUP(B4,$X$6:$AA$34,2,FALSE),"") ->  | D4: 3211 | E4: =IFERROR(VLOOKUP(D4,$AB$5:$AD$129,2,FALSE),"") -> Službena putovanja | F4: NOVI PODPROJEKT | G4: =IFERROR(VLOOKUP(F4,$AH$6:$AI$1763,2,FALSE),"") -> NOVI PODPROJEKT | H4: =IFERROR(VLOOKUP(F4,$AH$6:$AK$1763,4,FALSE),"") -> NOVI PODPROJEKT | I4: 1,000 | J4: 0 | K4: 0 | L4: Academics4Rail | M4: 01.09.2023. | N4: 30.08.2026. | O4: EURNEX | P4: Building a community of railway scientific researchers and academia for ERJU and enabling a network of PhDs (academia teaming with industry). | R4: =IF(D4="","",'OPĆI DIO'!$C$1) -> 1812 Sveučilište u Zagrebu FAKULTET PROMETNIH ZNANOSTI | S4: =LEFT(D4,3) -> 321 | T4: =LEFT(D4,2) -> 32 | U4: =MID(H4,2,2) -> OV | V4: =LEFT(D4,1) -> 3
B5: 51000 | D5: 3111 | E5: Plaće za redovan rad | F5: NOVI PODPROJEKT | G5: NOVI PODPROJEKT | H5: NOVI PODPROJEKT | I5: 45,000 | J5: 0 | K5: 0 | M5: 01.10.2021. | N5: 30.09.2026. | O5: EU putem AEROPORTS DE PARIS (ADP) | P5: Implementacija novih tehnologija u aerodromske procese s ciljem smanjenja negativnog utjecaja aerodromskog prometa na okoliš | R5: =IF(D5="","",'OPĆI DIO'!$C$1) -> 1812 Sveučilište u Zagrebu FAKULTET PROMETNIH ZNANOSTI | S5: 311 | T5: 31 | U5: OV | V5: 3 | X5: IZVOR | Y5: OPIS IZVORA | AB5: 3111 | AC5: Plaće za redovan rad | AE5: =LEFT(AB5,2) -> 31 | AF5: =LEFT(AB5,3) -> 311 | AH5: AKTIVNOST | AI5: OPIS AKTIVNOSTI
B6: 51000 | D6: 3121 | E6: Ostali rashodi za zaposlene | F6: NOVI PODPROJEKT | G6: NOVI PODPROJEKT | H6: NOVI PODPROJEKT | I6: 4,520 | J6: 0 | K6: 0 | M6: 01.10.2021. | N6: 30.09.2026. | O6: EU putem AEROPORTS DE PARIS (ADP) | P6: Implementacija novih tehnologija u aerodromske procese s ciljem smanjenja negativnog utjecaja aerodromskog prometa na okoliš | R6: =IF(D6="","",'OPĆI DIO'!$C$1) -> 1812 Sveučilište u Zagrebu FAKULTET PROMETNIH ZNANOSTI | S6: 312 | T6: 31 | U6: OV | V6: 3 | X6: 11 | Y6: Opći prihodi i primici | AA6: 11 | AB6: 3112 | AC6: Plaće u naravi | AE6: 31 | AF6: =LEFT(AB6,3) -> 311 | AH6: NOVI PODPROJEKT | AI6: NOVI PODPROJEKT | AJ6: NOVI PODPROJEKT | AK6: NOVI PODPROJEKT
B7: 51000 | D7: 3212 | E7: Naknade za prijevoz, za rad na terenu i odvojeni život | F7: NOVI PODPROJEKT | G7: NOVI PODPROJEKT | H7: NOVI PODPROJEKT | I7: 1,015 | J7: 0 | K7: 0 | M7: 01.10.2021. | N7: 30.09.2026. | O7: EU putem AEROPORTS DE PARIS (ADP) | P7: Implementacija novih tehnologija u aerodromske procese s ciljem smanjenja negativnog utjecaja aerodromskog prometa na okoliš | R7: =IF(D7="","",'OPĆI DIO'!$C$1) -> 1812 Sveučilište u Zagrebu FAKULTET PROMETNIH ZNANOSTI | S7: 321 | T7: 32 | U7: OV | V7: 3 | X7: 12 | Y7: Sredstva učešća za pomoći | AA7: 12 | AB7: 3113 | AC7: Plaće za prekovremeni rad | AE7: 31 | AF7: 311 | AH7: A676072.001 | AI7: ERASMUS PLUS-PROFFORMANCE-RAZVOJ SUSTAVA OCJENJIVANJA RADA I NAGRAĐIVANJA PROFESORA NA VISOKIM UČILIŠTIMA | AJ7: =LEFT(AH7,7) -> A676072 | AK7: =IFERROR(VLOOKUP(AJ7,AKT!$E$4:$G$342,3,FALSE),"") -> 0970
B8: 51000 | D8: 3111 | E8: Plaće za redovan rad | F8: NOVI PODPROJEKT | G8: NOVI PODPROJEKT | H8: NOVI PODPROJEKT | I8: 17,492 | J8: 0 | K8: 0 | L8: EurosaP II - European Road Safety Partnership - Network Wide Road Assessment | M8: 01.09.2023. | N8: 31.08.2026. | O8: European Commission | P8: Glavni ciljevi projekta su stjecanje znanja od strane studenata te unaprjeđenje kompetencija i vještina osoblja za upravljanje cestama, revizora, inspektora za sigurnost cestovnog prometa, kao i predavača i stručnjaka u području procjene sigurnosti cesta na cijeloj cestovnoj mreži. Postizanje ovog cilja zahtijevat će međunarodnu suradnju unutar projekta, što će poboljšati kvalitetu obrazovanja temeljenog na razmjeni znanja i osigurati provedbu i širenje inovativnih rješenja. | R8: =IF(D8="","",'OPĆI DIO'!$C$1) -> 1812 Sveučilište u Zagrebu FAKULTET PROMETNIH ZNANOSTI | S8: 311 | T8: 31 | U8: OV | V8: 3 | X8: 31 | Y8: Vlastiti prihodi | AA8: 31 | AB8: 3114 | AC8: Plaće za posebne uvjete rada | AE8: 31 | AF8: 311 | AH8: A676072.002 | AI8: ERASMUS PLUS-AKTIVNOSTI SURADNIČKOG UČENJA I RESURSI ZA POTPORU NAČELA I SMJERNICA ZA SOCIJALNU DIMENZIJU | AJ8: =LEFT(AH8,7) -> A676072 | AK8: =IFERROR(VLOOKUP(AJ8,AKT!$E$4:$G$342,3,FALSE),"") -> 0970
B9: 51000 | D9: 3211 | E9: Službena putovanja | F9: NOVI PODPROJEKT | G9: NOVI PODPROJEKT | H9: NOVI PODPROJEKT | I9: 5,000 | J9: 0 | K9: 0 | L9: EurosaP II - European Road Safety Partnership - Network Wide Road Assessment | M9: 01.09.2023. | N9: 31.08.2026. | O9: European Commission | P9: Glavni ciljevi projekta su stjecanje znanja od strane studenata te unaprjeđenje kompetencija i vještina osoblja za upravljanje cestama, revizora, inspektora za sigurnost cestovnog prometa, kao i predavača i stručnjaka u području procjene sigurnosti cesta na cijeloj cestovnoj mreži. Postizanje ovog cilja zahtijevat će međunarodnu suradnju unutar projekta, što će poboljšati kvalitetu obrazovanja temeljenog na razmjeni znanja i osigurati provedbu i širenje inovativnih rješenja. | R9: =IF(D9="","",'OPĆI DIO'!$C$1) -> 1812 Sveučilište u Zagrebu FAKULTET PROMETNIH ZNANOSTI | S9: 321 | T9: 32 | U9: OV | V9: 3 | X9: 41 | Y9: Prihodi od igara na sreću | AA9: 41 | AB9: 3121 | AC9: Ostali rashodi za zaposlene | AE9: 31 | AF9: 312 | AH9: A676072.003 | AI9: ERASMUS PLUS-EUROPSKO ISTRAŽIVANJE PRAĆENJA OSOBA S DIPLOMOM (GT-HRVATSKA) | AJ9: =LEFT(AH9,7) -> A676072 | AK9: =IFERROR(VLOOKUP(AJ9,AKT!$E$4:$G$342,3,FALSE),"") -> 0970
B10: 51000 | D10: 3111 | E10: Plaće za redovan rad | F10: NOVI PODPROJEKT | G10: NOVI PODPROJEKT | H10: NOVI PODPROJEKT | I10: 75,660 | J10: 0 | K10: 0 | L10: ELABORATOR: The European Living Lab on designing sustainable urban mobility towards climate neutral cities | M10: 01.06.2023. | N10: 31.05.2026. | O10: European climate, infrastructure and environment executive agency | P10: Projekt ELABORATOR će pružiti metodologije, praktične alate, preporuke i smjernice kako bi podržao ne samo urbaniste i igrače u industriji tehnologije u dizajniranju inovativnih proizvoda, usluga i intervencija koje će se primjenjivati u kompleksnim urbanim okruženjima, već i vlasti i donositelje politika u definiranju političkih strategija za uvođenje sigurne, održive i inkluzivne urbane mobilnosti u naše živote, temeljene na novom EU okviru za urbanu mobilnost, čime će se pridonijeti ciljevima Misije za klimatski neutralne i pametne gradove. Paralelno s tim, sposobnosti prethodne procjene bit će proširene kako bi lokalnim vlastima omogućile uvid u buduće ponude za testiranje i prilagodbu nadolazećih politika. | R10: =IF(D10="","",'OPĆI DIO'!$C$1) -> 1812 Sveučilište u Zagrebu FAKULTET PROMETNIH ZNANOSTI | S10: 311 | T10: 31 | U10: OV | V10: 3 | X10: 43 | Y10: Ostali prihodi za posebne namjene | AA10: 43 | AB10: 3132 | AC10: Doprinosi za obvezno zdravstveno osiguranje | AE10: 31 | AF10: 313 | AH10: A676072.004 | AI10: ERASMUS PLUS-HAND IN HAND-OSNAŽIVANJE NASTAVNIKA DILJEM EUROPE | AJ10: A676072 | AK10: =IFERROR(VLOOKUP(AJ10,AKT!$E$4:$G$342,3,FALSE),"") -> 0970
B11: 51000 | D11: 3211 | E11: Službena putovanja | F11: NOVI PODPROJEKT | G11: NOVI PODPROJEKT | H11: NOVI PODPROJEKT | I11: 2,000 | J11: 0 | K11: 0 | L11: ELABORATOR: The European Living Lab on designing sustainable urban mobility towards climate neutral cities | M11: 01.06.2023. | N11: 31.05.2026. | O11: European climate, infrastructure and environment executive agency | P11: Projekt ELABORATOR će pružiti metodologije, praktične alate, preporuke i smjernice kako bi podržao ne samo urbaniste i igrače u industriji tehnologije u dizajniranju inovativnih proizvoda, usluga i intervencija koje će se primjenjivati u kompleksnim urbanim okruženjima, već i vlasti i donositelje politika u definiranju političkih strategija za uvođenje sigurne, održive i inkluzivne urbane mobilnosti u naše živote, temeljene na novom EU okviru za urbanu mobilnost, čime će se pridonijeti ciljevima Misije za klimatski neutralne i pametne gradove. Paralelno s tim, sposobnosti prethodne procjene bit će proširene kako bi lokalnim vlastima omogućile uvid u buduće ponude za testiranje i prilagodbu nadolazećih politika. | R11: =IF(D11="","",'OPĆI DIO'!$C$1) -> 1812 Sveučilište u Zagrebu FAKULTET PROMETNIH ZNANOSTI | S11: 321 | T11: 32 | U11: OV | V11: 3 | X11: 50 | Y11: 5011 Pomoći iz državnog proračuna kroz opće prihode i primitke | AA11: 50 | AB11: 3211 | AC11: Službena putovanja | AE11: 32 | AF11: 321 | AH11: A676072.005 | AI11: ERASMUS PLUS-BAQUAL-BOLJE AKADEMSKE KVALIFIKACIJE KROZ OSIGURAVANJE KVALITETE | AJ11: A676072 | AK11: =IFERROR(VLOOKUP(AJ11,AKT!$E$4:$G$342,3,FALSE),"") -> 0970
B12: 51000 | D12: 3111 | E12: Plaće za redovan rad | F12: NOVI PODPROJEKT | G12: NOVI PODPROJEKT | H12: NOVI PODPROJEKT | I12: 25,000 | J12: 40,000 | K12: 0 | L12: IVORY - Ai for Vision Zero in Road Safety | M12: 01.11.2023. | N12: 31.10.2027. | O12: EUROPEAN RESEARCH AGENCY (REA) | P12: IVORY - 'AI for Vision Zero in Road Safety' je međunarodni projekt financiran sredstvima programa Horizon, koji podrazumijeva mrežu industrijskih doktorata čiji je cilj razvoj novog okvira za optimalnu integraciju umjetne inteligencije (AI) u istraživanje cestovne sigurnosti i osposobljavanje nove generacije vodećih istraživača u tom području u skladu s ciljevima održivog razvoja UN-a i Vision Zero strategijom Europske komisije kojima je planirano smanjenje broja smrtnih slučajeva u prometu za 50% do 2030. godine i njihovo potpuno eliminiranje do 2050. godine. Projektom se kroz 4 istraživačka cilja nastoji riješiti nedostatak razumijevanja izazova i mogućnosti korištenja umjetne inteligencije u sigurnosti cestovnog prometa: projekt za cilj ima razvoj i) odgovorne, poštene i učinkovite umjetne inteligencije (AI) za sigurnost cestovnog prometa, ii) novih načina podrške korisnicima cesta i interakcije čovjeka, vozila i okoliša, (iii) nove skalabilne i ravnopravne AI tehnologije za proaktivno upravljanje sigurnošćuinfrastrukture i (iv) održive mreže za razmjenu znanja o umjetnoj inteligenciji za sigurnost na cestama. Rezultati projekta neće samo pružiti učinkovitiju podršku korisnicima cesta pomoću AI u automatizaciji vozila, već će omogućiti odgovorno i proaktivno upravljanje trajnim problemima postojećih konvencionalnih i slabo automatiziranih transportnih sustava, čime će se otvoriti nove prilike za globalni utjecaj na cestovnu sigurnost. IVORY primjenjuje pristup “design-for-values” umjetne inteligencije u sigurnosti cestovnog prometa, operacionalizirajući etička načela pravednosti i objašnjivosti te omogućujući učinkovita rješenja umjetne intelginecije i za ugrožene skupine. Projektni konzorcij obuhvaća 4 akademske i 8 neakademskih korisnika te 8 povezanih partnera iz 10 zemalja iz područja inženjerstva, znanosti o podacima i etike tehnologije, a 13 mladih istraživača primit će visoku razinu doktorske edukacije i steći iskustva u inženjeringu. Kroz IVORY će se izraditi online platformu za učenje i umrežavanje za AI u sigurnosti cestovnog prometa, koja će biti dostupna nakon završetka projekta za buduće istraživače u ovoj domeni. | R12: =IF(D12="","",'OPĆI DIO'!$C$1) -> 1812 Sveučilište u Zagrebu FAKULTET PROMETNIH ZNANOSTI | S12: 311 | T12: 31 | U12: OV | V12: 3 | X12: 50 | Y12: 5012 Pomoći iz državnog proračuna kroz nacionalno sufinanciranje EU projekata | AA12: 50 | AB12: 3212 | AC12: Naknade za prijevoz, za rad na terenu i odvojeni život | AE12: 32 | AF12: 321 | AH12: A676072.006 | AI12: Erasmus+ projekt ContinueUP – Co-constructing the continuum between initial teacher education and continuous professional development (Grant Agreement Nr 101103641). | AJ12: A676072 | AK12: =IFERROR(VLOOKUP(AJ12,AKT!$E$4:$G$342,3,FALSE),"") -> 0970
B13: 51000 | D13: 3211 | E13: Službena putovanja | F13: NOVI PODPROJEKT | G13: NOVI PODPROJEKT | H13: NOVI PODPROJEKT | I13: 7,416 | J13: 7,416 | K13: 0 | L13: IVORY - Ai for Vision Zero in Road Safety | M13: 01.11.2023. | N13: 31.10.2027. | O13: EUROPEAN RESEARCH AGENCY (REA) | P13: IVORY - 'AI for Vision Zero in Road Safety' je međunarodni projekt financiran sredstvima programa Horizon, koji podrazumijeva mrežu industrijskih doktorata čiji je cilj razvoj novog okvira za optimalnu integraciju umjetne inteligencije (AI) u istraživanje cestovne sigurnosti i osposobljavanje nove generacije vodećih istraživača u tom području u skladu s ciljevima održivog razvoja UN-a i Vision Zero strategijom Europske komisije kojima je planirano smanjenje broja smrtnih slučajeva u prometu za 50% do 2030. godine i njihovo potpuno eliminiranje do 2050. godine. Projektom se kroz 4 istraživačka cilja nastoji riješiti nedostatak razumijevanja izazova i mogućnosti korištenja umjetne inteligencije u sigurnosti cestovnog prometa: projekt za cilj ima razvoj i) odgovorne, poštene i učinkovite umjetne inteligencije (AI) za sigurnost cestovnog prometa, ii) novih načina podrške korisnicima cesta i interakcije čovjeka, vozila i okoliša, (iii) nove skalabilne i ravnopravne AI tehnologije za proaktivno upravljanje sigurnošćuinfrastrukture i (iv) održive mreže za razmjenu znanja o umjetnoj inteligenciji za sigurnost na cestama. Rezultati projekta neće samo pružiti učinkovitiju podršku korisnicima cesta pomoću AI u automatizaciji vozila, već će omogućiti odgovorno i proaktivno upravljanje trajnim problemima postojećih konvencionalnih i slabo automatiziranih transportnih sustava, čime će se otvoriti nove prilike za globalni utjecaj na cestovnu sigurnost. IVORY primjenjuje pristup “design-for-values” umjetne inteligencije u sigurnosti cestovnog prometa, operacionalizirajući etička načela pravednosti i objašnjivosti te omogućujući učinkovita rješenja umjetne intelginecije i za ugrožene skupine. Projektni konzorcij obuhvaća 4 akademske i 8 neakademskih korisnika te 8 povezanih partnera iz 10 zemalja iz područja inženjerstva, znanosti o podacima i etike tehnologije, a 13 mladih istraživača primit će visoku razinu doktorske edukacije i steći iskustva u inženjeringu. Kroz IVORY će se izraditi online platformu za učenje i umrežavanje za AI u sigurnosti cestovnog prometa, koja će biti dostupna nakon završetka projekta za buduće istraživače u ovoj domeni. | R13: =IF(D13="","",'OPĆI DIO'!$C$1) -> 1812 Sveučilište u Zagrebu FAKULTET PROMETNIH ZNANOSTI | S13: 321 | T13: 32 | U13: OV | V13: 3 | X13: 50 | Y13: 5041 Pomoći iz državnog proračuna kroz prihode od igara na sreću | AA13: 50 | AB13: 3213 | AC13: Stručno usavršavanje zaposlenika | AE13: 32 | AF13: 321 | AH13: K578051.001 | AI13: Znanstveno i tehnologijsko predviđanje | AJ13: K578051 | AK13: =IFERROR(VLOOKUP(AJ13,AKT!$E$4:$G$342,3,FALSE),"") -> 
